Workbook

Sheet Info

Sheet Trial (hidden)

Sheet Instructions (hidden)
A1: Excel Skills | Business Plan Cash Flow Forecast Template
A2: Instructions
A3: www.excel-skills.com
A5: This template enables users to create cash flow projections for a business plan which includes 12 monthly periods and five annual periods. The template includes a monthly income statement, cash flow statement and balance sheet. The cash flow projections are based on turnover, gross profit and expense values entered by the user as well as a number of assumptions used to create an automated balance sheet. Assumptions include opening balance sheet balances, working capital ratios, payroll accruals, sales tax, income tax, dividends and loans. The monthly reporting periods are based on any user defined start date.
A7: Note: We have included 12 monthly and 5 annual reporting periods in this template because this format is frequently required by financial institutions when submitting financial projections for business plans. If you only require annual cash flow projections, refer to our Annual Cash Flow Projections template and if you only require monthly cash flow projections, refer to our Monthly Cash Flow Projections template.
A9: The following sheets are included in the template:
A10: Assumptions - this sheet includes the default assumptions on which the monthly & annual cash flow projections are based.
A11: IncState - this sheet includes a detailed monthly income statement for 12 monthly periods and 5 annual periods. All the rows highlighted in yellow in column A require user input and the codes in column A are used in the sales tax, receivables & payables calculations. The rowswith no yellow highlighting in column A contain formulas and are calculated automatically.
A12: CashFlow - as with the income statement, only the rows with yellow highlighting in column A require user input. All the other rows contain formulas and are therefore calculated automatically.
A13: BalanceSheet - all balance sheet calculations are based on the template assumptions and the income statement & cash flow statement calculations. No user input is therefore required on this sheet.
A14: Loans1 to Loans3 & Leases - these sheets include detailed amortization tables which are used to calculate the interest charges and capital repayment amounts that are included on the income statement and cash flow statement. Each sheet provides for a different set of loan repayment terms to be specified.
A16: Note: If you do not want to include any of the line items that are listed on the income statement, cash flow statement or balance sheet, we recommend hiding these items instead of deleting them. If you delete items which are used in other calculations, these calculations will result in errors which you then need to fix or remove.
A18: Setup
A20: Business Name & Reporting Periods
A22: The business name and the start date for the cash flow projections need to be entered at the top of the Assumptions sheet. The business name is included as a heading on all the sheets and the reporting periods which are included in the template are determined based on the start date that is specified. This date is used as the first month and the 11 subsequent months and four subsequent years are added to form the 5 year projection period.
A24: User Input
A26: The income statement and cash flow statement only require user input where there is yellow highlighting in column A and the user input only relates to the 12 monthly periods. All annual totals are calculated automatically and all rows without yellow highlighting are calculated automatically in both the monthly and annual columns.
A28: Income Statement
A30: All monthly income statement projections need to be entered exclusive of any sales tax that may be applicable.
A32: Turnover & Gross Profits
A34: Monthly turnover values need to be entered on the IncState sheet for the first 12 months. The projected monthly gross profit percentages also need to be entered on this sheet and are used in order to calculate the gross profit values. The monthly cost of sales projections are calculated by simply deducting the gross profit values from the monthly turnover values.
A36: The year 2 to 5 turnover amounts are calculated based on the totals for the first year and adjusted by the annual turnover growth rates that are specified on the Assumptions sheet. Gross profit percentages for each turnover line need to be entered on the IncState sheet. Gross profit values and cost of sales totals are calculated automatically.
A38: The template includes two default lines in each of these sections - one for a typical product based item and one for a typical service based item. The template can therefore be used for both service and trade based businesses. There are no cost of sales and gross profit values in service based businesses and a gross profit percentage of 100% can therefore be specified. You can also hide the cost of sales and gross profit sections if you do not want to include them in your cash flow projections.
A40: Note: You can insert as many additional line items as required by inserting the required number of items in each section and then entering the appropriate values where user input is required or copying the formulas from one of the existing lines. We recommend inserting additional line items between the two existing default line items.
A42: Note: The codes in column A are used in the sales tax and trade receivables calculations. The first two characters represent the sales tax code and the last two characters represent the payment status. Refer to the Balance Sheet - Sales Tax and Balance Sheet - Trade Receivables sections for more information on these codes.
A44: Other Income
A46: Monthly projections of other income should be entered in this row. Other income may consist of items like interest or dividends received and this line item is not included in trade receivables and sales tax calculations. If you want to include other income in the trade receivables or sales tax calculations, you need to add the income to the Turnover section as an additional line item.
A48: The year 2 to 5 totals for other income are calculated by applying the annual turnover growth percentages on the Assumptions sheet to the previous year's total.
A50: Operating Expenses
A52: All the monthly operating expense projections need to be entered in the operating expenses section of the income statement. The template contains 22 default operating expense line items but you can add as many additional items as required or delete the line items that you do not need. When adding additional line items, remember to copy the formulas in the total columns from one of the existing line items.
A54: The year 2 to 5 totals for operating expenses are calculated by applying the annual expense inflation percentages on the Assumptions sheet to the previous year's total.
A56: Note: The codes in column A are used in the sales tax and trade payables calculations. The first two characters represent the sales tax code and the last two characters represent the payment status. Refer to the Balance Sheet - Sales Tax and Balance Sheet - Trade Payables sections for more information on these codes.
A58: Staff Costs
A60: All the monthly staff cost projections need to be entered in the staff costs section of the income statement. The template contains 2 default staff cost line items but you can add as many additional items as required or delete the line items that you do not need.
A62: The year 2 to 5 totals for staff costs are calculated by applying the annual expense inflation percentages on the Assumptions sheet to the previous year's total.
A64: Note: The codes in column A are used in the sales tax and trade payables calculations. The first two characters represent the sales tax code and the last two characters represent the payment status. Refer to the Balance Sheet - Sales Tax and Balance Sheet - Trade Payables sections for more information on these codes.
A66: Note: Staff costs have been included in a separate section on the income statement in order to be able to calculate payroll accruals. If you do not need to include payroll accruals in your cash flow projections, we recommend entering nil values and hiding these rows. If you delete the section, some of the payroll accrual formulas may result in errors and you therefore may need to delete them as well.
A68: Depreciation & Amortization
A70: Monthly & annual projections for depreciation and amortization charges need to be calculated independently of the template and included in this section. We unfortunately cannot include default depreciation or amortization calculations because some businesses may have very different asset bases than others with existing assets which may already have been depreciated over a number of years. Any calculation which is based on a percentage of the balance sheet asset value may therefore not be accurate.
A72: If you already have a sheet which is used for depreciation or amortization calculations, you can include it in this template and add formulas in the depreciation & amortization section of the income statement to include your calculations in these line items.
A74: The monthly depreciation & amortization charges for the first 12 months need to be included on the IncState sheet and the totals for year 2 to 5 need to be included on the Assumptions sheet.
A76: We also realize that some users may want to include depreciation and amortization as part of their operating expenses. We have therefore provided for this in that the depreciation and amortization calculations on the cash flow statement are based on the default code which is included in column A. You can therefore enter nil values in the depreciation & amortization section on the income statement, hide the section and include these line items in the operating expenses section and as long as you also include the default codes in column A, the cash flow statement values for depreciation and amortization will be calculated correctly.
A78: Interest Paid
A80: All interest paid calculations are automated and based on the amortization tables on the Loans1 to Loans3 and Leases sheets. The template accommodates the inclusion of loans & leases based on four different sets of loan repayment terms which need to be specified on the Assumptions sheet.
A82: Opening loan balances are based on the balance sheet opening balances section on the Assumptions sheet and additional loan amounts can be entered in column C of the appropriate amortization table.
A84: You do not need to use all four loan amortization sheets - if you only need to include loans based on one set of repayment terms, you can delete the other loan amortization sheets, delete the other interest paid rows on the income statement, delete the other proceeds from loans rows on the cash flow statement, delete the other repayment of loans rows on the cash flow statement and delete the other loan balances from the balance sheet.
A86: The template provides for four sets of loan repayment terms - the same amortization table can basically be used for all loans with the same repayment terms by adding additional loan amounts as proceeds to the cash flow statement in order to add new loans to the appropriate amortization table.
A88: If you need to add more than four sets of loan repayment terms, you will need to copy one of the amortization sheets, change it to reflect the appropriate loan terms and then change the formulas in the amortization table to be based on the correct loan repayment terms at the top of the sheet. This means that you need to add another set of repayment terms to the Assumptions sheet and link the fields at the top of the new amortization table to the appropriate cells on the Assumptions sheet.
A90: If there is an opening balance for the required additional loan terms, you need to include a new code in the balance sheet opening balances section on the Assumptions sheet and base the opening balance calculation in the first period of the amortization schedule on this code. You also need to add new rows to the interest paid section on the income statement, the loan proceeds section on the cash flow statement, the loan repayment section on the cash flow statement and the loan balances section on the balance sheet. The appropriate formulas can be copied from one of the existing items and the sheet reference in the copied formula can then just be replaced by the sheet name of the new amortization table that you've added.
A92: Taxation
A94: The taxation line item on the income statement is automatically calculated based on the profit before tax and the income tax assumptions which are specified on the Assumptions sheet. If you do not want to include income tax in the cash flow projections, simply enter an income tax rate of 0%. This will result in no income tax being calculated.
A96: If you do want to include income tax calculations, the income tax percentage needs to be entered in the Income Tax section on the Assumptions sheet. You can also enter a value for an assessed loss (as a positive value) which may have been carried over from a previous tax year which would result in income tax only being calculated after profits exceed the value of the assessed loss.
A98: You also need to specify the payment frequency in months and the first calendar month in which a payment needs to be included. The template automatically provides for income tax based on what is due and includes the income statement amount and a provision for taxation on the balance sheet. The payment frequency and month of payment assumptions are then used to determine when the income tax liability will be settled which will result in the appropriate cash outflow being recorded on the cash flow statement and the provision for taxation being reduced.
A100: The template can accommodate income tax calculations based on current and subsequent month payments. If you select the Current option, the income tax payment amount will be calculated based on all amounts that have accrued up to and including the month of payment. If you select the Subsequent option, the income tax payment amount will only be calculated based on all amounts which have accrued up to the previous month end.
A102: Example: If you select the Current option in the Income Tax section of the Assumptions sheet, all income tax amounts up to and including the current month will be included in the income tax payment amount. This means that the provision for taxation at the end of the particular month will be nil. The Current setting is therefore usually appropriate for provisional taxpayers.
A104: Example: If you select the Subsequent option, all amounts up to and including the previous month end will be included in the income tax payment amount. The provision for taxation balance on the balance sheet will therefore not be nil at the end of the month of payment and include the current month's income tax charge.
A106: Dividends
A108: The template also includes automated dividends calculations. If you do not want to include any dividends in your cash flow projections, you can simply specify a dividend percentage of zero percent.
A110: If you want to include dividend calculations, you need to specify a dividend percentage which will be applied to the profit for the period in order to calculate the dividend value. You also need to specify the frequency in months of dividend payments and the first payment month. The frequency of dividends determines when the dividends are included on the income statement and the first month of payment determines when the dividend payment is included on the cash flow statement (only has an effect if the dividend payment option is Subsequent).
A112: You can also specify whether the dividend is paid in the month of calculation (Cash option), the month after calculation (Next option) or in a subsequent month. When you elect the subsequent month option, the payment of the dividend will be included based on the relative position of the first month of payment in relation to the year-end period (which is determined based on the template start date at the top of the Assumptions sheet).
A114: Example: If you want to include a dividend in the last month of each financial year, select a payment frequency of 12 months and month 12 as the first payment month. Then select the Cash option in order to include both the dividend on the income statement and the payment in the last month of the year.
A116: Example: If you want to include a dividend in the last month of each financial year but delay payment to the first month of the next financial year, select a payment frequency of 12 months and month 12 as the first payment month. Then select the Next option to include the dividend on the income statement in the last month of the financial year and the payment in the first month of the next financial year. A dividend payable amount will then automatically be included on the balance sheet at year-end.
A118: Balance Sheet
A120: All the calculations on the balance sheet are automated and no user input is therefore required.
A122: Opening Balances
A124: If you need to compile cash flow projections for an existing business, you will need to include the opening balance sheet balances at the start of the cash flow projection period. This is facilitated in the Balance Sheet Opening Balances section on the Assumptions sheet. The opening balances that are entered here are included in the first column on the balance sheet.
A126: You can use the trial balance as at the end of the period immediately before the start of the cash flow projection period for this purpose. All assets should have positive balances and all equity & liabilities should have negative balances. The opening balances should also balance to a total of nil as with any accounting system trial balance. If you enter balances and the total of all balances is not nil, the entire opening balances section on the Assumptions sheet will be highlighted in orange.
A128: You then need to fix the imbalance by adjusting the opening balances so that the total comes to a total of nil. The orange highlighting will then be removed automatically. Also note that the cash flow projection balance sheet cannot balance if the opening balances do not balance.
A130: Note: If you are preparing a cash flow projection for a new business, you can include zero balances for all the balance sheet items in the opening balances section.
A132: Non-Current Assets
A134: The property, plant & equipment balances on the balance sheet are calculated by adding the purchases of property, plant & equipment (entered on the cash flow statement for the first 12 months and on the Assumptions sheet for year 2 to 5) and then deducting the appropriate depreciation charges that are included on the income statement.
A136: Intangible assets balances are calculated in much the same way by adding the purchases of intangible assets (as per the cash flow statement for the first 12 months and the Assumptions sheet for year 2 to 5) and deducting the appropriate amortization charges as per the income statement. The calculation of the investments balances on the balance sheet is a bit simpler in that only the purchases of new investments (as per the cash flow statement for the first 12 months and the Assumptions sheet for your 2 to 5) are added to the previous period's balance and there is no depreciation or amortization on investments.
A138: Note: Purchases of property, plant & equipment, intangible assets and investments all need to be entered as negative values. The purchases for the first 12 months need to be entered on the cash flow statement and the purchases for year 2 to 5 need to be entered on the Assumptions sheet.
A140: Current Assets - Inventory
A142: The inventory balances on the balance sheet are calculated based on the inventory days assumption which is specified on the Assumptions sheet. The number of days that are entered here is applied to the monthly cost of sales in order to calculate the appropriate inventory balance. This calculation is based on the actual number of days in each month if the inventory days assumption is greater than the number of days in the appropriate month.
A144: Example: If you enter an inventory days assumption of 60 days and the month is April, the entire cost of sales value for April will be included in the inventory balance because April only has 30 days. After including the 30 days in April, there is a difference of 30 days between the 60 days assumption and the 30 days in April. The March cost of sales balance will therefore be used, divided by the 31 days in March and multiplied by the 30 remaining days. The inventory balance at the end of April will therefore consist of the cost of sales total for April and an equivalent of 30 days of the 31 day cost of sales of March.
A146: Note: The above calculation principle is applied regardless of the number of days which are entered as the inventory days assumption on the Assumptions sheet even if the value of the inventory days assumption requires the inclusion of more than 2 months. This method of calculation is the most accurate way of projecting inventory balances even for businesses where there is significant sales volatility.
A148: Note: If your business does not carry inventory, you can simply enter a nil value in the inventory days assumption on the Assumptions sheet. The inventory line on the balance sheet will then also contain nil values.
A150: If you want to include variable monthly inventory days, you can do so by changing the inventory days assumption in the Workings section of the balance sheet which has been included below the section with the ratios. Simply replace the formula which links the inventory days assumption to the value on the Assumptions sheet by overwriting it with the appropriate inventory days value.
A152: The year 2 to 5 inventory balances are calculated by applying the turnover growth percentage to the inventory balance at the end of year 1. This method ensures that the monthly trend in year 1 is reflected in the year 2 to 5 balances. If you amend the inventory days in the Workings section of the balance sheet, the amended days for the appropriate year will be used in the calculation.
A154: Current Assets - Trade Receivables
A156: The trade receivables balances on the balance sheet are calculated based on the debtors days assumption which is specified on the Assumptions sheet. The debtors days number can be determined based on the average trading terms which has been negotiated with customers. The debtors days is applied to the monthly turnover in order to calculate the appropriate trade receivables balance. This calculation is based on the actual number of days in each month if the debtors days assumption is greater than the number of days in the appropriate month.
A158: Example: If you enter a debtors days assumption of 60 days and the month is April, the entire turnover value for April will be included in the trade receivables balance because April only has 30 days. After including the 30 days in April, there is a difference of 30 days between the 60 days assumption and the 30 days in April. The March turnover balance will therefore be used, divided by the 31 days in March and multiplied by the 30 remaining days. The trade receivables balance at the end of April will therefore consist of the turnover total for April and an equivalent of 30 days of the 31 day turnover of March.
A160: Note: The above calculation principle is applied regardless of the number of days which are entered in the debtors days assumption on the Assumptions sheet even if the value of the debtors days assumption requires the inclusion of more than 2 months. This method of calculation is the most accurate way of projecting trade receivable balances even for businesses where there is significant sales volatility.
A162: Where sales tax is applicable, the appropriate sales tax value relating to monthly turnover will be added to the trade receivables balance. Sales tax codes are defined on the Assumptions sheet and the codes in column A next to the turnover amounts on the income statement are used to determine the appropriate rate of sales tax to be used.
A164: The trade receivables calculation will also only include lines that are coded with a sales tax rate code (in the first two characters) and a "C1" at the end of the code. The C1 part of the code refers to credit sales while the inclusion of a C0 code at the end refers to cash sales. Cash sales do not need to be included in the trade receivables calculation and turnover lines with C0 or no code in column A are therefore ignored when calculating trade receivable balances.
A166: Example: If the standard rate sales tax code is V1 and the appropriate turnover line needs to be included in the calculation of trade receivables, the code V1C1 needs to be added in column A of the appropriate turnover line on the income statement. If you do not want to add sales tax in the trade receivables calculation but you do want a trade receivables line to be included in the balance sheet, you can add a code which refers to a 0% sales tax calculation as well as the C1 credit sales indicator.
A168: Example: If you do not want a particular turnover line to be included in the trade receivables calculation, you can include any sales tax rate followed by C0 in order to exclude the line in the trade receivables calculations. For example, a turnover line with a code of V1C0 would not form part of the trade receivables calculations.
A170: Note: If your business has no trade receivables, you can simply enter a nil value in the debtors days assumption on the Assumptions sheet. The trade receivables line on the balance sheet will then also contain nil values.
A172: If you want to include variable monthly debtors days, you can do so by changing the debtors days assumption in the Workings section of the balance sheet which has been included below the section with the ratios. Simply replace the formula which links the debtors days assumption to the value on the Assumptions sheet by overwriting it with the appropriate debtors days value.
A174: The year 2 to 5 trade receivables balances are calculated by applying the annual turnover growth percentage to the trade receivables balance at the end of year 1. This method ensures that the monthly trend in year 1 is reflected in the year 2 to 5 balances. If you amend the debtors days in the Workings section of the balance sheet, the amended days for the appropriate year will be used in the calculation.
A176: Current Assets - Loans & Advances, Other Receivables
A178: The loans and advances & other receivables balances cannot be calculated by basing them on specific income statement items and they are therefore calculated by adding the movements in these balances (as per the cash flow statement for the first 12 months and the Assumptions sheet for year 2 to 5) to the balances of the previous month. If you therefore want to increase or decrease these balances, you need to add the amount of the increase or decrease to the line with a matching description on the cash flow statement (under the changes in operating assets section) for the first 12 months or the Assumptions sheet for year 2 to 5.
A180: Current Assets - Cash & Cash Equivalents
A182: The cash & cash equivalents balances on the balance sheet are linked to the closing cash balances on the cash flow statement. If the resulting cash & cash equivalents balance has a negative value, it will automatically be included in the bank overdraft line in the Current Liabilities section of the balance sheet.
A184: Equity - Shareholders Contributions, Reserves
A186: The shareholders contributions & reserves balances cannot be calculated by basing them on income statement items and they are therefore calculated by adding the movements in these balances (as per the cash flow statement for the first 12 months and the Assumptions sheet for year 2 to 5) to the balances of the previous month. If you therefore want to increase or decrease these balances, you need to add the amount of the increase or decrease to the line with a matching description on the cash flow statement or Assumptions sheet.
A188: Note: The shareholders contribution line on the cash flow statement can be found under the cash flow from financing activities and the reserves line on the cash flow statement under the non-cash adjustments.
A190: Equity - Retained Earnings
A192: The retained earnings balances on the balance sheet are linked to the retained earnings for the year which is calculated on the income statement.
A194: Non-Current Liabilities - Loans 1 to 3, Leases
A196: The template provides for loans & leases to be included based on 4 different sets of loan repayment terms. Loans with the same repayment terms can be grouped together in the appropriate line item. There is no difference between the treatment of loans 1 to 3 and leases. If you do not have finance leases and have loans with 4 different sets of repayment terms, you can use the Leases sheet and rename the appropriate line items accordingly.
A198: Note: The loan repayment period in years is limited to a maximum period of 30 years. If you want to include a loan repayment period which exceeds this period, you need to change the data validation settings in the appropriate input cell by selecting the data validation feature from the Data tab on the Excel ribbon and editing the maximum value of 30 which has been set in the loan repayment period cells.
A200: Each of the loan repayment terms can be specified in the Loan Terms section on the Assumptions sheet. The loan terms include the annual interest rate, repayment period in years and a selection field which can be used to indicate interest-only loans. These loan repayment terms are included at the top of the loan amortization sheet on the Loans1 to Loans3 and Leases sheets.
A202: Note: A set of loan terms can be specified as interest-only by selecting the "Yes" option from the interest-only drop-down list in the appropriate loan terms on the Assumptions sheet. If this selection is made, the loan will be interest only and not include any loan repayments.
A204: All the calculations on the amortization sheets are fully automated. The only user input that is required on these sheets is entering the additional loan amounts in column C. The loan terms are taken from the Assumptions sheet and the opening balances in the first row of the amortization table are based on the opening balances that are entered in the balance sheet opening balances section of the Assumptions sheet.
A206: The loan repayments, interest charged and capital repayments are calculated based on the outstanding balances at the beginning of each period. The outstanding loan or lease balances at the end of the appropriate monthly or annual period are then included in the appropriate lines on the balance sheet.
A208: Current Liabilities - Bank Overdraft
A210: The bank overdraft as well as cash & cash equivalents are based on the closing cash balances which are calculated on the cash flow statement. If the appropriate monthly closing balance is negative, the balance is included as a bank overdraft and if it is positive, it is included as cash under current assets on the balance sheet.
A212: Current Liabilities - Trade Payables
A214: The trade payables balances on the balance sheet are calculated based on the creditors days assumption which is specified on the Assumptions sheet. The number of days that are included here can be determined based on the average trading terms which has been negotiated with suppliers.
A216: The monthly cost of sales, operating expenses and staff costs on the income statement are added together in order to determine a monthly value on which the trade payables calculations should be based. Expenses and costs which are paid on a cash basis can be excluded from the trade payables calculation by entering a code which ends in C0 in column A on the income statement. The codes in column A start with the appropriate two character sales tax code and end with the two character payables code.
A218: Example: The expense codes in column A for all line items that need to be included in the trade payables calculation and which need to be subject to sales tax at a standard rate should be V1C1. If the expense item is settled on a cash basis and also subject to the standard sales tax rate, the code in column A should be V1C0 which will then result in the item not being included in the trade payables calculation.
A220: If you want to also include purchases of property, plant & equipment in the trade payables calculation, the standard code of PPE in column A on the cash flow statement needs to be amended to the appropriate code which starts with the sales tax code and ends with C1. For standard sales tax, the code will therefore be V1C1.
A222: Like the calculation of inventory and trade receivables balances, the trade payables balances on the balance sheet are based on the actual number of days in each month if the creditors days assumption is greater than the days in the appropriate month.
A224: Example: If you enter a creditors days assumption of 60 days and the month is April, the entire cost of sales & expense value for April will be included in the trade payables balance because April only has 30 days. After including the 30 days in April, there is a difference of 30 days between the 60 days assumption and the 30 days in April. The March cost of sales & expense balance will therefore be used, divided by the 31 days in March and multiplied by the 30 remaining days. The trade payables balance at the end of April will therefore consist of the cost of sales & expenses total for April and an equivalent of 30 days of the 31 day cost of sales & expense values of March.
A226: Note: The above calculation principle is applied regardless of the number of days which are entered as the creditors days assumption on the Assumptions sheet even if the value of the creditors days assumption requires the inclusion of more than 2 months. This method of calculation is the most accurate way of projecting trade payables balances even for businesses where there is significant sales or expense volatility.
A228: Where sales tax is applicable, the appropriate sales tax value relating to monthly cost of sales & expenses will be added to the trade payables balance. Sales tax codes are defined on the Assumptions sheet and the code in column A next to the cost of sales & expense amounts on the income statement are used to determine the appropriate rate of sales tax to be used.
A230: The trade payables calculation will also only include lines that are coded with a sales tax rate code (in the first two characters) and a "C1" at the end of the code. The C1 part of the code refers to purchases on credit while the inclusion of a C0 code at the end refers to cash purchases. Cash purchases do not need to be included in the trade payables calculation and cost of sales & expense lines with C0 or no code in column A are therefore ignored when calculating trade payables balances.
A232: Example: If the standard rate sales tax code is V1 and the appropriate cost of sales or expense line needs to be included in the calculation of trade payables, the code V1C1 needs to be added in column A of the appropriate line on the income statement. If you do not want to add sales tax in the trade payables calculation but you do want a trade payables line to be included in the balance sheet, you can add a code which refers to a 0% sales tax calculation as well as the C1 credit purchases indicator.
A234: Example: If you do not want a particular cost of sales or expense line to be included in the trade payables calculation, you can include any sales tax rate followed by C0 in order to exclude the line in the trade payables calculations. For example, an expense or cost of sales line item with a code of V1C0 in column A on the income statement would not form part of the trade payables calculations.
A236: Note: If your business has no trade payables, you can simply enter a nil value in the creditors days assumption on the Assumptions sheet. The trade payables line on the balance sheet will then also contain nil values.
A238: If you want to include variable monthly creditors days, you can do so by changing the creditors days assumption in the Workings section of the balance sheet which has been included below the section with the ratios. Simply replace the formula which links the creditors days assumption to the value on the Assumptions sheet by overwriting it with the appropriate creditors days value.
A240: The year 2 to 5 trade payables balances are calculated by applying the annual expense inflation percentage to the trade payables balance at the end of year 1. This method ensures that the monthly trend in year 1 is reflected in the year 2 to 5 balances. If you amend the creditors days in the Workings section of the balance sheet, the amended days for the appropriate year will be used in the calculation.
A242: Current Liabilities - Sales Tax
A244: The template accommodates the inclusion of sales tax in all relevant calculations based on four default sales tax calculation codes and any sales tax period. All income statement and cash flow statement items need to be entered exclusive of any sales tax that may be applicable and the trade receivables and trade payables balances on the balance sheet will be calculated inclusive of sales tax. The net sales tax liability is included in the Sales Tax line on the balance sheet.
A246: The template can be used for general sales tax (GST) and value added tax (VAT) purposes. Where there is no sales tax input which reduces the sales tax liability, the codes in column A on the income statement can simply be changed to contain a sales tax code (in the first two characters of the code) which has a zero percentage. Only the sales tax codes that are included next to the turnover lines will then be included in sales tax calculations (as required by some general sales tax calculations).
A248: The appropriate sales tax percentages can be entered in the Sales Tax section of the Assumptions sheet. The template provides for 4 default sales tax codes, each with its own sales tax percentage. The sales tax codes are numbered from V1 to V4.
A250: The income statement contains codes in column A which affects the calculations of sales tax and trade receivables or trade payables. The first two characters of these codes determine which sales tax percentage is used in the sales tax calculations. If an income statement item needs to be excluded from sales tax calculations, you should use a sales tax code with a zero percentage on the Assumptions sheet.
A252: Note: Each line on the income statement can therefore only be linked to one sales tax percentage. If more than one sales tax percentage needs to be applied to the same income statement item, you need to split the income statement amount into two lines and enter the appropriate sales tax codes in column A for each of the lines.
A254: Note: If you are preparing cash flow projections for a business which is not subject to sales tax, simply enter zero percentages for all four sales tax codes.
A256: The sales tax assumptions that need to be specified on the Assumptions sheet also include the frequency of sales tax payments (in months) and the calendar month of the first payment period. You can therefore calculate sales tax based on any period frequency from one to twelve months.
A258: Example: If your business is subject to sales tax payments of every two months and the first payment is due in February, a frequency of 2 needs to be specified and the first payment month should be set to 2 for February. Similarly, if your business is subject to sales tax payments of every 6 months with payments due in March and August, the frequency should be set to 6 and the first payment month should be set to 3. If your business is subject to monthly sales tax payment periods, the frequency should be 1 and the first payment month should also be 1.
A260: The Current or Subsequent setting in the Sales Tax section on the Assumptions sheet determines how the calculated sales tax amounts of the current period are handled. If you select the Current option, the sales tax amounts of the current period will be included in the calculation of the payment amount which is due in the particular month and the sales tax liability at the end of the payment month will be nil.
A262: If you select the Subsequent setting, the sales tax amount of the current period is not included in the calculation of the payment amount and the sales tax liability at the end of the appropriate payment month will always include at least one month.
A264: Note: The Subsequent setting is usually the appropriate setting to use for sales tax purposes. The Current settings is more applicable to tax types which are subject to provisional tax.
A266: Example: If you set a payment frequency of 1 month, first payment month of 1 and select the Current option, the sales tax liability on the balance sheet will always be nil because the current month's sales tax will be included in the sales tax payment. If you have the same period settings and select the Subsequent option, the sales tax liability on the balance sheet will always include the current month's sales tax because the payment amount will be based on the previous month's sales tax.
A268: Note: The first payment month setting refers to the month of payment and not the sales tax period end. There is a difference - a sales tax period may end in February with payment in March which means that the first payment month of the calendar year is actually January or month 1 (if the payment frequency is two months).
A270: The year 2 to 5 balances for sales tax are calculated by calculating the total sales tax for the appropriate year, dividing it by twelve and then multiplying the value by the number of months that are included in the sales tax balance at the end of the first year.
A272: Current Liabilities - Payroll Accruals
A274: The payroll accrual on the balance sheet is based on the payroll accrual assumptions in the Working Capital section of the Assumptions sheet and the amounts in the staff costs section of the income statement. If payroll deductions are paid in the same month as they are incurred, you can set the payroll accrual percentage to zero and the payroll accrual balances on the balance sheet will also be zero.
A276: Staff costs have been included in a separate section on the income statement to make it easier to calculate payroll accrual balances. You can however include staff costs in operating expenses but you need to ensure that you also include the "PAY" code in column A for all the staff costs that you want to include in the payroll accrual calculations.
A278: You also need to specify the appropriate percentage of staff costs which needs to be included in your payroll accruals. This percentage should be based on the percentage of staff costs which are paid in a subsequent month and is based on the current month's staff costs. Payroll accruals usually consist of salary & wage deductions which need to be paid over to third parties and differ from entity to entity. You therefore need to calculate the appropriate payroll accrual percentage based on the composition of the salary or wage structures of all employees.
A280: The payroll accrual assumptions that need to be specified on the Assumptions sheet also include the frequency of payroll accrual payment periods (in months) and the payment month of the first payroll accrual period. You can therefore calculate payroll accruals based on any payment period frequency from one to twelve months. The calculated payroll accruals are added together in the payroll accrual balance until the month of payment.
A282: Example: If you need to settle payroll accruals every two months and the first payment is due in February, a frequency of 2 needs to be specified and the first payment month should be set to 2 for February. Similarly, if you settle payroll accruals every 6 months with payments due in March and August, the frequency should be set to 6 and the first payment month should be set to 3. If you settle payroll accruals on a monthly basis, the frequency should be 1 and the first payment month should also be 1.
A284: The Current or Subsequent setting in the Payroll Accruals section on the Assumptions sheet determines how the calculated payroll accrual amounts of the current period are handled. If you select the Current option, the payroll accrual amounts of the current period will be included in the calculation of the payment amount which is due in the particular month and the payroll accrual balance at the end of the payment month will be nil.
A286: If you select the Subsequent setting, the payroll accrual amounts of the current period are not included in the calculation of the payment amount and the payroll accrual balances on the balance sheet at the end of the appropriate payment month will always include at least one month.
A288: Note: The Subsequent setting is usually the appropriate setting to use for payroll accrual purposes. The Current setting is more applicable to tax types which are subject to provisional tax payments where payment occurs in the same month as the tax calculation.
A290: Example: If you set a payment frequency of 1 month, first payment month of 1 and select the Current option, the payroll accruals on the balance sheet will always be nil because the current month's payroll accruals will be included in the payment calculation. If you have the same period settings and select the Subsequent option, the payroll accruals will always include the current month's payroll accrual because the payment amount will be based on the previous month's payroll accrual.
A292: Note: The first payment month setting refers to the month of payment and not the payroll accrual period end. There is a difference - a payroll accrual period may end in February with payment in March which means that the first payment month of the calendar year is actually January or month 1 (if the payment frequency is two months).
A294: If you want to include payroll accruals based on variable monthly payroll accrual percentages, you can do so by changing the payroll accrual percentage assumption in the Workings section of the balance sheet which has been included below the section with the ratios. Simply replace the formula which links the payroll accrual percentage assumption to the value on the Assumptions sheet by overwriting it with the appropriate payment accrual percentage.
A296: The year 2 to 5 payroll accrual balances are calculated by adjusting the previous year's balance by the appropriate expense inflation percentage on the Assumptions sheet.
A298: Current Liabilities - Other Accruals, Other Provisions
A300: The other accrual & other provisions balances cannot be calculated by basing them on specific income statement items and they are therefore calculated by adding the movements in these balances (as per the cash flow statement for the first 12 months and the Assumptions sheet for year 2 to 5) to the balances of the previous period. If you therefore want to increase or decrease these balances, you need to add the amount of the increase or decrease to the line with a matching description on the cash flow statement (under the changes in operating assets section) for the first 12 months or the Assumptions sheet for years 2 to 5.
A302: Current Liabilities - Provision for Taxation
A304: The calculation of income tax on the income statement is based on the profit before tax on the income statement and the assumptions that are specified in the Income Tax section on the Assumptions sheet.
A306: The profit before tax amount is multiplied by the income tax percentage on the Assumptions sheet to calculate the monthly or annual income tax value. If there is a loss before tax on the income statement, no income tax will be calculated but if there were profits before the period with the loss, the income tax that was calculated in previous periods will be reversed in the period with the loss.
A308: The template also makes provision for the inclusion of an assessed loss which has been carried over from previous financial periods and income tax will only be calculated after the assessed loss has been fully reduced by profits in the projection periods.
A310: The income tax assumptions on the Assumptions sheet also include the frequency of payment of income tax (in months) and the calendar month of the first income tax payment. You can therefore calculate a provision for income tax based on any payment period frequency from one to twelve months. The calculated income tax amounts are added together in the provision for income tax balance on the balance sheet until the month of payment.
A312: Example: If you need to settle income tax liabilities every six months and the income tax payments are due in February and August of each year, a frequency of 6 needs to be specified and the first calendar month should be set to 2 for February. Similarly, if you settle income tax liabilities at the end of each quarter with payments due in March, June, September and December, the frequency should be set to 3 and the first payment month should also be set to 3. If you need to settle income tax liabilities 9 months after each year-end and the cash flow projection year-end is February, the frequency should be set to 12 months and the first payment month should be set to 11.
A314: The Current or Subsequent setting in the Income Tax section on the Assumptions sheet determines how the income tax amounts of the current period are handled. If you select the Current option, the income tax amounts of the current period will be included in the calculation of the payment amount which is due in the particular month and the provision for income tax balance on the balance sheet at the end of the payment month will be nil.
A316: If you select the Subsequent setting, the income tax amounts of the current period are not included in the calculation of the payment amount and the provision for income tax balance on the balance sheet at the end of the appropriate payment month will always include income tax for at least one month.
A318: Note: The Current setting is usually the appropriate setting to use for income tax purposes if the entity is a provisional taxpayer which effectively means that income tax is paid in advance. If the entity is not a provisional taxpayer, the Subsequent setting should be used because income tax will be settled after being incurred.
A320: The year 2 to 5 balances are calculated by calculating the income tax amount for the appropriate year, dividing it by 12 and multiplying the value by the number of months which needs to be included in the provision. This is determined based on the year-end period and the income tax assumptions on the Assumptions sheet.
A322: Current Liabilities - Dividends Payable
A324: The calculation of dividends on the income statement is based on the profit for the year on the income statement and the assumptions that are specified in the Dividends section on the Assumptions sheet. Dividends will only be calculated if you enter a dividend percentage on the Assumptions sheet - if you therefore do not want to include dividends in your cash flow projections, you can simply enter a zero value as the dividend percentage.
A326: The dividend percentage specified on the Assumptions sheet is applied to the profit for the year on the income statement which can be found directly above the dividends line. Dividends will also only be calculated if there is a cumulative profit for the year.
A328: The dividends assumptions on the Assumptions sheet also include the frequency of payment of dividends (in months) and the first calendar month of the dividend payment. You can therefore calculate dividends based on any payment period frequency from one to twelve months (although 6 or 12 months is the norm). The calculated dividends amounts are added together in the dividends payable balance on the balance sheet until the month of payment.
A330: Example: If dividends are declared every six months, you need to specify a frequency of 6 months on the Assumptions sheet and then select the appropriate payment basis. Dividends will be reflected on the income statement every 6 months and the dividends payable balances on the balance sheet will be determined based on the first payment month and the payment option which is selected (Cash, Next or Subsequent). Similarly, if the payment frequency is set to 12 months, dividends will be included on the income statement every 12 months and the dividends payable balance will be determined based on the first payment month and the payment option.
A332: The Cash, Next or Subsequent setting in the Dividends section on the Assumptions sheet determines how the dividends payable balances on the balance sheet are calculated and therefore also when the dividend payment will be included on the cash flow statement.
A334: If you select the Cash option, the dividend payable balances on the balance sheet will always be nil and what this means is that the dividend payment is effectively included in the same month as the month in which the dividend is declared. The month in which the declared dividend is included is based on the payment frequency (in months) and the cash flow projection year-end.
A336: If you select the Next option, the dividend payment will be included in the month after the month in which the dividend amount is included on the income statement. The dividend payable balance on the balance sheet will therefore only contain a balance in the dividend declaration month.
A338: If you select the Subsequent option, dividends will be included on the income statement based on the frequency setting on the Assumptions sheet and the payment of the dividend will be delayed until the first payment month is reached. A dividends payable balance will be reflected on the balance sheet in all months until the payment month is reached.
A340: Example: If you set the dividend payment frequency to 12 months, a dividend amount will be included on the income statement in the last month of the appropriate cash flow projection year. If the payment option is set to Cash, no dividend payable amount will be included on the balance sheet and the dividend payment will be included on the cash flow statement in the same month.
A342: Example: If you set the dividend payment frequency to 12 months and the payment option is set to Next, the dividend will be included on the income statement in the last month of the appropriate cash flow projection year, the dividend payable at the end of the financial year will equal the income statement amount and the dividend payment will be included in the first month of the next financial year.
A344: Example: If you set the dividend payment frequency to 12 months and the payment option is set to Subsequent, the dividend will be included on the income statement in the last month of the appropriate cash flow projection year and the dividend payable at the end of the financial year and all subsequent months in the new financial year until the first payment month is reached will equal the income statement amount. The dividend payment will be included in the first payment month as set on the Assumptions sheet but in the year after inclusion on the income statement.
A346: If the cash flow projection year-end as per the above example is February, the first payment month is set to 9 for September and the Subsequent payment option is selected, the dividend will be included in February on the income statement and the same amount will be included as a dividend payable on the balance sheet from February to August of the next financial year. The dividend payment will then be included in September on the cash flow statement and the dividend payable at the end of September will be nil.
A348: The year 2 to 5 balances are calculated based on the profit for the year, the dividend percentage and the payment status of Cash, Next or Subsequent.
A350: Balance Sheet Errors
A352: If the balance sheet for any monthly or annual period does not balance, the amount of the imbalance will be included in the row below the total equities & liabilities and displayed in red. The template has been designed in such a way that the balance sheet should always be in balance as long as the total of the balance sheet opening balances included on the Assumptions sheet is nil.
A354: If you see an imbalance on the balance sheet, you therefore need to check the opening balance sheet balances on the Assumptions sheet and ensure that the total of all the opening balances in this section is nil.
A356: If fixing the opening balances does not resolve your imbalance, you can e-mail our Support function and let us know what changes you have made to the formulas in the template so that we can assist you. If you have made a lot of changes, you may need to start over with the downloaded copy of the template.
A358: Balance Sheet Workings
A360: We have included all the calculations which form part of the calculation of balance sheet balances in the Workings section below the balance sheet ratios. These workings will not be printed and are for information purposes only. You can hide this section if you do not want to see it on the sheet but do not delete any of these formulas because it will result in calculation errors if you do!
A362: Cash Flow Statement
A364: All the rows on the cash flow statement which require user input are indicated with yellow highlighting in column A. User input is only required in the monthly columns - the user input for the annual columns need to be included on the Assumptions sheet in the first balance sheet section. All the rows on the cash flow statement which do not contain yellow highlighting contain formulas which automate the calculations of these items.
A366: The input rows on the cash flow statement are all related to balance sheet items where the calculations on the balance sheet are based on adding the movement on the cash flow statement to the previous month's balance on the balance sheet. If you need more guidance on any of these items, refer to the appropriate section for the particular item under the Balance Sheet section.
A368: Note: The colour of the codes in column A on the cash flow statement indicate whether positive or negative values need to be entered to increase the appropriate balance sheet item's balance. If the code is green, positive input values increase the balance sheet balance and if the code is red, you need to enter negative values in order to increase the balance sheet balances.
A370: Loan Amortization Tables (Loans1 to Loans3 & Leases sheets)
A372: The template makes provision for including loans with up to four different sets of repayment terms in the cash flow projections. The amortization tables that are used to calculate the interest charges, loan repayments and outstanding balances have been included on the Loans1, Loans2, Loans3 and Leases sheets. The only user input that is required on these sheets is the additional loan amounts in column C.
A374: Note: Refer to the instructions in the income statement - interest paid section and the balance sheet - non-current liabilities section for guidance on how these amortization tables have been compiled and where to include user input for each of these amortization tables.
A376: Help & Customization
A378: If you experience any difficulty while using this template and you are not able to find the appropriate guidance in these instructions, please e-mail us at support@excel-skills.com for assistance. This template has been designed with flexibility in mind to ensure that it can be used in most business environments. If however you need an Excel based template that is customized specifically for your business requirements, please e-mail our Support function and provide a brief explanation of your requirements.
A380: © Copyright
A382: This template remains the intellectual property of www.excel-skills.com and is protected by international copyright laws. Any publication or distribution of this template outside the scope of the permitted use of the template is expressly prohibited. In terms of the permitted use of this template, only the distribution of the template to persons within the same organisation as the registered user or persons outside the organisation who can reasonably be expected to require access to the template as a direct result of the use of the template by the registered user is allowed. Subsequent distribution of the template by parties outside of the organisation is however expressly prohibited and represents an infringement of international copyright laws.

Sheet Assumptions (hidden)
B1: =IF(ISBLANK($C$4),"Example Limited",$C$4) -> Example (Pty) Limited
B2: Cash Flow Projections - Assumptions
B4: Business Name | C4: Example (Pty) Limited
B5: Start Date | C5: 2021-03-01
B7: Financial Assumptions - Income Statement
B8: Turnover | D8: Year 2 | E8: Year 3 | F8: Year 4 | G8: Year 5
B9: Monthly turnover projections for the first year need to be entered on the IncState worksheet.
B10: Annual Turnover Growth % | D10: 0.08 | E10: 0.08 | F10: 0.1 | G10: 0.1
B11: Gross Profit %
B12: Monthly gross profit percentages for the first year and annual gross profit percentages for year 2 to 5 need to be entered on the IncState worksheet.
B13: Other Income
B14: Monthly other income projections for the first year need to be entered on the IncState worksheet. Year 2 to 5 totals are calculated based on the
B15: annual turnover growth percentages above.
B16: Operating Expenses | D16: Year 2 | E16: Year 3 | F16: Year 4 | G16: Year 5
B17: Monthly operating expense projections for the first year need to be entered on the IncState worksheet.
B18: Annual Expense Inflation % | D18: 0.06 | E18: 0.06 | F18: 0.06 | G18: 0.06
B19: Staff Costs | D19: Year 2 | E19: Year 3 | F19: Year 4 | G19: Year 5
B20: Monthly staff costs for the first year need to be entered on the IncState worksheet. Annual projections for year 2 to 5 are based on the expense
B21: inflation in the Operating Expenses section above.
B22: Depreciation & Amortization | D22: Year 2 | E22: Year 3 | F22: Year 4 | G22: Year 5
B23: Monthly depreciation & amortization projections for the first year need to be entered on the IncState worksheet.
B24: Annual Depreciation Charges | D24: 263000 | E24: 307000 | F24: 250000 | G24: 275000 | H24: =IF(MIN(D24:G24)<0,"Enter as positive values!","") -> 
B25: Annual Amortization Charges | D25: 12000 | E25: 12000 | F25: 12000 | G25: 12000 | H25: =IF(MIN(D25:G25)<0,"Enter as positive values!","") -> 
B26: Interest, Taxation & Dividends
B27: Automatically calculated on the IncState worksheet.
B29: Financial Assumptions - Balance Sheet
B30: The following balance sheet balances are projected by entering the appropriate monthly movements during the first year on the cash flow
B31: statement and the movements for year 2 to 5 on this sheet. Red codes in column A indicate that you need to enter a negative value to increase
B32: the appropriate balance sheet balance.
D33: Year 2 | E33: Year 3 | F33: Year 4 | G33: Year 5
A34: RES | B34: Reserves | D34: 0 | E34: 0 | F34: 0 | G34: 0 | H34: =IF(MAX(D34:G34)>0,"Enter as negative values!","") -> 
A35: ADV | B35: Loans & Advances | D35: -20000 | E35: 0 | F35: 10000 | G35: 15000
A36: ODB | B36: Other Receivables | D36: -7000 | E36: 0 | F36: -5000 | G36: -10000
A37: ACC | B37: Other Accruals | D37: 6000 | E37: -16000 | F37: 20000 | G37: 10000
A38: OPV | B38: Other Provisions | D38: -9000 | E38: 19000 | F38: 15000 | G38: 18000
A39: PPE | B39: Purchases of property, plant & equipment | D39: -300000 | E39: -180000 | F39: -200000 | G39: -350000
A40: INA | B40: Purchases of intangible assets | D40: 0 | E40: 0 | F40: 0 | G40: 0
A41: INV | B41: Purchases of investments | D41: -400000 | E41: -600000 | F41: -500000 | G41: -400000
A42: CAP | B42: Proceeds from shareholders' contributions | D42: 0 | E42: 0 | F42: 0 | G42: 0
B43: Proceeds from loans | D43: Enter in column C on the appropriate Loans sheet.
B45: The following balance sheet balances are calculated based on the assumptions that are entered on this sheet:
B46: Working Capital
B47: Inventory Days | C47: 30
B48: Debtors Days | C48: 25
B49: Creditors Days | C49: 15
B50: Payroll Accrual:
B51: Accrual % | C51: 0.2
B52: Payment Frequency (Months) | C52: 1
B53: First Payment Month | C53: 1
B54: Current Or Subsequent | C54: Subsequent
B55: Sales Tax
B56: Rates
A57: V1 | B57: Standard | C57: 0.15
A58: V2 | B58: Secondary | C58: 0
A59: V3 | B59: Zero Rated | C59: 0
A60: V4 | B60: Exempt | C60: 0
B61: Payment Frequency (Months) | C61: 2
B62: First Payment Month | C62: 1
B63: Current Or Subsequent | C63: Subsequent | D63: =IF(C63="Current",1,0) -> 0
B64: Income Tax
B65: Income Tax % | C65: 0.28
B66: Assessed Loss Carried Over | C66: 0
B67: Payment Frequency (Months) | C67: 6
B68: First Payment Month | C68: 2
B69: Current Or Subsequent | C69: Current | D69: =IF(C69="Subsequent",0,1) -> 1
B70: Projected loan repayments and interest are calculated based on the below terms (each on a separate sheet).
B71: Loan Terms | C71: Loans 1 | D71: Loans 2 | E71: Loans 3 | F71: Leases
B72: Interest Rate | C72: 0.1025 | D72: 0.0925 | E72: 0.125 | F72: 0.115
B73: Repayment Term (in years) | C73: 10 | D73: 8 | E73: 5 | F73: 4
B74: Interest Only | C74: No | D74: No | E74: No | F74: No
B75: The below section can be used to include balance sheet opening balances for existing businesses.
B76: Balance Sheet Opening Balances
A77: PPE | B77: Property, Plant & Equipment | C77: 1050000 | D77: =IF(ROUND(SUM(C76:C100),0)<>0,"The total of all the start-up balances should be nil!","") -> 
A78: INA | B78: Intangible Assets | C78: 120000
A79: INV | B79: Investments | C79: 800000
A80: ADV | B80: Loans & Advances | C80: 55000
A81: STC | B81: Inventory | C81: 170000
A82: DEB | B82: Trade Receivables | C82: 370000
A83: ODB | B83: Other Receivables | C83: 53000
A84: CSH | B84: Cash & Cash Equivalents | C84: 171000
A85: CAP | B85: Shareholders' Contributions | C85: -1000
A86: RES | B86: Reserves | C86: 0
A87: EAR | B87: Retained Earnings | C87: -400000
A88: LT1 | B88: Long Term Loans 1 | C88: -1200000 | D88: =IF($C88>0,"Long term loans balances should be entered as negative values!","") -> 
A89: LT2 | B89: Long Term Loans 2 | C89: -500000 | D89: =IF($C89>0,"Long term loans balances should be entered as negative values!","") -> 
A90: LT3 | B90: Long Term Loans 3 | C90: 0
A91: FIN | B91: Finance Leases | C91: -425000 | D91: =IF($C91>0,"Finance lease balances should be entered as negative values!","") -> 
A92: OVD | B92: Bank Overdraft | C92: 0
A93: CRE | B93: Trade Payables | C93: -130000
A94: VAT | B94: Sales Tax | C94: -16000
A95: PAY | B95: Payroll Accruals | C95: -20000
A96: ACC | B96: Accruals | C96: -55000
A97: TAX | B97: Provision For Taxation | C97: 0 | D97: =IF($C$97>0,"The long term loans start-up balance should be entered as a negative value!","") -> 
A98: DIV | B98: Dividends Payable | C98: 0
A99: OPV | B99: Other Provisions | C99: -42000
B100: Dividends
B101: Dividend % | C101: 0
B102: Payment Frequency (Months) | C102: 12
B103: First Payment Month | C103: 3 | D103: =IF(C102=0,1,C103-((ROUNDUP(C103/C102,0))-1)*C102) -> 3
B104: Current Or Subsequent | C104: Next | D104: =IF(C104="Next",1,IF(C104="Subsequent",IF(C102=0,1,IF(D103-((MONTH($C$5)-1)-((ROUNDUP((MONTH($C$5)-1)/C102,0))-1)*C102)<0,D103+C102-((MONTH($C$5)-1)-((ROUNDUP((MONTH($C$5)-1)/C102,0))-1)*C102),D103-((MONTH($C$5)-1)-((ROUNDUP((MONTH($C$5)-1)/C102,0))-1)*C102))),0)) -> 1

Sheet IncState (hidden)
B1: =IF(ISBLANK(Assumptions!$C$4),"Example Limited",Assumptions!$C$4) -> Example (Pty) Limited
B2: Cash Flow Projections - Income Statement
B3: © www.excel-skills.com
C4: =IF(ISBLANK(Assumptions!$C$5)=TRUE,DATE(YEAR(TODAY()),MONTH(TODAY())+1,0),DATE(YEAR(Assumptions!$C$5),MONTH(Assumptions!$C$5)+1,0)) -> 2021-03-31 | D4: =DATE(YEAR(C4),MONTH(C4)+2,0) -> 2021-04-30 | E4: 2021-05-31 | F4: 2021-06-30 | G4: 2021-07-31 | H4: 2021-08-31 | I4: 2021-09-30 | J4: 2021-10-31 | K4: 2021-11-30 | L4: 2021-12-31 | M4: 2022-01-31 | N4: 2022-02-28 | O4: ="Year-"&YEAR(N4) -> Year-2022 | P4: ="Year-"&YEAR($N4)+1 -> Year-2023 | Q4: ="Year-"&YEAR($N4)+2 -> Year-2024 | R4: ="Year-"&YEAR($N4)+3 -> Year-2025 | S4: ="Year-"&YEAR($N4)+4 -> Year-2026
A5: V1C1 | B5: Product Sales | C5: 285600 | D5: 305200 | E5: 308000 | F5: 311200 | G5: 315800 | H5: 310000 | I5: 302000 | J5: 314000 | K5: 318200 | L5: 256500 | M5: 330600 | N5: 305200 | O5: =SUM(C5:N5) -> 3662300 | P5: =O5*(1+Assumptions!D$10) -> 3955284 | Q5: =P5*(1+Assumptions!E$10) -> 4271706.72 | R5: =Q5*(1+Assumptions!F$10) -> 4698877.392 | S5: =R5*(1+Assumptions!G$10) -> 5168765.131
A6: V1C1 | B6: Income From Services | C6: 125000 | D6: 115000 | E6: 128000 | F6: 132000 | G6: 127000 | H6: 133000 | I6: 130000 | J6: 128900 | K6: 132000 | L6: 118000 | M6: 135000 | N6: 131200 | O6: 1535100 | P6: =O6*(1+Assumptions!D$10) -> 1657908 | Q6: =P6*(1+Assumptions!E$10) -> 1790540.64 | R6: =Q6*(1+Assumptions!F$10) -> 1969594.704 | S6: =R6*(1+Assumptions!G$10) -> 2166554.174
B7: Total Turnover | C7: =SUM(OFFSET(C4,1,0,ROW($B7)-ROW($B4)-1,1)) -> 410600 | D7: 420200 | E7: 436000 | F7: 443200 | G7: 442800 | H7: 443000 | I7: 432000 | J7: 442900 | K7: 450200 | L7: 374500 | M7: 465600 | N7: 436400 | O7: 5197400 | P7: 5613192 | Q7: 6062247.36 | R7: 6668472.096 | S7: 7335319.306
A8: V1C1 | B8: Products | C8: =C5-C11 -> 185640 | D8: 198380 | E8: 200200 | F8: 202280 | G8: 205270 | H8: 201500 | I8: 193280 | J8: 200960 | K8: 203648 | L8: 164160 | M8: 211584 | N8: 195328 | O8: =SUM(C8:N8) -> 2362230 | P8: =P5-P11 -> 2452276.08 | Q8: 2563024.032 | R8: 2819326.435 | S8: 3101259.079
A9: V1C0 | B9: Services | C9: 0 | D9: 0 | E9: 0 | F9: 0 | G9: 0 | H9: 0 | I9: 0 | J9: 0 | K9: 0 | L9: 0 | M9: 0 | N9: 0 | O9: 0 | P9: 0 | Q9: 0 | R9: 0 | S9: 0
B10: Total Cost of Sales | C10: =SUM(OFFSET(C7,1,0,ROW($B10)-ROW($B7)-1,1)) -> 185640 | D10: 198380 | E10: 200200 | F10: 202280 | G10: 205270 | H10: 201500 | I10: 193280 | J10: 200960 | K10: 203648 | L10: 164160 | M10: 211584 | N10: 195328 | O10: 2362230 | P10: 2452276.08 | Q10: 2563024.032 | R10: 2819326.435 | S10: 3101259.079
B11: Products | C11: =C5*C14 -> 99960 | D11: 106820 | E11: 107800 | F11: 108920 | G11: 110530 | H11: 108500 | I11: 108720 | J11: 113040 | K11: 114552 | L11: 92340 | M11: 119016 | N11: 109872 | O11: =SUM(C11:N11) -> 1300070 | P11: =P5*P14 -> 1503007.92 | Q11: 1708682.688 | R11: 1879550.957 | S11: 2067506.052
B12: Services | C12: 125000 | D12: 115000 | E12: 128000 | F12: 132000 | G12: 127000 | H12: 133000 | I12: 130000 | J12: 128900 | K12: 132000 | L12: 118000 | M12: 135000 | N12: 131200 | O12: 1535100 | P12: =P6*P15 -> 1657908 | Q12: 1790540.64 | R12: 1969594.704 | S12: 2166554.174
B13: Total Gross Profit | C13: =SUM(OFFSET(C10,1,0,ROW($B13)-ROW($B10)-1,1)) -> 224960 | D13: 221820 | E13: 235800 | F13: 240920 | G13: 237530 | H13: 241500 | I13: 238720 | J13: 241940 | K13: 246552 | L13: 210340 | M13: 254016 | N13: 241072 | O13: 2835170 | P13: 3160915.92 | Q13: 3499223.328 | R13: 3849145.661 | S13: 4234060.227
B14: Products | C14: 0.35 | D14: 0.35 | E14: 0.35 | F14: 0.35 | G14: 0.35 | H14: 0.35 | I14: 0.36 | J14: 0.36 | K14: 0.36 | L14: 0.36 | M14: 0.36 | N14: 0.36 | O14: =IF(O5=0,0,O11/O5) -> 0.3549873031 | P14: 0.38 | Q14: 0.4 | R14: 0.4 | S14: 0.4
B15: Services | C15: 1 | D15: 1 | E15: 1 | F15: 1 | G15: 1 | H15: 1 | I15: 1 | J15: 1 | K15: 1 | L15: 1 | M15: 1 | N15: 1 | O15: =IF(O6=0,0,O12/O6) -> 1 | P15: 1 | Q15: 1 | R15: 1 | S15: 1
B16: Gross Profit % | C16: =IF(C7=0,0,C13/C7) -> 0.5478811495 | D16: 0.5278914802 | E16: 0.5408256881 | F16: 0.5435920578 | G16: 0.5364272809 | H16: 0.5451467269 | I16: 0.5525925926 | J16: 0.5462632648 | K16: 0.5476499334 | L16: 0.5616555407 | M16: 0.5455670103 | N16: 0.5524106324 | O16: 0.5454977489 | P16: 0.5631227152 | Q16: 0.5772155308 | R16: 0.5772155308 | S16: 0.5772155308
B17: Other Income | C17: 500 | D17: 500 | E17: 500 | F17: 500 | G17: 500 | H17: 500 | I17: 500 | J17: 500 | K17: 500 | L17: 500 | M17: 500 | N17: 500 | O17: =SUM(C17:N17) -> 6000 | P17: =O17*(1+Assumptions!D$10) -> 6480 | Q17: =P17*(1+Assumptions!E$10) -> 6998.4 | R17: =Q17*(1+Assumptions!F$10) -> 7698.24 | S17: =R17*(1+Assumptions!G$10) -> 8468.064
B18: Operating Expenses
A19: V1C1 | B19: Accounting Fees | C19: 2000 | D19: 2000 | E19: 2000 | F19: 2000 | G19: 2000 | H19: 2000 | I19: 2000 | J19: 2000 | K19: 2000 | L19: 2000 | M19: 2000 | N19: 2000 | O19: =SUM(C19:N19) -> 24000 | P19: =O19*(1+Assumptions!D$18) -> 25440 | Q19: =P19*(1+Assumptions!E$18) -> 26966.4 | R19: =Q19*(1+Assumptions!F$18) -> 28584.384 | S19: =R19*(1+Assumptions!G$18) -> 30299.44704
A20: V1C1 | B20: Advertising & Marketing | C20: 5000 | D20: 5000 | E20: 10000 | F20: 5000 | G20: 5000 | H20: 25000 | I20: 5000 | J20: 5000 | K20: 43000 | L20: 13000 | M20: 5000 | N20: 5000 | O20: 131000 | P20: =O20*(1+Assumptions!D$18) -> 138860 | Q20: =P20*(1+Assumptions!E$18) -> 147191.6 | R20: =Q20*(1+Assumptions!F$18) -> 156023.096 | S20: =R20*(1+Assumptions!G$18) -> 165384.4818
A21: V1C0 | B21: Bank Charges | C21: 250 | D21: 250 | E21: 250 | F21: 250 | G21: 250 | H21: 250 | I21: 250 | J21: 250 | K21: 250 | L21: 250 | M21: 250 | N21: 250 | O21: 3000 | P21: =O21*(1+Assumptions!D$18) -> 3180 | Q21: =P21*(1+Assumptions!E$18) -> 3370.8 | R21: =Q21*(1+Assumptions!F$18) -> 3573.048 | S21: =R21*(1+Assumptions!G$18) -> 3787.43088
A22: V1C0 | B22: Cleaning Expenses | C22: 500 | D22: 500 | E22: 800 | F22: 800 | G22: 800 | H22: 860 | I22: 860 | J22: 860 | K22: 860 | L22: 860 | M22: 860 | N22: 860 | O22: 9420 | P22: =O22*(1+Assumptions!D$18) -> 9985.2 | Q22: =P22*(1+Assumptions!E$18) -> 10584.312 | R22: =Q22*(1+Assumptions!F$18) -> 11219.37072 | S22: =R22*(1+Assumptions!G$18) -> 11892.53296
A23: V1C0 | B23: Computer Expenses | C23: 0 | D23: 0 | E23: 0 | F23: 3800 | G23: 0 | H23: 0 | I23: 0 | J23: 0 | K23: 0 | L23: 0 | M23: 0 | N23: 4200 | O23: 8000 | P23: =O23*(1+Assumptions!D$18) -> 8480 | Q23: =P23*(1+Assumptions!E$18) -> 8988.8 | R23: =Q23*(1+Assumptions!F$18) -> 9528.128 | S23: =R23*(1+Assumptions!G$18) -> 10099.81568
A24: V1C0 | B24: Consumables | C24: 1250 | D24: 0 | E24: 0 | F24: 0 | G24: 2300 | H24: 780 | I24: 200 | J24: 0 | K24: 0 | L24: 759 | M24: 0 | N24: 0 | O24: 5289 | P24: =O24*(1+Assumptions!D$18) -> 5606.34 | Q24: =P24*(1+Assumptions!E$18) -> 5942.7204 | R24: =Q24*(1+Assumptions!F$18) -> 6299.283624 | S24: =R24*(1+Assumptions!G$18) -> 6677.240641
A25: V1C0 | B25: Electricity & Water | C25: 1000 | D25: 1000 | E25: 1000 | F25: 1000 | G25: 1000 | H25: 1200 | I25: 1200 | J25: 1200 | K25: 1200 | L25: 1200 | M25: 1200 | N25: 1200 | O25: 13400 | P25: =O25*(1+Assumptions!D$18) -> 14204 | Q25: =P25*(1+Assumptions!E$18) -> 15056.24 | R25: =Q25*(1+Assumptions!F$18) -> 15959.6144 | S25: =R25*(1+Assumptions!G$18) -> 16917.19126
A26: V1C0 | B26: Entertainment | C26: 0 | D26: 0 | E26: 0 | F26: 0 | G26: 0 | H26: 0 | I26: 0 | J26: 12000 | K26: 0 | L26: 0 | M26: 0 | N26: 0 | O26: 12000 | P26: =O26*(1+Assumptions!D$18) -> 12720 | Q26: =P26*(1+Assumptions!E$18) -> 13483.2 | R26: =Q26*(1+Assumptions!F$18) -> 14292.192 | S26: =R26*(1+Assumptions!G$18) -> 15149.72352
A27: V1C1 | B27: Equipment Hire | C27: 0 | D27: 0 | E27: 0 | F27: 0 | G27: 18000 | H27: 0 | I27: 0 | J27: 0 | K27: 0 | L27: 0 | M27: 0 | N27: 0 | O27: 18000 | P27: =O27*(1+Assumptions!D$18) -> 19080 | Q27: =P27*(1+Assumptions!E$18) -> 20224.8 | R27: =Q27*(1+Assumptions!F$18) -> 21438.288 | S27: =R27*(1+Assumptions!G$18) -> 22724.58528
A28: V1C0 | B28: Insurance | C28: 2000 | D28: 2000 | E28: 2000 | F28: 2000 | G28: 2000 | H28: 2000 | I28: 2300 | J28: 2300 | K28: 2300 | L28: 2300 | M28: 2300 | N28: 2300 | O28: 25800 | P28: =O28*(1+Assumptions!D$18) -> 27348 | Q28: =P28*(1+Assumptions!E$18) -> 28988.88 | R28: =Q28*(1+Assumptions!F$18) -> 30728.2128 | S28: =R28*(1+Assumptions!G$18) -> 32571.90557
A29: V1C1 | B29: Legal Fees | C29: 0 | D29: 0 | E29: 0 | F29: 74000 | G29: 0 | H29: 0 | I29: 0 | J29: 0 | K29: 0 | L29: 0 | M29: 0 | N29: 0 | O29: 74000 | P29: =O29*(1+Assumptions!D$18) -> 78440 | Q29: =P29*(1+Assumptions!E$18) -> 83146.4 | R29: =Q29*(1+Assumptions!F$18) -> 88135.184 | S29: =R29*(1+Assumptions!G$18) -> 93423.29504
A30: V1C0 | B30: Motor Vehicle Expenses | C30: 0 | D30: 0 | E30: 0 | F30: 0 | G30: 0 | H30: 0 | I30: 1800 | J30: 0 | K30: 0 | L30: 0 | M30: 0 | N30: 0 | O30: 1800 | P30: =O30*(1+Assumptions!D$18) -> 1908 | Q30: =P30*(1+Assumptions!E$18) -> 2022.48 | R30: =Q30*(1+Assumptions!F$18) -> 2143.8288 | S30: =R30*(1+Assumptions!G$18) -> 2272.458528
A31: V1C0 | B31: Postage | C31: 100 | D31: 100 | E31: 100 | F31: 100 | G31: 100 | H31: 100 | I31: 100 | J31: 100 | K31: 100 | L31: 100 | M31: 100 | N31: 100 | O31: 1200 | P31: =O31*(1+Assumptions!D$18) -> 1272 | Q31: =P31*(1+Assumptions!E$18) -> 1348.32 | R31: =Q31*(1+Assumptions!F$18) -> 1429.2192 | S31: =R31*(1+Assumptions!G$18) -> 1514.972352
A32: V1C1 | B32: Printing & Stationery | C32: 300 | D32: 300 | E32: 300 | F32: 300 | G32: 300 | H32: 300 | I32: 300 | J32: 300 | K32: 300 | L32: 300 | M32: 300 | N32: 300 | O32: 3600 | P32: =O32*(1+Assumptions!D$18) -> 3816 | Q32: =P32*(1+Assumptions!E$18) -> 4044.96 | R32: =Q32*(1+Assumptions!F$18) -> 4287.6576 | S32: =R32*(1+Assumptions!G$18) -> 4544.917056
A33: V1C1 | B33: Professional Fees | C33: 0 | D33: 0 | E33: 0 | F33: 0 | G33: 0 | H33: 0 | I33: 0 | J33: 32000 | K33: 0 | L33: 0 | M33: 0 | N33: 0 | O33: 32000 | P33: =O33*(1+Assumptions!D$18) -> 33920 | Q33: =P33*(1+Assumptions!E$18) -> 35955.2 | R33: =Q33*(1+Assumptions!F$18) -> 38112.512 | S33: =R33*(1+Assumptions!G$18) -> 40399.26272
A34: V1C0 | B34: Rent | C34: 20000 | D34: 20000 | E34: 20000 | F34: 20000 | G34: 20000 | H34: 20000 | I34: 20000 | J34: 20000 | K34: 20000 | L34: 20000 | M34: 22000 | N34: 22000 | O34: 244000 | P34: =O34*(1+Assumptions!D$18) -> 258640 | Q34: =P34*(1+Assumptions!E$18) -> 274158.4 | R34: =Q34*(1+Assumptions!F$18) -> 290607.904 | S34: =R34*(1+Assumptions!G$18) -> 308044.3782
A35: V1C0 | B35: Repairs & Maintenance | C35: 0 | D35: 0 | E35: 800 | F35: 0 | G35: 0 | H35: 780 | I35: 0 | J35: 0 | K35: 4300 | L35: 0 | M35: 0 | N35: 0 | O35: 5880 | P35: =O35*(1+Assumptions!D$18) -> 6232.8 | Q35: =P35*(1+Assumptions!E$18) -> 6606.768 | R35: =Q35*(1+Assumptions!F$18) -> 7003.17408 | S35: =R35*(1+Assumptions!G$18) -> 7423.364525
A36: V1C1 | B36: Security | C36: 325 | D36: 325 | E36: 325 | F36: 325 | G36: 325 | H36: 325 | I36: 325 | J36: 325 | K36: 325 | L36: 325 | M36: 325 | N36: 325 | O36: 3900 | P36: =O36*(1+Assumptions!D$18) -> 4134 | Q36: =P36*(1+Assumptions!E$18) -> 4382.04 | R36: =Q36*(1+Assumptions!F$18) -> 4644.9624 | S36: =R36*(1+Assumptions!G$18) -> 4923.660144
A37: V1C0 | B37: Subscriptions | C37: 0 | D37: 0 | E37: 0 | F37: 0 | G37: 0 | H37: 3200 | I37: 0 | J37: 0 | K37: 0 | L37: 0 | M37: 0 | N37: 0 | O37: 3200 | P37: =O37*(1+Assumptions!D$18) -> 3392 | Q37: =P37*(1+Assumptions!E$18) -> 3595.52 | R37: =Q37*(1+Assumptions!F$18) -> 3811.2512 | S37: =R37*(1+Assumptions!G$18) -> 4039.926272
A38: V1C1 | B38: Telephone & Fax | C38: 2510 | D38: 2510 | E38: 2510 | F38: 2510 | G38: 2510 | H38: 2510 | I38: 2510 | J38: 2510 | K38: 2510 | L38: 2510 | M38: 2510 | N38: 2510 | O38: 30120 | P38: =O38*(1+Assumptions!D$18) -> 31927.2 | Q38: =P38*(1+Assumptions!E$18) -> 33842.832 | R38: =Q38*(1+Assumptions!F$18) -> 35873.40192 | S38: =R38*(1+Assumptions!G$18) -> 38025.80604
A39: V1C1 | B39: Training | C39: 0 | D39: 0 | E39: 0 | F39: 0 | G39: 0 | H39: 0 | I39: 0 | J39: 12000 | K39: 0 | L39: 0 | M39: 0 | N39: 0 | O39: 12000 | P39: =O39*(1+Assumptions!D$18) -> 12720 | Q39: =P39*(1+Assumptions!E$18) -> 13483.2 | R39: =Q39*(1+Assumptions!F$18) -> 14292.192 | S39: =R39*(1+Assumptions!G$18) -> 15149.72352
A40: V1C1 | B40: Uniforms | C40: 0 | D40: 0 | E40: 0 | F40: 0 | G40: 0 | H40: 0 | I40: 2530 | J40: 0 | K40: 0 | L40: 0 | M40: 0 | N40: 0 | O40: 2530 | P40: =O40*(1+Assumptions!D$18) -> 2681.8 | Q40: =P40*(1+Assumptions!E$18) -> 2842.708 | R40: =Q40*(1+Assumptions!F$18) -> 3013.27048 | S40: =R40*(1+Assumptions!G$18) -> 3194.066709
B41: Total Operating Expenses | C41: =SUM(OFFSET(B18,1,1,ROW($B$41)-ROW($B$18)-1,1)) -> 35235 | D41: =SUM(OFFSET(C18,1,1,ROW($B$41)-ROW($B$18)-1,1)) -> 33985 | E41: 40085 | F41: 112085 | G41: 54585 | H41: 59305 | I41: 39375 | J41: 90845 | K41: 77145 | L41: 43604 | M41: 36845 | N41: 41045 | O41: 664139 | P41: 703987.34 | Q41: 746226.5804 | R41: 791000.1752 | S41: 838460.1857
B42: Staff Costs
A43: V4C0 | B43: Salaries | C43: 70000 | D43: 70000 | E43: 70000 | F43: 70000 | G43: 70000 | H43: 70000 | I43: 70000 | J43: 70000 | K43: 70000 | L43: 70000 | M43: 70000 | N43: 70000 | O43: =SUM(C43:N43) -> 840000 | P43: =O43*(1+Assumptions!D$18) -> 890400 | Q43: =P43*(1+Assumptions!E$18) -> 943824 | R43: =Q43*(1+Assumptions!F$18) -> 1000453.44 | S43: =R43*(1+Assumptions!G$18) -> 1060480.646
A44: V4C0 | B44: Wages | C44: 30000 | D44: 30000 | E44: 30000 | F44: 30000 | G44: 30000 | H44: 30000 | I44: 30000 | J44: 30000 | K44: 30000 | L44: 30000 | M44: 30000 | N44: 30000 | O44: 360000 | P44: =O44*(1+Assumptions!D$18) -> 381600 | Q44: =P44*(1+Assumptions!E$18) -> 404496 | R44: =Q44*(1+Assumptions!F$18) -> 428765.76 | S44: =R44*(1+Assumptions!G$18) -> 454491.7056
A45: PAY | B45: Total Staff Costs | C45: =SUM(OFFSET(C42,1,0,ROW($B45)-ROW($B42)-1,1)) -> 100000 | D45: =SUM(OFFSET(D42,1,0,ROW($B45)-ROW($B42)-1,1)) -> 100000 | E45: 100000 | F45: 100000 | G45: 100000 | H45: 100000 | I45: 100000 | J45: 100000 | K45: 100000 | L45: 100000 | M45: 100000 | N45: 100000 | O45: 1200000 | P45: 1272000 | Q45: 1348320 | R45: 1429219.2 | S45: 1514972.352
B46: Depreciation & Amortization
A47: DEP | B47: Depreciation | C47: 15000 | D47: 15000 | E47: 15000 | F47: 15000 | G47: 15000 | H47: 15000 | I47: 15000 | J47: 15000 | K47: 15000 | L47: 15000 | M47: 19000 | N47: 19000 | O47: =SUM(C47:N47) -> 188000 | P47: =Assumptions!D$24 -> 263000 | Q47: =Assumptions!E$24 -> 307000 | R47: =Assumptions!F$24 -> 250000 | S47: =Assumptions!G$24 -> 275000
A48: AMT | B48: Amortization | C48: 1000 | D48: 1000 | E48: 1000 | F48: 1000 | G48: 1000 | H48: 1000 | I48: 1000 | J48: 1000 | K48: 1000 | L48: 1000 | M48: 1000 | N48: 1000 | O48: =SUM(C48:N48) -> 12000 | P48: =Assumptions!D$25 -> 12000 | Q48: =Assumptions!E$25 -> 12000 | R48: =Assumptions!F$25 -> 12000 | S48: =Assumptions!G$25 -> 12000
B49: Total Depreciation & Amortization | C49: =SUM(C47:C48) -> 16000 | D49: =SUM(D47:D48) -> 16000 | E49: 16000 | F49: 16000 | G49: 16000 | H49: 16000 | I49: 16000 | J49: 16000 | K49: 16000 | L49: 16000 | M49: 20000 | N49: 20000 | O49: 200000 | P49: 275000 | Q49: 319000 | R49: 262000 | S49: 287000
B50: Profit / (Loss) before Interest & Tax | C50: =SUM(C13,C17,-C41,-C45,-C49) -> 74225 | D50: =SUM(D13,D17,-D41,-D45,-D49) -> 72335 | E50: 80215 | F50: 13335 | G50: 67445 | H50: 66695 | I50: 83845 | J50: 35595 | K50: 53907 | L50: 51236 | M50: 97671 | N50: 80527 | O50: 777031 | P50: 916408.58 | Q50: 1092675.148 | R50: 1374624.526 | S50: 1602095.753
B51: Interest Paid
A52: INT | B52: Interest - Loans 1 | C52: =OFFSET(Loans1!$E$9,COLUMN(C51)-COLUMN($B51)-ROUNDDOWN((COLUMN(C51)-COLUMN($B51))/13,0),0,1,1) -> 10250 | D52: =OFFSET(Loans1!$E$9,COLUMN(D51)-COLUMN($B51)-ROUNDDOWN((COLUMN(D51)-COLUMN($B51))/13,0),0,1,1) -> 10200.67461 | E52: =OFFSET(Loans1!$E$9,COLUMN(E51)-COLUMN($B51)-ROUNDDOWN((COLUMN(E51)-COLUMN($B51))/13,0),0,1,1) -> 10150.92789 | F52: =OFFSET(Loans1!$E$9,COLUMN(F51)-COLUMN($B51)-ROUNDDOWN((COLUMN(F51)-COLUMN($B51))/13,0),0,1,1) -> 10100.75626 | G52: =OFFSET(Loans1!$E$9,COLUMN(G51)-COLUMN($B51)-ROUNDDOWN((COLUMN(G51)-COLUMN($B51))/13,0),0,1,1) -> 10050.15607 | H52: =OFFSET(Loans1!$E$9,COLUMN(H51)-COLUMN($B51)-ROUNDDOWN((COLUMN(H51)-COLUMN($B51))/13,0),0,1,1) -> 9999.12368 | I52: =OFFSET(Loans1!$E$9,COLUMN(I51)-COLUMN($B51)-ROUNDDOWN((COLUMN(I51)-COLUMN($B51))/13,0),0,1,1) -> 9947.655384 | J52: =OFFSET(Loans1!$E$9,COLUMN(J51)-COLUMN($B51)-ROUNDDOWN((COLUMN(J51)-COLUMN($B51))/13,0),0,1,1) -> 9895.747464 | K52: =OFFSET(Loans1!$E$9,COLUMN(K51)-COLUMN($B51)-ROUNDDOWN((COLUMN(K51)-COLUMN($B51))/13,0),0,1,1) -> 9843.396163 | L52: =OFFSET(Loans1!$E$9,COLUMN(L51)-COLUMN($B51)-ROUNDDOWN((COLUMN(L51)-COLUMN($B51))/13,0),0,1,1) -> 9790.597695 | M52: =OFFSET(Loans1!$E$9,COLUMN(M51)-COLUMN($B51)-ROUNDDOWN((COLUMN(M51)-COLUMN($B51))/13,0),0,1,1) -> 9737.34824 | N52: =OFFSET(Loans1!$E$9,COLUMN(N51)-COLUMN($B51)-ROUNDDOWN((COLUMN(N51)-COLUMN($B51))/13,0),0,1,1) -> 9683.643946 | O52: =SUM(C52:N52) -> 119650.0274 | P52: =SUM(OFFSET(Loans1!$E$10,12*(COLUMN(P$51)-COLUMN($O$51)),0,12,1)) -> 111843.8268 | Q52: =SUM(OFFSET(Loans1!$E$10,12*(COLUMN(Q$51)-COLUMN($O$51)),0,12,1)) -> 103198.8097 | R52: =SUM(OFFSET(Loans1!$E$10,12*(COLUMN(R$51)-COLUMN($O$51)),0,12,1)) -> 93624.84119 | S52: =SUM(OFFSET(Loans1!$E$10,12*(COLUMN(S$51)-COLUMN($O$51)),0,12,1)) -> 83022.10051
A53: INT | B53: Interest - Loans 2 | C53: =OFFSET(Loans2!$E$9,COLUMN(C52)-COLUMN($B52)-ROUNDDOWN((COLUMN(C52)-COLUMN($B52))/13,0),0,1,1) -> 3854.166667 | D53: =OFFSET(Loans2!$E$9,COLUMN(D52)-COLUMN($B52)-ROUNDDOWN((COLUMN(D52)-COLUMN($B52))/13,0),0,1,1) -> 3826.910436 | E53: =OFFSET(Loans2!$E$9,COLUMN(E52)-COLUMN($B52)-ROUNDDOWN((COLUMN(E52)-COLUMN($B52))/13,0),0,1,1) -> 3799.444106 | F53: =OFFSET(Loans2!$E$9,COLUMN(F52)-COLUMN($B52)-ROUNDDOWN((COLUMN(F52)-COLUMN($B52))/13,0),0,1,1) -> 3771.766055 | G53: =OFFSET(Loans2!$E$9,COLUMN(G52)-COLUMN($B52)-ROUNDDOWN((COLUMN(G52)-COLUMN($B52))/13,0),0,1,1) -> 3743.874654 | H53: =OFFSET(Loans2!$E$9,COLUMN(H52)-COLUMN($B52)-ROUNDDOWN((COLUMN(H52)-COLUMN($B52))/13,0),0,1,1) -> 4486.601589 | I53: =OFFSET(Loans2!$E$9,COLUMN(I52)-COLUMN($B52)-ROUNDDOWN((COLUMN(I52)-COLUMN($B52))/13,0),0,1,1) -> 4452.827291 | J53: =OFFSET(Loans2!$E$9,COLUMN(J52)-COLUMN($B52)-ROUNDDOWN((COLUMN(J52)-COLUMN($B52))/13,0),0,1,1) -> 4418.79265 | K53: =OFFSET(Loans2!$E$9,COLUMN(K52)-COLUMN($B52)-ROUNDDOWN((COLUMN(K52)-COLUMN($B52))/13,0),0,1,1) -> 4384.495658 | L53: =OFFSET(Loans2!$E$9,COLUMN(L52)-COLUMN($B52)-ROUNDDOWN((COLUMN(L52)-COLUMN($B52))/13,0),0,1,1) -> 4349.934294 | M53: =OFFSET(Loans2!$E$9,COLUMN(M52)-COLUMN($B52)-ROUNDDOWN((COLUMN(M52)-COLUMN($B52))/13,0),0,1,1) -> 4315.106519 | N53: =OFFSET(Loans2!$E$9,COLUMN(N52)-COLUMN($B52)-ROUNDDOWN((COLUMN(N52)-COLUMN($B52))/13,0),0,1,1) -> 4280.010281 | O53: =SUM(C53:N53) -> 49683.9302 | P53: =SUM(OFFSET(Loans2!$E$10,12*(COLUMN(P$51)-COLUMN($O$51)),0,12,1)) -> 48522.02254 | Q53: =SUM(OFFSET(Loans2!$E$10,12*(COLUMN(Q$51)-COLUMN($O$51)),0,12,1)) -> 42933.7027 | R53: =SUM(OFFSET(Loans2!$E$10,12*(COLUMN(R$51)-COLUMN($O$51)),0,12,1)) -> 36805.97506 | S53: =SUM(OFFSET(Loans2!$E$10,12*(COLUMN(S$51)-COLUMN($O$51)),0,12,1)) -> 30086.77373
A54: INT | B54: Interest - Loans 3 | C54: =OFFSET(Loans3!$E$9,COLUMN(C53)-COLUMN($B53)-ROUNDDOWN((COLUMN(C53)-COLUMN($B53))/13,0),0,1,1) -> 0 | D54: =OFFSET(Loans3!$E$9,COLUMN(D53)-COLUMN($B53)-ROUNDDOWN((COLUMN(D53)-COLUMN($B53))/13,0),0,1,1) -> 0 | E54: =OFFSET(Loans3!$E$9,COLUMN(E53)-COLUMN($B53)-ROUNDDOWN((COLUMN(E53)-COLUMN($B53))/13,0),0,1,1) -> 0 | F54: =OFFSET(Loans3!$E$9,COLUMN(F53)-COLUMN($B53)-ROUNDDOWN((COLUMN(F53)-COLUMN($B53))/13,0),0,1,1) -> 0 | G54: =OFFSET(Loans3!$E$9,COLUMN(G53)-COLUMN($B53)-ROUNDDOWN((COLUMN(G53)-COLUMN($B53))/13,0),0,1,1) -> 0 | H54: =OFFSET(Loans3!$E$9,COLUMN(H53)-COLUMN($B53)-ROUNDDOWN((COLUMN(H53)-COLUMN($B53))/13,0),0,1,1) -> 0 | I54: =OFFSET(Loans3!$E$9,COLUMN(I53)-COLUMN($B53)-ROUNDDOWN((COLUMN(I53)-COLUMN($B53))/13,0),0,1,1) -> 0 | J54: =OFFSET(Loans3!$E$9,COLUMN(J53)-COLUMN($B53)-ROUNDDOWN((COLUMN(J53)-COLUMN($B53))/13,0),0,1,1) -> 0 | K54: =OFFSET(Loans3!$E$9,COLUMN(K53)-COLUMN($B53)-ROUNDDOWN((COLUMN(K53)-COLUMN($B53))/13,0),0,1,1) -> 0 | L54: =OFFSET(Loans3!$E$9,COLUMN(L53)-COLUMN($B53)-ROUNDDOWN((COLUMN(L53)-COLUMN($B53))/13,0),0,1,1) -> 0 | M54: =OFFSET(Loans3!$E$9,COLUMN(M53)-COLUMN($B53)-ROUNDDOWN((COLUMN(M53)-COLUMN($B53))/13,0),0,1,1) -> 2500 | N54: =OFFSET(Loans3!$E$9,COLUMN(N53)-COLUMN($B53)-ROUNDDOWN((COLUMN(N53)-COLUMN($B53))/13,0),0,1,1) -> 2469.796821 | O54: 4969.796821 | P54: =SUM(OFFSET(Loans3!$E$10,12*(COLUMN(P$51)-COLUMN($O$51)),0,12,1)) -> 48232.10136 | Q54: =SUM(OFFSET(Loans3!$E$10,12*(COLUMN(Q$51)-COLUMN($O$51)),0,12,1)) -> 72973.70754 | R54: =SUM(OFFSET(Loans3!$E$10,12*(COLUMN(R$51)-COLUMN($O$51)),0,12,1)) -> 73091.44955 | S54: =SUM(OFFSET(Loans3!$E$10,12*(COLUMN(S$51)-COLUMN($O$51)),0,12,1)) -> 83299.20924
A55: INT | B55: Interest - Leases | C55: =OFFSET(Leases!$E$9,COLUMN(C54)-COLUMN($B54)-ROUNDDOWN((COLUMN(C54)-COLUMN($B54))/13,0),0,1,1) -> 4072.916667 | D55: =OFFSET(Leases!$E$9,COLUMN(D54)-COLUMN($B54)-ROUNDDOWN((COLUMN(D54)-COLUMN($B54))/13,0),0,1,1) -> 4005.690426 | E55: =OFFSET(Leases!$E$9,COLUMN(E54)-COLUMN($B54)-ROUNDDOWN((COLUMN(E54)-COLUMN($B54))/13,0),0,1,1) -> 3937.819933 | F55: =OFFSET(Leases!$E$9,COLUMN(F54)-COLUMN($B54)-ROUNDDOWN((COLUMN(F54)-COLUMN($B54))/13,0),0,1,1) -> 3869.299015 | G55: =OFFSET(Leases!$E$9,COLUMN(G54)-COLUMN($B54)-ROUNDDOWN((COLUMN(G54)-COLUMN($B54))/13,0),0,1,1) -> 3800.121438 | H55: =OFFSET(Leases!$E$9,COLUMN(H54)-COLUMN($B54)-ROUNDDOWN((COLUMN(H54)-COLUMN($B54))/13,0),0,1,1) -> 3730.280909 | I55: =OFFSET(Leases!$E$9,COLUMN(I54)-COLUMN($B54)-ROUNDDOWN((COLUMN(I54)-COLUMN($B54))/13,0),0,1,1) -> 3659.771075 | J55: =OFFSET(Leases!$E$9,COLUMN(J54)-COLUMN($B54)-ROUNDDOWN((COLUMN(J54)-COLUMN($B54))/13,0),0,1,1) -> 3588.585522 | K55: =OFFSET(Leases!$E$9,COLUMN(K54)-COLUMN($B54)-ROUNDDOWN((COLUMN(K54)-COLUMN($B54))/13,0),0,1,1) -> 3516.717774 | L55: =OFFSET(Leases!$E$9,COLUMN(L54)-COLUMN($B54)-ROUNDDOWN((COLUMN(L54)-COLUMN($B54))/13,0),0,1,1) -> 3444.161294 | M55: =OFFSET(Leases!$E$9,COLUMN(M54)-COLUMN($B54)-ROUNDDOWN((COLUMN(M54)-COLUMN($B54))/13,0),0,1,1) -> 3370.90948 | N55: =OFFSET(Leases!$E$9,COLUMN(N54)-COLUMN($B54)-ROUNDDOWN((COLUMN(N54)-COLUMN($B54))/13,0),0,1,1) -> 3296.95567 | O55: 44293.2292 | P55: =SUM(OFFSET(Leases!$E$10,12*(COLUMN(P$51)-COLUMN($O$51)),0,12,1)) -> 33530.16439 | Q55: =SUM(OFFSET(Leases!$E$10,12*(COLUMN(Q$51)-COLUMN($O$51)),0,12,1)) -> 21461.97757 | R55: =SUM(OFFSET(Leases!$E$10,12*(COLUMN(R$51)-COLUMN($O$51)),0,12,1)) -> 7930.41052 | S55: =SUM(OFFSET(Leases!$E$10,12*(COLUMN(S$51)-COLUMN($O$51)),0,12,1)) -> 0
B56: Total Interest Paid | C56: =SUM(C52:C55) -> 18177.08333 | D56: =SUM(D52:D55) -> 18033.27547 | E56: 17888.19193 | F56: 17741.82133 | G56: 17594.15216 | H56: 18216.00618 | I56: 18060.25375 | J56: 17903.12564 | K56: 17744.6096 | L56: 17584.69328 | M56: 19923.36424 | N56: 19730.40672 | O56: 218596.9836 | P56: 242128.115 | Q56: 240568.1975 | R56: 211452.6763 | S56: 196408.0835
B57: Profit / (Loss) before tax | C57: =SUM(C50,-C56) -> 56047.91667 | D57: =SUM(D50,-D56) -> 54301.72453 | E57: 62326.80807 | F57: -4406.821327 | G57: 49850.84784 | H57: 48478.99382 | I57: 65784.74625 | J57: 17691.87436 | K57: 36162.3904 | L57: 33651.30672 | M57: 77747.63576 | N57: 60796.59328 | O57: 558434.0164 | P57: 674280.465 | Q57: 852106.9501 | R57: 1163171.849 | S57: 1405687.67
A58: TAX | B58: Taxation | C58: =IF(SUM($C57:C57)-Assumptions!$C$66<0,0,(SUM($C57:C57)-Assumptions!$C$66)*Assumptions!$C$65) -> 15693.41667 | D58: =IF(SUM($C57:D57)-Assumptions!$C$66<0,-SUM($C58:C58),((SUM($C57:D57)-Assumptions!$C$66)*Assumptions!$C$65)-SUM($C58:C58)) -> 15204.48287 | E58: =IF(SUM($C57:E57)-Assumptions!$C$66<0,-SUM($C58:D58),((SUM($C57:E57)-Assumptions!$C$66)*Assumptions!$C$65)-SUM($C58:D58)) -> 17451.50626 | F58: =IF(SUM($C57:F57)-Assumptions!$C$66<0,-SUM($C58:E58),((SUM($C57:F57)-Assumptions!$C$66)*Assumptions!$C$65)-SUM($C58:E58)) -> -1233.909972 | G58: =IF(SUM($C57:G57)-Assumptions!$C$66<0,-SUM($C58:F58),((SUM($C57:G57)-Assumptions!$C$66)*Assumptions!$C$65)-SUM($C58:F58)) -> 13958.23739 | H58: =IF(SUM($C57:H57)-Assumptions!$C$66<0,-SUM($C58:G58),((SUM($C57:H57)-Assumptions!$C$66)*Assumptions!$C$65)-SUM($C58:G58)) -> 13574.11827 | I58: =IF(SUM($C57:I57)-Assumptions!$C$66<0,-SUM($C58:H58),((SUM($C57:I57)-Assumptions!$C$66)*Assumptions!$C$65)-SUM($C58:H58)) -> 18419.72895 | J58: =IF(SUM($C57:J57)-Assumptions!$C$66<0,-SUM($C58:I58),((SUM($C57:J57)-Assumptions!$C$66)*Assumptions!$C$65)-SUM($C58:I58)) -> 4953.724822 | K58: =IF(SUM($C57:K57)-Assumptions!$C$66<0,-SUM($C58:J58),((SUM($C57:K57)-Assumptions!$C$66)*Assumptions!$C$65)-SUM($C58:J58)) -> 10125.46931 | L58: =IF(SUM($C57:L57)-Assumptions!$C$66<0,-SUM($C58:K58),((SUM($C57:L57)-Assumptions!$C$66)*Assumptions!$C$65)-SUM($C58:K58)) -> 9422.365881 | M58: =IF(SUM($C57:M57)-Assumptions!$C$66<0,-SUM($C58:L58),((SUM($C57:M57)-Assumptions!$C$66)*Assumptions!$C$65)-SUM($C58:L58)) -> 21769.33801 | N58: =IF(SUM($C57:N57)-Assumptions!$C$66<0,-SUM($C58:M58),((SUM($C57:N57)-Assumptions!$C$66)*Assumptions!$C$65)-SUM($C58:M58)) -> 17023.04612 | O58: =SUM(C58:N58) -> 156361.5246 | P58: =IF(SUM($O57:P57)-Assumptions!$C$66<0,-SUM($O58:O58),((SUM($O57:P57)-Assumptions!$C$66)*Assumptions!$C$65)-SUM($O58:O58)) -> 188798.5302 | Q58: =IF(SUM($O57:Q57)-Assumptions!$C$66<0,-SUM($O58:P58),((SUM($O57:Q57)-Assumptions!$C$66)*Assumptions!$C$65)-SUM($O58:P58)) -> 238589.946 | R58: =IF(SUM($O57:R57)-Assumptions!$C$66<0,-SUM($O58:Q58),((SUM($O57:R57)-Assumptions!$C$66)*Assumptions!$C$65)-SUM($O58:Q58)) -> 325688.1178 | S58: =IF(SUM($O57:S57)-Assumptions!$C$66<0,-SUM($O58:R58),((SUM($O57:S57)-Assumptions!$C$66)*Assumptions!$C$65)-SUM($O58:R58)) -> 393592.5475
B59: Profit / (Loss) for the year | C59: =SUM(C57,-C58) -> 40354.5 | D59: =SUM(D57,-D58) -> 39097.24166 | E59: 44875.30181 | F59: -3172.911356 | G59: 35892.61044 | H59: 34904.87555 | I59: 47365.0173 | J59: 12738.14954 | K59: 26036.92109 | L59: 24228.94084 | M59: 55978.29775 | N59: 43773.54716 | O59: 402072.4918 | P59: 485481.9348 | Q59: 613517.004 | R59: 837483.7315 | S59: 1012095.122
A60: DIV | B60: Dividends | C60: =BalanceSheet!D79 -> 0 | D60: =BalanceSheet!E79 -> 0 | E60: =BalanceSheet!F79 -> 0 | F60: =BalanceSheet!G79 -> 0 | G60: =BalanceSheet!H79 -> 0 | H60: =BalanceSheet!I79 -> 0 | I60: =BalanceSheet!J79 -> 0 | J60: =BalanceSheet!K79 -> 0 | K60: =BalanceSheet!L79 -> 0 | L60: =BalanceSheet!M79 -> 0 | M60: =BalanceSheet!N79 -> 0 | N60: =BalanceSheet!O79 -> 0 | O60: =SUM(C60:N60) -> 0 | P60: =BalanceSheet!Q79 -> 0 | Q60: =BalanceSheet!R79 -> 0 | R60: =BalanceSheet!S79 -> 0 | S60: =BalanceSheet!T79 -> 0
B61: Retained earnings for the year | C61: =SUM(C59,-C60) -> 40354.5 | D61: 39097.24166 | E61: 44875.30181 | F61: -3172.911356 | G61: 35892.61044 | H61: 34904.87555 | I61: 47365.0173 | J61: 12738.14954 | K61: 26036.92109 | L61: 24228.94084 | M61: 55978.29775 | N61: 43773.54716 | O61: 402072.4918 | P61: 485481.9348 | Q61: 613517.004 | R61: 837483.7315 | S61: 1012095.122
B62: Profit / (Loss) % | C62: =IF(C$7=0,0,C59/C$7) -> 0.09828178276 | D62: 0.09304436379 | E62: 0.1029250042 | F62: -0.007159096019 | G62: 0.08105828916 | H62: 0.07879204414 | I62: 0.1096412437 | J62: 0.02876078018 | K62: 0.05783412059 | L62: 0.06469677126 | M62: 0.1202283027 | N62: 0.1003060201 | O62: 0.07736031319 | P62: 0.08648945819 | Q62: 0.1012028985 | R62: 0.1255885485 | S62: 0.1379756054
B65: Interest Cover | C65: =IF(C56=0,0,C50/C56) -> 4.083438395 | D65: =IF(D56=0,0,D50/D56) -> 4.011195866 | E65: 4.484243031 | F65: 0.751613927 | G65: 3.833375963 | H65: 3.661340436 | I65: 4.642515059 | J65: 1.988200313 | K65: 3.03793666 | L65: 2.913670382 | M65: 4.902334707 | N65: 4.081365435 | O65: 3.554628189 | P65: 3.784808633 | Q65: 4.542059835 | R65: 6.500861325 | S65: 8.156974625
B66: Return on Equity (ROE) | C66: =IF(BalanceSheet!D$24=0,0,C59/BalanceSheet!D$24) -> 0.09143330361 | D66: =IF(BalanceSheet!E$24=0,0,D59/BalanceSheet!E$24) -> 0.08137600153 | E66: =IF(BalanceSheet!F$24=0,0,E59/BalanceSheet!F$24) -> 0.08542355161 | F66: =IF(BalanceSheet!G$24=0,0,F59/BalanceSheet!G$24) -> -0.006076579999 | G66: =IF(BalanceSheet!H$24=0,0,G59/BalanceSheet!H$24) -> 0.06431828681 | H66: =IF(BalanceSheet!I$24=0,0,H59/BalanceSheet!I$24) -> 0.05886631301 | I66: =IF(BalanceSheet!J$24=0,0,I59/BalanceSheet!J$24) -> 0.07397124279 | J66: =IF(BalanceSheet!K$24=0,0,J59/BalanceSheet!K$24) -> 0.01950548382 | K66: =IF(BalanceSheet!L$24=0,0,K59/BalanceSheet!L$24) -> 0.03834080266 | L66: =IF(BalanceSheet!M$24=0,0,L59/BalanceSheet!M$24) -> 0.03444935243 | M66: =IF(BalanceSheet!N$24=0,0,M59/BalanceSheet!N$24) -> 0.07372366068 | N66: =IF(BalanceSheet!O$24=0,0,N59/BalanceSheet!O$24) -> 0.0545075913 | O66: =IF(BalanceSheet!P$24=0,0,O59/BalanceSheet!P$24) -> 0.5006677428 | P66: =IF(BalanceSheet!Q$24=0,0,P59/BalanceSheet!Q$24) -> 0.3767647875 | Q66: =IF(BalanceSheet!R$24=0,0,Q59/BalanceSheet!R$24) -> 0.3225520315 | R66: =IF(BalanceSheet!S$24=0,0,R59/BalanceSheet!S$24) -> 0.3057006273 | S66: =IF(BalanceSheet!T$24=0,0,S59/BalanceSheet!T$24) -> 0.2697733119
B67: Return on Net Assets (RONA) | C67: =IF(BalanceSheet!D18-BalanceSheet!D40=0,0,C59/(BalanceSheet!D18-BalanceSheet!D40)) -> 0.01582511437 | D67: =IF(BalanceSheet!E18-BalanceSheet!E40=0,0,D59/(BalanceSheet!E18-BalanceSheet!E40)) -> 0.01519722363 | E67: =IF(BalanceSheet!F18-BalanceSheet!F40=0,0,E59/(BalanceSheet!F18-BalanceSheet!F40)) -> 0.01725364135 | F67: =IF(BalanceSheet!G18-BalanceSheet!G40=0,0,F59/(BalanceSheet!G18-BalanceSheet!G40)) -> -0.001229341725 | G67: =IF(BalanceSheet!H18-BalanceSheet!H40=0,0,G59/(BalanceSheet!H18-BalanceSheet!H40)) -> 0.01380501917 | H67: =IF(BalanceSheet!I18-BalanceSheet!I40=0,0,H59/(BalanceSheet!I18-BalanceSheet!I40)) -> 0.01284633156 | I67: =IF(BalanceSheet!J18-BalanceSheet!J40=0,0,I59/(BalanceSheet!J18-BalanceSheet!J40)) -> 0.01724525854 | J67: =IF(BalanceSheet!K18-BalanceSheet!K40=0,0,J59/(BalanceSheet!K18-BalanceSheet!K40)) -> 0.004646901354 | K67: =IF(BalanceSheet!L18-BalanceSheet!L40=0,0,K59/(BalanceSheet!L18-BalanceSheet!L40)) -> 0.009471365273 | L67: =IF(BalanceSheet!M18-BalanceSheet!M40=0,0,L59/(BalanceSheet!M18-BalanceSheet!M40)) -> 0.008795020531 | M67: =IF(BalanceSheet!N18-BalanceSheet!N40=0,0,M59/(BalanceSheet!N18-BalanceSheet!N40)) -> 0.01847853344 | N67: =IF(BalanceSheet!O18-BalanceSheet!O40=0,0,N59/(BalanceSheet!O18-BalanceSheet!O40)) -> 0.01434496126 | O67: =IF(BalanceSheet!P18-BalanceSheet!P40=0,0,O59/(BalanceSheet!P18-BalanceSheet!P40)) -> 0.1317625527 | P67: =IF(BalanceSheet!Q18-BalanceSheet!Q40=0,0,P59/(BalanceSheet!Q18-BalanceSheet!Q40)) -> 0.137324287 | Q67: =IF(BalanceSheet!R18-BalanceSheet!R40=0,0,Q59/(BalanceSheet!R18-BalanceSheet!R40)) -> 0.1554277713 | R67: =IF(BalanceSheet!S18-BalanceSheet!S40=0,0,R59/(BalanceSheet!S18-BalanceSheet!S40)) -> 0.1845259091 | S67: =IF(BalanceSheet!T18-BalanceSheet!T40=0,0,S59/(BalanceSheet!T18-BalanceSheet!T40)) -> 0.1839257861

Sheet CashFlow (hidden)
B1: =IF(ISBLANK(Assumptions!$C$4),"Example Limited",Assumptions!$C$4) -> Example (Pty) Limited
B2: Cash Flow Projections - Cash Flow Statement
B3: © www.excel-skills.com
C4: =IF(ISBLANK(Assumptions!$C$5)=TRUE,DATE(YEAR(TODAY()),MONTH(TODAY())+1,0),DATE(YEAR(Assumptions!$C$5),MONTH(Assumptions!$C$5)+1,0)) -> 2021-03-31 | D4: =DATE(YEAR(C4),MONTH(C4)+2,0) -> 2021-04-30 | E4: =DATE(YEAR(D4),MONTH(D4)+2,0) -> 2021-05-31 | F4: 2021-06-30 | G4: 2021-07-31 | H4: 2021-08-31 | I4: 2021-09-30 | J4: 2021-10-31 | K4: 2021-11-30 | L4: 2021-12-31 | M4: 2022-01-31 | N4: =DATE(YEAR(M4),MONTH(M4)+2,0) -> 2022-02-28 | O4: ="Year-"&YEAR(N4) -> Year-2022 | P4: ="Year-"&YEAR($N4)+1 -> Year-2023 | Q4: ="Year-"&YEAR($N4)+2 -> Year-2024 | R4: ="Year-"&YEAR($N4)+3 -> Year-2025 | S4: ="Year-"&YEAR($N4)+4 -> Year-2026
B5: Cash flows from operating activities
B6: Profit / (Loss) for the year | C6: =IncState!C59 -> 40354.5 | D6: =IncState!D59 -> 39097.24166 | E6: =IncState!E59 -> 44875.30181 | F6: =IncState!F59 -> -3172.911356 | G6: =IncState!G59 -> 35892.61044 | H6: =IncState!H59 -> 34904.87555 | I6: =IncState!I59 -> 47365.0173 | J6: =IncState!J59 -> 12738.14954 | K6: =IncState!K59 -> 26036.92109 | L6: =IncState!L59 -> 24228.94084 | M6: =IncState!M59 -> 55978.29775 | N6: =IncState!N59 -> 43773.54716 | O6: =SUM(C6:N6) -> 402072.4918 | P6: =IncState!P59 -> 485481.9348 | Q6: =IncState!Q59 -> 613517.004 | R6: =IncState!R59 -> 837483.7315 | S6: =IncState!S59 -> 1012095.122
A7: INT | B7: Interest | C7: =IncState!C56 -> 18177.08333 | D7: =IncState!D56 -> 18033.27547 | E7: =IncState!E56 -> 17888.19193 | F7: =IncState!F56 -> 17741.82133 | G7: =IncState!G56 -> 17594.15216 | H7: =IncState!H56 -> 18216.00618 | I7: =IncState!I56 -> 18060.25375 | J7: =IncState!J56 -> 17903.12564 | K7: =IncState!K56 -> 17744.6096 | L7: =IncState!L56 -> 17584.69328 | M7: =IncState!M56 -> 19923.36424 | N7: =IncState!N56 -> 19730.40672 | O7: =SUM(C7:N7) -> 218596.9836 | P7: =IncState!P56 -> 242128.115 | Q7: =IncState!Q56 -> 240568.1975 | R7: =IncState!R56 -> 211452.6763 | S7: =IncState!S56 -> 196408.0835
A8: TAX | B8: Taxation | C8: =IncState!C58 -> 15693.41667 | D8: =IncState!D58 -> 15204.48287 | E8: =IncState!E58 -> 17451.50626 | F8: =IncState!F58 -> -1233.909972 | G8: =IncState!G58 -> 13958.23739 | H8: =IncState!H58 -> 13574.11827 | I8: =IncState!I58 -> 18419.72895 | J8: =IncState!J58 -> 4953.724822 | K8: =IncState!K58 -> 10125.46931 | L8: =IncState!L58 -> 9422.365881 | M8: =IncState!M58 -> 21769.33801 | N8: =IncState!N58 -> 17023.04612 | O8: 156361.5246 | P8: =IncState!P58 -> 188798.5302 | Q8: =IncState!Q58 -> 238589.946 | R8: =IncState!R58 -> 325688.1178 | S8: =IncState!S58 -> 393592.5475
B9: Adjustment for non-cash expenses:
A10: DEP | B10: Depreciation | C10: =SUMIF(IncState!$A$4:$AO$63,$A10,IncState!C$4:C$63) -> 15000 | D10: =SUMIF(IncState!$A$4:$AO$63,$A10,IncState!D$4:D$63) -> 15000 | E10: =SUMIF(IncState!$A$4:$AO$63,$A10,IncState!E$4:E$63) -> 15000 | F10: =SUMIF(IncState!$A$4:$AO$63,$A10,IncState!F$4:F$63) -> 15000 | G10: =SUMIF(IncState!$A$4:$AO$63,$A10,IncState!G$4:G$63) -> 15000 | H10: =SUMIF(IncState!$A$4:$AO$63,$A10,IncState!H$4:H$63) -> 15000 | I10: =SUMIF(IncState!$A$4:$AO$63,$A10,IncState!I$4:I$63) -> 15000 | J10: =SUMIF(IncState!$A$4:$AO$63,$A10,IncState!J$4:J$63) -> 15000 | K10: =SUMIF(IncState!$A$4:$AO$63,$A10,IncState!K$4:K$63) -> 15000 | L10: =SUMIF(IncState!$A$4:$AO$63,$A10,IncState!L$4:L$63) -> 15000 | M10: =SUMIF(IncState!$A$4:$AO$63,$A10,IncState!M$4:M$63) -> 19000 | N10: =SUMIF(IncState!$A$4:$AO$63,$A10,IncState!N$4:N$63) -> 19000 | O10: =SUM(C10:N10) -> 188000 | P10: =SUMIF(IncState!$A$4:$AO$63,$A10,IncState!P$4:P$63) -> 263000 | Q10: =SUMIF(IncState!$A$4:$AO$63,$A10,IncState!Q$4:Q$63) -> 307000 | R10: =SUMIF(IncState!$A$4:$AO$63,$A10,IncState!R$4:R$63) -> 250000 | S10: =SUMIF(IncState!$A$4:$AO$63,$A10,IncState!S$4:S$63) -> 275000
A11: AMT | B11: Amortization | C11: =SUMIF(IncState!$A$4:$AO$63,$A11,IncState!C$4:C$63) -> 1000 | D11: =SUMIF(IncState!$A$4:$AO$63,$A11,IncState!D$4:D$63) -> 1000 | E11: =SUMIF(IncState!$A$4:$AO$63,$A11,IncState!E$4:E$63) -> 1000 | F11: =SUMIF(IncState!$A$4:$AO$63,$A11,IncState!F$4:F$63) -> 1000 | G11: =SUMIF(IncState!$A$4:$AO$63,$A11,IncState!G$4:G$63) -> 1000 | H11: =SUMIF(IncState!$A$4:$AO$63,$A11,IncState!H$4:H$63) -> 1000 | I11: =SUMIF(IncState!$A$4:$AO$63,$A11,IncState!I$4:I$63) -> 1000 | J11: =SUMIF(IncState!$A$4:$AO$63,$A11,IncState!J$4:J$63) -> 1000 | K11: =SUMIF(IncState!$A$4:$AO$63,$A11,IncState!K$4:K$63) -> 1000 | L11: =SUMIF(IncState!$A$4:$AO$63,$A11,IncState!L$4:L$63) -> 1000 | M11: =SUMIF(IncState!$A$4:$AO$63,$A11,IncState!M$4:M$63) -> 1000 | N11: =SUMIF(IncState!$A$4:$AO$63,$A11,IncState!N$4:N$63) -> 1000 | O11: 12000 | P11: =SUMIF(IncState!$A$4:$AO$63,$A11,IncState!P$4:P$63) -> 12000 | Q11: =SUMIF(IncState!$A$4:$AO$63,$A11,IncState!Q$4:Q$63) -> 12000 | R11: =SUMIF(IncState!$A$4:$AO$63,$A11,IncState!R$4:R$63) -> 12000 | S11: =SUMIF(IncState!$A$4:$AO$63,$A11,IncState!S$4:S$63) -> 12000
A12: RES | B12: Reserves | C12: 0 | D12: 0 | E12: 0 | F12: 0 | G12: 0 | H12: 0 | I12: 0 | J12: 0 | K12: 0 | L12: 0 | M12: 0 | N12: 0 | O12: 0 | P12: =Assumptions!D34 -> 0 | Q12: =Assumptions!E34 -> 0 | R12: =Assumptions!F34 -> 0 | S12: =Assumptions!G34 -> 0
B13: Changes in operating assets & liabilities
A14: STC | B14: Inventory | C14: =BalanceSheet!C12-BalanceSheet!D12 -> -9651.612903 | D14: =BalanceSheet!D12-BalanceSheet!E12 -> -18728.3871 | E14: =BalanceSheet!E12-BalanceSheet!F12 -> 4638.064516 | F14: =BalanceSheet!F12-BalanceSheet!G12 -> -8538.064516 | G14: =BalanceSheet!G12-BalanceSheet!H12 -> 3631.612903 | H14: =BalanceSheet!H12-BalanceSheet!I12 -> 3648.387097 | I14: =BalanceSheet!I12-BalanceSheet!J12 -> 1720 | J14: =BalanceSheet!J12-BalanceSheet!K12 -> -1197.419355 | K14: =BalanceSheet!K12-BalanceSheet!L12 -> -9170.580645 | L14: =BalanceSheet!L12-BalanceSheet!M12 -> 44783.48387 | M14: =BalanceSheet!M12-BalanceSheet!N12 -> -45894.19355 | N14: =BalanceSheet!N12-BalanceSheet!O12 -> -4219.870968 | O14: =SUM(C14:N14) -> -38978.58065 | P14: =BalanceSheet!P12-BalanceSheet!Q12 -> -7966.075273 | Q14: =BalanceSheet!Q12-BalanceSheet!R12 -> -9797.50059 | R14: =BalanceSheet!R12-BalanceSheet!S12 -> -22674.21565 | S14: =BalanceSheet!S12-BalanceSheet!T12 -> -24941.63722
A15: DEB | B15: Trade Receivables | C15: =BalanceSheet!C13-BalanceSheet!D13 -> -10798.3871 | D15: =BalanceSheet!D13-BalanceSheet!E13 -> -21893.27957 | E15: =BalanceSheet!E13-BalanceSheet!F13 -> -1663.172043 | F15: =BalanceSheet!F13-BalanceSheet!G13 -> -20378.49462 | G15: =BalanceSheet!G13-BalanceSheet!H13 -> 14072.04301 | H15: =BalanceSheet!H13-BalanceSheet!I13 -> -185.483871 | I15: =BalanceSheet!I13-BalanceSheet!J13 -> -3153.225806 | J15: =BalanceSheet!J13-BalanceSheet!K13 -> 3245.967742 | K15: =BalanceSheet!K13-BalanceSheet!L13 -> -20687.63441 | L15: =BalanceSheet!L13-BalanceSheet!M13 -> 84123.11828 | M15: =BalanceSheet!M13-BalanceSheet!N13 -> -84487.90323 | N15: =BalanceSheet!N13-BalanceSheet!O13 -> -16282.8341 | O15: =SUM(C15:N15) -> -78089.28571 | P15: =BalanceSheet!P13-BalanceSheet!Q13 -> -35847.14286 | Q15: =BalanceSheet!Q13-BalanceSheet!R13 -> -38714.91429 | R15: =BalanceSheet!R13-BalanceSheet!S13 -> -52265.13429 | S15: =BalanceSheet!S13-BalanceSheet!T13 -> -57491.64771
A16: ADV | B16: Loans & Advances | C16: 0 | D16: 0 | E16: 0 | F16: 0 | G16: 0 | H16: 0 | I16: -10000 | J16: 0 | K16: 10000 | L16: 0 | M16: 0 | N16: 0 | O16: =SUM(C16:N16) -> 0 | P16: =Assumptions!D35 -> -20000 | Q16: =Assumptions!E35 -> 0 | R16: =Assumptions!F35 -> 10000 | S16: =Assumptions!G35 -> 15000
A17: ODB | B17: Other Receivables | C17: 0 | D17: 0 | E17: 0 | F17: 0 | G17: 0 | H17: 0 | I17: 0 | J17: 0 | K17: 0 | L17: 0 | M17: 0 | N17: 0 | O17: 0 | P17: =Assumptions!D36 -> -7000 | Q17: =Assumptions!E36 -> 0 | R17: =Assumptions!F36 -> -5000 | S17: =Assumptions!G36 -> -10000
A18: CRE | B18: Trade Payables | C18: =BalanceSheet!D33-BalanceSheet!C33 -> -21060.68548 | D18: =BalanceSheet!E33-BalanceSheet!D33 -> 10956.81048 | E18: =BalanceSheet!F33-BalanceSheet!E33 -> -72.61693548 | F18: =BalanceSheet!G33-BalanceSheet!F33 -> 44865.11694 | G18: =BalanceSheet!H33-BalanceSheet!G33 -> -34810.03629 | H18: =BalanceSheet!I33-BalanceSheet!H33 -> -984.9193548 | I18: =BalanceSheet!J33-BalanceSheet!I33 -> -10475.29435 | J18: =BalanceSheet!K33-BalanceSheet!J33 -> 23529.64919 | K18: =BalanceSheet!L33-BalanceSheet!K33 -> 2827.200806 | L18: =BalanceSheet!M33-BalanceSheet!L33 -> -43336.87823 | M18: =BalanceSheet!N33-BalanceSheet!M33 -> 21937.54839 | N18: =BalanceSheet!O33-BalanceSheet!N33 -> 3203.988767 | O18: -3420.116071 | P18: =BalanceSheet!Q33-BalanceSheet!P33 -> 5165.642452 | Q18: =BalanceSheet!R33-BalanceSheet!Q33 -> 6194.588051 | R18: =BalanceSheet!S33-BalanceSheet!R33 -> 13094.55038 | S18: =BalanceSheet!T33-BalanceSheet!S33 -> 14362.03775
A19: VAT | B19: Sales Tax | C19: =BalanceSheet!D34-BalanceSheet!C34 -> 12458.75 | D19: =BalanceSheet!E34-BalanceSheet!D34 -> 28175.25 | E19: =BalanceSheet!F34-BalanceSheet!E34 -> -27276.75 | F19: =BalanceSheet!G34-BalanceSheet!F34 -> 19325.25 | G19: =BalanceSheet!H34-BalanceSheet!G34 -> -21240.75 | H19: =BalanceSheet!I34-BalanceSheet!H34 -> 27329.25 | I19: =BalanceSheet!J34-BalanceSheet!I34 -> -24869.25 | J19: =BalanceSheet!K34-BalanceSheet!J34 -> 22664.25 | K19: =BalanceSheet!L34-BalanceSheet!K34 -> -27154.95 | L19: =BalanceSheet!M34-BalanceSheet!L34 -> 25010.4 | M19: =BalanceSheet!N34-BalanceSheet!M34 -> -17845.8 | N19: =BalanceSheet!O34-BalanceSheet!N34 -> 30004.05 | O19: 46579.7 | P19: =BalanceSheet!Q34-BalanceSheet!P34 -> -1156.4855 | Q19: =BalanceSheet!R34-BalanceSheet!Q34 -> 7401.70419 | R19: =BalanceSheet!S34-BalanceSheet!R34 -> 7628.718449 | S19: =BalanceSheet!T34-BalanceSheet!S34 -> 8436.363889
A20: PAY | B20: Payroll Accruals | C20: =BalanceSheet!D35-BalanceSheet!C35 -> 0 | D20: =BalanceSheet!E35-BalanceSheet!D35 -> 0 | E20: =BalanceSheet!F35-BalanceSheet!E35 -> 0 | F20: =BalanceSheet!G35-BalanceSheet!F35 -> 0 | G20: =BalanceSheet!H35-BalanceSheet!G35 -> 0 | H20: =BalanceSheet!I35-BalanceSheet!H35 -> 0 | I20: =BalanceSheet!J35-BalanceSheet!I35 -> 0 | J20: =BalanceSheet!K35-BalanceSheet!J35 -> 0 | K20: =BalanceSheet!L35-BalanceSheet!K35 -> 0 | L20: =BalanceSheet!M35-BalanceSheet!L35 -> 0 | M20: =BalanceSheet!N35-BalanceSheet!M35 -> 0 | N20: =BalanceSheet!O35-BalanceSheet!N35 -> 0 | O20: 0 | P20: =BalanceSheet!Q35-BalanceSheet!P35 -> 1200 | Q20: =BalanceSheet!R35-BalanceSheet!Q35 -> 1272 | R20: =BalanceSheet!S35-BalanceSheet!R35 -> 1348.32 | S20: =BalanceSheet!T35-BalanceSheet!S35 -> 1429.2192
A21: ACC | B21: Other Accruals | C21: -55000 | D21: 0 | E21: 0 | F21: 0 | G21: 0 | H21: 0 | I21: 0 | J21: 0 | K21: 0 | L21: 0 | M21: 0 | N21: 60000 | O21: 5000 | P21: =Assumptions!D37 -> 6000 | Q21: =Assumptions!E37 -> -16000 | R21: =Assumptions!F37 -> 20000 | S21: =Assumptions!G37 -> 10000
A22: OPV | B22: Other Provisions | C22: -42000 | D22: 0 | E22: 0 | F22: 0 | G22: 0 | H22: 0 | I22: 0 | J22: 0 | K22: 0 | L22: 0 | M22: 0 | N22: 30000 | O22: =SUM(C22:N22) -> -12000 | P22: =Assumptions!D38 -> -9000 | Q22: =Assumptions!E38 -> 19000 | R22: =Assumptions!F38 -> 15000 | S22: =Assumptions!G38 -> 18000
B23: Cash generated from operations | C23: =SUM(C6:C22) -> -35826.93548 | D23: =SUM(D6:D22) -> 86845.39382 | E23: 71840.52554 | F23: 64608.8078 | G23: 45097.86962 | H23: 112502.2339 | I23: 53067.22984 | J23: 99837.44758 | K23: 25721.03575 | L23: 177816.1239 | M23: -8619.348387 | N23: 203232.3337 | O23: 896122.7176 | P23: 1122804.519 | Q23: 1381031.025 | R23: 1623756.764 | S23: 1863890.089
A24: INT | B24: Interest paid | C24: =-C7 -> -18177.08333 | D24: =-D7 -> -18033.27547 | E24: -17888.19193 | F24: -17741.82133 | G24: -17594.15216 | H24: -18216.00618 | I24: -18060.25375 | J24: -17903.12564 | K24: -17744.6096 | L24: -17584.69328 | M24: -19923.36424 | N24: -19730.40672 | O24: =SUM(C24:N24) -> -218596.9836 | P24: -242128.115 | Q24: -240568.1975 | R24: -211452.6763 | S24: -196408.0835
A25: TAX | B25: Taxation paid | C25: =BalanceSheet!D37-BalanceSheet!C37-C8 -> 0 | D25: =BalanceSheet!E37-BalanceSheet!D37-D8 -> 0 | E25: =BalanceSheet!F37-BalanceSheet!E37-E8 -> 0 | F25: =BalanceSheet!G37-BalanceSheet!F37-F8 -> 0 | G25: =BalanceSheet!H37-BalanceSheet!G37-G8 -> 0 | H25: =BalanceSheet!I37-BalanceSheet!H37-H8 -> -74647.85149 | I25: =BalanceSheet!J37-BalanceSheet!I37-I8 -> 0 | J25: =BalanceSheet!K37-BalanceSheet!J37-J8 -> 0 | K25: =BalanceSheet!L37-BalanceSheet!K37-K8 -> 0 | L25: =BalanceSheet!M37-BalanceSheet!L37-L8 -> 0 | M25: =BalanceSheet!N37-BalanceSheet!M37-M8 -> 0 | N25: =BalanceSheet!O37-BalanceSheet!N37-N8 -> -81713.6731 | O25: =SUM(C25:N25) -> -156361.5246 | P25: =BalanceSheet!Q37-BalanceSheet!P37-P8 -> -188798.5302 | Q25: =BalanceSheet!R37-BalanceSheet!Q37-Q8 -> -238589.946 | R25: =BalanceSheet!S37-BalanceSheet!R37-R8 -> -325688.1178 | S25: =BalanceSheet!T37-BalanceSheet!S37-S8 -> -393592.5475
B26: Net cash from operating activities | C26: =SUM(C23:C25) -> -54004.01882 | D26: =SUM(D23:D25) -> 68812.11835 | E26: 53952.33361 | F26: 46866.98647 | G26: 27503.71746 | H26: 19638.37621 | I26: 35006.97609 | J26: 81934.32195 | K26: 7976.426157 | L26: 160231.4306 | M26: -28542.71263 | N26: 101788.2539 | O26: 521164.2094 | P26: 691877.8736 | Q26: 901872.8814 | R26: 1086615.97 | S26: 1273889.458
B27: Cash flows from investing activities
A28: PPE | B28: Purchases of property, plant & equipment | C28: 0 | D28: 0 | E28: 0 | F28: 0 | G28: 0 | H28: 0 | I28: 0 | J28: 0 | K28: 0 | L28: 0 | M28: -240000 | N28: 0 | O28: =SUM(C28:N28) -> -240000 | P28: =Assumptions!D39 -> -300000 | Q28: =Assumptions!E39 -> -180000 | R28: =Assumptions!F39 -> -200000 | S28: =Assumptions!G39 -> -350000
A29: INA | B29: Purchases of intangible assets | C29: 0 | D29: 0 | E29: 0 | F29: 0 | G29: 0 | H29: 0 | I29: 0 | J29: 0 | K29: 0 | L29: 0 | M29: 0 | N29: 0 | O29: =SUM(C29:N29) -> 0 | P29: =Assumptions!D40 -> 0 | Q29: =Assumptions!E40 -> 0 | R29: =Assumptions!F40 -> 0 | S29: =Assumptions!G40 -> 0
A30: INV | B30: Purchases of investments | C30: 0 | D30: 0 | E30: 0 | F30: 0 | G30: 0 | H30: 0 | I30: 0 | J30: 0 | K30: 0 | L30: 0 | M30: 0 | N30: 0 | O30: 0 | P30: =Assumptions!D41 -> -400000 | Q30: =Assumptions!E41 -> -600000 | R30: =Assumptions!F41 -> -500000 | S30: =Assumptions!G41 -> -400000
B31: Net cash used in investing activities | C31: =SUM(C28:C30) -> 0 | D31: =SUM(D28:D30) -> 0 | E31: 0 | F31: 0 | G31: 0 | H31: 0 | I31: 0 | J31: 0 | K31: 0 | L31: 0 | M31: -240000 | N31: 0 | O31: -240000 | P31: -700000 | Q31: -780000 | R31: -700000 | S31: -750000
B32: Cash flows from financing activities
A33: CAP | B33: Proceeds from shareholders' contributions | C33: 0 | D33: 0 | E33: 0 | F33: 0 | G33: 0 | H33: 0 | I33: 0 | J33: 0 | K33: 0 | L33: 0 | M33: 0 | N33: 0 | O33: =SUM(C33:N33) -> 0 | P33: =Assumptions!D42 -> 0 | Q33: =Assumptions!E42 -> 0 | R33: =Assumptions!F42 -> 0 | S33: =Assumptions!G42 -> 0
A34: DIV | B34: Dividends paid | C34: =BalanceSheet!D38-BalanceSheet!C38-IncState!C60 -> 0 | D34: =BalanceSheet!E38-BalanceSheet!D38-IncState!D60 -> 0 | E34: =BalanceSheet!F38-BalanceSheet!E38-IncState!E60 -> 0 | F34: =BalanceSheet!G38-BalanceSheet!F38-IncState!F60 -> 0 | G34: =BalanceSheet!H38-BalanceSheet!G38-IncState!G60 -> 0 | H34: =BalanceSheet!I38-BalanceSheet!H38-IncState!H60 -> 0 | I34: =BalanceSheet!J38-BalanceSheet!I38-IncState!I60 -> 0 | J34: =BalanceSheet!K38-BalanceSheet!J38-IncState!J60 -> 0 | K34: =BalanceSheet!L38-BalanceSheet!K38-IncState!K60 -> 0 | L34: =BalanceSheet!M38-BalanceSheet!L38-IncState!L60 -> 0 | M34: =BalanceSheet!N38-BalanceSheet!M38-IncState!M60 -> 0 | N34: =BalanceSheet!O38-BalanceSheet!N38-IncState!N60 -> 0 | O34: =SUM(C34:N34) -> 0 | P34: =BalanceSheet!Q38-BalanceSheet!P38-IncState!P60 -> 0 | Q34: =BalanceSheet!R38-BalanceSheet!Q38-IncState!Q60 -> 0 | R34: =BalanceSheet!S38-BalanceSheet!R38-IncState!R60 -> 0 | S34: =BalanceSheet!T38-BalanceSheet!S38-IncState!S60 -> 0
A35: LT1 | B35: Proceeds from loans 1 | C35: =OFFSET(Loans1!$C$9,COLUMN(C$32)-COLUMN($B$32),0,1,1) -> 0 | D35: =OFFSET(Loans1!$C$9,COLUMN(D$32)-COLUMN($B$32),0,1,1) -> 0 | E35: =OFFSET(Loans1!$C$9,COLUMN(E$32)-COLUMN($B$32),0,1,1) -> 0 | F35: =OFFSET(Loans1!$C$9,COLUMN(F$32)-COLUMN($B$32),0,1,1) -> 0 | G35: =OFFSET(Loans1!$C$9,COLUMN(G$32)-COLUMN($B$32),0,1,1) -> 0 | H35: =OFFSET(Loans1!$C$9,COLUMN(H$32)-COLUMN($B$32),0,1,1) -> 0 | I35: =OFFSET(Loans1!$C$9,COLUMN(I$32)-COLUMN($B$32),0,1,1) -> 0 | J35: =OFFSET(Loans1!$C$9,COLUMN(J$32)-COLUMN($B$32),0,1,1) -> 0 | K35: =OFFSET(Loans1!$C$9,COLUMN(K$32)-COLUMN($B$32),0,1,1) -> 0 | L35: =OFFSET(Loans1!$C$9,COLUMN(L$32)-COLUMN($B$32),0,1,1) -> 0 | M35: =OFFSET(Loans1!$C$9,COLUMN(M$32)-COLUMN($B$32),0,1,1) -> 0 | N35: =OFFSET(Loans1!$C$9,COLUMN(N$32)-COLUMN($B$32),0,1,1) -> 0 | O35: =SUM(C35:N35) -> 0 | P35: =SUM(OFFSET(Loans1!$C$10,12*(COLUMN(P$32)-COLUMN($O$32)),0,12,1)) -> 0 | Q35: =SUM(OFFSET(Loans1!$C$10,12*(COLUMN(Q$32)-COLUMN($O$32)),0,12,1)) -> 0 | R35: =SUM(OFFSET(Loans1!$C$10,12*(COLUMN(R$32)-COLUMN($O$32)),0,12,1)) -> 0 | S35: =SUM(OFFSET(Loans1!$C$10,12*(COLUMN(S$32)-COLUMN($O$32)),0,12,1)) -> 0
A36: LT2 | B36: Proceeds from loans 2 | C36: =OFFSET(Loans2!$C$9,COLUMN(C$32)-COLUMN($B$32),0,1,1) -> 0 | D36: =OFFSET(Loans2!$C$9,COLUMN(D$32)-COLUMN($B$32),0,1,1) -> 0 | E36: =OFFSET(Loans2!$C$9,COLUMN(E$32)-COLUMN($B$32),0,1,1) -> 0 | F36: =OFFSET(Loans2!$C$9,COLUMN(F$32)-COLUMN($B$32),0,1,1) -> 0 | G36: =OFFSET(Loans2!$C$9,COLUMN(G$32)-COLUMN($B$32),0,1,1) -> 0 | H36: =OFFSET(Loans2!$C$9,COLUMN(H$32)-COLUMN($B$32),0,1,1) -> 100000 | I36: =OFFSET(Loans2!$C$9,COLUMN(I$32)-COLUMN($B$32),0,1,1) -> 0 | J36: =OFFSET(Loans2!$C$9,COLUMN(J$32)-COLUMN($B$32),0,1,1) -> 0 | K36: =OFFSET(Loans2!$C$9,COLUMN(K$32)-COLUMN($B$32),0,1,1) -> 0 | L36: =OFFSET(Loans2!$C$9,COLUMN(L$32)-COLUMN($B$32),0,1,1) -> 0 | M36: =OFFSET(Loans2!$C$9,COLUMN(M$32)-COLUMN($B$32),0,1,1) -> 0 | N36: =OFFSET(Loans2!$C$9,COLUMN(N$32)-COLUMN($B$32),0,1,1) -> 0 | O36: =SUM(C36:N36) -> 100000 | P36: =SUM(OFFSET(Loans2!$C$10,12*(COLUMN(P$32)-COLUMN($O$32)),0,12,1)) -> 0 | Q36: =SUM(OFFSET(Loans2!$C$10,12*(COLUMN(Q$32)-COLUMN($O$32)),0,12,1)) -> 0 | R36: =SUM(OFFSET(Loans2!$C$10,12*(COLUMN(R$32)-COLUMN($O$32)),0,12,1)) -> 0 | S36: =SUM(OFFSET(Loans2!$C$10,12*(COLUMN(S$32)-COLUMN($O$32)),0,12,1)) -> 0
A37: LT3 | B37: Proceeds from loans 3 | C37: =OFFSET(Loans3!$C$9,COLUMN(C$32)-COLUMN($B$32),0,1,1) -> 0 | D37: =OFFSET(Loans3!$C$9,COLUMN(D$32)-COLUMN($B$32),0,1,1) -> 0 | E37: =OFFSET(Loans3!$C$9,COLUMN(E$32)-COLUMN($B$32),0,1,1) -> 0 | F37: =OFFSET(Loans3!$C$9,COLUMN(F$32)-COLUMN($B$32),0,1,1) -> 0 | G37: =OFFSET(Loans3!$C$9,COLUMN(G$32)-COLUMN($B$32),0,1,1) -> 0 | H37: =OFFSET(Loans3!$C$9,COLUMN(H$32)-COLUMN($B$32),0,1,1) -> 0 | I37: =OFFSET(Loans3!$C$9,COLUMN(I$32)-COLUMN($B$32),0,1,1) -> 0 | J37: =OFFSET(Loans3!$C$9,COLUMN(J$32)-COLUMN($B$32),0,1,1) -> 0 | K37: =OFFSET(Loans3!$C$9,COLUMN(K$32)-COLUMN($B$32),0,1,1) -> 0 | L37: =OFFSET(Loans3!$C$9,COLUMN(L$32)-COLUMN($B$32),0,1,1) -> 0 | M37: =OFFSET(Loans3!$C$9,COLUMN(M$32)-COLUMN($B$32),0,1,1) -> 240000 | N37: =OFFSET(Loans3!$C$9,COLUMN(N$32)-COLUMN($B$32),0,1,1) -> 0 | O37: 240000 | P37: =SUM(OFFSET(Loans3!$C$10,12*(COLUMN(P$32)-COLUMN($O$32)),0,12,1)) -> 300000 | Q37: =SUM(OFFSET(Loans3!$C$10,12*(COLUMN(Q$32)-COLUMN($O$32)),0,12,1)) -> 180000 | R37: =SUM(OFFSET(Loans3!$C$10,12*(COLUMN(R$32)-COLUMN($O$32)),0,12,1)) -> 200000 | S37: =SUM(OFFSET(Loans3!$C$10,12*(COLUMN(S$32)-COLUMN($O$32)),0,12,1)) -> 350000
A38: FIN | B38: Proceeds from finance leases | C38: =OFFSET(Leases!$C$9,COLUMN(C$32)-COLUMN($B$32),0,1,1) -> 0 | D38: =OFFSET(Leases!$C$9,COLUMN(D$32)-COLUMN($B$32),0,1,1) -> 0 | E38: =OFFSET(Leases!$C$9,COLUMN(E$32)-COLUMN($B$32),0,1,1) -> 0 | F38: =OFFSET(Leases!$C$9,COLUMN(F$32)-COLUMN($B$32),0,1,1) -> 0 | G38: =OFFSET(Leases!$C$9,COLUMN(G$32)-COLUMN($B$32),0,1,1) -> 0 | H38: =OFFSET(Leases!$C$9,COLUMN(H$32)-COLUMN($B$32),0,1,1) -> 0 | I38: =OFFSET(Leases!$C$9,COLUMN(I$32)-COLUMN($B$32),0,1,1) -> 0 | J38: =OFFSET(Leases!$C$9,COLUMN(J$32)-COLUMN($B$32),0,1,1) -> 0 | K38: =OFFSET(Leases!$C$9,COLUMN(K$32)-COLUMN($B$32),0,1,1) -> 0 | L38: =OFFSET(Leases!$C$9,COLUMN(L$32)-COLUMN($B$32),0,1,1) -> 0 | M38: =OFFSET(Leases!$C$9,COLUMN(M$32)-COLUMN($B$32),0,1,1) -> 0 | N38: =OFFSET(Leases!$C$9,COLUMN(N$32)-COLUMN($B$32),0,1,1) -> 0 | O38: 0 | P38: =SUM(OFFSET(Leases!$C$10,12*(COLUMN(P$32)-COLUMN($O$32)),0,12,1)) -> 0 | Q38: =SUM(OFFSET(Leases!$C$10,12*(COLUMN(Q$32)-COLUMN($O$32)),0,12,1)) -> 0 | R38: =SUM(OFFSET(Leases!$C$10,12*(COLUMN(R$32)-COLUMN($O$32)),0,12,1)) -> 0 | S38: =SUM(OFFSET(Leases!$C$10,12*(COLUMN(S$32)-COLUMN($O$32)),0,12,1)) -> 0
A39: LT1 | B39: Repayment of loans 1 | C39: =-OFFSET(Loans1!$F$9,COLUMN(C$32)-COLUMN($B$32),0,1,1) -> -5774.680225 | D39: =-OFFSET(Loans1!$F$9,COLUMN(D$32)-COLUMN($B$32),0,1,1) -> -5824.005619 | E39: =-OFFSET(Loans1!$F$9,COLUMN(E$32)-COLUMN($B$32),0,1,1) -> -5873.752333 | F39: =-OFFSET(Loans1!$F$9,COLUMN(F$32)-COLUMN($B$32),0,1,1) -> -5923.923968 | G39: =-OFFSET(Loans1!$F$9,COLUMN(G$32)-COLUMN($B$32),0,1,1) -> -5974.524152 | H39: =-OFFSET(Loans1!$F$9,COLUMN(H$32)-COLUMN($B$32),0,1,1) -> -6025.556546 | I39: =-OFFSET(Loans1!$F$9,COLUMN(I$32)-COLUMN($B$32),0,1,1) -> -6077.024841 | J39: =-OFFSET(Loans1!$F$9,COLUMN(J$32)-COLUMN($B$32),0,1,1) -> -6128.932762 | K39: =-OFFSET(Loans1!$F$9,COLUMN(K$32)-COLUMN($B$32),0,1,1) -> -6181.284062 | L39: =-OFFSET(Loans1!$F$9,COLUMN(L$32)-COLUMN($B$32),0,1,1) -> -6234.08253 | M39: =-OFFSET(Loans1!$F$9,COLUMN(M$32)-COLUMN($B$32),0,1,1) -> -6287.331985 | N39: =-OFFSET(Loans1!$F$9,COLUMN(N$32)-COLUMN($B$32),0,1,1) -> -6341.036279 | O39: -72646.1353 | P39: =-SUM(OFFSET(Loans1!$F$10,12*(COLUMN(P$32)-COLUMN($O$32)),0,12,1)) -> -80452.33595 | Q39: =-SUM(OFFSET(Loans1!$F$10,12*(COLUMN(Q$32)-COLUMN($O$32)),0,12,1)) -> -89097.35297 | R39: =-SUM(OFFSET(Loans1!$F$10,12*(COLUMN(R$32)-COLUMN($O$32)),0,12,1)) -> -98671.32152 | S39: =-SUM(OFFSET(Loans1!$F$10,12*(COLUMN(S$32)-COLUMN($O$32)),0,12,1)) -> -109274.0622
A40: LT2 | B40: Repayment of loans 2 | C40: =-OFFSET(Loans2!$F$9,COLUMN(C$32)-COLUMN($B$32),0,1,1) -> -3535.943414 | D40: =-OFFSET(Loans2!$F$9,COLUMN(D$32)-COLUMN($B$32),0,1,1) -> -3563.199644 | E40: =-OFFSET(Loans2!$F$9,COLUMN(E$32)-COLUMN($B$32),0,1,1) -> -3590.665975 | F40: =-OFFSET(Loans2!$F$9,COLUMN(F$32)-COLUMN($B$32),0,1,1) -> -3618.344025 | G40: =-OFFSET(Loans2!$F$9,COLUMN(G$32)-COLUMN($B$32),0,1,1) -> -3646.235427 | H40: =-OFFSET(Loans2!$F$9,COLUMN(H$32)-COLUMN($B$32),0,1,1) -> -4381.530507 | I40: =-OFFSET(Loans2!$F$9,COLUMN(I$32)-COLUMN($B$32),0,1,1) -> -4415.304805 | J40: =-OFFSET(Loans2!$F$9,COLUMN(J$32)-COLUMN($B$32),0,1,1) -> -4449.339446 | K40: =-OFFSET(Loans2!$F$9,COLUMN(K$32)-COLUMN($B$32),0,1,1) -> -4483.636438 | L40: =-OFFSET(Loans2!$F$9,COLUMN(L$32)-COLUMN($B$32),0,1,1) -> -4518.197802 | M40: =-OFFSET(Loans2!$F$9,COLUMN(M$32)-COLUMN($B$32),0,1,1) -> -4553.025577 | N40: =-OFFSET(Loans2!$F$9,COLUMN(N$32)-COLUMN($B$32),0,1,1) -> -4588.121816 | O40: -49343.54488 | P40: =-SUM(OFFSET(Loans2!$F$10,12*(COLUMN(P$32)-COLUMN($O$32)),0,12,1)) -> -57895.56262 | Q40: =-SUM(OFFSET(Loans2!$F$10,12*(COLUMN(Q$32)-COLUMN($O$32)),0,12,1)) -> -63483.88245 | R40: =-SUM(OFFSET(Loans2!$F$10,12*(COLUMN(R$32)-COLUMN($O$32)),0,12,1)) -> -69611.6101 | S40: =-SUM(OFFSET(Loans2!$F$10,12*(COLUMN(S$32)-COLUMN($O$32)),0,12,1)) -> -76330.81143
A41: LT3 | B41: Repayment of loans 3 | C41: =-OFFSET(Loans3!$F$9,COLUMN(C$32)-COLUMN($B$32),0,1,1) -> 0 | D41: =-OFFSET(Loans3!$F$9,COLUMN(D$32)-COLUMN($B$32),0,1,1) -> 0 | E41: =-OFFSET(Loans3!$F$9,COLUMN(E$32)-COLUMN($B$32),0,1,1) -> 0 | F41: =-OFFSET(Loans3!$F$9,COLUMN(F$32)-COLUMN($B$32),0,1,1) -> 0 | G41: =-OFFSET(Loans3!$F$9,COLUMN(G$32)-COLUMN($B$32),0,1,1) -> 0 | H41: =-OFFSET(Loans3!$F$9,COLUMN(H$32)-COLUMN($B$32),0,1,1) -> 0 | I41: =-OFFSET(Loans3!$F$9,COLUMN(I$32)-COLUMN($B$32),0,1,1) -> 0 | J41: =-OFFSET(Loans3!$F$9,COLUMN(J$32)-COLUMN($B$32),0,1,1) -> 0 | K41: =-OFFSET(Loans3!$F$9,COLUMN(K$32)-COLUMN($B$32),0,1,1) -> 0 | L41: =-OFFSET(Loans3!$F$9,COLUMN(L$32)-COLUMN($B$32),0,1,1) -> 0 | M41: =-OFFSET(Loans3!$F$9,COLUMN(M$32)-COLUMN($B$32),0,1,1) -> -2899.505174 | N41: =-OFFSET(Loans3!$F$9,COLUMN(N$32)-COLUMN($B$32),0,1,1) -> -2929.708353 | O41: -5829.213527 | P41: =-SUM(OFFSET(Loans3!$F$10,12*(COLUMN(P$32)-COLUMN($O$32)),0,12,1)) -> -63807.631 | Q41: =-SUM(OFFSET(Loans3!$F$10,12*(COLUMN(Q$32)-COLUMN($O$32)),0,12,1)) -> -117358.8498 | R41: =-SUM(OFFSET(Loans3!$F$10,12*(COLUMN(R$32)-COLUMN($O$32)),0,12,1)) -> -152787.8502 | S41: =-SUM(OFFSET(Loans3!$F$10,12*(COLUMN(S$32)-COLUMN($O$32)),0,12,1)) -> -212323.699
A42: FIN | B42: Repayment of finance leases | C42: =-OFFSET(Leases!$F$9,COLUMN(C$32)-COLUMN($B$32),0,1,1) -> -7014.912118 | D42: =-OFFSET(Leases!$F$9,COLUMN(D$32)-COLUMN($B$32),0,1,1) -> -7082.138359 | E42: =-OFFSET(Leases!$F$9,COLUMN(E$32)-COLUMN($B$32),0,1,1) -> -7150.008852 | F42: =-OFFSET(Leases!$F$9,COLUMN(F$32)-COLUMN($B$32),0,1,1) -> -7218.52977 | G42: =-OFFSET(Leases!$F$9,COLUMN(G$32)-COLUMN($B$32),0,1,1) -> -7287.707347 | H42: =-OFFSET(Leases!$F$9,COLUMN(H$32)-COLUMN($B$32),0,1,1) -> -7357.547876 | I42: =-OFFSET(Leases!$F$9,COLUMN(I$32)-COLUMN($B$32),0,1,1) -> -7428.05771 | J42: =-OFFSET(Leases!$F$9,COLUMN(J$32)-COLUMN($B$32),0,1,1) -> -7499.243263 | K42: =-OFFSET(Leases!$F$9,COLUMN(K$32)-COLUMN($B$32),0,1,1) -> -7571.111011 | L42: =-OFFSET(Leases!$F$9,COLUMN(L$32)-COLUMN($B$32),0,1,1) -> -7643.667491 | M42: =-OFFSET(Leases!$F$9,COLUMN(M$32)-COLUMN($B$32),0,1,1) -> -7716.919305 | N42: =-OFFSET(Leases!$F$9,COLUMN(N$32)-COLUMN($B$32),0,1,1) -> -7790.873115 | O42: -88760.71622 | P42: =-SUM(OFFSET(Leases!$F$10,12*(COLUMN(P$32)-COLUMN($O$32)),0,12,1)) -> -99523.78103 | Q42: =-SUM(OFFSET(Leases!$F$10,12*(COLUMN(Q$32)-COLUMN($O$32)),0,12,1)) -> -111591.9679 | R42: =-SUM(OFFSET(Leases!$F$10,12*(COLUMN(R$32)-COLUMN($O$32)),0,12,1)) -> -125123.5349 | S42: =-SUM(OFFSET(Leases!$F$10,12*(COLUMN(S$32)-COLUMN($O$32)),0,12,1)) -> 0
B43: Net cash from financing activities | C43: =SUM(C33:C42) -> -16325.53576 | D43: =SUM(D33:D42) -> -16469.34362 | E43: -16614.42716 | F43: -16760.79776 | G43: -16908.46693 | H43: 82235.36507 | I43: -17920.38736 | J43: -18077.51547 | K43: -18236.03151 | L43: -18395.94782 | M43: 218543.218 | N43: -21649.73956 | O43: 123420.3901 | P43: -1679.310597 | Q43: -201532.0531 | R43: -246194.3167 | S43: -47928.57266
B44: Increase / (Decrease) in cash equivalents | C44: =SUM(C26,C31,C43) -> -70329.55457 | D44: 52342.77473 | E44: 37337.90645 | F44: 30106.18871 | G44: 10595.25053 | H44: 101873.7413 | I44: 17086.58873 | J44: 63856.80647 | K44: -10259.60535 | L44: 141835.4828 | M44: -49999.49467 | N44: 80138.51432 | O44: 404584.5994 | P44: -9801.437005 | Q44: -79659.17171 | R44: 140421.6536 | S44: 475960.8854
B45: Cash & cash equivalents at beginning of year | C45: =BalanceSheet!C16-BalanceSheet!C32 -> 171000 | D45: =C46 -> 100670.4454 | E45: 153013.2202 | F45: 190351.1266 | G45: 220457.3153 | H45: 231052.5658 | I45: 332926.3071 | J45: 350012.8958 | K45: 413869.7023 | L45: 403610.097 | M45: 545445.5798 | N45: 495446.0851 | O45: =C45 -> 171000 | P45: =O46 -> 575584.5994 | Q45: =P46 -> 565783.1624 | R45: =Q46 -> 486123.9907 | S45: =R46 -> 626545.6443
B46: Cash & cash equivalents at end of year | C46: =SUM(C44:C45) -> 100670.4454 | D46: =SUM(D44:D45) -> 153013.2202 | E46: 190351.1266 | F46: 220457.3153 | G46: 231052.5658 | H46: 332926.3071 | I46: 350012.8958 | J46: 413869.7023 | K46: 403610.097 | L46: 545445.5798 | M46: 495446.0851 | N46: 575584.5994 | O46: 575584.5994 | P46: 565783.1624 | Q46: 486123.9907 | R46: 626545.6443 | S46: 1102506.53

Sheet BalanceSheet (hidden)
B1: =IF(ISBLANK(Assumptions!$C$4),"Example Limited",Assumptions!$C$4) -> Example (Pty) Limited
B2: Cash Flow Projections - Balance Sheet
B3: © www.excel-skills.com
C4: =IF(ISBLANK(Assumptions!$C$5)=TRUE,DATE(YEAR(TODAY()),MONTH(TODAY()),0),DATE(YEAR(Assumptions!$C$5),MONTH(Assumptions!$C$5),0)) -> 2021-02-28 | D4: =IF(ISBLANK(Assumptions!$C$5)=TRUE,DATE(YEAR(TODAY()),MONTH(TODAY())+1,0),DATE(YEAR(Assumptions!$C$5),MONTH(Assumptions!$C$5)+1,0)) -> 2021-03-31 | E4: =DATE(YEAR(D4),MONTH(D4)+2,0) -> 2021-04-30 | F4: =DATE(YEAR(E4),MONTH(E4)+2,0) -> 2021-05-31 | G4: 2021-06-30 | H4: 2021-07-31 | I4: 2021-08-31 | J4: 2021-09-30 | K4: 2021-10-31 | L4: 2021-11-30 | M4: 2021-12-31 | N4: 2022-01-31 | O4: =DATE(YEAR(N4),MONTH(N4)+2,0) -> 2022-02-28 | P4: ="Year-"&YEAR(O4) -> Year-2022 | Q4: ="Year-"&YEAR($O4)+1 -> Year-2023 | R4: ="Year-"&YEAR($O4)+2 -> Year-2024 | S4: ="Year-"&YEAR($O4)+3 -> Year-2025 | T4: ="Year-"&YEAR($O4)+4 -> Year-2026
B5: ASSETS
B6: Non-Current Assets
A7: PPE | B7: Property, Plant & Equipment | C7: =SUMIF(Assumptions!$A$76:$C$100,$A7,Assumptions!$C$76:$C$100) -> 1050000 | D7: =C7-CashFlow!C28-CashFlow!C10 -> 1035000 | E7: =D7-CashFlow!D28-CashFlow!D10 -> 1020000 | F7: =E7-CashFlow!E28-CashFlow!E10 -> 1005000 | G7: =F7-CashFlow!F28-CashFlow!F10 -> 990000 | H7: =G7-CashFlow!G28-CashFlow!G10 -> 975000 | I7: =H7-CashFlow!H28-CashFlow!H10 -> 960000 | J7: =I7-CashFlow!I28-CashFlow!I10 -> 945000 | K7: =J7-CashFlow!J28-CashFlow!J10 -> 930000 | L7: =K7-CashFlow!K28-CashFlow!K10 -> 915000 | M7: =L7-CashFlow!L28-CashFlow!L10 -> 900000 | N7: =M7-CashFlow!M28-CashFlow!M10 -> 1121000 | O7: =N7-CashFlow!N28-CashFlow!N10 -> 1102000 | P7: =O7 -> 1102000 | Q7: =P7-CashFlow!P28-CashFlow!P10 -> 1139000 | R7: =Q7-CashFlow!Q28-CashFlow!Q10 -> 1012000 | S7: =R7-CashFlow!R28-CashFlow!R10 -> 962000 | T7: =S7-CashFlow!S28-CashFlow!S10 -> 1037000
A8: INA | B8: Intangible Assets | C8: =SUMIF(Assumptions!$A$76:$C$100,$A8,Assumptions!$C$76:$C$100) -> 120000 | D8: =C8-CashFlow!C29-CashFlow!C11 -> 119000 | E8: =D8-CashFlow!D29-CashFlow!D11 -> 118000 | F8: =E8-CashFlow!E29-CashFlow!E11 -> 117000 | G8: =F8-CashFlow!F29-CashFlow!F11 -> 116000 | H8: =G8-CashFlow!G29-CashFlow!G11 -> 115000 | I8: =H8-CashFlow!H29-CashFlow!H11 -> 114000 | J8: =I8-CashFlow!I29-CashFlow!I11 -> 113000 | K8: =J8-CashFlow!J29-CashFlow!J11 -> 112000 | L8: =K8-CashFlow!K29-CashFlow!K11 -> 111000 | M8: =L8-CashFlow!L29-CashFlow!L11 -> 110000 | N8: =M8-CashFlow!M29-CashFlow!M11 -> 109000 | O8: =N8-CashFlow!N29-CashFlow!N11 -> 108000 | P8: =O8 -> 108000 | Q8: =P8-CashFlow!P29-CashFlow!P11 -> 96000 | R8: =Q8-CashFlow!Q29-CashFlow!Q11 -> 84000 | S8: =R8-CashFlow!R29-CashFlow!R11 -> 72000 | T8: =S8-CashFlow!S29-CashFlow!S11 -> 60000
A9: INV | B9: Investments | C9: =SUMIF(Assumptions!$A$76:$C$100,$A9,Assumptions!$C$76:$C$100) -> 800000 | D9: =C9-CashFlow!C30 -> 800000 | E9: =D9-CashFlow!D30 -> 800000 | F9: =E9-CashFlow!E30 -> 800000 | G9: =F9-CashFlow!F30 -> 800000 | H9: =G9-CashFlow!G30 -> 800000 | I9: =H9-CashFlow!H30 -> 800000 | J9: =I9-CashFlow!I30 -> 800000 | K9: =J9-CashFlow!J30 -> 800000 | L9: =K9-CashFlow!K30 -> 800000 | M9: =L9-CashFlow!L30 -> 800000 | N9: =M9-CashFlow!M30 -> 800000 | O9: =N9-CashFlow!N30 -> 800000 | P9: 800000 | Q9: =P9-CashFlow!P30 -> 1200000 | R9: =Q9-CashFlow!Q30 -> 1800000 | S9: =R9-CashFlow!R30 -> 2300000 | T9: =S9-CashFlow!S30 -> 2700000
C10: =SUM(C7:C9) -> 1970000 | D10: =SUM(D7:D9) -> 1954000 | E10: 1938000 | F10: 1922000 | G10: 1906000 | H10: 1890000 | I10: 1874000 | J10: 1858000 | K10: 1842000 | L10: 1826000 | M10: 1810000 | N10: 2030000 | O10: 2010000 | P10: 2010000 | Q10: 2435000 | R10: 2896000 | S10: 3334000 | T10: 3797000
B11: Current Assets
A12: STC | B12: Inventory | C12: =SUMIF(Assumptions!$A$76:$C$100,$A12,Assumptions!$C$76:$C$100) -> 170000 | D12: =(IF(COLUMN(D$4)-MATCH(MAX(DATE(YEAR(D$4-D$53),MONTH(D$4-D$53)+1,0),DATE(YEAR($D$4),MONTH($D$4),0)),$A$4:$AP$4,0)=0,0,SUM(OFFSET($A$54,0,MATCH(MAX(DATE(YEAR(D$4-D$53),MONTH(D$4-D$53)+1,0),DATE(YEAR($D$4),MONTH($D$4),0)),$A$4:$AP$4,0),1,COLUMN(D$4)-MATCH(MAX(DATE(YEAR(D$4-D$53),MONTH(D$4-D$53)+1,0),DATE(YEAR($D$4),MONTH($D$4),0)),$A$4:$AP$4,0))))+IF(ISNA(MATCH(DATE(YEAR(D$4-D$53),MONTH(D$4-D$53)+1,0),$A$4:$AP$4,0)),0,IF(DATE(YEAR(D$4-D$53),MONTH(D$4-D$53)+1,0)<=$C$4,0,OFFSET($A$54,0,MATCH(DATE(YEAR(D$4-D$53),MONTH(D$4-D$53)+1,0),$A$4:$AP$4,0)-1,1,1)/OFFSET($A$43,0,MATCH(DATE(YEAR(D$4-D$53),MONTH(D$4-D$53)+1,0),$A$4:$AP$4,0)-1,1,1)*IF((D$4-D$53)>DATE(YEAR($D$4),MONTH($D$4),0),(D$53-(D$4-DATE(YEAR(D$4-D$53),MONTH(D$4-D$53)+1,0))),0)))+IF(C$53=0,0,($C$12/$C$53*IF(DATE(YEAR($D$4),MONTH($D$4),0)>(D$4-D$53),DATE(YEAR($D$4),MONTH($D$4),0)-(D$4-D$53),0)))) -> 179651.6129 | E12: =(IF(COLUMN(E$4)-MATCH(MAX(DATE(YEAR(E$4-E$53),MONTH(E$4-E$53)+1,0),DATE(YEAR($D$4),MONTH($D$4),0)),$A$4:$AP$4,0)=0,0,SUM(OFFSET($A$54,0,MATCH(MAX(DATE(YEAR(E$4-E$53),MONTH(E$4-E$53)+1,0),DATE(YEAR($D$4),MONTH($D$4),0)),$A$4:$AP$4,0),1,COLUMN(E$4)-MATCH(MAX(DATE(YEAR(E$4-E$53),MONTH(E$4-E$53)+1,0),DATE(YEAR($D$4),MONTH($D$4),0)),$A$4:$AP$4,0))))+IF(ISNA(MATCH(DATE(YEAR(E$4-E$53),MONTH(E$4-E$53)+1,0),$A$4:$AP$4,0)),0,IF(DATE(YEAR(E$4-E$53),MONTH(E$4-E$53)+1,0)<=$C$4,0,OFFSET($A$54,0,MATCH(DATE(YEAR(E$4-E$53),MONTH(E$4-E$53)+1,0),$A$4:$AP$4,0)-1,1,1)/OFFSET($A$43,0,MATCH(DATE(YEAR(E$4-E$53),MONTH(E$4-E$53)+1,0),$A$4:$AP$4,0)-1,1,1)*IF((E$4-E$53)>DATE(YEAR($D$4),MONTH($D$4),0),(E$53-(E$4-DATE(YEAR(E$4-E$53),MONTH(E$4-E$53)+1,0))),0)))+IF(D$53=0,0,($C$12/$C$53*IF(DATE(YEAR($D$4),MONTH($D$4),0)>(E$4-E$53),DATE(YEAR($D$4),MONTH($D$4),0)-(E$4-E$53),0)))) -> 198380 | F12: 193741.9355 | G12: 202280 | H12: 198648.3871 | I12: 195000 | J12: 193280 | K12: 194477.4194 | L12: 203648 | M12: 158864.5161 | N12: 204758.7097 | O12: 208978.5806 | P12: =O12 -> 208978.5806 | Q12: =IF(P53=0,0,P12/P53*Q53*IF(P54=0,1,Q54/P54)) -> 216944.6559 | R12: =IF(Q53=0,0,Q12/Q53*R53*IF(Q54=0,1,R54/Q54)) -> 226742.1565 | S12: 249416.3722 | T12: 274358.0094
A13: DEB | B13: Trade Receivables | C13: =SUMIF(Assumptions!$A$76:$C$100,$A13,Assumptions!$C$76:$C$100) -> 370000 | D13: =(IF(COLUMN(D$4)-MATCH(MAX(DATE(YEAR(D$4-D$55),MONTH(D$4-D$55)+1,0),DATE(YEAR($D$4),MONTH($D$4),0)),$A$4:$AP$4,0)=0,0,SUM(OFFSET($A$56,0,MATCH(MAX(DATE(YEAR(D$4-D$55),MONTH(D$4-D$55)+1,0),DATE(YEAR($D$4),MONTH($D$4),0)),$A$4:$AP$4,0),1,COLUMN(D$4)-MATCH(MAX(DATE(YEAR(D$4-D$55),MONTH(D$4-D$55)+1,0),DATE(YEAR($D$4),MONTH($D$4),0)),$A$4:$AP$4,0))))+IF(ISNA(MATCH(DATE(YEAR(D$4-D$55),MONTH(D$4-D$55)+1,0),$A$4:$AP$4,0)),0,IF(DATE(YEAR(D$4-D$55),MONTH(D$4-D$55)+1,0)<=$C$4,0,OFFSET($A$56,0,MATCH(DATE(YEAR(D$4-D$55),MONTH(D$4-D$55)+1,0),$A$4:$AP$4,0)-1,1,1)/OFFSET($A$43,0,MATCH(DATE(YEAR(D$4-D$55),MONTH(D$4-D$55)+1,0),$A$4:$AP$4,0)-1,1,1)*IF((D$4-D$55)>DATE(YEAR($D$4),MONTH($D$4),0),(D$55-(D$4-DATE(YEAR(D$4-D$55),MONTH(D$4-D$55)+1,0))),0)))+IF(C$55=0,0,($C$13/$C$55*IF(DATE(YEAR($D$4),MONTH($D$4),0)>(D$4-D$55),DATE(YEAR($D$4),MONTH($D$4),0)-(D$4-D$55),0)))) -> 380798.3871 | E13: =(IF(COLUMN(E$4)-MATCH(MAX(DATE(YEAR(E$4-E$55),MONTH(E$4-E$55)+1,0),DATE(YEAR($D$4),MONTH($D$4),0)),$A$4:$AP$4,0)=0,0,SUM(OFFSET($A$56,0,MATCH(MAX(DATE(YEAR(E$4-E$55),MONTH(E$4-E$55)+1,0),DATE(YEAR($D$4),MONTH($D$4),0)),$A$4:$AP$4,0),1,COLUMN(E$4)-MATCH(MAX(DATE(YEAR(E$4-E$55),MONTH(E$4-E$55)+1,0),DATE(YEAR($D$4),MONTH($D$4),0)),$A$4:$AP$4,0))))+IF(ISNA(MATCH(DATE(YEAR(E$4-E$55),MONTH(E$4-E$55)+1,0),$A$4:$AP$4,0)),0,IF(DATE(YEAR(E$4-E$55),MONTH(E$4-E$55)+1,0)<=$C$4,0,OFFSET($A$56,0,MATCH(DATE(YEAR(E$4-E$55),MONTH(E$4-E$55)+1,0),$A$4:$AP$4,0)-1,1,1)/OFFSET($A$43,0,MATCH(DATE(YEAR(E$4-E$55),MONTH(E$4-E$55)+1,0),$A$4:$AP$4,0)-1,1,1)*IF((E$4-E$55)>DATE(YEAR($D$4),MONTH($D$4),0),(E$55-(E$4-DATE(YEAR(E$4-E$55),MONTH(E$4-E$55)+1,0))),0)))+IF(D$55=0,0,($C$13/$C$55*IF(DATE(YEAR($D$4),MONTH($D$4),0)>(E$4-E$55),DATE(YEAR($D$4),MONTH($D$4),0)-(E$4-E$55),0)))) -> 402691.6667 | F13: 404354.8387 | G13: 424733.3333 | H13: 410661.2903 | I13: 410846.7742 | J13: 414000 | K13: 410754.0323 | L13: 431441.6667 | M13: 347318.5484 | N13: 431806.4516 | O13: 448089.2857 | P13: 448089.2857 | Q13: =IF(P55=0,0,P13/P55*Q55*IF(P56=0,1,Q56/P56)) -> 483936.4286 | R13: =IF(Q55=0,0,Q13/Q55*R55*IF(Q56=0,1,R56/Q56)) -> 522651.3429 | S13: 574916.4771 | T13: 632408.1249
A14: ADV | B14: Loans & Advances | C14: =SUMIF(Assumptions!$A$76:$C$100,$A14,Assumptions!$C$76:$C$100) -> 55000 | D14: =C14-CashFlow!C16 -> 55000 | E14: =D14-CashFlow!D16 -> 55000 | F14: =E14-CashFlow!E16 -> 55000 | G14: =F14-CashFlow!F16 -> 55000 | H14: =G14-CashFlow!G16 -> 55000 | I14: =H14-CashFlow!H16 -> 55000 | J14: =I14-CashFlow!I16 -> 65000 | K14: =J14-CashFlow!J16 -> 65000 | L14: =K14-CashFlow!K16 -> 55000 | M14: =L14-CashFlow!L16 -> 55000 | N14: =M14-CashFlow!M16 -> 55000 | O14: =N14-CashFlow!N16 -> 55000 | P14: 55000 | Q14: =P14-CashFlow!P16 -> 75000 | R14: =Q14-CashFlow!Q16 -> 75000 | S14: =R14-CashFlow!R16 -> 65000 | T14: =S14-CashFlow!S16 -> 50000
A15: ODB | B15: Other Receivables | C15: =SUMIF(Assumptions!$A$76:$C$100,$A15,Assumptions!$C$76:$C$100) -> 53000 | D15: =C15-CashFlow!C17 -> 53000 | E15: =D15-CashFlow!D17 -> 53000 | F15: =E15-CashFlow!E17 -> 53000 | G15: =F15-CashFlow!F17 -> 53000 | H15: =G15-CashFlow!G17 -> 53000 | I15: =H15-CashFlow!H17 -> 53000 | J15: =I15-CashFlow!I17 -> 53000 | K15: =J15-CashFlow!J17 -> 53000 | L15: =K15-CashFlow!K17 -> 53000 | M15: =L15-CashFlow!L17 -> 53000 | N15: =M15-CashFlow!M17 -> 53000 | O15: =N15-CashFlow!N17 -> 53000 | P15: 53000 | Q15: =P15-CashFlow!P17 -> 60000 | R15: =Q15-CashFlow!Q17 -> 60000 | S15: =R15-CashFlow!R17 -> 65000 | T15: =S15-CashFlow!S17 -> 75000
A16: CSH | B16: Cash & Cash Equivalents | C16: =SUMIF(Assumptions!$A$76:$C$100,$A16,Assumptions!$C$76:$C$100) -> 171000 | D16: =IF(CashFlow!C46>=0,CashFlow!C46,0) -> 100670.4454 | E16: =IF(CashFlow!D46>=0,CashFlow!D46,0) -> 153013.2202 | F16: =IF(CashFlow!E46>=0,CashFlow!E46,0) -> 190351.1266 | G16: =IF(CashFlow!F46>=0,CashFlow!F46,0) -> 220457.3153 | H16: =IF(CashFlow!G46>=0,CashFlow!G46,0) -> 231052.5658 | I16: =IF(CashFlow!H46>=0,CashFlow!H46,0) -> 332926.3071 | J16: =IF(CashFlow!I46>=0,CashFlow!I46,0) -> 350012.8958 | K16: =IF(CashFlow!J46>=0,CashFlow!J46,0) -> 413869.7023 | L16: =IF(CashFlow!K46>=0,CashFlow!K46,0) -> 403610.097 | M16: =IF(CashFlow!L46>=0,CashFlow!L46,0) -> 545445.5798 | N16: =IF(CashFlow!M46>=0,CashFlow!M46,0) -> 495446.0851 | O16: =IF(CashFlow!N46>=0,CashFlow!N46,0) -> 575584.5994 | P16: 575584.5994 | Q16: =IF(CashFlow!P46>=0,CashFlow!P46,0) -> 565783.1624 | R16: =IF(CashFlow!Q46>=0,CashFlow!Q46,0) -> 486123.9907 | S16: =IF(CashFlow!R46>=0,CashFlow!R46,0) -> 626545.6443 | T16: =IF(CashFlow!S46>=0,CashFlow!S46,0) -> 1102506.53
C17: =SUM(C12:C16) -> 819000 | D17: =SUM(D12:D16) -> 769120.4454 | E17: 862084.8868 | F17: 896447.9008 | G17: 955470.6486 | H17: 948362.2433 | I17: 1046773.081 | J17: 1075292.896 | K17: 1137101.154 | L17: 1146699.764 | M17: 1159628.644 | N17: 1240011.246 | O17: 1340652.466 | P17: 1340652.466 | Q17: 1401664.247 | R17: 1370517.49 | S17: 1580878.494 | T17: 2134272.664
B18: Total Assets | C18: =SUM(C10,C17) -> 2789000 | D18: =SUM(D10,D17) -> 2723120.445 | E18: 2800084.887 | F18: 2818447.901 | G18: 2861470.649 | H18: 2838362.243 | I18: 2920773.081 | J18: 2933292.896 | K18: 2979101.154 | L18: 2972699.764 | M18: 2969628.644 | N18: 3270011.246 | O18: 3350652.466 | P18: 3350652.466 | Q18: 3836664.247 | R18: 4266517.49 | S18: 4914878.494 | T18: 5931272.664
B19: EQUITY & LIABILITIES
B20: Equity
A21: CAP | B21: Shareholders' Contributions | C21: =-SUMIF(Assumptions!$A$76:$C$100,$A21,Assumptions!$C$76:$C$100) -> 1000 | D21: =C21+CashFlow!C33 -> 1000 | E21: =D21+CashFlow!D33 -> 1000 | F21: =E21+CashFlow!E33 -> 1000 | G21: =F21+CashFlow!F33 -> 1000 | H21: =G21+CashFlow!G33 -> 1000 | I21: =H21+CashFlow!H33 -> 1000 | J21: =I21+CashFlow!I33 -> 1000 | K21: =J21+CashFlow!J33 -> 1000 | L21: =K21+CashFlow!K33 -> 1000 | M21: =L21+CashFlow!L33 -> 1000 | N21: =M21+CashFlow!M33 -> 1000 | O21: =N21+CashFlow!N33 -> 1000 | P21: =O21 -> 1000 | Q21: =P21+CashFlow!P33 -> 1000 | R21: =Q21+CashFlow!Q33 -> 1000 | S21: =R21+CashFlow!R33 -> 1000 | T21: =S21+CashFlow!S33 -> 1000
A22: RES | B22: Reserves | C22: =-SUMIF(Assumptions!$A$76:$C$100,$A22,Assumptions!$C$76:$C$100) -> 0 | D22: =C22+CashFlow!C12 -> 0 | E22: =D22+CashFlow!D12 -> 0 | F22: =E22+CashFlow!E12 -> 0 | G22: =F22+CashFlow!F12 -> 0 | H22: =G22+CashFlow!G12 -> 0 | I22: =H22+CashFlow!H12 -> 0 | J22: =I22+CashFlow!I12 -> 0 | K22: =J22+CashFlow!J12 -> 0 | L22: =K22+CashFlow!K12 -> 0 | M22: =L22+CashFlow!L12 -> 0 | N22: =M22+CashFlow!M12 -> 0 | O22: =N22+CashFlow!N12 -> 0 | P22: 0 | Q22: =P22+CashFlow!P12 -> 0 | R22: =Q22+CashFlow!Q12 -> 0 | S22: =R22+CashFlow!R12 -> 0 | T22: =S22+CashFlow!S12 -> 0
A23: EAR | B23: Retained Earnings | C23: =-SUMIF(Assumptions!$A$76:$C$100,$A23,Assumptions!$C$76:$C$100) -> 400000 | D23: =C23+IncState!C61 -> 440354.5 | E23: =D23+IncState!D61 -> 479451.7417 | F23: =E23+IncState!E61 -> 524327.0435 | G23: =F23+IncState!F61 -> 521154.1321 | H23: =G23+IncState!G61 -> 557046.7426 | I23: =H23+IncState!H61 -> 591951.6181 | J23: =I23+IncState!I61 -> 639316.6354 | K23: =J23+IncState!J61 -> 652054.785 | L23: =K23+IncState!K61 -> 678091.706 | M23: =L23+IncState!L61 -> 702320.6469 | N23: =M23+IncState!M61 -> 758298.9446 | O23: =N23+IncState!N61 -> 802072.4918 | P23: 802072.4918 | Q23: =P23+IncState!P61 -> 1287554.427 | R23: =Q23+IncState!Q61 -> 1901071.431 | S23: =R23+IncState!R61 -> 2738555.162 | T23: =S23+IncState!S61 -> 3750650.284
C24: =SUM(C21:C23) -> 401000 | D24: =SUM(D21:D23) -> 441354.5 | E24: 480451.7417 | F24: 525327.0435 | G24: 522154.1321 | H24: 558046.7426 | I24: 592951.6181 | J24: 640316.6354 | K24: 653054.785 | L24: 679091.706 | M24: 703320.6469 | N24: 759298.9446 | O24: 803072.4918 | P24: 803072.4918 | Q24: 1288554.427 | R24: 1902071.431 | S24: 2739555.162 | T24: 3751650.284
B25: Non-Current Liabilities
A26: LT1 | B26: Long Term Loans 1 | C26: =-SUMIF(Assumptions!$A$76:$C$100,$A26,Assumptions!$C$76:$C$100) -> 1200000 | D26: =C26+CashFlow!C39+CashFlow!C35 -> 1194225.32 | E26: =D26+CashFlow!D39+CashFlow!D35 -> 1188401.314 | F26: =E26+CashFlow!E39+CashFlow!E35 -> 1182527.562 | G26: =F26+CashFlow!F39+CashFlow!F35 -> 1176603.638 | H26: =G26+CashFlow!G39+CashFlow!G35 -> 1170629.114 | I26: =H26+CashFlow!H39+CashFlow!H35 -> 1164603.557 | J26: =I26+CashFlow!I39+CashFlow!I35 -> 1158526.532 | K26: =J26+CashFlow!J39+CashFlow!J35 -> 1152397.6 | L26: =K26+CashFlow!K39+CashFlow!K35 -> 1146216.315 | M26: =L26+CashFlow!L39+CashFlow!L35 -> 1139982.233 | N26: =M26+CashFlow!M39+CashFlow!M35 -> 1133694.901 | O26: =N26+CashFlow!N39+CashFlow!N35 -> 1127353.865 | P26: =O26 -> 1127353.865 | Q26: =ROUND(P26+CashFlow!P39+CashFlow!P35,2) -> 1046901.53 | R26: =ROUND(Q26+CashFlow!Q39+CashFlow!Q35,2) -> 957804.18 | S26: =ROUND(R26+CashFlow!R39+CashFlow!R35,2) -> 859132.86 | T26: =ROUND(S26+CashFlow!S39+CashFlow!S35,2) -> 749858.8
A27: LT2 | B27: Long Term Loans 2 | C27: =-SUMIF(Assumptions!$A$76:$C$100,$A27,Assumptions!$C$76:$C$100) -> 500000 | D27: =C27+CashFlow!C40+CashFlow!C36 -> 496464.0566 | E27: =D27+CashFlow!D40+CashFlow!D36 -> 492900.8569 | F27: =E27+CashFlow!E40+CashFlow!E36 -> 489310.191 | G27: =F27+CashFlow!F40+CashFlow!F36 -> 485691.8469 | H27: =G27+CashFlow!G40+CashFlow!G36 -> 482045.6115 | I27: =H27+CashFlow!H40+CashFlow!H36 -> 577664.081 | J27: =I27+CashFlow!I40+CashFlow!I36 -> 573248.7762 | K27: =J27+CashFlow!J40+CashFlow!J36 -> 568799.4368 | L27: =K27+CashFlow!K40+CashFlow!K36 -> 564315.8003 | M27: =L27+CashFlow!L40+CashFlow!L36 -> 559797.6025 | N27: =M27+CashFlow!M40+CashFlow!M36 -> 555244.5769 | O27: =N27+CashFlow!N40+CashFlow!N36 -> 550656.4551 | P27: 550656.4551 | Q27: =ROUND(P27+CashFlow!P40+CashFlow!P36,2) -> 492760.89 | R27: =ROUND(Q27+CashFlow!Q40+CashFlow!Q36,2) -> 429277.01 | S27: =ROUND(R27+CashFlow!R40+CashFlow!R36,2) -> 359665.4 | T27: =ROUND(S27+CashFlow!S40+CashFlow!S36,2) -> 283334.59
A28: LT3 | B28: Long Term Loans 3 | C28: =-SUMIF(Assumptions!$A$76:$C$100,$A28,Assumptions!$C$76:$C$100) -> 0 | D28: =C28+CashFlow!C41+CashFlow!C37 -> 0 | E28: =D28+CashFlow!D41+CashFlow!D37 -> 0 | F28: =E28+CashFlow!E41+CashFlow!E37 -> 0 | G28: =F28+CashFlow!F41+CashFlow!F37 -> 0 | H28: =G28+CashFlow!G41+CashFlow!G37 -> 0 | I28: =H28+CashFlow!H41+CashFlow!H37 -> 0 | J28: =I28+CashFlow!I41+CashFlow!I37 -> 0 | K28: =J28+CashFlow!J41+CashFlow!J37 -> 0 | L28: =K28+CashFlow!K41+CashFlow!K37 -> 0 | M28: =L28+CashFlow!L41+CashFlow!L37 -> 0 | N28: =M28+CashFlow!M41+CashFlow!M37 -> 237100.4948 | O28: =N28+CashFlow!N41+CashFlow!N37 -> 234170.7865 | P28: 234170.7865 | Q28: =ROUND(P28+CashFlow!P41+CashFlow!P37,2) -> 470363.16 | R28: =ROUND(Q28+CashFlow!Q41+CashFlow!Q37,2) -> 533004.31 | S28: =ROUND(R28+CashFlow!R41+CashFlow!R37,2) -> 580216.46 | T28: =ROUND(S28+CashFlow!S41+CashFlow!S37,2) -> 717892.76
A29: FIN | B29: Finance Leases | C29: =-SUMIF(Assumptions!$A$76:$C$100,$A29,Assumptions!$C$76:$C$100) -> 425000 | D29: =C29+CashFlow!C42+CashFlow!C38 -> 417985.0879 | E29: =D29+CashFlow!D42+CashFlow!D38 -> 410902.9495 | F29: =E29+CashFlow!E42+CashFlow!E38 -> 403752.9407 | G29: =F29+CashFlow!F42+CashFlow!F38 -> 396534.4109 | H29: =G29+CashFlow!G42+CashFlow!G38 -> 389246.7036 | I29: =H29+CashFlow!H42+CashFlow!H38 -> 381889.1557 | J29: =I29+CashFlow!I42+CashFlow!I38 -> 374461.098 | K29: =J29+CashFlow!J42+CashFlow!J38 -> 366961.8547 | L29: =K29+CashFlow!K42+CashFlow!K38 -> 359390.7437 | M29: =L29+CashFlow!L42+CashFlow!L38 -> 351747.0762 | N29: =M29+CashFlow!M42+CashFlow!M38 -> 344030.1569 | O29: =N29+CashFlow!N42+CashFlow!N38 -> 336239.2838 | P29: 336239.2838 | Q29: =ROUND(P29+CashFlow!P42+CashFlow!P38,2) -> 236715.5 | R29: =ROUND(Q29+CashFlow!Q42+CashFlow!Q38,2) -> 125123.53 | S29: =ROUND(R29+CashFlow!R42+CashFlow!R38,2) -> 0 | T29: =ROUND(S29+CashFlow!S42+CashFlow!S38,2) -> 0
C30: =SUM(C26:C29) -> 2125000 | D30: =SUM(D26:D29) -> 2108674.464 | E30: 2092205.121 | F30: 2075590.693 | G30: 2058829.896 | H30: 2041921.429 | I30: 2124156.794 | J30: 2106236.406 | K30: 2088158.891 | L30: 2069922.86 | M30: 2051526.912 | N30: 2270070.13 | O30: 2248420.39 | P30: 2248420.39 | Q30: 2246741.08 | R30: 2045209.03 | S30: 1799014.72 | T30: 1751086.15
B31: Current Liabilities
A32: OVD | B32: Bank Overdraft | C32: =-SUMIF(Assumptions!$A$76:$C$100,$A32,Assumptions!$C$76:$C$100) -> 0 | D32: =IF(CashFlow!C46<0,-CashFlow!C46,0) -> 0 | E32: =IF(CashFlow!D46<0,-CashFlow!D46,0) -> 0 | F32: =IF(CashFlow!E46<0,-CashFlow!E46,0) -> 0 | G32: =IF(CashFlow!F46<0,-CashFlow!F46,0) -> 0 | H32: =IF(CashFlow!G46<0,-CashFlow!G46,0) -> 0 | I32: =IF(CashFlow!H46<0,-CashFlow!H46,0) -> 0 | J32: =IF(CashFlow!I46<0,-CashFlow!I46,0) -> 0 | K32: =IF(CashFlow!J46<0,-CashFlow!J46,0) -> 0 | L32: =IF(CashFlow!K46<0,-CashFlow!K46,0) -> 0 | M32: =IF(CashFlow!L46<0,-CashFlow!L46,0) -> 0 | N32: =IF(CashFlow!M46<0,-CashFlow!M46,0) -> 0 | O32: =IF(CashFlow!N46<0,-CashFlow!N46,0) -> 0 | P32: =O32 -> 0 | Q32: =IF(CashFlow!P46<0,-CashFlow!P46,0) -> 0 | R32: =IF(CashFlow!Q46<0,-CashFlow!Q46,0) -> 0 | S32: =IF(CashFlow!R46<0,-CashFlow!R46,0) -> 0 | T32: =IF(CashFlow!S46<0,-CashFlow!S46,0) -> 0
A33: CRE | B33: Trade Payables | C33: =-SUMIF(Assumptions!$A$76:$C$100,$A33,Assumptions!$C$76:$C$100) -> 130000 | D33: =(IF(COLUMN(D$4)-MATCH(MAX(DATE(YEAR(D$4-D$57),MONTH(D$4-D$57)+1,0),DATE(YEAR($D$4),MONTH($D$4),0)),$A$4:$AP$4,0)=0,0,SUM(OFFSET($A$58,0,MATCH(MAX(DATE(YEAR(D$4-D$57),MONTH(D$4-D$57)+1,0),DATE(YEAR($D$4),MONTH($D$4),0)),$A$4:$AP$4,0),1,COLUMN(D$4)-MATCH(MAX(DATE(YEAR(D$4-D$57),MONTH(D$4-D$57)+1,0),DATE(YEAR($D$4),MONTH($D$4),0)),$A$4:$AP$4,0))))+IF(ISNA(MATCH(DATE(YEAR(D$4-D$57),MONTH(D$4-D$57)+1,0),$A$4:$AP$4,0)),0,IF(DATE(YEAR(D$4-D$57),MONTH(D$4-D$57)+1,0)<=$C$4,0,OFFSET($A$58,0,MATCH(DATE(YEAR(D$4-D$57),MONTH(D$4-D$57)+1,0),$A$4:$AP$4,0)-1,1,1)/OFFSET($A$43,0,MATCH(DATE(YEAR(D$4-D$57),MONTH(D$4-D$57)+1,0),$A$4:$AP$4,0)-1,1,1)*IF((D$4-D$57)>DATE(YEAR($D$4),MONTH($D$4),0),(D$57-(D$4-DATE(YEAR(D$4-D$57),MONTH(D$4-D$57)+1,0))),0)))+IF(C$57=0,0,($C$33/$C$57*IF(DATE(YEAR($D$4),MONTH($D$4),0)>(D$4-D$57),DATE(YEAR($D$4),MONTH($D$4),0)-(D$4-D$57),0)))) -> 108939.3145 | E33: =(IF(COLUMN(E$4)-MATCH(MAX(DATE(YEAR(E$4-E$57),MONTH(E$4-E$57)+1,0),DATE(YEAR($D$4),MONTH($D$4),0)),$A$4:$AP$4,0)=0,0,SUM(OFFSET($A$58,0,MATCH(MAX(DATE(YEAR(E$4-E$57),MONTH(E$4-E$57)+1,0),DATE(YEAR($D$4),MONTH($D$4),0)),$A$4:$AP$4,0),1,COLUMN(E$4)-MATCH(MAX(DATE(YEAR(E$4-E$57),MONTH(E$4-E$57)+1,0),DATE(YEAR($D$4),MONTH($D$4),0)),$A$4:$AP$4,0))))+IF(ISNA(MATCH(DATE(YEAR(E$4-E$57),MONTH(E$4-E$57)+1,0),$A$4:$AP$4,0)),0,IF(DATE(YEAR(E$4-E$57),MONTH(E$4-E$57)+1,0)<=$C$4,0,OFFSET($A$58,0,MATCH(DATE(YEAR(E$4-E$57),MONTH(E$4-E$57)+1,0),$A$4:$AP$4,0)-1,1,1)/OFFSET($A$43,0,MATCH(DATE(YEAR(E$4-E$57),MONTH(E$4-E$57)+1,0),$A$4:$AP$4,0)-1,1,1)*IF((E$4-E$57)>DATE(YEAR($D$4),MONTH($D$4),0),(E$57-(E$4-DATE(YEAR(E$4-E$57),MONTH(E$4-E$57)+1,0))),0)))+IF(D$57=0,0,($C$33/$C$57*IF(DATE(YEAR($D$4),MONTH($D$4),0)>(E$4-E$57),DATE(YEAR($D$4),MONTH($D$4),0)-(E$4-E$57),0)))) -> 119896.125 | F33: 119823.5081 | G33: 164688.625 | H33: 129878.5887 | I33: 128893.6694 | J33: 118418.375 | K33: 141948.0242 | L33: 144775.225 | M33: 101438.3468 | N33: 123375.8952 | O33: 126579.8839 | P33: 126579.8839 | Q33: =IF(P57=0,0,P33/P57*Q57*IF(P58=0,1,Q58/P58)) -> 131745.5264 | R33: =IF(Q57=0,0,Q33/Q57*R57*IF(Q58=0,1,R58/Q58)) -> 137940.1144 | S33: 151034.6648 | T33: 165396.7026
A34: VAT | B34: Sales Tax | C34: =-SUMIF(Assumptions!$A$76:$C$100,$A34,Assumptions!$C$76:$C$100) -> 16000 | D34: =IF(D61=0,0,SUM(OFFSET(D62,0,0,1,-MIN(D61,COLUMN(D$4)-COLUMN($B$4))))-SUM(OFFSET(D63,0,0,1,-MIN(D61,COLUMN(D$4)-COLUMN($B$4))))) -> 28458.75 | E34: =IF(E61=0,0,SUM(OFFSET(E62,0,0,1,-MIN(E61,COLUMN(E$4)-COLUMN($B$4))))-SUM(OFFSET(E63,0,0,1,-MIN(E61,COLUMN(E$4)-COLUMN($B$4))))) -> 56634 | F34: 29357.25 | G34: 48682.5 | H34: 27441.75 | I34: 54771 | J34: 29901.75 | K34: 52566 | L34: 25411.05 | M34: 50421.45 | N34: 32575.65 | O34: 62579.7 | P34: 62579.7 | Q34: =(Q62-Q63)/12*Q61 -> 61423.2145 | R34: =(R62-R63)/12*R61 -> 68824.91869 | S34: 76453.63714 | T34: 84890.00103
A35: PAY | B35: Payroll Accruals | C35: =-SUMIF(Assumptions!$A$76:$C$100,$A35,Assumptions!$C$76:$C$100) -> 20000 | D35: =IF(D71=0,0,SUM(OFFSET(D72,0,0,1,-MIN(D71,COLUMN(D$4)-COLUMN($B$4))))) -> 20000 | E35: =IF(E71=0,0,SUM(OFFSET(E72,0,0,1,-MIN(E71,COLUMN(E$4)-COLUMN($B$4))))) -> 20000 | F35: 20000 | G35: 20000 | H35: 20000 | I35: 20000 | J35: 20000 | K35: 20000 | L35: 20000 | M35: 20000 | N35: 20000 | O35: 20000 | P35: 20000 | Q35: =P35/P69*Q69*(1+Q72) -> 21200 | R35: =Q35/Q69*R69*(1+R72) -> 22472 | S35: 23820.32 | T35: 25249.5392
A36: ACC | B36: Other Accruals | C36: =-SUMIF(Assumptions!$A$76:$C$100,$A36,Assumptions!$C$76:$C$100) -> 55000 | D36: =C36+CashFlow!C21 -> 0 | E36: =D36+CashFlow!D21 -> 0 | F36: =E36+CashFlow!E21 -> 0 | G36: =F36+CashFlow!F21 -> 0 | H36: =G36+CashFlow!G21 -> 0 | I36: =H36+CashFlow!H21 -> 0 | J36: =I36+CashFlow!I21 -> 0 | K36: =J36+CashFlow!J21 -> 0 | L36: =K36+CashFlow!K21 -> 0 | M36: =L36+CashFlow!L21 -> 0 | N36: =M36+CashFlow!M21 -> 0 | O36: =N36+CashFlow!N21 -> 60000 | P36: 60000 | Q36: =P36+CashFlow!P21 -> 66000 | R36: =Q36+CashFlow!Q21 -> 50000 | S36: =R36+CashFlow!R21 -> 70000 | T36: =S36+CashFlow!S21 -> 80000
A37: TAX | B37: Provision For Taxation | C37: =-SUMIF(Assumptions!$A$76:$C$100,$A37,Assumptions!$C$76:$C$100) -> 0 | D37: =IF(D66=0,0,SUM(OFFSET(D67,0,0,1,-MIN(D66,COLUMN(D$4)-COLUMN($B$4))))) -> 15693.41667 | E37: =IF(E66=0,0,SUM(OFFSET(E67,0,0,1,-MIN(E66,COLUMN(E$4)-COLUMN($B$4))))) -> 30897.89954 | F37: 48349.4058 | G37: 47115.49582 | H37: 61073.73322 | I37: 0 | J37: 18419.72895 | K37: 23373.45377 | L37: 33498.92309 | M37: 42921.28897 | N37: 64690.62698 | O37: 0 | P37: 0 | Q37: =Q67/12*Q66 -> 0 | R37: =R67/12*R66 -> 0 | S37: 0 | T37: 0
A38: DIV | B38: Dividends Payable | C38: =-SUMIF(Assumptions!$A$76:$C$100,$A38,Assumptions!$C$76:$C$100) -> 0 | D38: =D80 -> 0 | E38: =E80 -> 0 | F38: 0 | G38: 0 | H38: 0 | I38: 0 | J38: 0 | K38: 0 | L38: 0 | M38: 0 | N38: 0 | O38: 0 | P38: 0 | Q38: 0 | R38: 0 | S38: 0 | T38: 0
A39: OPV | B39: Other Provisions | C39: =-SUMIF(Assumptions!$A$76:$C$100,$A39,Assumptions!$C$76:$C$100) -> 42000 | D39: =C39+CashFlow!C22 -> 0 | E39: =D39+CashFlow!D22 -> 0 | F39: =E39+CashFlow!E22 -> 0 | G39: =F39+CashFlow!F22 -> 0 | H39: =G39+CashFlow!G22 -> 0 | I39: =H39+CashFlow!H22 -> 0 | J39: =I39+CashFlow!I22 -> 0 | K39: =J39+CashFlow!J22 -> 0 | L39: =K39+CashFlow!K22 -> 0 | M39: =L39+CashFlow!L22 -> 0 | N39: =M39+CashFlow!M22 -> 0 | O39: =N39+CashFlow!N22 -> 30000 | P39: 30000 | Q39: =P39+CashFlow!P22 -> 21000 | R39: =Q39+CashFlow!Q22 -> 40000 | S39: =R39+CashFlow!R22 -> 55000 | T39: =S39+CashFlow!S22 -> 73000
C40: =SUM(C32:C39) -> 263000 | D40: =SUM(D32:D39) -> 173091.4812 | E40: 227428.0245 | F40: 217530.1639 | G40: 280486.6208 | H40: 238394.0719 | I40: 203664.6694 | J40: 186739.8539 | K40: 237887.478 | L40: 223685.1981 | M40: 214781.0857 | N40: 240642.1721 | O40: 299159.5839 | P40: 299159.5839 | Q40: 301368.7409 | R40: 319237.0331 | S40: 376308.622 | T40: 428536.2428
B41: Total Equity & Liabilities | C41: =SUM(C24,C30,C40) -> 2789000 | D41: =SUM(D24,D30,D40) -> 2723120.445 | E41: 2800084.887 | F41: 2818447.901 | G41: 2861470.649 | H41: 2838362.243 | I41: 2920773.081 | J41: 2933292.896 | K41: 2979101.154 | L41: 2972699.764 | M41: 2969628.644 | N41: 3270011.246 | O41: 3350652.466 | P41: 3350652.466 | Q41: 3836664.247 | R41: 4266517.494 | S41: 4914878.504 | T41: 5931272.677
C42: =IF(ROUND(C18-C41,0)<>0,ROUND(C18-C41,0),"") ->  | D42: =IF(ROUND(D18-D41,0)<>0,ROUND(D18-D41,0),"") -> 
B43: Days in period | C43: =C4-DATE(YEAR(C4),MONTH(C4),1)+1 -> 28 | D43: 31 | E43: 30 | F43: 31 | G43: 30 | H43: 31 | I43: 31 | J43: 30 | K43: 31 | L43: 30 | M43: 31 | N43: 31 | O43: 28 | P43: =SUM(D43:O43) -> 365 | Q43: =DATE(YEAR($O$4)+COLUMN(Q$4)-COLUMN($P$4),MONTH($O$4)+1,0)-DATE(YEAR($O$4)+COLUMN(Q$4)-COLUMN($Q$4),MONTH($O$4)+1,0) -> 365 | R43: =DATE(YEAR($O$4)+COLUMN(R$4)-COLUMN($P$4),MONTH($O$4)+1,0)-DATE(YEAR($O$4)+COLUMN(R$4)-COLUMN($Q$4),MONTH($O$4)+1,0) -> 366 | S43: 365 | T43: 365
B45: Current Ratio | D45: =IF(D$40=0,0,D$17/D$40) -> 4.443433265 | E45: =IF(E$40=0,0,E$17/E$40) -> 3.790583366 | F45: 4.121028022 | G45: 3.406474954 | H45: 3.978128464 | I45: 5.139689101 | J45: 5.758239996 | K45: 4.779995835 | L45: 5.12639984 | M45: 5.399119016 | N45: 5.152925754 | O45: 4.481395676 | P45: 4.481395676 | Q45: 4.650994137 | R45: 4.29310308 | S45: 4.201015872 | T45: 4.980378439
B46: Quick Ratio | D46: =IF(D$40=0,0,(D$17-D$12)/D$40) -> 3.40553347 | E46: =IF(E$40=0,0,(E$17-E$12)/E$40) -> 2.918307399 | F46: 3.230384021 | G46: 2.685299735 | H46: 3.144851087 | I46: 4.182232903 | J46: 4.723217231 | K46: 3.962477313 | L46: 4.215977506 | M46: 4.659461166 | N46: 4.302041191 | O46: 3.782843492 | P46: 3.782843492 | Q46: 3.931129644 | R46: 3.582840382 | S46: 3.538218483 | T46: 4.340157188
B47: Inventory Days | D47: =IF(D$54=0,0,D$12/D$54*D$43) -> 30 | E47: =IF(E$54=0,0,E$12/E$54*E$43) -> 30 | F47: 30 | G47: 30 | H47: 30 | I47: 30 | J47: 30 | K47: 30 | L47: 30 | M47: 30 | N47: 30 | O47: 29.95679195 | P47: =O47 -> 29.95679195 | Q47: =Q$12/IF($P54=0,1,Q54/$P54)/IF($O54=0,1,$O54)*$O43 -> 29.95679195 | R47: =R$12/IF($P54=0,1,R54/$P54)/IF($O54=0,1,$O54)*$O43 -> 29.95679195 | S47: 29.95679195 | T47: 29.95679195
B48: Debtors Days | D48: =IF(D$56=0,0,D$13/D$56*D$43) -> 25 | E48: =IF(E$56=0,0,E$13/E$56*E$43) -> 25 | F48: 25 | G48: 25 | H48: 25 | I48: 25 | J48: 25 | K48: 25 | L48: 25 | M48: 25 | N48: 25 | O48: 25 | P48: =O48 -> 25 | Q48: =Q$13/IF($P56=0,1,Q56/$P56)/IF($O56=0,1,$O56)*$O43 -> 25 | R48: =R$13/IF($P56=0,1,R56/$P56)/IF($O56=0,1,$O56)*$O43 -> 25 | S48: 25 | T48: 25
B49: Creditors Days | D49: =IF(D$58=0,0,D$33/D$58*D$43) -> 15 | E49: 15 | F49: 15 | G49: 15 | H49: 15 | I49: 15 | J49: 15 | K49: 15 | L49: 15 | M49: 15 | N49: 15 | O49: 15 | P49: =O49 -> 15 | Q49: =Q$33/IF($P58=0,1,Q58/$P58)/IF($O58=0,1,$O58)*$O43 -> 15 | R49: =R$33/IF($P58=0,1,R58/$P58)/IF($O58=0,1,$O58)*$O43 -> 15 | S49: 15 | T49: 15
B50: Debt / Equity | D50: =IF(D$24=0,0,D$30/D$24) -> 4.777734144 | E50: =IF(E$24=0,0,E$30/E$24) -> 4.354662371 | F50: 3.951044819 | G50: 3.942954329 | H50: 3.659050888 | I50: 3.582344206 | J50: 3.289366994 | K50: 3.197524831 | L50: 3.0480756 | M50: 2.916915522 | N50: 2.989692197 | O50: 2.79977264 | P50: 2.79977264 | Q50: 1.743613645 | R50: 1.075253535 | S50: 0.6566813273 | T50: 0.4667509009
B52: Workings (Not Printed):
B53: Inventory Days | C53: =Assumptions!$C$47 -> 30 | D53: =Assumptions!$C$47 -> 30 | E53: =Assumptions!$C$47 -> 30 | F53: =Assumptions!$C$47 -> 30 | G53: =Assumptions!$C$47 -> 30 | H53: =Assumptions!$C$47 -> 30 | I53: =Assumptions!$C$47 -> 30 | J53: =Assumptions!$C$47 -> 30 | K53: =Assumptions!$C$47 -> 30 | L53: =Assumptions!$C$47 -> 30 | M53: =Assumptions!$C$47 -> 30 | N53: =Assumptions!$C$47 -> 30 | O53: =Assumptions!$C$47 -> 30 | P53: =Assumptions!$C$47 -> 30 | Q53: =Assumptions!$C$47 -> 30 | R53: =Assumptions!$C$47 -> 30 | S53: =Assumptions!$C$47 -> 30 | T53: =Assumptions!$C$47 -> 30
B54: Monthly COS | D54: =IncState!C10 -> 185640 | E54: =IncState!D10 -> 198380 | F54: =IncState!E10 -> 200200 | G54: =IncState!F10 -> 202280 | H54: =IncState!G10 -> 205270 | I54: =IncState!H10 -> 201500 | J54: =IncState!I10 -> 193280 | K54: =IncState!J10 -> 200960 | L54: =IncState!K10 -> 203648 | M54: =IncState!L10 -> 164160 | N54: =IncState!M10 -> 211584 | O54: =IncState!N10 -> 195328 | P54: =SUM(D54:O54) -> 2362230 | Q54: =IncState!P10 -> 2452276.08 | R54: =IncState!Q10 -> 2563024.032 | S54: =IncState!R10 -> 2819326.435 | T54: =IncState!S10 -> 3101259.079
B55: Debtors Days | C55: =Assumptions!$C$48 -> 25 | D55: =Assumptions!$C$48 -> 25 | E55: =Assumptions!$C$48 -> 25 | F55: =Assumptions!$C$48 -> 25 | G55: =Assumptions!$C$48 -> 25 | H55: =Assumptions!$C$48 -> 25 | I55: =Assumptions!$C$48 -> 25 | J55: =Assumptions!$C$48 -> 25 | K55: =Assumptions!$C$48 -> 25 | L55: =Assumptions!$C$48 -> 25 | M55: =Assumptions!$C$48 -> 25 | N55: =Assumptions!$C$48 -> 25 | O55: =Assumptions!$C$48 -> 25 | P55: =Assumptions!$C$48 -> 25 | Q55: =Assumptions!$C$48 -> 25 | R55: =Assumptions!$C$48 -> 25 | S55: =Assumptions!$C$48 -> 25 | T55: =Assumptions!$C$48 -> 25
B56: Monthly Turnover (Inclusive) | D56: =(SUMIF(IncState!$A$4:$AO$7,"V1C1*",IncState!C$4:C$7)*(1+Assumptions!$C$57))+(SUMIF(IncState!$A$4:$AO$7,"V2C1*",IncState!C$4:C$7)*(1+Assumptions!$C$58))+(SUMIF(IncState!$A$4:$AO$7,"V3C1*",IncState!C$4:C$7)*(1+Assumptions!$C$59))+(SUMIF(IncState!$A$4:$AO$7,"V4C1*",IncState!C$4:C$7)*(1+Assumptions!$C$60)) -> 472190 | E56: =(SUMIF(IncState!$A$4:$AO$7,"V1C1*",IncState!D$4:D$7)*(1+Assumptions!$C$57))+(SUMIF(IncState!$A$4:$AO$7,"V2C1*",IncState!D$4:D$7)*(1+Assumptions!$C$58))+(SUMIF(IncState!$A$4:$AO$7,"V3C1*",IncState!D$4:D$7)*(1+Assumptions!$C$59))+(SUMIF(IncState!$A$4:$AO$7,"V4C1*",IncState!D$4:D$7)*(1+Assumptions!$C$60)) -> 483230 | F56: =(SUMIF(IncState!$A$4:$AO$7,"V1C1*",IncState!E$4:E$7)*(1+Assumptions!$C$57))+(SUMIF(IncState!$A$4:$AO$7,"V2C1*",IncState!E$4:E$7)*(1+Assumptions!$C$58))+(SUMIF(IncState!$A$4:$AO$7,"V3C1*",IncState!E$4:E$7)*(1+Assumptions!$C$59))+(SUMIF(IncState!$A$4:$AO$7,"V4C1*",IncState!E$4:E$7)*(1+Assumptions!$C$60)) -> 501400 | G56: =(SUMIF(IncState!$A$4:$AO$7,"V1C1*",IncState!F$4:F$7)*(1+Assumptions!$C$57))+(SUMIF(IncState!$A$4:$AO$7,"V2C1*",IncState!F$4:F$7)*(1+Assumptions!$C$58))+(SUMIF(IncState!$A$4:$AO$7,"V3C1*",IncState!F$4:F$7)*(1+Assumptions!$C$59))+(SUMIF(IncState!$A$4:$AO$7,"V4C1*",IncState!F$4:F$7)*(1+Assumptions!$C$60)) -> 509680 | H56: =(SUMIF(IncState!$A$4:$AO$7,"V1C1*",IncState!G$4:G$7)*(1+Assumptions!$C$57))+(SUMIF(IncState!$A$4:$AO$7,"V2C1*",IncState!G$4:G$7)*(1+Assumptions!$C$58))+(SUMIF(IncState!$A$4:$AO$7,"V3C1*",IncState!G$4:G$7)*(1+Assumptions!$C$59))+(SUMIF(IncState!$A$4:$AO$7,"V4C1*",IncState!G$4:G$7)*(1+Assumptions!$C$60)) -> 509220 | I56: =(SUMIF(IncState!$A$4:$AO$7,"V1C1*",IncState!H$4:H$7)*(1+Assumptions!$C$57))+(SUMIF(IncState!$A$4:$AO$7,"V2C1*",IncState!H$4:H$7)*(1+Assumptions!$C$58))+(SUMIF(IncState!$A$4:$AO$7,"V3C1*",IncState!H$4:H$7)*(1+Assumptions!$C$59))+(SUMIF(IncState!$A$4:$AO$7,"V4C1*",IncState!H$4:H$7)*(1+Assumptions!$C$60)) -> 509450 | J56: =(SUMIF(IncState!$A$4:$AO$7,"V1C1*",IncState!I$4:I$7)*(1+Assumptions!$C$57))+(SUMIF(IncState!$A$4:$AO$7,"V2C1*",IncState!I$4:I$7)*(1+Assumptions!$C$58))+(SUMIF(IncState!$A$4:$AO$7,"V3C1*",IncState!I$4:I$7)*(1+Assumptions!$C$59))+(SUMIF(IncState!$A$4:$AO$7,"V4C1*",IncState!I$4:I$7)*(1+Assumptions!$C$60)) -> 496800 | K56: =(SUMIF(IncState!$A$4:$AO$7,"V1C1*",IncState!J$4:J$7)*(1+Assumptions!$C$57))+(SUMIF(IncState!$A$4:$AO$7,"V2C1*",IncState!J$4:J$7)*(1+Assumptions!$C$58))+(SUMIF(IncState!$A$4:$AO$7,"V3C1*",IncState!J$4:J$7)*(1+Assumptions!$C$59))+(SUMIF(IncState!$A$4:$AO$7,"V4C1*",IncState!J$4:J$7)*(1+Assumptions!$C$60)) -> 509335 | L56: =(SUMIF(IncState!$A$4:$AO$7,"V1C1*",IncState!K$4:K$7)*(1+Assumptions!$C$57))+(SUMIF(IncState!$A$4:$AO$7,"V2C1*",IncState!K$4:K$7)*(1+Assumptions!$C$58))+(SUMIF(IncState!$A$4:$AO$7,"V3C1*",IncState!K$4:K$7)*(1+Assumptions!$C$59))+(SUMIF(IncState!$A$4:$AO$7,"V4C1*",IncState!K$4:K$7)*(1+Assumptions!$C$60)) -> 517730 | M56: =(SUMIF(IncState!$A$4:$AO$7,"V1C1*",IncState!L$4:L$7)*(1+Assumptions!$C$57))+(SUMIF(IncState!$A$4:$AO$7,"V2C1*",IncState!L$4:L$7)*(1+Assumptions!$C$58))+(SUMIF(IncState!$A$4:$AO$7,"V3C1*",IncState!L$4:L$7)*(1+Assumptions!$C$59))+(SUMIF(IncState!$A$4:$AO$7,"V4C1*",IncState!L$4:L$7)*(1+Assumptions!$C$60)) -> 430675 | N56: =(SUMIF(IncState!$A$4:$AO$7,"V1C1*",IncState!M$4:M$7)*(1+Assumptions!$C$57))+(SUMIF(IncState!$A$4:$AO$7,"V2C1*",IncState!M$4:M$7)*(1+Assumptions!$C$58))+(SUMIF(IncState!$A$4:$AO$7,"V3C1*",IncState!M$4:M$7)*(1+Assumptions!$C$59))+(SUMIF(IncState!$A$4:$AO$7,"V4C1*",IncState!M$4:M$7)*(1+Assumptions!$C$60)) -> 535440 | O56: =(SUMIF(IncState!$A$4:$AO$7,"V1C1*",IncState!N$4:N$7)*(1+Assumptions!$C$57))+(SUMIF(IncState!$A$4:$AO$7,"V2C1*",IncState!N$4:N$7)*(1+Assumptions!$C$58))+(SUMIF(IncState!$A$4:$AO$7,"V3C1*",IncState!N$4:N$7)*(1+Assumptions!$C$59))+(SUMIF(IncState!$A$4:$AO$7,"V4C1*",IncState!N$4:N$7)*(1+Assumptions!$C$60)) -> 501860 | P56: =SUM(D56:O56) -> 5977010 | Q56: =(SUMIF(IncState!$A$4:$AO$7,"V1C1*",IncState!P$4:P$7)*(1+Assumptions!$C$57))+(SUMIF(IncState!$A$4:$AO$7,"V2C1*",IncState!P$4:P$7)*(1+Assumptions!$C$58))+(SUMIF(IncState!$A$4:$AO$7,"V3C1*",IncState!P$4:P$7)*(1+Assumptions!$C$59))+(SUMIF(IncState!$A$4:$AO$7,"V4C1*",IncState!P$4:P$7)*(1+Assumptions!$C$60)) -> 6455170.8 | R56: =(SUMIF(IncState!$A$4:$AO$7,"V1C1*",IncState!Q$4:Q$7)*(1+Assumptions!$C$57))+(SUMIF(IncState!$A$4:$AO$7,"V2C1*",IncState!Q$4:Q$7)*(1+Assumptions!$C$58))+(SUMIF(IncState!$A$4:$AO$7,"V3C1*",IncState!Q$4:Q$7)*(1+Assumptions!$C$59))+(SUMIF(IncState!$A$4:$AO$7,"V4C1*",IncState!Q$4:Q$7)*(1+Assumptions!$C$60)) -> 6971584.464 | S56: =(SUMIF(IncState!$A$4:$AO$7,"V1C1*",IncState!R$4:R$7)*(1+Assumptions!$C$57))+(SUMIF(IncState!$A$4:$AO$7,"V2C1*",IncState!R$4:R$7)*(1+Assumptions!$C$58))+(SUMIF(IncState!$A$4:$AO$7,"V3C1*",IncState!R$4:R$7)*(1+Assumptions!$C$59))+(SUMIF(IncState!$A$4:$AO$7,"V4C1*",IncState!R$4:R$7)*(1+Assumptions!$C$60)) -> 7668742.91 | T56: =(SUMIF(IncState!$A$4:$AO$7,"V1C1*",IncState!S$4:S$7)*(1+Assumptions!$C$57))+(SUMIF(IncState!$A$4:$AO$7,"V2C1*",IncState!S$4:S$7)*(1+Assumptions!$C$58))+(SUMIF(IncState!$A$4:$AO$7,"V3C1*",IncState!S$4:S$7)*(1+Assumptions!$C$59))+(SUMIF(IncState!$A$4:$AO$7,"V4C1*",IncState!S$4:S$7)*(1+Assumptions!$C$60)) -> 8435617.201
B57: Creditors Days | C57: =Assumptions!$C$49 -> 15 | D57: =Assumptions!$C$49 -> 15 | E57: =Assumptions!$C$49 -> 15 | F57: =Assumptions!$C$49 -> 15 | G57: =Assumptions!$C$49 -> 15 | H57: =Assumptions!$C$49 -> 15 | I57: =Assumptions!$C$49 -> 15 | J57: =Assumptions!$C$49 -> 15 | K57: =Assumptions!$C$49 -> 15 | L57: =Assumptions!$C$49 -> 15 | M57: =Assumptions!$C$49 -> 15 | N57: =Assumptions!$C$49 -> 15 | O57: =Assumptions!$C$49 -> 15 | P57: =Assumptions!$C$49 -> 15 | Q57: =Assumptions!$C$49 -> 15 | R57: =Assumptions!$C$49 -> 15 | S57: =Assumptions!$C$49 -> 15 | T57: =Assumptions!$C$49 -> 15
B58: Monthly Payables (Inclusive) | D58: =((SUMIF(IncState!$A$7:$AO$59,"*V1C1*",IncState!C$7:C$59)-SUMIF(CashFlow!$A$27:$AO$31,"*V1C1*",CashFlow!C$27:C$31))*(1+Assumptions!$C$57))+((SUMIF(IncState!$A$7:$AO$59,"*V2C1*",IncState!C$7:C$59)-SUMIF(CashFlow!$A$27:$AO$31,"*V2C1*",CashFlow!C$27:C$31))*(1+Assumptions!$C$58))+((SUMIF(IncState!$A$7:$AO$59,"*V3C1*",IncState!C$7:C$59)-SUMIF(CashFlow!$A$27:$AO$31,"*V3C1*",CashFlow!C$27:C$31))*(1+Assumptions!$C$59))+((SUMIF(IncState!$A$7:$AO$59,"*V4C1*",IncState!C$7:C$59)-SUMIF(CashFlow!$A$27:$AO$31,"*V4C1*",CashFlow!C$27:C$31))*(1+Assumptions!$C$60)) -> 225141.25 | E58: =((SUMIF(IncState!$A$7:$AO$59,"*V1C1*",IncState!D$7:D$59)-SUMIF(CashFlow!$A$27:$AO$31,"*V1C1*",CashFlow!D$27:D$31))*(1+Assumptions!$C$57))+((SUMIF(IncState!$A$7:$AO$59,"*V2C1*",IncState!D$7:D$59)-SUMIF(CashFlow!$A$27:$AO$31,"*V2C1*",CashFlow!D$27:D$31))*(1+Assumptions!$C$58))+((SUMIF(IncState!$A$7:$AO$59,"*V3C1*",IncState!D$7:D$59)-SUMIF(CashFlow!$A$27:$AO$31,"*V3C1*",CashFlow!D$27:D$31))*(1+Assumptions!$C$59))+((SUMIF(IncState!$A$7:$AO$59,"*V4C1*",IncState!D$7:D$59)-SUMIF(CashFlow!$A$27:$AO$31,"*V4C1*",CashFlow!D$27:D$31))*(1+Assumptions!$C$60)) -> 239792.25 | F58: =((SUMIF(IncState!$A$7:$AO$59,"*V1C1*",IncState!E$7:E$59)-SUMIF(CashFlow!$A$27:$AO$31,"*V1C1*",CashFlow!E$27:E$31))*(1+Assumptions!$C$57))+((SUMIF(IncState!$A$7:$AO$59,"*V2C1*",IncState!E$7:E$59)-SUMIF(CashFlow!$A$27:$AO$31,"*V2C1*",CashFlow!E$27:E$31))*(1+Assumptions!$C$58))+((SUMIF(IncState!$A$7:$AO$59,"*V3C1*",IncState!E$7:E$59)-SUMIF(CashFlow!$A$27:$AO$31,"*V3C1*",CashFlow!E$27:E$31))*(1+Assumptions!$C$59))+((SUMIF(IncState!$A$7:$AO$59,"*V4C1*",IncState!E$7:E$59)-SUMIF(CashFlow!$A$27:$AO$31,"*V4C1*",CashFlow!E$27:E$31))*(1+Assumptions!$C$60)) -> 247635.25 | G58: =((SUMIF(IncState!$A$7:$AO$59,"*V1C1*",IncState!F$7:F$59)-SUMIF(CashFlow!$A$27:$AO$31,"*V1C1*",CashFlow!F$27:F$31))*(1+Assumptions!$C$57))+((SUMIF(IncState!$A$7:$AO$59,"*V2C1*",IncState!F$7:F$59)-SUMIF(CashFlow!$A$27:$AO$31,"*V2C1*",CashFlow!F$27:F$31))*(1+Assumptions!$C$58))+((SUMIF(IncState!$A$7:$AO$59,"*V3C1*",IncState!F$7:F$59)-SUMIF(CashFlow!$A$27:$AO$31,"*V3C1*",CashFlow!F$27:F$31))*(1+Assumptions!$C$59))+((SUMIF(IncState!$A$7:$AO$59,"*V4C1*",IncState!F$7:F$59)-SUMIF(CashFlow!$A$27:$AO$31,"*V4C1*",CashFlow!F$27:F$31))*(1+Assumptions!$C$60)) -> 329377.25 | H58: =((SUMIF(IncState!$A$7:$AO$59,"*V1C1*",IncState!G$7:G$59)-SUMIF(CashFlow!$A$27:$AO$31,"*V1C1*",CashFlow!G$27:G$31))*(1+Assumptions!$C$57))+((SUMIF(IncState!$A$7:$AO$59,"*V2C1*",IncState!G$7:G$59)-SUMIF(CashFlow!$A$27:$AO$31,"*V2C1*",CashFlow!G$27:G$31))*(1+Assumptions!$C$58))+((SUMIF(IncState!$A$7:$AO$59,"*V3C1*",IncState!G$7:G$59)-SUMIF(CashFlow!$A$27:$AO$31,"*V3C1*",CashFlow!G$27:G$31))*(1+Assumptions!$C$59))+((SUMIF(IncState!$A$7:$AO$59,"*V4C1*",IncState!G$7:G$59)-SUMIF(CashFlow!$A$27:$AO$31,"*V4C1*",CashFlow!G$27:G$31))*(1+Assumptions!$C$60)) -> 268415.75 | I58: =((SUMIF(IncState!$A$7:$AO$59,"*V1C1*",IncState!H$7:H$59)-SUMIF(CashFlow!$A$27:$AO$31,"*V1C1*",CashFlow!H$27:H$31))*(1+Assumptions!$C$57))+((SUMIF(IncState!$A$7:$AO$59,"*V2C1*",IncState!H$7:H$59)-SUMIF(CashFlow!$A$27:$AO$31,"*V2C1*",CashFlow!H$27:H$31))*(1+Assumptions!$C$58))+((SUMIF(IncState!$A$7:$AO$59,"*V3C1*",IncState!H$7:H$59)-SUMIF(CashFlow!$A$27:$AO$31,"*V3C1*",CashFlow!H$27:H$31))*(1+Assumptions!$C$59))+((SUMIF(IncState!$A$7:$AO$59,"*V4C1*",IncState!H$7:H$59)-SUMIF(CashFlow!$A$27:$AO$31,"*V4C1*",CashFlow!H$27:H$31))*(1+Assumptions!$C$60)) -> 266380.25 | J58: =((SUMIF(IncState!$A$7:$AO$59,"*V1C1*",IncState!I$7:I$59)-SUMIF(CashFlow!$A$27:$AO$31,"*V1C1*",CashFlow!I$27:I$31))*(1+Assumptions!$C$57))+((SUMIF(IncState!$A$7:$AO$59,"*V2C1*",IncState!I$7:I$59)-SUMIF(CashFlow!$A$27:$AO$31,"*V2C1*",CashFlow!I$27:I$31))*(1+Assumptions!$C$58))+((SUMIF(IncState!$A$7:$AO$59,"*V3C1*",IncState!I$7:I$59)-SUMIF(CashFlow!$A$27:$AO$31,"*V3C1*",CashFlow!I$27:I$31))*(1+Assumptions!$C$59))+((SUMIF(IncState!$A$7:$AO$59,"*V4C1*",IncState!I$7:I$59)-SUMIF(CashFlow!$A$27:$AO$31,"*V4C1*",CashFlow!I$27:I$31))*(1+Assumptions!$C$60)) -> 236836.75 | K58: =((SUMIF(IncState!$A$7:$AO$59,"*V1C1*",IncState!J$7:J$59)-SUMIF(CashFlow!$A$27:$AO$31,"*V1C1*",CashFlow!J$27:J$31))*(1+Assumptions!$C$57))+((SUMIF(IncState!$A$7:$AO$59,"*V2C1*",IncState!J$7:J$59)-SUMIF(CashFlow!$A$27:$AO$31,"*V2C1*",CashFlow!J$27:J$31))*(1+Assumptions!$C$58))+((SUMIF(IncState!$A$7:$AO$59,"*V3C1*",IncState!J$7:J$59)-SUMIF(CashFlow!$A$27:$AO$31,"*V3C1*",CashFlow!J$27:J$31))*(1+Assumptions!$C$59))+((SUMIF(IncState!$A$7:$AO$59,"*V4C1*",IncState!J$7:J$59)-SUMIF(CashFlow!$A$27:$AO$31,"*V4C1*",CashFlow!J$27:J$31))*(1+Assumptions!$C$60)) -> 293359.25 | L58: =((SUMIF(IncState!$A$7:$AO$59,"*V1C1*",IncState!K$7:K$59)-SUMIF(CashFlow!$A$27:$AO$31,"*V1C1*",CashFlow!K$27:K$31))*(1+Assumptions!$C$57))+((SUMIF(IncState!$A$7:$AO$59,"*V2C1*",IncState!K$7:K$59)-SUMIF(CashFlow!$A$27:$AO$31,"*V2C1*",CashFlow!K$27:K$31))*(1+Assumptions!$C$58))+((SUMIF(IncState!$A$7:$AO$59,"*V3C1*",IncState!K$7:K$59)-SUMIF(CashFlow!$A$27:$AO$31,"*V3C1*",CashFlow!K$27:K$31))*(1+Assumptions!$C$59))+((SUMIF(IncState!$A$7:$AO$59,"*V4C1*",IncState!K$7:K$59)-SUMIF(CashFlow!$A$27:$AO$31,"*V4C1*",CashFlow!K$27:K$31))*(1+Assumptions!$C$60)) -> 289550.45 | M58: =((SUMIF(IncState!$A$7:$AO$59,"*V1C1*",IncState!L$7:L$59)-SUMIF(CashFlow!$A$27:$AO$31,"*V1C1*",CashFlow!L$27:L$31))*(1+Assumptions!$C$57))+((SUMIF(IncState!$A$7:$AO$59,"*V2C1*",IncState!L$7:L$59)-SUMIF(CashFlow!$A$27:$AO$31,"*V2C1*",CashFlow!L$27:L$31))*(1+Assumptions!$C$58))+((SUMIF(IncState!$A$7:$AO$59,"*V3C1*",IncState!L$7:L$59)-SUMIF(CashFlow!$A$27:$AO$31,"*V3C1*",CashFlow!L$27:L$31))*(1+Assumptions!$C$59))+((SUMIF(IncState!$A$7:$AO$59,"*V4C1*",IncState!L$7:L$59)-SUMIF(CashFlow!$A$27:$AO$31,"*V4C1*",CashFlow!L$27:L$31))*(1+Assumptions!$C$60)) -> 209639.25 | N58: =((SUMIF(IncState!$A$7:$AO$59,"*V1C1*",IncState!M$7:M$59)-SUMIF(CashFlow!$A$27:$AO$31,"*V1C1*",CashFlow!M$27:M$31))*(1+Assumptions!$C$57))+((SUMIF(IncState!$A$7:$AO$59,"*V2C1*",IncState!M$7:M$59)-SUMIF(CashFlow!$A$27:$AO$31,"*V2C1*",CashFlow!M$27:M$31))*(1+Assumptions!$C$58))+((SUMIF(IncState!$A$7:$AO$59,"*V3C1*",IncState!M$7:M$59)-SUMIF(CashFlow!$A$27:$AO$31,"*V3C1*",CashFlow!M$27:M$31))*(1+Assumptions!$C$59))+((SUMIF(IncState!$A$7:$AO$59,"*V4C1*",IncState!M$7:M$59)-SUMIF(CashFlow!$A$27:$AO$31,"*V4C1*",CashFlow!M$27:M$31))*(1+Assumptions!$C$60)) -> 254976.85 | O58: =((SUMIF(IncState!$A$7:$AO$59,"*V1C1*",IncState!N$7:N$59)-SUMIF(CashFlow!$A$27:$AO$31,"*V1C1*",CashFlow!N$27:N$31))*(1+Assumptions!$C$57))+((SUMIF(IncState!$A$7:$AO$59,"*V2C1*",IncState!N$7:N$59)-SUMIF(CashFlow!$A$27:$AO$31,"*V2C1*",CashFlow!N$27:N$31))*(1+Assumptions!$C$58))+((SUMIF(IncState!$A$7:$AO$59,"*V3C1*",IncState!N$7:N$59)-SUMIF(CashFlow!$A$27:$AO$31,"*V3C1*",CashFlow!N$27:N$31))*(1+Assumptions!$C$59))+((SUMIF(IncState!$A$7:$AO$59,"*V4C1*",IncState!N$7:N$59)-SUMIF(CashFlow!$A$27:$AO$31,"*V4C1*",CashFlow!N$27:N$31))*(1+Assumptions!$C$60)) -> 236282.45 | P58: =SUM(D58:O58) -> 3097387 | Q58: =((SUMIF(IncState!$A$7:$AO$59,"*V1C1*",IncState!P$7:P$59)-SUMIF(CashFlow!$A$27:$AO$31,"*V1C1*",CashFlow!P$27:P$31))*(1+Assumptions!$C$57))+((SUMIF(IncState!$A$7:$AO$59,"*V2C1*",IncState!P$7:P$59)-SUMIF(CashFlow!$A$27:$AO$31,"*V2C1*",CashFlow!P$27:P$31))*(1+Assumptions!$C$58))+((SUMIF(IncState!$A$7:$AO$59,"*V3C1*",IncState!P$7:P$59)-SUMIF(CashFlow!$A$27:$AO$31,"*V3C1*",CashFlow!P$27:P$31))*(1+Assumptions!$C$59))+((SUMIF(IncState!$A$7:$AO$59,"*V4C1*",IncState!P$7:P$59)-SUMIF(CashFlow!$A$27:$AO$31,"*V4C1*",CashFlow!P$27:P$31))*(1+Assumptions!$C$60)) -> 3223789.342 | R58: =((SUMIF(IncState!$A$7:$AO$59,"*V1C1*",IncState!Q$7:Q$59)-SUMIF(CashFlow!$A$27:$AO$31,"*V1C1*",CashFlow!Q$27:Q$31))*(1+Assumptions!$C$57))+((SUMIF(IncState!$A$7:$AO$59,"*V2C1*",IncState!Q$7:Q$59)-SUMIF(CashFlow!$A$27:$AO$31,"*V2C1*",CashFlow!Q$27:Q$31))*(1+Assumptions!$C$58))+((SUMIF(IncState!$A$7:$AO$59,"*V3C1*",IncState!Q$7:Q$59)-SUMIF(CashFlow!$A$27:$AO$31,"*V3C1*",CashFlow!Q$27:Q$31))*(1+Assumptions!$C$59))+((SUMIF(IncState!$A$7:$AO$59,"*V4C1*",IncState!Q$7:Q$59)-SUMIF(CashFlow!$A$27:$AO$31,"*V4C1*",CashFlow!Q$27:Q$31))*(1+Assumptions!$C$60)) -> 3375369.798 | S58: =((SUMIF(IncState!$A$7:$AO$59,"*V1C1*",IncState!R$7:R$59)-SUMIF(CashFlow!$A$27:$AO$31,"*V1C1*",CashFlow!R$27:R$31))*(1+Assumptions!$C$57))+((SUMIF(IncState!$A$7:$AO$59,"*V2C1*",IncState!R$7:R$59)-SUMIF(CashFlow!$A$27:$AO$31,"*V2C1*",CashFlow!R$27:R$31))*(1+Assumptions!$C$58))+((SUMIF(IncState!$A$7:$AO$59,"*V3C1*",IncState!R$7:R$59)-SUMIF(CashFlow!$A$27:$AO$31,"*V3C1*",CashFlow!R$27:R$31))*(1+Assumptions!$C$59))+((SUMIF(IncState!$A$7:$AO$59,"*V4C1*",IncState!R$7:R$59)-SUMIF(CashFlow!$A$27:$AO$31,"*V4C1*",CashFlow!R$27:R$31))*(1+Assumptions!$C$60)) -> 3695791.091 | T58: =((SUMIF(IncState!$A$7:$AO$59,"*V1C1*",IncState!S$7:S$59)-SUMIF(CashFlow!$A$27:$AO$31,"*V1C1*",CashFlow!S$27:S$31))*(1+Assumptions!$C$57))+((SUMIF(IncState!$A$7:$AO$59,"*V2C1*",IncState!S$7:S$59)-SUMIF(CashFlow!$A$27:$AO$31,"*V2C1*",CashFlow!S$27:S$31))*(1+Assumptions!$C$58))+((SUMIF(IncState!$A$7:$AO$59,"*V3C1*",IncState!S$7:S$59)-SUMIF(CashFlow!$A$27:$AO$31,"*V3C1*",CashFlow!S$27:S$31))*(1+Assumptions!$C$59))+((SUMIF(IncState!$A$7:$AO$59,"*V4C1*",IncState!S$7:S$59)-SUMIF(CashFlow!$A$27:$AO$31,"*V4C1*",CashFlow!S$27:S$31))*(1+Assumptions!$C$60)) -> 4047227.573
B59: Sales Tax:
B60: Payment Month? | C60: =IF(OR(MONTH(C$4)=Assumptions!$C$62,((MONTH(C$4)-Assumptions!$C$62)/MAX(Assumptions!$C$61,1))-ROUND((MONTH(C$4)-Assumptions!$C$62)/MAX(Assumptions!$C$61,1),0)=0),"Yes","No") -> No | D60: =IF(OR(MONTH(D$4)=Assumptions!$C$62,((MONTH(D$4)-Assumptions!$C$62)/MAX(Assumptions!$C$61,1))-ROUND((MONTH(D$4)-Assumptions!$C$62)/MAX(Assumptions!$C$61,1),0)=0),"Yes","No") -> Yes | E60: =IF(OR(MONTH(E$4)=Assumptions!$C$62,((MONTH(E$4)-Assumptions!$C$62)/MAX(Assumptions!$C$61,1))-ROUND((MONTH(E$4)-Assumptions!$C$62)/MAX(Assumptions!$C$61,1),0)=0),"Yes","No") -> No | F60: =IF(OR(MONTH(F$4)=Assumptions!$C$62,((MONTH(F$4)-Assumptions!$C$62)/MAX(Assumptions!$C$61,1))-ROUND((MONTH(F$4)-Assumptions!$C$62)/MAX(Assumptions!$C$61,1),0)=0),"Yes","No") -> Yes | G60: =IF(OR(MONTH(G$4)=Assumptions!$C$62,((MONTH(G$4)-Assumptions!$C$62)/MAX(Assumptions!$C$61,1))-ROUND((MONTH(G$4)-Assumptions!$C$62)/MAX(Assumptions!$C$61,1),0)=0),"Yes","No") -> No | H60: =IF(OR(MONTH(H$4)=Assumptions!$C$62,((MONTH(H$4)-Assumptions!$C$62)/MAX(Assumptions!$C$61,1))-ROUND((MONTH(H$4)-Assumptions!$C$62)/MAX(Assumptions!$C$61,1),0)=0),"Yes","No") -> Yes | I60: =IF(OR(MONTH(I$4)=Assumptions!$C$62,((MONTH(I$4)-Assumptions!$C$62)/MAX(Assumptions!$C$61,1))-ROUND((MONTH(I$4)-Assumptions!$C$62)/MAX(Assumptions!$C$61,1),0)=0),"Yes","No") -> No | J60: =IF(OR(MONTH(J$4)=Assumptions!$C$62,((MONTH(J$4)-Assumptions!$C$62)/MAX(Assumptions!$C$61,1))-ROUND((MONTH(J$4)-Assumptions!$C$62)/MAX(Assumptions!$C$61,1),0)=0),"Yes","No") -> Yes | K60: =IF(OR(MONTH(K$4)=Assumptions!$C$62,((MONTH(K$4)-Assumptions!$C$62)/MAX(Assumptions!$C$61,1))-ROUND((MONTH(K$4)-Assumptions!$C$62)/MAX(Assumptions!$C$61,1),0)=0),"Yes","No") -> No | L60: =IF(OR(MONTH(L$4)=Assumptions!$C$62,((MONTH(L$4)-Assumptions!$C$62)/MAX(Assumptions!$C$61,1))-ROUND((MONTH(L$4)-Assumptions!$C$62)/MAX(Assumptions!$C$61,1),0)=0),"Yes","No") -> Yes | M60: =IF(OR(MONTH(M$4)=Assumptions!$C$62,((MONTH(M$4)-Assumptions!$C$62)/MAX(Assumptions!$C$61,1))-ROUND((MONTH(M$4)-Assumptions!$C$62)/MAX(Assumptions!$C$61,1),0)=0),"Yes","No") -> No | N60: =IF(OR(MONTH(N$4)=Assumptions!$C$62,((MONTH(N$4)-Assumptions!$C$62)/MAX(Assumptions!$C$61,1))-ROUND((MONTH(N$4)-Assumptions!$C$62)/MAX(Assumptions!$C$61,1),0)=0),"Yes","No") -> Yes | O60: =IF(OR(MONTH(O$4)=Assumptions!$C$62,((MONTH(O$4)-Assumptions!$C$62)/MAX(Assumptions!$C$61,1))-ROUND((MONTH(O$4)-Assumptions!$C$62)/MAX(Assumptions!$C$61,1),0)=0),"Yes","No") -> No | P60: =$O$60 -> No | Q60: =$O$60 -> No | R60: No | S60: No | T60: No
B61: Month Index | C61: =IF(C60="Yes",1-Assumptions!$D$63,IF(ISTEXT(B61),Assumptions!$C$61-MATCH("Yes",$C$60:$AO$60,0)+COLUMN($B$4),IF(ISBLANK(B61),A61+2,B61+1))) -> 2 | D61: =IF(D60="Yes",1-Assumptions!$D$63,IF(ISTEXT(C61),Assumptions!$C$61-MATCH("Yes",$C$60:$AO$60,0)+COLUMN($B$4),IF(ISBLANK(C61),B61+2,C61+1))) -> 1 | E61: =IF(E60="Yes",1-Assumptions!$D$63,IF(ISTEXT(D61),Assumptions!$C$61-MATCH("Yes",$C$60:$AO$60,0)+COLUMN($B$4),IF(ISBLANK(D61),C61+2,D61+1))) -> 2 | F61: =IF(F60="Yes",1-Assumptions!$D$63,IF(ISTEXT(E61),Assumptions!$C$61-MATCH("Yes",$C$60:$AO$60,0)+COLUMN($B$4),IF(ISBLANK(E61),D61+2,E61+1))) -> 1 | G61: =IF(G60="Yes",1-Assumptions!$D$63,IF(ISTEXT(F61),Assumptions!$C$61-MATCH("Yes",$C$60:$AO$60,0)+COLUMN($B$4),IF(ISBLANK(F61),E61+2,F61+1))) -> 2 | H61: =IF(H60="Yes",1-Assumptions!$D$63,IF(ISTEXT(G61),Assumptions!$C$61-MATCH("Yes",$C$60:$AO$60,0)+COLUMN($B$4),IF(ISBLANK(G61),F61+2,G61+1))) -> 1 | I61: =IF(I60="Yes",1-Assumptions!$D$63,IF(ISTEXT(H61),Assumptions!$C$61-MATCH("Yes",$C$60:$AO$60,0)+COLUMN($B$4),IF(ISBLANK(H61),G61+2,H61+1))) -> 2 | J61: =IF(J60="Yes",1-Assumptions!$D$63,IF(ISTEXT(I61),Assumptions!$C$61-MATCH("Yes",$C$60:$AO$60,0)+COLUMN($B$4),IF(ISBLANK(I61),H61+2,I61+1))) -> 1 | K61: =IF(K60="Yes",1-Assumptions!$D$63,IF(ISTEXT(J61),Assumptions!$C$61-MATCH("Yes",$C$60:$AO$60,0)+COLUMN($B$4),IF(ISBLANK(J61),I61+2,J61+1))) -> 2 | L61: =IF(L60="Yes",1-Assumptions!$D$63,IF(ISTEXT(K61),Assumptions!$C$61-MATCH("Yes",$C$60:$AO$60,0)+COLUMN($B$4),IF(ISBLANK(K61),J61+2,K61+1))) -> 1 | M61: =IF(M60="Yes",1-Assumptions!$D$63,IF(ISTEXT(L61),Assumptions!$C$61-MATCH("Yes",$C$60:$AO$60,0)+COLUMN($B$4),IF(ISBLANK(L61),K61+2,L61+1))) -> 2 | N61: =IF(N60="Yes",1-Assumptions!$D$63,IF(ISTEXT(M61),Assumptions!$C$61-MATCH("Yes",$C$60:$AO$60,0)+COLUMN($B$4),IF(ISBLANK(M61),L61+2,M61+1))) -> 1 | O61: =IF(O60="Yes",1-Assumptions!$D$63,IF(ISTEXT(N61),Assumptions!$C$61-MATCH("Yes",$C$60:$AO$60,0)+COLUMN($B$4),IF(ISBLANK(N61),M61+2,N61+1))) -> 2 | P61: =$O$61 -> 2 | Q61: =$O$61 -> 2 | R61: 2 | S61: 2 | T61: 2
B62: Monthly Output Total | C62: =IF(C$34>0,C$34,0) -> 16000 | D62: =(SUMIF(IncState!$A$4:$AO$7,"V1*",IncState!C$4:C$7)*Assumptions!$C$57)+(SUMIF(IncState!$A$4:$AO$7,"V2*",IncState!C$4:C$7)*Assumptions!$C$58)+(SUMIF(IncState!$A$4:$AO$7,"V3*",IncState!C$4:C$7)*Assumptions!$C$59)+(SUMIF(IncState!$A$4:$AO$7,"V4*",IncState!C$4:C$7)*Assumptions!$C$60) -> 61590 | E62: =(SUMIF(IncState!$A$4:$AO$7,"V1*",IncState!D$4:D$7)*Assumptions!$C$57)+(SUMIF(IncState!$A$4:$AO$7,"V2*",IncState!D$4:D$7)*Assumptions!$C$58)+(SUMIF(IncState!$A$4:$AO$7,"V3*",IncState!D$4:D$7)*Assumptions!$C$59)+(SUMIF(IncState!$A$4:$AO$7,"V4*",IncState!D$4:D$7)*Assumptions!$C$60) -> 63030 | F62: =(SUMIF(IncState!$A$4:$AO$7,"V1*",IncState!E$4:E$7)*Assumptions!$C$57)+(SUMIF(IncState!$A$4:$AO$7,"V2*",IncState!E$4:E$7)*Assumptions!$C$58)+(SUMIF(IncState!$A$4:$AO$7,"V3*",IncState!E$4:E$7)*Assumptions!$C$59)+(SUMIF(IncState!$A$4:$AO$7,"V4*",IncState!E$4:E$7)*Assumptions!$C$60) -> 65400 | G62: =(SUMIF(IncState!$A$4:$AO$7,"V1*",IncState!F$4:F$7)*Assumptions!$C$57)+(SUMIF(IncState!$A$4:$AO$7,"V2*",IncState!F$4:F$7)*Assumptions!$C$58)+(SUMIF(IncState!$A$4:$AO$7,"V3*",IncState!F$4:F$7)*Assumptions!$C$59)+(SUMIF(IncState!$A$4:$AO$7,"V4*",IncState!F$4:F$7)*Assumptions!$C$60) -> 66480 | H62: =(SUMIF(IncState!$A$4:$AO$7,"V1*",IncState!G$4:G$7)*Assumptions!$C$57)+(SUMIF(IncState!$A$4:$AO$7,"V2*",IncState!G$4:G$7)*Assumptions!$C$58)+(SUMIF(IncState!$A$4:$AO$7,"V3*",IncState!G$4:G$7)*Assumptions!$C$59)+(SUMIF(IncState!$A$4:$AO$7,"V4*",IncState!G$4:G$7)*Assumptions!$C$60) -> 66420 | I62: =(SUMIF(IncState!$A$4:$AO$7,"V1*",IncState!H$4:H$7)*Assumptions!$C$57)+(SUMIF(IncState!$A$4:$AO$7,"V2*",IncState!H$4:H$7)*Assumptions!$C$58)+(SUMIF(IncState!$A$4:$AO$7,"V3*",IncState!H$4:H$7)*Assumptions!$C$59)+(SUMIF(IncState!$A$4:$AO$7,"V4*",IncState!H$4:H$7)*Assumptions!$C$60) -> 66450 | J62: =(SUMIF(IncState!$A$4:$AO$7,"V1*",IncState!I$4:I$7)*Assumptions!$C$57)+(SUMIF(IncState!$A$4:$AO$7,"V2*",IncState!I$4:I$7)*Assumptions!$C$58)+(SUMIF(IncState!$A$4:$AO$7,"V3*",IncState!I$4:I$7)*Assumptions!$C$59)+(SUMIF(IncState!$A$4:$AO$7,"V4*",IncState!I$4:I$7)*Assumptions!$C$60) -> 64800 | K62: =(SUMIF(IncState!$A$4:$AO$7,"V1*",IncState!J$4:J$7)*Assumptions!$C$57)+(SUMIF(IncState!$A$4:$AO$7,"V2*",IncState!J$4:J$7)*Assumptions!$C$58)+(SUMIF(IncState!$A$4:$AO$7,"V3*",IncState!J$4:J$7)*Assumptions!$C$59)+(SUMIF(IncState!$A$4:$AO$7,"V4*",IncState!J$4:J$7)*Assumptions!$C$60) -> 66435 | L62: =(SUMIF(IncState!$A$4:$AO$7,"V1*",IncState!K$4:K$7)*Assumptions!$C$57)+(SUMIF(IncState!$A$4:$AO$7,"V2*",IncState!K$4:K$7)*Assumptions!$C$58)+(SUMIF(IncState!$A$4:$AO$7,"V3*",IncState!K$4:K$7)*Assumptions!$C$59)+(SUMIF(IncState!$A$4:$AO$7,"V4*",IncState!K$4:K$7)*Assumptions!$C$60) -> 67530 | M62: =(SUMIF(IncState!$A$4:$AO$7,"V1*",IncState!L$4:L$7)*Assumptions!$C$57)+(SUMIF(IncState!$A$4:$AO$7,"V2*",IncState!L$4:L$7)*Assumptions!$C$58)+(SUMIF(IncState!$A$4:$AO$7,"V3*",IncState!L$4:L$7)*Assumptions!$C$59)+(SUMIF(IncState!$A$4:$AO$7,"V4*",IncState!L$4:L$7)*Assumptions!$C$60) -> 56175 | N62: =(SUMIF(IncState!$A$4:$AO$7,"V1*",IncState!M$4:M$7)*Assumptions!$C$57)+(SUMIF(IncState!$A$4:$AO$7,"V2*",IncState!M$4:M$7)*Assumptions!$C$58)+(SUMIF(IncState!$A$4:$AO$7,"V3*",IncState!M$4:M$7)*Assumptions!$C$59)+(SUMIF(IncState!$A$4:$AO$7,"V4*",IncState!M$4:M$7)*Assumptions!$C$60) -> 69840 | O62: =(SUMIF(IncState!$A$4:$AO$7,"V1*",IncState!N$4:N$7)*Assumptions!$C$57)+(SUMIF(IncState!$A$4:$AO$7,"V2*",IncState!N$4:N$7)*Assumptions!$C$58)+(SUMIF(IncState!$A$4:$AO$7,"V3*",IncState!N$4:N$7)*Assumptions!$C$59)+(SUMIF(IncState!$A$4:$AO$7,"V4*",IncState!N$4:N$7)*Assumptions!$C$60) -> 65460 | P62: =(SUMIF(IncState!$A$4:$AO$7,"V1*",IncState!O$4:O$7)*Assumptions!$C$57)+(SUMIF(IncState!$A$4:$AO$7,"V2*",IncState!O$4:O$7)*Assumptions!$C$58)+(SUMIF(IncState!$A$4:$AO$7,"V3*",IncState!O$4:O$7)*Assumptions!$C$59)+(SUMIF(IncState!$A$4:$AO$7,"V4*",IncState!O$4:O$7)*Assumptions!$C$60) -> 779610 | Q62: =(SUMIF(IncState!$A$4:$AO$7,"V1*",IncState!P$4:P$7)*Assumptions!$C$57)+(SUMIF(IncState!$A$4:$AO$7,"V2*",IncState!P$4:P$7)*Assumptions!$C$58)+(SUMIF(IncState!$A$4:$AO$7,"V3*",IncState!P$4:P$7)*Assumptions!$C$59)+(SUMIF(IncState!$A$4:$AO$7,"V4*",IncState!P$4:P$7)*Assumptions!$C$60) -> 841978.8 | R62: =(SUMIF(IncState!$A$4:$AO$7,"V1*",IncState!Q$4:Q$7)*Assumptions!$C$57)+(SUMIF(IncState!$A$4:$AO$7,"V2*",IncState!Q$4:Q$7)*Assumptions!$C$58)+(SUMIF(IncState!$A$4:$AO$7,"V3*",IncState!Q$4:Q$7)*Assumptions!$C$59)+(SUMIF(IncState!$A$4:$AO$7,"V4*",IncState!Q$4:Q$7)*Assumptions!$C$60) -> 909337.104 | S62: =(SUMIF(IncState!$A$4:$AO$7,"V1*",IncState!R$4:R$7)*Assumptions!$C$57)+(SUMIF(IncState!$A$4:$AO$7,"V2*",IncState!R$4:R$7)*Assumptions!$C$58)+(SUMIF(IncState!$A$4:$AO$7,"V3*",IncState!R$4:R$7)*Assumptions!$C$59)+(SUMIF(IncState!$A$4:$AO$7,"V4*",IncState!R$4:R$7)*Assumptions!$C$60) -> 1000270.814 | T62: =(SUMIF(IncState!$A$4:$AO$7,"V1*",IncState!S$4:S$7)*Assumptions!$C$57)+(SUMIF(IncState!$A$4:$AO$7,"V2*",IncState!S$4:S$7)*Assumptions!$C$58)+(SUMIF(IncState!$A$4:$AO$7,"V3*",IncState!S$4:S$7)*Assumptions!$C$59)+(SUMIF(IncState!$A$4:$AO$7,"V4*",IncState!S$4:S$7)*Assumptions!$C$60) -> 1100297.896
B63: Monthly Input Total | C63: =IF(C$34<0,-C$34,0) -> 0 | D63: =((SUMIF(IncState!$A$7:$AO$59,"*V1*",IncState!C$7:C$59)-SUMIF(CashFlow!$A$27:$AO$31,"*V1*",CashFlow!C$27:C$31))*Assumptions!$C$57)+((SUMIF(IncState!$A$7:$AO$59,"*V2*",IncState!C$7:C$59)-SUMIF(CashFlow!$A$27:$AO$31,"*V2*",CashFlow!C$27:C$31))*Assumptions!$C$58)+((SUMIF(IncState!$A$7:$AO$59,"*V3*",IncState!C$7:C$59)-SUMIF(CashFlow!$A$27:$AO$31,"*V3*",CashFlow!C$27:C$31))*Assumptions!$C$59)+((SUMIF(IncState!$A$7:$AO$59,"*V4*",IncState!C$7:C$59)-SUMIF(CashFlow!$A$27:$AO$31,"*V4*",CashFlow!C$27:C$31))*Assumptions!$C$60) -> 33131.25 | E63: =((SUMIF(IncState!$A$7:$AO$59,"*V1*",IncState!D$7:D$59)-SUMIF(CashFlow!$A$27:$AO$31,"*V1*",CashFlow!D$27:D$31))*Assumptions!$C$57)+((SUMIF(IncState!$A$7:$AO$59,"*V2*",IncState!D$7:D$59)-SUMIF(CashFlow!$A$27:$AO$31,"*V2*",CashFlow!D$27:D$31))*Assumptions!$C$58)+((SUMIF(IncState!$A$7:$AO$59,"*V3*",IncState!D$7:D$59)-SUMIF(CashFlow!$A$27:$AO$31,"*V3*",CashFlow!D$27:D$31))*Assumptions!$C$59)+((SUMIF(IncState!$A$7:$AO$59,"*V4*",IncState!D$7:D$59)-SUMIF(CashFlow!$A$27:$AO$31,"*V4*",CashFlow!D$27:D$31))*Assumptions!$C$60) -> 34854.75 | F63: =((SUMIF(IncState!$A$7:$AO$59,"*V1*",IncState!E$7:E$59)-SUMIF(CashFlow!$A$27:$AO$31,"*V1*",CashFlow!E$27:E$31))*Assumptions!$C$57)+((SUMIF(IncState!$A$7:$AO$59,"*V2*",IncState!E$7:E$59)-SUMIF(CashFlow!$A$27:$AO$31,"*V2*",CashFlow!E$27:E$31))*Assumptions!$C$58)+((SUMIF(IncState!$A$7:$AO$59,"*V3*",IncState!E$7:E$59)-SUMIF(CashFlow!$A$27:$AO$31,"*V3*",CashFlow!E$27:E$31))*Assumptions!$C$59)+((SUMIF(IncState!$A$7:$AO$59,"*V4*",IncState!E$7:E$59)-SUMIF(CashFlow!$A$27:$AO$31,"*V4*",CashFlow!E$27:E$31))*Assumptions!$C$60) -> 36042.75 | G63: =((SUMIF(IncState!$A$7:$AO$59,"*V1*",IncState!F$7:F$59)-SUMIF(CashFlow!$A$27:$AO$31,"*V1*",CashFlow!F$27:F$31))*Assumptions!$C$57)+((SUMIF(IncState!$A$7:$AO$59,"*V2*",IncState!F$7:F$59)-SUMIF(CashFlow!$A$27:$AO$31,"*V2*",CashFlow!F$27:F$31))*Assumptions!$C$58)+((SUMIF(IncState!$A$7:$AO$59,"*V3*",IncState!F$7:F$59)-SUMIF(CashFlow!$A$27:$AO$31,"*V3*",CashFlow!F$27:F$31))*Assumptions!$C$59)+((SUMIF(IncState!$A$7:$AO$59,"*V4*",IncState!F$7:F$59)-SUMIF(CashFlow!$A$27:$AO$31,"*V4*",CashFlow!F$27:F$31))*Assumptions!$C$60) -> 47154.75 | H63: =((SUMIF(IncState!$A$7:$AO$59,"*V1*",IncState!G$7:G$59)-SUMIF(CashFlow!$A$27:$AO$31,"*V1*",CashFlow!G$27:G$31))*Assumptions!$C$57)+((SUMIF(IncState!$A$7:$AO$59,"*V2*",IncState!G$7:G$59)-SUMIF(CashFlow!$A$27:$AO$31,"*V2*",CashFlow!G$27:G$31))*Assumptions!$C$58)+((SUMIF(IncState!$A$7:$AO$59,"*V3*",IncState!G$7:G$59)-SUMIF(CashFlow!$A$27:$AO$31,"*V3*",CashFlow!G$27:G$31))*Assumptions!$C$59)+((SUMIF(IncState!$A$7:$AO$59,"*V4*",IncState!G$7:G$59)-SUMIF(CashFlow!$A$27:$AO$31,"*V4*",CashFlow!G$27:G$31))*Assumptions!$C$60) -> 38978.25 | I63: =((SUMIF(IncState!$A$7:$AO$59,"*V1*",IncState!H$7:H$59)-SUMIF(CashFlow!$A$27:$AO$31,"*V1*",CashFlow!H$27:H$31))*Assumptions!$C$57)+((SUMIF(IncState!$A$7:$AO$59,"*V2*",IncState!H$7:H$59)-SUMIF(CashFlow!$A$27:$AO$31,"*V2*",CashFlow!H$27:H$31))*Assumptions!$C$58)+((SUMIF(IncState!$A$7:$AO$59,"*V3*",IncState!H$7:H$59)-SUMIF(CashFlow!$A$27:$AO$31,"*V3*",CashFlow!H$27:H$31))*Assumptions!$C$59)+((SUMIF(IncState!$A$7:$AO$59,"*V4*",IncState!H$7:H$59)-SUMIF(CashFlow!$A$27:$AO$31,"*V4*",CashFlow!H$27:H$31))*Assumptions!$C$60) -> 39120.75 | J63: =((SUMIF(IncState!$A$7:$AO$59,"*V1*",IncState!I$7:I$59)-SUMIF(CashFlow!$A$27:$AO$31,"*V1*",CashFlow!I$27:I$31))*Assumptions!$C$57)+((SUMIF(IncState!$A$7:$AO$59,"*V2*",IncState!I$7:I$59)-SUMIF(CashFlow!$A$27:$AO$31,"*V2*",CashFlow!I$27:I$31))*Assumptions!$C$58)+((SUMIF(IncState!$A$7:$AO$59,"*V3*",IncState!I$7:I$59)-SUMIF(CashFlow!$A$27:$AO$31,"*V3*",CashFlow!I$27:I$31))*Assumptions!$C$59)+((SUMIF(IncState!$A$7:$AO$59,"*V4*",IncState!I$7:I$59)-SUMIF(CashFlow!$A$27:$AO$31,"*V4*",CashFlow!I$27:I$31))*Assumptions!$C$60) -> 34898.25 | K63: =((SUMIF(IncState!$A$7:$AO$59,"*V1*",IncState!J$7:J$59)-SUMIF(CashFlow!$A$27:$AO$31,"*V1*",CashFlow!J$27:J$31))*Assumptions!$C$57)+((SUMIF(IncState!$A$7:$AO$59,"*V2*",IncState!J$7:J$59)-SUMIF(CashFlow!$A$27:$AO$31,"*V2*",CashFlow!J$27:J$31))*Assumptions!$C$58)+((SUMIF(IncState!$A$7:$AO$59,"*V3*",IncState!J$7:J$59)-SUMIF(CashFlow!$A$27:$AO$31,"*V3*",CashFlow!J$27:J$31))*Assumptions!$C$59)+((SUMIF(IncState!$A$7:$AO$59,"*V4*",IncState!J$7:J$59)-SUMIF(CashFlow!$A$27:$AO$31,"*V4*",CashFlow!J$27:J$31))*Assumptions!$C$60) -> 43770.75 | L63: =((SUMIF(IncState!$A$7:$AO$59,"*V1*",IncState!K$7:K$59)-SUMIF(CashFlow!$A$27:$AO$31,"*V1*",CashFlow!K$27:K$31))*Assumptions!$C$57)+((SUMIF(IncState!$A$7:$AO$59,"*V2*",IncState!K$7:K$59)-SUMIF(CashFlow!$A$27:$AO$31,"*V2*",CashFlow!K$27:K$31))*Assumptions!$C$58)+((SUMIF(IncState!$A$7:$AO$59,"*V3*",IncState!K$7:K$59)-SUMIF(CashFlow!$A$27:$AO$31,"*V3*",CashFlow!K$27:K$31))*Assumptions!$C$59)+((SUMIF(IncState!$A$7:$AO$59,"*V4*",IncState!K$7:K$59)-SUMIF(CashFlow!$A$27:$AO$31,"*V4*",CashFlow!K$27:K$31))*Assumptions!$C$60) -> 42118.95 | M63: =((SUMIF(IncState!$A$7:$AO$59,"*V1*",IncState!L$7:L$59)-SUMIF(CashFlow!$A$27:$AO$31,"*V1*",CashFlow!L$27:L$31))*Assumptions!$C$57)+((SUMIF(IncState!$A$7:$AO$59,"*V2*",IncState!L$7:L$59)-SUMIF(CashFlow!$A$27:$AO$31,"*V2*",CashFlow!L$27:L$31))*Assumptions!$C$58)+((SUMIF(IncState!$A$7:$AO$59,"*V3*",IncState!L$7:L$59)-SUMIF(CashFlow!$A$27:$AO$31,"*V3*",CashFlow!L$27:L$31))*Assumptions!$C$59)+((SUMIF(IncState!$A$7:$AO$59,"*V4*",IncState!L$7:L$59)-SUMIF(CashFlow!$A$27:$AO$31,"*V4*",CashFlow!L$27:L$31))*Assumptions!$C$60) -> 31164.6 | N63: =((SUMIF(IncState!$A$7:$AO$59,"*V1*",IncState!M$7:M$59)-SUMIF(CashFlow!$A$27:$AO$31,"*V1*",CashFlow!M$27:M$31))*Assumptions!$C$57)+((SUMIF(IncState!$A$7:$AO$59,"*V2*",IncState!M$7:M$59)-SUMIF(CashFlow!$A$27:$AO$31,"*V2*",CashFlow!M$27:M$31))*Assumptions!$C$58)+((SUMIF(IncState!$A$7:$AO$59,"*V3*",IncState!M$7:M$59)-SUMIF(CashFlow!$A$27:$AO$31,"*V3*",CashFlow!M$27:M$31))*Assumptions!$C$59)+((SUMIF(IncState!$A$7:$AO$59,"*V4*",IncState!M$7:M$59)-SUMIF(CashFlow!$A$27:$AO$31,"*V4*",CashFlow!M$27:M$31))*Assumptions!$C$60) -> 37264.35 | O63: =((SUMIF(IncState!$A$7:$AO$59,"*V1*",IncState!N$7:N$59)-SUMIF(CashFlow!$A$27:$AO$31,"*V1*",CashFlow!N$27:N$31))*Assumptions!$C$57)+((SUMIF(IncState!$A$7:$AO$59,"*V2*",IncState!N$7:N$59)-SUMIF(CashFlow!$A$27:$AO$31,"*V2*",CashFlow!N$27:N$31))*Assumptions!$C$58)+((SUMIF(IncState!$A$7:$AO$59,"*V3*",IncState!N$7:N$59)-SUMIF(CashFlow!$A$27:$AO$31,"*V3*",CashFlow!N$27:N$31))*Assumptions!$C$59)+((SUMIF(IncState!$A$7:$AO$59,"*V4*",IncState!N$7:N$59)-SUMIF(CashFlow!$A$27:$AO$31,"*V4*",CashFlow!N$27:N$31))*Assumptions!$C$60) -> 35455.95 | P63: =((SUMIF(IncState!$A$7:$AO$59,"*V1*",IncState!O$7:O$59)-SUMIF(CashFlow!$A$27:$AO$31,"*V1*",CashFlow!O$27:O$31))*Assumptions!$C$57)+((SUMIF(IncState!$A$7:$AO$59,"*V2*",IncState!O$7:O$59)-SUMIF(CashFlow!$A$27:$AO$31,"*V2*",CashFlow!O$27:O$31))*Assumptions!$C$58)+((SUMIF(IncState!$A$7:$AO$59,"*V3*",IncState!O$7:O$59)-SUMIF(CashFlow!$A$27:$AO$31,"*V3*",CashFlow!O$27:O$31))*Assumptions!$C$59)+((SUMIF(IncState!$A$7:$AO$59,"*V4*",IncState!O$7:O$59)-SUMIF(CashFlow!$A$27:$AO$31,"*V4*",CashFlow!O$27:O$31))*Assumptions!$C$60) -> 453955.35 | Q63: =((SUMIF(IncState!$A$7:$AO$59,"*V1*",IncState!P$7:P$59)-SUMIF(CashFlow!$A$27:$AO$31,"*V1*",CashFlow!P$27:P$31))*Assumptions!$C$57)+((SUMIF(IncState!$A$7:$AO$59,"*V2*",IncState!P$7:P$59)-SUMIF(CashFlow!$A$27:$AO$31,"*V2*",CashFlow!P$27:P$31))*Assumptions!$C$58)+((SUMIF(IncState!$A$7:$AO$59,"*V3*",IncState!P$7:P$59)-SUMIF(CashFlow!$A$27:$AO$31,"*V3*",CashFlow!P$27:P$31))*Assumptions!$C$59)+((SUMIF(IncState!$A$7:$AO$59,"*V4*",IncState!P$7:P$59)-SUMIF(CashFlow!$A$27:$AO$31,"*V4*",CashFlow!P$27:P$31))*Assumptions!$C$60) -> 473439.513 | R63: =((SUMIF(IncState!$A$7:$AO$59,"*V1*",IncState!Q$7:Q$59)-SUMIF(CashFlow!$A$27:$AO$31,"*V1*",CashFlow!Q$27:Q$31))*Assumptions!$C$57)+((SUMIF(IncState!$A$7:$AO$59,"*V2*",IncState!Q$7:Q$59)-SUMIF(CashFlow!$A$27:$AO$31,"*V2*",CashFlow!Q$27:Q$31))*Assumptions!$C$58)+((SUMIF(IncState!$A$7:$AO$59,"*V3*",IncState!Q$7:Q$59)-SUMIF(CashFlow!$A$27:$AO$31,"*V3*",CashFlow!Q$27:Q$31))*Assumptions!$C$59)+((SUMIF(IncState!$A$7:$AO$59,"*V4*",IncState!Q$7:Q$59)-SUMIF(CashFlow!$A$27:$AO$31,"*V4*",CashFlow!Q$27:Q$31))*Assumptions!$C$60) -> 496387.5919 | S63: =((SUMIF(IncState!$A$7:$AO$59,"*V1*",IncState!R$7:R$59)-SUMIF(CashFlow!$A$27:$AO$31,"*V1*",CashFlow!R$27:R$31))*Assumptions!$C$57)+((SUMIF(IncState!$A$7:$AO$59,"*V2*",IncState!R$7:R$59)-SUMIF(CashFlow!$A$27:$AO$31,"*V2*",CashFlow!R$27:R$31))*Assumptions!$C$58)+((SUMIF(IncState!$A$7:$AO$59,"*V3*",IncState!R$7:R$59)-SUMIF(CashFlow!$A$27:$AO$31,"*V3*",CashFlow!R$27:R$31))*Assumptions!$C$59)+((SUMIF(IncState!$A$7:$AO$59,"*V4*",IncState!R$7:R$59)-SUMIF(CashFlow!$A$27:$AO$31,"*V4*",CashFlow!R$27:R$31))*Assumptions!$C$60) -> 541548.9916 | T63: =((SUMIF(IncState!$A$7:$AO$59,"*V1*",IncState!S$7:S$59)-SUMIF(CashFlow!$A$27:$AO$31,"*V1*",CashFlow!S$27:S$31))*Assumptions!$C$57)+((SUMIF(IncState!$A$7:$AO$59,"*V2*",IncState!S$7:S$59)-SUMIF(CashFlow!$A$27:$AO$31,"*V2*",CashFlow!S$27:S$31))*Assumptions!$C$58)+((SUMIF(IncState!$A$7:$AO$59,"*V3*",IncState!S$7:S$59)-SUMIF(CashFlow!$A$27:$AO$31,"*V3*",CashFlow!S$27:S$31))*Assumptions!$C$59)+((SUMIF(IncState!$A$7:$AO$59,"*V4*",IncState!S$7:S$59)-SUMIF(CashFlow!$A$27:$AO$31,"*V4*",CashFlow!S$27:S$31))*Assumptions!$C$60) -> 590957.8897
B64: Income Tax:
B65: Payment Month? | C65: =IF(OR(MONTH(C$4)=Assumptions!$C$68,((MONTH(C$4)-Assumptions!$C$68)/MAX(Assumptions!$C$67,1))-ROUND((MONTH(C$4)-Assumptions!$C$68)/MAX(Assumptions!$C$67,1),0)=0),"Yes","No") -> Yes | D65: =IF(OR(MONTH(D$4)=Assumptions!$C$68,((MONTH(D$4)-Assumptions!$C$68)/MAX(Assumptions!$C$67,1))-ROUND((MONTH(D$4)-Assumptions!$C$68)/MAX(Assumptions!$C$67,1),0)=0),"Yes","No") -> No | E65: =IF(OR(MONTH(E$4)=Assumptions!$C$68,((MONTH(E$4)-Assumptions!$C$68)/MAX(Assumptions!$C$67,1))-ROUND((MONTH(E$4)-Assumptions!$C$68)/MAX(Assumptions!$C$67,1),0)=0),"Yes","No") -> No | F65: =IF(OR(MONTH(F$4)=Assumptions!$C$68,((MONTH(F$4)-Assumptions!$C$68)/MAX(Assumptions!$C$67,1))-ROUND((MONTH(F$4)-Assumptions!$C$68)/MAX(Assumptions!$C$67,1),0)=0),"Yes","No") -> No | G65: =IF(OR(MONTH(G$4)=Assumptions!$C$68,((MONTH(G$4)-Assumptions!$C$68)/MAX(Assumptions!$C$67,1))-ROUND((MONTH(G$4)-Assumptions!$C$68)/MAX(Assumptions!$C$67,1),0)=0),"Yes","No") -> No | H65: =IF(OR(MONTH(H$4)=Assumptions!$C$68,((MONTH(H$4)-Assumptions!$C$68)/MAX(Assumptions!$C$67,1))-ROUND((MONTH(H$4)-Assumptions!$C$68)/MAX(Assumptions!$C$67,1),0)=0),"Yes","No") -> No | I65: =IF(OR(MONTH(I$4)=Assumptions!$C$68,((MONTH(I$4)-Assumptions!$C$68)/MAX(Assumptions!$C$67,1))-ROUND((MONTH(I$4)-Assumptions!$C$68)/MAX(Assumptions!$C$67,1),0)=0),"Yes","No") -> Yes | J65: =IF(OR(MONTH(J$4)=Assumptions!$C$68,((MONTH(J$4)-Assumptions!$C$68)/MAX(Assumptions!$C$67,1))-ROUND((MONTH(J$4)-Assumptions!$C$68)/MAX(Assumptions!$C$67,1),0)=0),"Yes","No") -> No | K65: =IF(OR(MONTH(K$4)=Assumptions!$C$68,((MONTH(K$4)-Assumptions!$C$68)/MAX(Assumptions!$C$67,1))-ROUND((MONTH(K$4)-Assumptions!$C$68)/MAX(Assumptions!$C$67,1),0)=0),"Yes","No") -> No | L65: =IF(OR(MONTH(L$4)=Assumptions!$C$68,((MONTH(L$4)-Assumptions!$C$68)/MAX(Assumptions!$C$67,1))-ROUND((MONTH(L$4)-Assumptions!$C$68)/MAX(Assumptions!$C$67,1),0)=0),"Yes","No") -> No | M65: =IF(OR(MONTH(M$4)=Assumptions!$C$68,((MONTH(M$4)-Assumptions!$C$68)/MAX(Assumptions!$C$67,1))-ROUND((MONTH(M$4)-Assumptions!$C$68)/MAX(Assumptions!$C$67,1),0)=0),"Yes","No") -> No | N65: =IF(OR(MONTH(N$4)=Assumptions!$C$68,((MONTH(N$4)-Assumptions!$C$68)/MAX(Assumptions!$C$67,1))-ROUND((MONTH(N$4)-Assumptions!$C$68)/MAX(Assumptions!$C$67,1),0)=0),"Yes","No") -> No | O65: =IF(OR(MONTH(O$4)=Assumptions!$C$68,((MONTH(O$4)-Assumptions!$C$68)/MAX(Assumptions!$C$67,1))-ROUND((MONTH(O$4)-Assumptions!$C$68)/MAX(Assumptions!$C$67,1),0)=0),"Yes","No") -> Yes | P65: =$O$65 -> Yes | Q65: =$O$65 -> Yes | R65: Yes | S65: Yes | T65: Yes
B66: Month Index | C66: =IF(C65="Yes",1-Assumptions!$D$69,IF(ISTEXT(B66),Assumptions!$C$67-MATCH("Yes",$C$65:$AO$65,0)+COLUMN($B$4),IF(ISBLANK(B66),A66+2,B66+1))) -> 0 | D66: =IF(D65="Yes",1-Assumptions!$D$69,IF(ISTEXT(C66),Assumptions!$C$67-MATCH("Yes",$C$65:$AO$65,0)+COLUMN($B$4),IF(ISBLANK(C66),B66+2,C66+1))) -> 1 | E66: =IF(E65="Yes",1-Assumptions!$D$69,IF(ISTEXT(D66),Assumptions!$C$67-MATCH("Yes",$C$65:$AO$65,0)+COLUMN($B$4),IF(ISBLANK(D66),C66+2,D66+1))) -> 2 | F66: =IF(F65="Yes",1-Assumptions!$D$69,IF(ISTEXT(E66),Assumptions!$C$67-MATCH("Yes",$C$65:$AO$65,0)+COLUMN($B$4),IF(ISBLANK(E66),D66+2,E66+1))) -> 3 | G66: =IF(G65="Yes",1-Assumptions!$D$69,IF(ISTEXT(F66),Assumptions!$C$67-MATCH("Yes",$C$65:$AO$65,0)+COLUMN($B$4),IF(ISBLANK(F66),E66+2,F66+1))) -> 4 | H66: =IF(H65="Yes",1-Assumptions!$D$69,IF(ISTEXT(G66),Assumptions!$C$67-MATCH("Yes",$C$65:$AO$65,0)+COLUMN($B$4),IF(ISBLANK(G66),F66+2,G66+1))) -> 5 | I66: =IF(I65="Yes",1-Assumptions!$D$69,IF(ISTEXT(H66),Assumptions!$C$67-MATCH("Yes",$C$65:$AO$65,0)+COLUMN($B$4),IF(ISBLANK(H66),G66+2,H66+1))) -> 0 | J66: =IF(J65="Yes",1-Assumptions!$D$69,IF(ISTEXT(I66),Assumptions!$C$67-MATCH("Yes",$C$65:$AO$65,0)+COLUMN($B$4),IF(ISBLANK(I66),H66+2,I66+1))) -> 1 | K66: =IF(K65="Yes",1-Assumptions!$D$69,IF(ISTEXT(J66),Assumptions!$C$67-MATCH("Yes",$C$65:$AO$65,0)+COLUMN($B$4),IF(ISBLANK(J66),I66+2,J66+1))) -> 2 | L66: =IF(L65="Yes",1-Assumptions!$D$69,IF(ISTEXT(K66),Assumptions!$C$67-MATCH("Yes",$C$65:$AO$65,0)+COLUMN($B$4),IF(ISBLANK(K66),J66+2,K66+1))) -> 3 | M66: =IF(M65="Yes",1-Assumptions!$D$69,IF(ISTEXT(L66),Assumptions!$C$67-MATCH("Yes",$C$65:$AO$65,0)+COLUMN($B$4),IF(ISBLANK(L66),K66+2,L66+1))) -> 4 | N66: =IF(N65="Yes",1-Assumptions!$D$69,IF(ISTEXT(M66),Assumptions!$C$67-MATCH("Yes",$C$65:$AO$65,0)+COLUMN($B$4),IF(ISBLANK(M66),L66+2,M66+1))) -> 5 | O66: =IF(O65="Yes",1-Assumptions!$D$69,IF(ISTEXT(N66),Assumptions!$C$67-MATCH("Yes",$C$65:$AO$65,0)+COLUMN($B$4),IF(ISBLANK(N66),M66+2,N66+1))) -> 0 | P66: =$O$66 -> 0 | Q66: =$O$66 -> 0 | R66: =$O$66 -> 0 | S66: 0 | T66: 0
B67: Monthly Total | C67: =C37 -> 0 | D67: =IncState!C58 -> 15693.41667 | E67: =IncState!D58 -> 15204.48287 | F67: =IncState!E58 -> 17451.50626 | G67: =IncState!F58 -> -1233.909972 | H67: =IncState!G58 -> 13958.23739 | I67: =IncState!H58 -> 13574.11827 | J67: =IncState!I58 -> 18419.72895 | K67: =IncState!J58 -> 4953.724822 | L67: =IncState!K58 -> 10125.46931 | M67: =IncState!L58 -> 9422.365881 | N67: =IncState!M58 -> 21769.33801 | O67: =IncState!N58 -> 17023.04612 | P67: =IncState!O58 -> 156361.5246 | Q67: =IncState!P58 -> 188798.5302 | R67: =IncState!Q58 -> 238589.946 | S67: =IncState!R58 -> 325688.1178 | T67: =IncState!S58 -> 393592.5475
B68: Payroll Accrual:
B69: Accrual % | D69: =Assumptions!$C$51 -> 0.2 | E69: =Assumptions!$C$51 -> 0.2 | F69: =Assumptions!$C$51 -> 0.2 | G69: =Assumptions!$C$51 -> 0.2 | H69: =Assumptions!$C$51 -> 0.2 | I69: =Assumptions!$C$51 -> 0.2 | J69: =Assumptions!$C$51 -> 0.2 | K69: =Assumptions!$C$51 -> 0.2 | L69: =Assumptions!$C$51 -> 0.2 | M69: =Assumptions!$C$51 -> 0.2 | N69: =Assumptions!$C$51 -> 0.2 | O69: =Assumptions!$C$51 -> 0.2 | P69: =Assumptions!$C$51 -> 0.2 | Q69: =Assumptions!$C$51 -> 0.2 | R69: =Assumptions!$C$51 -> 0.2 | S69: =Assumptions!$C$51 -> 0.2 | T69: =Assumptions!$C$51 -> 0.2
B70: Payment Month? | C70: =IF(OR(MONTH(C$4)=Assumptions!$C$53,((MONTH(C$4)-Assumptions!$C$53)/MAX(Assumptions!$C$52,1))-ROUND((MONTH(C$4)-Assumptions!$C$53)/MAX(Assumptions!$C$52,1),0)=0),"Yes","No") -> Yes | D70: =IF(OR(MONTH(D$4)=Assumptions!$C$53,((MONTH(D$4)-Assumptions!$C$53)/MAX(Assumptions!$C$52,1))-ROUND((MONTH(D$4)-Assumptions!$C$53)/MAX(Assumptions!$C$52,1),0)=0),"Yes","No") -> Yes | E70: =IF(OR(MONTH(E$4)=Assumptions!$C$53,((MONTH(E$4)-Assumptions!$C$53)/MAX(Assumptions!$C$52,1))-ROUND((MONTH(E$4)-Assumptions!$C$53)/MAX(Assumptions!$C$52,1),0)=0),"Yes","No") -> Yes | F70: =IF(OR(MONTH(F$4)=Assumptions!$C$53,((MONTH(F$4)-Assumptions!$C$53)/MAX(Assumptions!$C$52,1))-ROUND((MONTH(F$4)-Assumptions!$C$53)/MAX(Assumptions!$C$52,1),0)=0),"Yes","No") -> Yes | G70: =IF(OR(MONTH(G$4)=Assumptions!$C$53,((MONTH(G$4)-Assumptions!$C$53)/MAX(Assumptions!$C$52,1))-ROUND((MONTH(G$4)-Assumptions!$C$53)/MAX(Assumptions!$C$52,1),0)=0),"Yes","No") -> Yes | H70: =IF(OR(MONTH(H$4)=Assumptions!$C$53,((MONTH(H$4)-Assumptions!$C$53)/MAX(Assumptions!$C$52,1))-ROUND((MONTH(H$4)-Assumptions!$C$53)/MAX(Assumptions!$C$52,1),0)=0),"Yes","No") -> Yes | I70: =IF(OR(MONTH(I$4)=Assumptions!$C$53,((MONTH(I$4)-Assumptions!$C$53)/MAX(Assumptions!$C$52,1))-ROUND((MONTH(I$4)-Assumptions!$C$53)/MAX(Assumptions!$C$52,1),0)=0),"Yes","No") -> Yes | J70: =IF(OR(MONTH(J$4)=Assumptions!$C$53,((MONTH(J$4)-Assumptions!$C$53)/MAX(Assumptions!$C$52,1))-ROUND((MONTH(J$4)-Assumptions!$C$53)/MAX(Assumptions!$C$52,1),0)=0),"Yes","No") -> Yes | K70: =IF(OR(MONTH(K$4)=Assumptions!$C$53,((MONTH(K$4)-Assumptions!$C$53)/MAX(Assumptions!$C$52,1))-ROUND((MONTH(K$4)-Assumptions!$C$53)/MAX(Assumptions!$C$52,1),0)=0),"Yes","No") -> Yes | L70: =IF(OR(MONTH(L$4)=Assumptions!$C$53,((MONTH(L$4)-Assumptions!$C$53)/MAX(Assumptions!$C$52,1))-ROUND((MONTH(L$4)-Assumptions!$C$53)/MAX(Assumptions!$C$52,1),0)=0),"Yes","No") -> Yes | M70: =IF(OR(MONTH(M$4)=Assumptions!$C$53,((MONTH(M$4)-Assumptions!$C$53)/MAX(Assumptions!$C$52,1))-ROUND((MONTH(M$4)-Assumptions!$C$53)/MAX(Assumptions!$C$52,1),0)=0),"Yes","No") -> Yes | N70: =IF(OR(MONTH(N$4)=Assumptions!$C$53,((MONTH(N$4)-Assumptions!$C$53)/MAX(Assumptions!$C$52,1))-ROUND((MONTH(N$4)-Assumptions!$C$53)/MAX(Assumptions!$C$52,1),0)=0),"Yes","No") -> Yes | O70: =IF(OR(MONTH(O$4)=Assumptions!$C$53,((MONTH(O$4)-Assumptions!$C$53)/MAX(Assumptions!$C$52,1))-ROUND((MONTH(O$4)-Assumptions!$C$53)/MAX(Assumptions!$C$52,1),0)=0),"Yes","No") -> Yes | P70: =$O$70 -> Yes | Q70: =$O$70 -> Yes | R70: Yes | S70: Yes | T70: Yes
B71: Month Index | C71: =IF(C70="Yes",1-Assumptions!$D$54,IF(ISTEXT(B71),Assumptions!$C$52-MATCH("Yes",$C$70:$AO$70,0)+COLUMN($B$4),IF(ISBLANK(B71),A71+2,B71+1))) -> 1 | D71: =IF(D70="Yes",1-Assumptions!$D$54,IF(ISTEXT(C71),Assumptions!$C$52-MATCH("Yes",$C$70:$AO$70,0)+COLUMN($B$4),IF(ISBLANK(C71),B71+2,C71+1))) -> 1 | E71: =IF(E70="Yes",1-Assumptions!$D$54,IF(ISTEXT(D71),Assumptions!$C$52-MATCH("Yes",$C$70:$AO$70,0)+COLUMN($B$4),IF(ISBLANK(D71),C71+2,D71+1))) -> 1 | F71: =IF(F70="Yes",1-Assumptions!$D$54,IF(ISTEXT(E71),Assumptions!$C$52-MATCH("Yes",$C$70:$AO$70,0)+COLUMN($B$4),IF(ISBLANK(E71),D71+2,E71+1))) -> 1 | G71: =IF(G70="Yes",1-Assumptions!$D$54,IF(ISTEXT(F71),Assumptions!$C$52-MATCH("Yes",$C$70:$AO$70,0)+COLUMN($B$4),IF(ISBLANK(F71),E71+2,F71+1))) -> 1 | H71: =IF(H70="Yes",1-Assumptions!$D$54,IF(ISTEXT(G71),Assumptions!$C$52-MATCH("Yes",$C$70:$AO$70,0)+COLUMN($B$4),IF(ISBLANK(G71),F71+2,G71+1))) -> 1 | I71: =IF(I70="Yes",1-Assumptions!$D$54,IF(ISTEXT(H71),Assumptions!$C$52-MATCH("Yes",$C$70:$AO$70,0)+COLUMN($B$4),IF(ISBLANK(H71),G71+2,H71+1))) -> 1 | J71: =IF(J70="Yes",1-Assumptions!$D$54,IF(ISTEXT(I71),Assumptions!$C$52-MATCH("Yes",$C$70:$AO$70,0)+COLUMN($B$4),IF(ISBLANK(I71),H71+2,I71+1))) -> 1 | K71: =IF(K70="Yes",1-Assumptions!$D$54,IF(ISTEXT(J71),Assumptions!$C$52-MATCH("Yes",$C$70:$AO$70,0)+COLUMN($B$4),IF(ISBLANK(J71),I71+2,J71+1))) -> 1 | L71: =IF(L70="Yes",1-Assumptions!$D$54,IF(ISTEXT(K71),Assumptions!$C$52-MATCH("Yes",$C$70:$AO$70,0)+COLUMN($B$4),IF(ISBLANK(K71),J71+2,K71+1))) -> 1 | M71: =IF(M70="Yes",1-Assumptions!$D$54,IF(ISTEXT(L71),Assumptions!$C$52-MATCH("Yes",$C$70:$AO$70,0)+COLUMN($B$4),IF(ISBLANK(L71),K71+2,L71+1))) -> 1 | N71: =IF(N70="Yes",1-Assumptions!$D$54,IF(ISTEXT(M71),Assumptions!$C$52-MATCH("Yes",$C$70:$AO$70,0)+COLUMN($B$4),IF(ISBLANK(M71),L71+2,M71+1))) -> 1 | O71: =IF(O70="Yes",1-Assumptions!$D$54,IF(ISTEXT(N71),Assumptions!$C$52-MATCH("Yes",$C$70:$AO$70,0)+COLUMN($B$4),IF(ISBLANK(N71),M71+2,N71+1))) -> 1 | P71: =$O$71 -> 1 | Q71: =$O$71 -> 1 | R71: 1 | S71: 1 | T71: 1
B72: Monthly Total | C72: =C35 -> 20000 | D72: =SUMIF(IncState!$A$4:$AO$59,"PAY",IncState!C$4:C$59)*D69 -> 20000 | E72: =SUMIF(IncState!$A$4:$AO$59,"PAY",IncState!D$4:D$59)*E69 -> 20000 | F72: =SUMIF(IncState!$A$4:$AO$59,"PAY",IncState!E$4:E$59)*F69 -> 20000 | G72: =SUMIF(IncState!$A$4:$AO$59,"PAY",IncState!F$4:F$59)*G69 -> 20000 | H72: =SUMIF(IncState!$A$4:$AO$59,"PAY",IncState!G$4:G$59)*H69 -> 20000 | I72: =SUMIF(IncState!$A$4:$AO$59,"PAY",IncState!H$4:H$59)*I69 -> 20000 | J72: =SUMIF(IncState!$A$4:$AO$59,"PAY",IncState!I$4:I$59)*J69 -> 20000 | K72: =SUMIF(IncState!$A$4:$AO$59,"PAY",IncState!J$4:J$59)*K69 -> 20000 | L72: =SUMIF(IncState!$A$4:$AO$59,"PAY",IncState!K$4:K$59)*L69 -> 20000 | M72: =SUMIF(IncState!$A$4:$AO$59,"PAY",IncState!L$4:L$59)*M69 -> 20000 | N72: =SUMIF(IncState!$A$4:$AO$59,"PAY",IncState!M$4:M$59)*N69 -> 20000 | O72: =SUMIF(IncState!$A$4:$AO$59,"PAY",IncState!N$4:N$59)*O69 -> 20000 | P72: =$O$72 -> 20000 | Q72: =Assumptions!D$18 -> 0.06 | R72: =Assumptions!E$18 -> 0.06 | S72: =Assumptions!F$18 -> 0.06 | T72: =Assumptions!G$18 -> 0.06
B73: Dividends:
B74: Dividend % | D74: =Assumptions!$C$101 -> 0 | E74: =Assumptions!$C$101 -> 0 | F74: =Assumptions!$C$101 -> 0 | G74: =Assumptions!$C$101 -> 0 | H74: =Assumptions!$C$101 -> 0 | I74: =Assumptions!$C$101 -> 0 | J74: =Assumptions!$C$101 -> 0 | K74: =Assumptions!$C$101 -> 0 | L74: =Assumptions!$C$101 -> 0 | M74: =Assumptions!$C$101 -> 0 | N74: =Assumptions!$C$101 -> 0 | O74: =Assumptions!$C$101 -> 0 | P74: =Assumptions!$C$101 -> 0 | Q74: =Assumptions!$C$101 -> 0 | R74: =Assumptions!$C$101 -> 0 | S74: =Assumptions!$C$101 -> 0 | T74: =Assumptions!$C$101 -> 0
B75: Expense Month? | C75: =IF(OR(MONTH(C$4)=Assumptions!$D$103-Assumptions!$D$104,((MONTH(C$4)-Assumptions!$D$103+Assumptions!$D$104)/MAX(Assumptions!$C$102,1))-ROUND((MONTH(C$4)-Assumptions!$D$103+Assumptions!$D$104)/MAX(Assumptions!$C$102,1),0)=0),"Yes","No") -> Yes | D75: =IF(OR(MONTH(D$4)=Assumptions!$D$103-Assumptions!$D$104,((MONTH(D$4)-Assumptions!$D$103+Assumptions!$D$104)/MAX(Assumptions!$C$102,1))-ROUND((MONTH(D$4)-Assumptions!$D$103+Assumptions!$D$104)/MAX(Assumptions!$C$102,1),0)=0),"Yes","No") -> No | E75: =IF(OR(MONTH(E$4)=Assumptions!$D$103-Assumptions!$D$104,((MONTH(E$4)-Assumptions!$D$103+Assumptions!$D$104)/MAX(Assumptions!$C$102,1))-ROUND((MONTH(E$4)-Assumptions!$D$103+Assumptions!$D$104)/MAX(Assumptions!$C$102,1),0)=0),"Yes","No") -> No | F75: =IF(OR(MONTH(F$4)=Assumptions!$D$103-Assumptions!$D$104,((MONTH(F$4)-Assumptions!$D$103+Assumptions!$D$104)/MAX(Assumptions!$C$102,1))-ROUND((MONTH(F$4)-Assumptions!$D$103+Assumptions!$D$104)/MAX(Assumptions!$C$102,1),0)=0),"Yes","No") -> No | G75: =IF(OR(MONTH(G$4)=Assumptions!$D$103-Assumptions!$D$104,((MONTH(G$4)-Assumptions!$D$103+Assumptions!$D$104)/MAX(Assumptions!$C$102,1))-ROUND((MONTH(G$4)-Assumptions!$D$103+Assumptions!$D$104)/MAX(Assumptions!$C$102,1),0)=0),"Yes","No") -> No | H75: =IF(OR(MONTH(H$4)=Assumptions!$D$103-Assumptions!$D$104,((MONTH(H$4)-Assumptions!$D$103+Assumptions!$D$104)/MAX(Assumptions!$C$102,1))-ROUND((MONTH(H$4)-Assumptions!$D$103+Assumptions!$D$104)/MAX(Assumptions!$C$102,1),0)=0),"Yes","No") -> No | I75: =IF(OR(MONTH(I$4)=Assumptions!$D$103-Assumptions!$D$104,((MONTH(I$4)-Assumptions!$D$103+Assumptions!$D$104)/MAX(Assumptions!$C$102,1))-ROUND((MONTH(I$4)-Assumptions!$D$103+Assumptions!$D$104)/MAX(Assumptions!$C$102,1),0)=0),"Yes","No") -> No | J75: =IF(OR(MONTH(J$4)=Assumptions!$D$103-Assumptions!$D$104,((MONTH(J$4)-Assumptions!$D$103+Assumptions!$D$104)/MAX(Assumptions!$C$102,1))-ROUND((MONTH(J$4)-Assumptions!$D$103+Assumptions!$D$104)/MAX(Assumptions!$C$102,1),0)=0),"Yes","No") -> No | K75: =IF(OR(MONTH(K$4)=Assumptions!$D$103-Assumptions!$D$104,((MONTH(K$4)-Assumptions!$D$103+Assumptions!$D$104)/MAX(Assumptions!$C$102,1))-ROUND((MONTH(K$4)-Assumptions!$D$103+Assumptions!$D$104)/MAX(Assumptions!$C$102,1),0)=0),"Yes","No") -> No | L75: =IF(OR(MONTH(L$4)=Assumptions!$D$103-Assumptions!$D$104,((MONTH(L$4)-Assumptions!$D$103+Assumptions!$D$104)/MAX(Assumptions!$C$102,1))-ROUND((MONTH(L$4)-Assumptions!$D$103+Assumptions!$D$104)/MAX(Assumptions!$C$102,1),0)=0),"Yes","No") -> No | M75: =IF(OR(MONTH(M$4)=Assumptions!$D$103-Assumptions!$D$104,((MONTH(M$4)-Assumptions!$D$103+Assumptions!$D$104)/MAX(Assumptions!$C$102,1))-ROUND((MONTH(M$4)-Assumptions!$D$103+Assumptions!$D$104)/MAX(Assumptions!$C$102,1),0)=0),"Yes","No") -> No | N75: =IF(OR(MONTH(N$4)=Assumptions!$D$103-Assumptions!$D$104,((MONTH(N$4)-Assumptions!$D$103+Assumptions!$D$104)/MAX(Assumptions!$C$102,1))-ROUND((MONTH(N$4)-Assumptions!$D$103+Assumptions!$D$104)/MAX(Assumptions!$C$102,1),0)=0),"Yes","No") -> No | O75: =IF(OR(MONTH(O$4)=Assumptions!$D$103-Assumptions!$D$104,((MONTH(O$4)-Assumptions!$D$103+Assumptions!$D$104)/MAX(Assumptions!$C$102,1))-ROUND((MONTH(O$4)-Assumptions!$D$103+Assumptions!$D$104)/MAX(Assumptions!$C$102,1),0)=0),"Yes","No") -> Yes | P75: =$O$75 -> Yes | Q75: =$O$75 -> Yes | R75: Yes | S75: Yes | T75: Yes
B76: Payment Month? | C76: =IF(OR(MONTH(C$4)=Assumptions!$D$103,((MONTH(C$4)-Assumptions!$D$103)/MAX(Assumptions!$C$102,1))-ROUND((MONTH(C$4)-Assumptions!$D$103)/MAX(Assumptions!$C$102,1),0)=0),"Yes","No") -> No | D76: =IF(OR(MONTH(D$4)=Assumptions!$D$103,((MONTH(D$4)-Assumptions!$D$103)/MAX(Assumptions!$C$102,1))-ROUND((MONTH(D$4)-Assumptions!$D$103)/MAX(Assumptions!$C$102,1),0)=0),"Yes","No") -> Yes | E76: =IF(OR(MONTH(E$4)=Assumptions!$D$103,((MONTH(E$4)-Assumptions!$D$103)/MAX(Assumptions!$C$102,1))-ROUND((MONTH(E$4)-Assumptions!$D$103)/MAX(Assumptions!$C$102,1),0)=0),"Yes","No") -> No | F76: =IF(OR(MONTH(F$4)=Assumptions!$D$103,((MONTH(F$4)-Assumptions!$D$103)/MAX(Assumptions!$C$102,1))-ROUND((MONTH(F$4)-Assumptions!$D$103)/MAX(Assumptions!$C$102,1),0)=0),"Yes","No") -> No | G76: =IF(OR(MONTH(G$4)=Assumptions!$D$103,((MONTH(G$4)-Assumptions!$D$103)/MAX(Assumptions!$C$102,1))-ROUND((MONTH(G$4)-Assumptions!$D$103)/MAX(Assumptions!$C$102,1),0)=0),"Yes","No") -> No | H76: =IF(OR(MONTH(H$4)=Assumptions!$D$103,((MONTH(H$4)-Assumptions!$D$103)/MAX(Assumptions!$C$102,1))-ROUND((MONTH(H$4)-Assumptions!$D$103)/MAX(Assumptions!$C$102,1),0)=0),"Yes","No") -> No | I76: =IF(OR(MONTH(I$4)=Assumptions!$D$103,((MONTH(I$4)-Assumptions!$D$103)/MAX(Assumptions!$C$102,1))-ROUND((MONTH(I$4)-Assumptions!$D$103)/MAX(Assumptions!$C$102,1),0)=0),"Yes","No") -> No | J76: =IF(OR(MONTH(J$4)=Assumptions!$D$103,((MONTH(J$4)-Assumptions!$D$103)/MAX(Assumptions!$C$102,1))-ROUND((MONTH(J$4)-Assumptions!$D$103)/MAX(Assumptions!$C$102,1),0)=0),"Yes","No") -> No | K76: =IF(OR(MONTH(K$4)=Assumptions!$D$103,((MONTH(K$4)-Assumptions!$D$103)/MAX(Assumptions!$C$102,1))-ROUND((MONTH(K$4)-Assumptions!$D$103)/MAX(Assumptions!$C$102,1),0)=0),"Yes","No") -> No | L76: =IF(OR(MONTH(L$4)=Assumptions!$D$103,((MONTH(L$4)-Assumptions!$D$103)/MAX(Assumptions!$C$102,1))-ROUND((MONTH(L$4)-Assumptions!$D$103)/MAX(Assumptions!$C$102,1),0)=0),"Yes","No") -> No | M76: =IF(OR(MONTH(M$4)=Assumptions!$D$103,((MONTH(M$4)-Assumptions!$D$103)/MAX(Assumptions!$C$102,1))-ROUND((MONTH(M$4)-Assumptions!$D$103)/MAX(Assumptions!$C$102,1),0)=0),"Yes","No") -> No | N76: =IF(OR(MONTH(N$4)=Assumptions!$D$103,((MONTH(N$4)-Assumptions!$D$103)/MAX(Assumptions!$C$102,1))-ROUND((MONTH(N$4)-Assumptions!$D$103)/MAX(Assumptions!$C$102,1),0)=0),"Yes","No") -> No | O76: =IF(OR(MONTH(O$4)=Assumptions!$D$103,((MONTH(O$4)-Assumptions!$D$103)/MAX(Assumptions!$C$102,1))-ROUND((MONTH(O$4)-Assumptions!$D$103)/MAX(Assumptions!$C$102,1),0)=0),"Yes","No") -> No | P76: =$O$76 -> No | Q76: =$O$76 -> No | R76: No | S76: No | T76: No
B77: Profit / (Loss) for the year | D77: =IncState!C59 -> 40354.5 | E77: =IncState!D59 -> 39097.24166 | F77: =IncState!E59 -> 44875.30181 | G77: =IncState!F59 -> -3172.911356 | H77: =IncState!G59 -> 35892.61044 | I77: =IncState!H59 -> 34904.87555 | J77: =IncState!I59 -> 47365.0173 | K77: =IncState!J59 -> 12738.14954 | L77: =IncState!K59 -> 26036.92109 | M77: =IncState!L59 -> 24228.94084 | N77: =IncState!M59 -> 55978.29775 | O77: =IncState!N59 -> 43773.54716 | P77: =IncState!O59 -> 402072.4918 | Q77: =IncState!P59 -> 485481.9348 | R77: =IncState!Q59 -> 613517.004 | S77: =IncState!R59 -> 837483.7315 | T77: =IncState!S59 -> 1012095.122
B78: Dividend Value | D78: =IF(SUM($D77:D77)<=0,0,(SUM($D77:D77)*D74))-SUM($C78:C78) -> 0 | E78: =IF(SUM($D77:E77)<=0,0,(SUM($D77:E77)*E74))-SUM($C78:D78) -> 0 | F78: =IF(SUM($D77:F77)<=0,0,(SUM($D77:F77)*F74))-SUM($C78:E78) -> 0 | G78: =IF(SUM($D77:G77)<=0,0,(SUM($D77:G77)*G74))-SUM($C78:F78) -> 0 | H78: =IF(SUM($D77:H77)<=0,0,(SUM($D77:H77)*H74))-SUM($C78:G78) -> 0 | I78: =IF(SUM($D77:I77)<=0,0,(SUM($D77:I77)*I74))-SUM($C78:H78) -> 0 | J78: =IF(SUM($D77:J77)<=0,0,(SUM($D77:J77)*J74))-SUM($C78:I78) -> 0 | K78: =IF(SUM($D77:K77)<=0,0,(SUM($D77:K77)*K74))-SUM($C78:J78) -> 0 | L78: =IF(SUM($D77:L77)<=0,0,(SUM($D77:L77)*L74))-SUM($C78:K78) -> 0 | M78: =IF(SUM($D77:M77)<=0,0,(SUM($D77:M77)*M74))-SUM($C78:L78) -> 0 | N78: =IF(SUM($D77:N77)<=0,0,(SUM($D77:N77)*N74))-SUM($C78:M78) -> 0 | O78: =IF(SUM($D77:O77)<=0,0,(SUM($D77:O77)*O74))-SUM($C78:N78) -> 0 | P78: =IF(SUM($D77:P77)<=0,0,(SUM($D77:P77)*P74))-SUM($C78:O78) -> 0 | Q78: =IF(SUM($D77:Q77)<=0,0,(SUM($D77:Q77)*Q74))-SUM($C78:P78) -> 0 | R78: =IF(SUM($D77:R77)<=0,0,(SUM($D77:R77)*R74))-SUM($C78:Q78) -> 0 | S78: =IF(SUM($D77:S77)<=0,0,(SUM($D77:S77)*S74))-SUM($C78:R78) -> 0 | T78: =IF(SUM($D77:T77)<=0,0,(SUM($D77:T77)*T74))-SUM($C78:S78) -> 0
B79: Dividend Expense | C79: =C38 -> 0 | D79: =IF(D75="Yes",SUM(OFFSET(D78,0,1-MIN(COLUMN(D$4)-1,Assumptions!$C$102),1,MIN(COLUMN(D$4)-1,Assumptions!$C$102))),0) -> 0 | E79: =IF(E75="Yes",SUM(OFFSET(E78,0,1-MIN(COLUMN(E$4)-1,Assumptions!$C$102),1,MIN(COLUMN(E$4)-1,Assumptions!$C$102))),0) -> 0 | F79: =IF(F75="Yes",SUM(OFFSET(F78,0,1-MIN(COLUMN(F$4)-1,Assumptions!$C$102),1,MIN(COLUMN(F$4)-1,Assumptions!$C$102))),0) -> 0 | G79: =IF(G75="Yes",SUM(OFFSET(G78,0,1-MIN(COLUMN(G$4)-1,Assumptions!$C$102),1,MIN(COLUMN(G$4)-1,Assumptions!$C$102))),0) -> 0 | H79: =IF(H75="Yes",SUM(OFFSET(H78,0,1-MIN(COLUMN(H$4)-1,Assumptions!$C$102),1,MIN(COLUMN(H$4)-1,Assumptions!$C$102))),0) -> 0 | I79: =IF(I75="Yes",SUM(OFFSET(I78,0,1-MIN(COLUMN(I$4)-1,Assumptions!$C$102),1,MIN(COLUMN(I$4)-1,Assumptions!$C$102))),0) -> 0 | J79: =IF(J75="Yes",SUM(OFFSET(J78,0,1-MIN(COLUMN(J$4)-1,Assumptions!$C$102),1,MIN(COLUMN(J$4)-1,Assumptions!$C$102))),0) -> 0 | K79: =IF(K75="Yes",SUM(OFFSET(K78,0,1-MIN(COLUMN(K$4)-1,Assumptions!$C$102),1,MIN(COLUMN(K$4)-1,Assumptions!$C$102))),0) -> 0 | L79: =IF(L75="Yes",SUM(OFFSET(L78,0,1-MIN(COLUMN(L$4)-1,Assumptions!$C$102),1,MIN(COLUMN(L$4)-1,Assumptions!$C$102))),0) -> 0 | M79: =IF(M75="Yes",SUM(OFFSET(M78,0,1-MIN(COLUMN(M$4)-1,Assumptions!$C$102),1,MIN(COLUMN(M$4)-1,Assumptions!$C$102))),0) -> 0 | N79: =IF(N75="Yes",SUM(OFFSET(N78,0,1-MIN(COLUMN(N$4)-1,Assumptions!$C$102),1,MIN(COLUMN(N$4)-1,Assumptions!$C$102))),0) -> 0 | O79: =IF(O75="Yes",SUM(OFFSET(O78,0,1-MIN(COLUMN(O$4)-1,Assumptions!$C$102),1,MIN(COLUMN(O$4)-1,Assumptions!$C$102))),0) -> 0 | P79: =$O$79 -> 0 | Q79: =Q78 -> 0 | R79: =R78 -> 0 | S79: 0 | T79: 0
B80: Dividend Accrual | C80: =IF(C81="S",MAX(0,SUM(OFFSET(C79,0,1-MIN(COLUMN(C$4)-1,Assumptions!$D$104)-COUNTBLANK(OFFSET(C79,0,1-MIN(COLUMN(C$4)-1,Assumptions!$D$104),1,MIN(COLUMN(C$4)-1,Assumptions!$D$104))),1,MIN(COLUMN(C$4)-1,Assumptions!$D$104)))),C81) -> 0 | D80: =IF(D81="S",MAX(0,SUM(OFFSET(D79,0,1-MIN(COLUMN(D$4)-1,Assumptions!$D$104)-COUNTBLANK(OFFSET(D79,0,1-MIN(COLUMN(D$4)-1,Assumptions!$D$104),1,MIN(COLUMN(D$4)-1,Assumptions!$D$104))),1,MIN(COLUMN(D$4)-1,Assumptions!$D$104)))),D81) -> 0 | E80: =IF(E81="S",MAX(0,SUM(OFFSET(E79,0,1-MIN(COLUMN(E$4)-1,Assumptions!$D$104)-COUNTBLANK(OFFSET(E79,0,1-MIN(COLUMN(E$4)-1,Assumptions!$D$104),1,MIN(COLUMN(E$4)-1,Assumptions!$D$104))),1,MIN(COLUMN(E$4)-1,Assumptions!$D$104)))),E81) -> 0 | F80: =IF(F81="S",MAX(0,SUM(OFFSET(F79,0,1-MIN(COLUMN(F$4)-1,Assumptions!$D$104)-COUNTBLANK(OFFSET(F79,0,1-MIN(COLUMN(F$4)-1,Assumptions!$D$104),1,MIN(COLUMN(F$4)-1,Assumptions!$D$104))),1,MIN(COLUMN(F$4)-1,Assumptions!$D$104)))),F81) -> 0 | G80: =IF(G81="S",MAX(0,SUM(OFFSET(G79,0,1-MIN(COLUMN(G$4)-1,Assumptions!$D$104)-COUNTBLANK(OFFSET(G79,0,1-MIN(COLUMN(G$4)-1,Assumptions!$D$104),1,MIN(COLUMN(G$4)-1,Assumptions!$D$104))),1,MIN(COLUMN(G$4)-1,Assumptions!$D$104)))),G81) -> 0 | H80: =IF(H81="S",MAX(0,SUM(OFFSET(H79,0,1-MIN(COLUMN(H$4)-1,Assumptions!$D$104)-COUNTBLANK(OFFSET(H79,0,1-MIN(COLUMN(H$4)-1,Assumptions!$D$104),1,MIN(COLUMN(H$4)-1,Assumptions!$D$104))),1,MIN(COLUMN(H$4)-1,Assumptions!$D$104)))),H81) -> 0 | I80: =IF(I81="S",MAX(0,SUM(OFFSET(I79,0,1-MIN(COLUMN(I$4)-1,Assumptions!$D$104)-COUNTBLANK(OFFSET(I79,0,1-MIN(COLUMN(I$4)-1,Assumptions!$D$104),1,MIN(COLUMN(I$4)-1,Assumptions!$D$104))),1,MIN(COLUMN(I$4)-1,Assumptions!$D$104)))),I81) -> 0 | J80: =IF(J81="S",MAX(0,SUM(OFFSET(J79,0,1-MIN(COLUMN(J$4)-1,Assumptions!$D$104)-COUNTBLANK(OFFSET(J79,0,1-MIN(COLUMN(J$4)-1,Assumptions!$D$104),1,MIN(COLUMN(J$4)-1,Assumptions!$D$104))),1,MIN(COLUMN(J$4)-1,Assumptions!$D$104)))),J81) -> 0 | K80: =IF(K81="S",MAX(0,SUM(OFFSET(K79,0,1-MIN(COLUMN(K$4)-1,Assumptions!$D$104)-COUNTBLANK(OFFSET(K79,0,1-MIN(COLUMN(K$4)-1,Assumptions!$D$104),1,MIN(COLUMN(K$4)-1,Assumptions!$D$104))),1,MIN(COLUMN(K$4)-1,Assumptions!$D$104)))),K81) -> 0 | L80: =IF(L81="S",MAX(0,SUM(OFFSET(L79,0,1-MIN(COLUMN(L$4)-1,Assumptions!$D$104)-COUNTBLANK(OFFSET(L79,0,1-MIN(COLUMN(L$4)-1,Assumptions!$D$104),1,MIN(COLUMN(L$4)-1,Assumptions!$D$104))),1,MIN(COLUMN(L$4)-1,Assumptions!$D$104)))),L81) -> 0 | M80: =IF(M81="S",MAX(0,SUM(OFFSET(M79,0,1-MIN(COLUMN(M$4)-1,Assumptions!$D$104)-COUNTBLANK(OFFSET(M79,0,1-MIN(COLUMN(M$4)-1,Assumptions!$D$104),1,MIN(COLUMN(M$4)-1,Assumptions!$D$104))),1,MIN(COLUMN(M$4)-1,Assumptions!$D$104)))),M81) -> 0 | N80: =IF(N81="S",MAX(0,SUM(OFFSET(N79,0,1-MIN(COLUMN(N$4)-1,Assumptions!$D$104)-COUNTBLANK(OFFSET(N79,0,1-MIN(COLUMN(N$4)-1,Assumptions!$D$104),1,MIN(COLUMN(N$4)-1,Assumptions!$D$104))),1,MIN(COLUMN(N$4)-1,Assumptions!$D$104)))),N81) -> 0 | O80: =IF(O81="S",MAX(0,SUM(OFFSET(O79,0,1-MIN(COLUMN(O$4)-1,Assumptions!$D$104)-COUNTBLANK(OFFSET(O79,0,1-MIN(COLUMN(O$4)-1,Assumptions!$D$104),1,MIN(COLUMN(O$4)-1,Assumptions!$D$104))),1,MIN(COLUMN(O$4)-1,Assumptions!$D$104)))),O81) -> 0 | P80: =$O$80 -> 0 | Q80: =MAX(0,IF(P77=0,0,P80/P77*Q77)) -> 0 | R80: =MAX(0,IF(Q77=0,0,Q80/Q77*R77)) -> 0 | S80: 0 | T80: 0
B81: Dividend Status | C81: =IF(C76="Yes",IF(Assumptions!$C$104="Next",C79,0),IF(Assumptions!$D$104=0,0,"S")) -> S | D81: =IF(D76="Yes",IF(Assumptions!$C$104="Next",D79,0),IF(Assumptions!$D$104=0,0,"S")) -> 0 | E81: =IF(E76="Yes",IF(Assumptions!$C$104="Next",E79,0),IF(Assumptions!$D$104=0,0,"S")) -> S | F81: =IF(F76="Yes",IF(Assumptions!$C$104="Next",F79,0),IF(Assumptions!$D$104=0,0,"S")) -> S | G81: =IF(G76="Yes",IF(Assumptions!$C$104="Next",G79,0),IF(Assumptions!$D$104=0,0,"S")) -> S | H81: =IF(H76="Yes",IF(Assumptions!$C$104="Next",H79,0),IF(Assumptions!$D$104=0,0,"S")) -> S | I81: =IF(I76="Yes",IF(Assumptions!$C$104="Next",I79,0),IF(Assumptions!$D$104=0,0,"S")) -> S | J81: =IF(J76="Yes",IF(Assumptions!$C$104="Next",J79,0),IF(Assumptions!$D$104=0,0,"S")) -> S | K81: =IF(K76="Yes",IF(Assumptions!$C$104="Next",K79,0),IF(Assumptions!$D$104=0,0,"S")) -> S | L81: =IF(L76="Yes",IF(Assumptions!$C$104="Next",L79,0),IF(Assumptions!$D$104=0,0,"S")) -> S | M81: =IF(M76="Yes",IF(Assumptions!$C$104="Next",M79,0),IF(Assumptions!$D$104=0,0,"S")) -> S | N81: =IF(N76="Yes",IF(Assumptions!$C$104="Next",N79,0),IF(Assumptions!$D$104=0,0,"S")) -> S | O81: =IF(O76="Yes",IF(Assumptions!$C$104="Next",O79,0),IF(Assumptions!$D$104=0,0,"S")) -> S

Sheet Loans1 (hidden)
A1: =IF(ISBLANK(Assumptions!$C$4),"Example Limited",Assumptions!$C$4) -> Example (Pty) Limited
A2: Cash Flow Projections - Repayment Schedule - Loans 1
A4: Interest Rate | B4: =Assumptions!$C$72 -> 0.1025
A5: Repayment Term | B5: =Assumptions!$C$73 -> 10
A6: Interest Only | B6: =Assumptions!$C$74 -> No
A7: © www.excel-skills.com
A8: Month | B8: Opening Balance | C8: Additional Loans | D8: Loan Repayment | E8: Interest Charges | F8: Capital Repayment | G8: Closing Balance
A9: =IF(ISBLANK(Assumptions!$C$5)=TRUE,DATE(YEAR(TODAY()),MONTH(TODAY()),0),DATE(YEAR(Assumptions!$C$5),MONTH(Assumptions!$C$5),0)) -> 2021-02-28 | B9: 0 | C9: =-SUMIF(Assumptions!$A$76:$C$100,"LT1",Assumptions!$C$76:$C$100) -> 1200000 | D9: 0 | E9: 0 | F9: =IF($B$6="Yes",0,D9-E9) -> 0 | G9: =IF(ROUND(SUM(B9:C9,-F9),0)=0,0,IF($B$6="Yes",SUM($C$9:C9),SUM(B9:C9,-F9))) -> 1200000
A10: =DATE(YEAR(A9),MONTH(A9)+2,0) -> 2021-03-31 | B10: =G9 -> 1200000 | C10: 0 | D10: =IF($B$6="Yes",0,IF(ROW(C10)-ROW($C$9)>$B$5*12,-PMT($B$4/12,$B$5*12,SUM(OFFSET(C10,0,0,-$B$5*12,1)),0,0),-PMT($B$4/12,$B$5*12,SUM(OFFSET(C10,0,0,ROW($C$8)-ROW(C10),1)),0,0))) -> 16024.68023 | E10: =(G9+C10)*$B$4/12 -> 10250 | F10: =IF($B$6="Yes",0,D10-E10) -> 5774.680225 | G10: =IF(ROUND(SUM(B10:C10,-F10),0)=0,0,IF($B$6="Yes",SUM($C$9:C10),SUM(B10:C10,-F10))) -> 1194225.32
A11: =DATE(YEAR(A10),MONTH(A10)+2,0) -> 2021-04-30 | B11: =G10 -> 1194225.32 | C11: 0 | D11: =IF($B$6="Yes",0,IF(ROW(C11)-ROW($C$9)>$B$5*12,-PMT($B$4/12,$B$5*12,SUM(OFFSET(C11,0,0,-$B$5*12,1)),0,0),-PMT($B$4/12,$B$5*12,SUM(OFFSET(C11,0,0,ROW($C$8)-ROW(C11),1)),0,0))) -> 16024.68023 | E11: =(G10+C11)*$B$4/12 -> 10200.67461 | F11: 5824.005619 | G11: =IF(ROUND(SUM(B11:C11,-F11),0)=0,0,IF($B$6="Yes",SUM($C$9:C11),SUM(B11:C11,-F11))) -> 1188401.314
A12: 2021-05-31 | B12: 1188401.314 | C12: 0 | D12: 16024.68023 | E12: 10150.92789 | F12: 5873.752333 | G12: =IF(ROUND(SUM(B12:C12,-F12),0)=0,0,IF($B$6="Yes",SUM($C$9:C12),SUM(B12:C12,-F12))) -> 1182527.562
A13: 2021-06-30 | B13: 1182527.562 | C13: 0 | D13: 16024.68023 | E13: 10100.75626 | F13: 5923.923968 | G13: =IF(ROUND(SUM(B13:C13,-F13),0)=0,0,IF($B$6="Yes",SUM($C$9:C13),SUM(B13:C13,-F13))) -> 1176603.638
A14: 2021-07-31 | B14: 1176603.638 | C14: 0 | D14: 16024.68023 | E14: 10050.15607 | F14: 5974.524152 | G14: =IF(ROUND(SUM(B14:C14,-F14),0)=0,0,IF($B$6="Yes",SUM($C$9:C14),SUM(B14:C14,-F14))) -> 1170629.114
A15: 2021-08-31 | B15: 1170629.114 | C15: 0 | D15: 16024.68023 | E15: 9999.12368 | F15: 6025.556546 | G15: =IF(ROUND(SUM(B15:C15,-F15),0)=0,0,IF($B$6="Yes",SUM($C$9:C15),SUM(B15:C15,-F15))) -> 1164603.557
A16: 2021-09-30 | B16: 1164603.557 | C16: 0 | D16: 16024.68023 | E16: 9947.655384 | F16: 6077.024841 | G16: =IF(ROUND(SUM(B16:C16,-F16),0)=0,0,IF($B$6="Yes",SUM($C$9:C16),SUM(B16:C16,-F16))) -> 1158526.532
A17: 2021-10-31 | B17: 1158526.532 | C17: 0 | D17: 16024.68023 | E17: 9895.747464 | F17: 6128.932762 | G17: =IF(ROUND(SUM(B17:C17,-F17),0)=0,0,IF($B$6="Yes",SUM($C$9:C17),SUM(B17:C17,-F17))) -> 1152397.6
A18: 2021-11-30 | B18: 1152397.6 | C18: 0 | D18: 16024.68023 | E18: 9843.396163 | F18: 6181.284062 | G18: =IF(ROUND(SUM(B18:C18,-F18),0)=0,0,IF($B$6="Yes",SUM($C$9:C18),SUM(B18:C18,-F18))) -> 1146216.315
A19: 2021-12-31 | B19: 1146216.315 | C19: 0 | D19: 16024.68023 | E19: 9790.597695 | F19: 6234.08253 | G19: =IF(ROUND(SUM(B19:C19,-F19),0)=0,0,IF($B$6="Yes",SUM($C$9:C19),SUM(B19:C19,-F19))) -> 1139982.233
A20: 2022-01-31 | B20: 1139982.233 | C20: 0 | D20: 16024.68023 | E20: 9737.34824 | F20: 6287.331985 | G20: =IF(ROUND(SUM(B20:C20,-F20),0)=0,0,IF($B$6="Yes",SUM($C$9:C20),SUM(B20:C20,-F20))) -> 1133694.901
A21: 2022-02-28 | B21: 1133694.901 | C21: 0 | D21: 16024.68023 | E21: 9683.643946 | F21: 6341.036279 | G21: =IF(ROUND(SUM(B21:C21,-F21),0)=0,0,IF($B$6="Yes",SUM($C$9:C21),SUM(B21:C21,-F21))) -> 1127353.865
A22: 2022-03-31 | B22: 1127353.865 | C22: 0 | D22: 16024.68023 | E22: 9629.480928 | F22: 6395.199298 | G22: =IF(ROUND(SUM(B22:C22,-F22),0)=0,0,IF($B$6="Yes",SUM($C$9:C22),SUM(B22:C22,-F22))) -> 1120958.665
A23: 2022-04-30 | B23: 1120958.665 | C23: 0 | D23: 16024.68023 | E23: 9574.855267 | F23: 6449.824958 | G23: =IF(ROUND(SUM(B23:C23,-F23),0)=0,0,IF($B$6="Yes",SUM($C$9:C23),SUM(B23:C23,-F23))) -> 1114508.84
A24: 2022-05-31 | B24: 1114508.84 | C24: 0 | D24: 16024.68023 | E24: 9519.763012 | F24: 6504.917213 | G24: =IF(ROUND(SUM(B24:C24,-F24),0)=0,0,IF($B$6="Yes",SUM($C$9:C24),SUM(B24:C24,-F24))) -> 1108003.923
A25: 2022-06-30 | B25: 1108003.923 | C25: 0 | D25: 16024.68023 | E25: 9464.200178 | F25: 6560.480048 | G25: =IF(ROUND(SUM(B25:C25,-F25),0)=0,0,IF($B$6="Yes",SUM($C$9:C25),SUM(B25:C25,-F25))) -> 1101443.443
A26: 2022-07-31 | B26: 1101443.443 | C26: 0 | D26: 16024.68023 | E26: 9408.162744 | F26: 6616.517481 | G26: =IF(ROUND(SUM(B26:C26,-F26),0)=0,0,IF($B$6="Yes",SUM($C$9:C26),SUM(B26:C26,-F26))) -> 1094826.926
A27: 2022-08-31 | B27: 1094826.926 | C27: 0 | D27: 16024.68023 | E27: 9351.646657 | F27: 6673.033568 | G27: =IF(ROUND(SUM(B27:C27,-F27),0)=0,0,IF($B$6="Yes",SUM($C$9:C27),SUM(B27:C27,-F27))) -> 1088153.892
A28: 2022-09-30 | B28: 1088153.892 | C28: 0 | D28: 16024.68023 | E28: 9294.647829 | F28: 6730.032397 | G28: =IF(ROUND(SUM(B28:C28,-F28),0)=0,0,IF($B$6="Yes",SUM($C$9:C28),SUM(B28:C28,-F28))) -> 1081423.86
A29: 2022-10-31 | B29: 1081423.86 | C29: 0 | D29: 16024.68023 | E29: 9237.162135 | F29: 6787.51809 | G29: =IF(ROUND(SUM(B29:C29,-F29),0)=0,0,IF($B$6="Yes",SUM($C$9:C29),SUM(B29:C29,-F29))) -> 1074636.342
A30: 2022-11-30 | B30: 1074636.342 | C30: 0 | D30: 16024.68023 | E30: 9179.185418 | F30: 6845.494807 | G30: =IF(ROUND(SUM(B30:C30,-F30),0)=0,0,IF($B$6="Yes",SUM($C$9:C30),SUM(B30:C30,-F30))) -> 1067790.847
A31: 2022-12-31 | B31: 1067790.847 | C31: 0 | D31: 16024.68023 | E31: 9120.713483 | F31: 6903.966742 | G31: =IF(ROUND(SUM(B31:C31,-F31),0)=0,0,IF($B$6="Yes",SUM($C$9:C31),SUM(B31:C31,-F31))) -> 1060886.88
A32: 2023-01-31 | B32: 1060886.88 | C32: 0 | D32: 16024.68023 | E32: 9061.742101 | F32: 6962.938124 | G32: =IF(ROUND(SUM(B32:C32,-F32),0)=0,0,IF($B$6="Yes",SUM($C$9:C32),SUM(B32:C32,-F32))) -> 1053923.942
A33: 2023-02-28 | B33: 1053923.942 | C33: 0 | D33: 16024.68023 | E33: 9002.267004 | F33: 7022.413221 | G33: =IF(ROUND(SUM(B33:C33,-F33),0)=0,0,IF($B$6="Yes",SUM($C$9:C33),SUM(B33:C33,-F33))) -> 1046901.529
A34: 2023-03-31 | B34: 1046901.529 | C34: 0 | D34: 16024.68023 | E34: 8942.283891 | F34: 7082.396334 | G34: =IF(ROUND(SUM(B34:C34,-F34),0)=0,0,IF($B$6="Yes",SUM($C$9:C34),SUM(B34:C34,-F34))) -> 1039819.132
A35: 2023-04-30 | B35: 1039819.132 | C35: 0 | D35: 16024.68023 | E35: 8881.788423 | F35: 7142.891802 | G35: =IF(ROUND(SUM(B35:C35,-F35),0)=0,0,IF($B$6="Yes",SUM($C$9:C35),SUM(B35:C35,-F35))) -> 1032676.241
A36: 2023-05-31 | B36: 1032676.241 | C36: 0 | D36: 16024.68023 | E36: 8820.776222 | F36: 7203.904003 | G36: =IF(ROUND(SUM(B36:C36,-F36),0)=0,0,IF($B$6="Yes",SUM($C$9:C36),SUM(B36:C36,-F36))) -> 1025472.337
A37: 2023-06-30 | B37: 1025472.337 | C37: 0 | D37: 16024.68023 | E37: 8759.242875 | F37: 7265.43735 | G37: =IF(ROUND(SUM(B37:C37,-F37),0)=0,0,IF($B$6="Yes",SUM($C$9:C37),SUM(B37:C37,-F37))) -> 1018206.899
A38: 2023-07-31 | B38: 1018206.899 | C38: 0 | D38: 16024.68023 | E38: 8697.183931 | F38: 7327.496294 | G38: =IF(ROUND(SUM(B38:C38,-F38),0)=0,0,IF($B$6="Yes",SUM($C$9:C38),SUM(B38:C38,-F38))) -> 1010879.403
A39: 2023-08-31 | B39: 1010879.403 | C39: 0 | D39: 16024.68023 | E39: 8634.5949 | F39: 7390.085325 | G39: =IF(ROUND(SUM(B39:C39,-F39),0)=0,0,IF($B$6="Yes",SUM($C$9:C39),SUM(B39:C39,-F39))) -> 1003489.318
A40: 2023-09-30 | B40: 1003489.318 | C40: 0 | D40: 16024.68023 | E40: 8571.471255 | F40: 7453.20897 | G40: =IF(ROUND(SUM(B40:C40,-F40),0)=0,0,IF($B$6="Yes",SUM($C$9:C40),SUM(B40:C40,-F40))) -> 996036.1087
A41: 2023-10-31 | B41: 996036.1087 | C41: 0 | D41: 16024.68023 | E41: 8507.808428 | F41: 7516.871797 | G41: =IF(ROUND(SUM(B41:C41,-F41),0)=0,0,IF($B$6="Yes",SUM($C$9:C41),SUM(B41:C41,-F41))) -> 988519.2369
A42: 2023-11-30 | B42: 988519.2369 | C42: 0 | D42: 16024.68023 | E42: 8443.601815 | F42: 7581.07841 | G42: =IF(ROUND(SUM(B42:C42,-F42),0)=0,0,IF($B$6="Yes",SUM($C$9:C42),SUM(B42:C42,-F42))) -> 980938.1585
A43: 2023-12-31 | B43: 980938.1585 | C43: 0 | D43: 16024.68023 | E43: 8378.84677 | F43: 7645.833455 | G43: =IF(ROUND(SUM(B43:C43,-F43),0)=0,0,IF($B$6="Yes",SUM($C$9:C43),SUM(B43:C43,-F43))) -> 973292.325
A44: 2024-01-31 | B44: 973292.325 | C44: 0 | D44: 16024.68023 | E44: 8313.538609 | F44: 7711.141616 | G44: =IF(ROUND(SUM(B44:C44,-F44),0)=0,0,IF($B$6="Yes",SUM($C$9:C44),SUM(B44:C44,-F44))) -> 965581.1834
A45: 2024-02-29 | B45: 965581.1834 | C45: 0 | D45: 16024.68023 | E45: 8247.672608 | F45: 7777.007617 | G45: =IF(ROUND(SUM(B45:C45,-F45),0)=0,0,IF($B$6="Yes",SUM($C$9:C45),SUM(B45:C45,-F45))) -> 957804.1758
A46: 2024-03-31 | B46: 957804.1758 | C46: 0 | D46: 16024.68023 | E46: 8181.244001 | F46: 7843.436224 | G46: =IF(ROUND(SUM(B46:C46,-F46),0)=0,0,IF($B$6="Yes",SUM($C$9:C46),SUM(B46:C46,-F46))) -> 949960.7396
A47: 2024-04-30 | B47: 949960.7396 | C47: 0 | D47: 16024.68023 | E47: 8114.247984 | F47: 7910.432242 | G47: =IF(ROUND(SUM(B47:C47,-F47),0)=0,0,IF($B$6="Yes",SUM($C$9:C47),SUM(B47:C47,-F47))) -> 942050.3073
A48: 2024-05-31 | B48: 942050.3073 | C48: 0 | D48: 16024.68023 | E48: 8046.679708 | F48: 7978.000517 | G48: =IF(ROUND(SUM(B48:C48,-F48),0)=0,0,IF($B$6="Yes",SUM($C$9:C48),SUM(B48:C48,-F48))) -> 934072.3068
A49: 2024-06-30 | B49: 934072.3068 | C49: 0 | D49: 16024.68023 | E49: 7978.534287 | F49: 8046.145938 | G49: =IF(ROUND(SUM(B49:C49,-F49),0)=0,0,IF($B$6="Yes",SUM($C$9:C49),SUM(B49:C49,-F49))) -> 926026.1609
A50: 2024-07-31 | B50: 926026.1609 | C50: 0 | D50: 16024.68023 | E50: 7909.806791 | F50: 8114.873435 | G50: =IF(ROUND(SUM(B50:C50,-F50),0)=0,0,IF($B$6="Yes",SUM($C$9:C50),SUM(B50:C50,-F50))) -> 917911.2874
A51: 2024-08-31 | B51: 917911.2874 | C51: 0 | D51: 16024.68023 | E51: 7840.492247 | F51: 8184.187978 | G51: =IF(ROUND(SUM(B51:C51,-F51),0)=0,0,IF($B$6="Yes",SUM($C$9:C51),SUM(B51:C51,-F51))) -> 909727.0994
A52: 2024-09-30 | B52: 909727.0994 | C52: 0 | D52: 16024.68023 | E52: 7770.585641 | F52: 8254.094584 | G52: =IF(ROUND(SUM(B52:C52,-F52),0)=0,0,IF($B$6="Yes",SUM($C$9:C52),SUM(B52:C52,-F52))) -> 901473.0049
A53: 2024-10-31 | B53: 901473.0049 | C53: 0 | D53: 16024.68023 | E53: 7700.081916 | F53: 8324.598309 | G53: =IF(ROUND(SUM(B53:C53,-F53),0)=0,0,IF($B$6="Yes",SUM($C$9:C53),SUM(B53:C53,-F53))) -> 893148.4065
A54: 2024-11-30 | B54: 893148.4065 | C54: 0 | D54: 16024.68023 | E54: 7628.975973 | F54: 8395.704253 | G54: =IF(ROUND(SUM(B54:C54,-F54),0)=0,0,IF($B$6="Yes",SUM($C$9:C54),SUM(B54:C54,-F54))) -> 884752.7023
A55: 2024-12-31 | B55: 884752.7023 | C55: 0 | D55: 16024.68023 | E55: 7557.262665 | F55: 8467.41756 | G55: =IF(ROUND(SUM(B55:C55,-F55),0)=0,0,IF($B$6="Yes",SUM($C$9:C55),SUM(B55:C55,-F55))) -> 876285.2847
A56: 2025-01-31 | B56: 876285.2847 | C56: 0 | D56: 16024.68023 | E56: 7484.936807 | F56: 8539.743418 | G56: =IF(ROUND(SUM(B56:C56,-F56),0)=0,0,IF($B$6="Yes",SUM($C$9:C56),SUM(B56:C56,-F56))) -> 867745.5413
A57: 2025-02-28 | B57: 867745.5413 | C57: 0 | D57: 16024.68023 | E57: 7411.993165 | F57: 8612.68706 | G57: =IF(ROUND(SUM(B57:C57,-F57),0)=0,0,IF($B$6="Yes",SUM($C$9:C57),SUM(B57:C57,-F57))) -> 859132.8543
A58: 2025-03-31 | B58: 859132.8543 | C58: 0 | D58: 16024.68023 | E58: 7338.426463 | F58: 8686.253762 | G58: =IF(ROUND(SUM(B58:C58,-F58),0)=0,0,IF($B$6="Yes",SUM($C$9:C58),SUM(B58:C58,-F58))) -> 850446.6005
A59: 2025-04-30 | B59: 850446.6005 | C59: 0 | D59: 16024.68023 | E59: 7264.231379 | F59: 8760.448846 | G59: =IF(ROUND(SUM(B59:C59,-F59),0)=0,0,IF($B$6="Yes",SUM($C$9:C59),SUM(B59:C59,-F59))) -> 841686.1517
A60: 2025-05-31 | B60: 841686.1517 | C60: 0 | D60: 16024.68023 | E60: 7189.402545 | F60: 8835.27768 | G60: =IF(ROUND(SUM(B60:C60,-F60),0)=0,0,IF($B$6="Yes",SUM($C$9:C60),SUM(B60:C60,-F60))) -> 832850.874
A61: 2025-06-30 | B61: 832850.874 | C61: 0 | D61: 16024.68023 | E61: 7113.934549 | F61: 8910.745677 | G61: =IF(ROUND(SUM(B61:C61,-F61),0)=0,0,IF($B$6="Yes",SUM($C$9:C61),SUM(B61:C61,-F61))) -> 823940.1283
A62: 2025-07-31 | B62: 823940.1283 | C62: 0 | D62: 16024.68023 | E62: 7037.821929 | F62: 8986.858296 | G62: =IF(ROUND(SUM(B62:C62,-F62),0)=0,0,IF($B$6="Yes",SUM($C$9:C62),SUM(B62:C62,-F62))) -> 814953.27
A63: 2025-08-31 | B63: 814953.27 | C63: 0 | D63: 16024.68023 | E63: 6961.059181 | F63: 9063.621044 | G63: =IF(ROUND(SUM(B63:C63,-F63),0)=0,0,IF($B$6="Yes",SUM($C$9:C63),SUM(B63:C63,-F63))) -> 805889.649
A64: 2025-09-30 | B64: 805889.649 | C64: 0 | D64: 16024.68023 | E64: 6883.640751 | F64: 9141.039474 | G64: =IF(ROUND(SUM(B64:C64,-F64),0)=0,0,IF($B$6="Yes",SUM($C$9:C64),SUM(B64:C64,-F64))) -> 796748.6095
A65: 2025-10-31 | B65: 796748.6095 | C65: 0 | D65: 16024.68023 | E65: 6805.561039 | F65: 9219.119186 | G65: =IF(ROUND(SUM(B65:C65,-F65),0)=0,0,IF($B$6="Yes",SUM($C$9:C65),SUM(B65:C65,-F65))) -> 787529.4903
A66: 2025-11-30 | B66: 787529.4903 | C66: 0 | D66: 16024.68023 | E66: 6726.814396 | F66: 9297.865829 | G66: =IF(ROUND(SUM(B66:C66,-F66),0)=0,0,IF($B$6="Yes",SUM($C$9:C66),SUM(B66:C66,-F66))) -> 778231.6245
A67: 2025-12-31 | B67: 778231.6245 | C67: 0 | D67: 16024.68023 | E67: 6647.395126 | F67: 9377.2851 | G67: =IF(ROUND(SUM(B67:C67,-F67),0)=0,0,IF($B$6="Yes",SUM($C$9:C67),SUM(B67:C67,-F67))) -> 768854.3394
A68: 2026-01-31 | B68: 768854.3394 | C68: 0 | D68: 16024.68023 | E68: 6567.297482 | F68: 9457.382743 | G68: =IF(ROUND(SUM(B68:C68,-F68),0)=0,0,IF($B$6="Yes",SUM($C$9:C68),SUM(B68:C68,-F68))) -> 759396.9566
A69: 2026-02-28 | B69: 759396.9566 | C69: 0 | D69: 16024.68023 | E69: 6486.515671 | F69: 9538.164554 | G69: =IF(ROUND(SUM(B69:C69,-F69),0)=0,0,IF($B$6="Yes",SUM($C$9:C69),SUM(B69:C69,-F69))) -> 749858.7921
A70: 2026-03-31 | B70: 749858.7921 | C70: 0 | D70: 16024.68023 | E70: 6405.043849 | F70: 9619.636376 | G70: =IF(ROUND(SUM(B70:C70,-F70),0)=0,0,IF($B$6="Yes",SUM($C$9:C70),SUM(B70:C70,-F70))) -> 740239.1557
A71: 2026-04-30 | B71: 740239.1557 | C71: 0 | D71: 16024.68023 | E71: 6322.876122 | F71: 9701.804104 | G71: =IF(ROUND(SUM(B71:C71,-F71),0)=0,0,IF($B$6="Yes",SUM($C$9:C71),SUM(B71:C71,-F71))) -> 730537.3516
A72: 2026-05-31 | B72: 730537.3516 | C72: 0 | D72: 16024.68023 | E72: 6240.006545 | F72: 9784.67368 | G72: =IF(ROUND(SUM(B72:C72,-F72),0)=0,0,IF($B$6="Yes",SUM($C$9:C72),SUM(B72:C72,-F72))) -> 720752.6779
A73: 2026-06-30 | B73: 720752.6779 | C73: 0 | D73: 16024.68023 | E73: 6156.429124 | F73: 9868.251101 | G73: =IF(ROUND(SUM(B73:C73,-F73),0)=0,0,IF($B$6="Yes",SUM($C$9:C73),SUM(B73:C73,-F73))) -> 710884.4268
A74: 2026-07-31 | B74: 710884.4268 | C74: 0 | D74: 16024.68023 | E74: 6072.137812 | F74: =IF($B$6="Yes",0,D74-E74) -> 9952.542413 | G74: =IF(ROUND(SUM(B74:C74,-F74),0)=0,0,IF($B$6="Yes",SUM($C$9:C74),SUM(B74:C74,-F74))) -> 700931.8844
A75: =DATE(YEAR(A74),MONTH(A74)+2,0) -> 2026-08-31 | B75: =G74 -> 700931.8844 | C75: 0 | D75: =IF($B$6="Yes",0,IF(ROW(C75)-ROW($C$9)>$B$5*12,-PMT($B$4/12,$B$5*12,SUM(OFFSET(C75,0,0,-$B$5*12,1)),0,0),-PMT($B$4/12,$B$5*12,SUM(OFFSET(C75,0,0,ROW($C$8)-ROW(C75),1)),0,0))) -> 16024.68023 | E75: =(G74+C75)*$B$4/12 -> 5987.126513 | F75: 10037.55371 | G75: =IF(ROUND(SUM(B75:C75,-F75),0)=0,0,IF($B$6="Yes",SUM($C$9:C75),SUM(B75:C75,-F75))) -> 690894.3307
A76: 2026-09-30 | B76: 690894.3307 | C76: 0 | D76: 16024.68023 | E76: 5901.389075 | F76: 10123.29115 | G76: =IF(ROUND(SUM(B76:C76,-F76),0)=0,0,IF($B$6="Yes",SUM($C$9:C76),SUM(B76:C76,-F76))) -> 680771.0395
A77: 2026-10-31 | B77: 680771.0395 | C77: 0 | D77: 16024.68023 | E77: 5814.919296 | F77: 10209.76093 | G77: =IF(ROUND(SUM(B77:C77,-F77),0)=0,0,IF($B$6="Yes",SUM($C$9:C77),SUM(B77:C77,-F77))) -> 670561.2786
A78: 2026-11-30 | B78: 670561.2786 | C78: 0 | D78: 16024.68023 | E78: 5727.710921 | F78: 10296.9693 | G78: =IF(ROUND(SUM(B78:C78,-F78),0)=0,0,IF($B$6="Yes",SUM($C$9:C78),SUM(B78:C78,-F78))) -> 660264.3093
A79: 2026-12-31 | B79: 660264.3093 | C79: 0 | D79: 16024.68023 | E79: 5639.757642 | F79: 10384.92258 | G79: =IF(ROUND(SUM(B79:C79,-F79),0)=0,0,IF($B$6="Yes",SUM($C$9:C79),SUM(B79:C79,-F79))) -> 649879.3867
A80: 2027-01-31 | B80: 649879.3867 | C80: 0 | D80: 16024.68023 | E80: 5551.053095 | F80: 10473.62713 | G80: =IF(ROUND(SUM(B80:C80,-F80),0)=0,0,IF($B$6="Yes",SUM($C$9:C80),SUM(B80:C80,-F80))) -> 639405.7596
A81: 2027-02-28 | B81: 639405.7596 | C81: 0 | D81: 16024.68023 | E81: 5461.590863 | F81: 10563.08936 | G81: =IF(ROUND(SUM(B81:C81,-F81),0)=0,0,IF($B$6="Yes",SUM($C$9:C81),SUM(B81:C81,-F81))) -> 628842.6702
A82: 2027-03-31 | B82: 628842.6702 | C82: 0 | D82: 16024.68023 | E82: 5371.364475 | F82: 10653.31575 | G82: =IF(ROUND(SUM(B82:C82,-F82),0)=0,0,IF($B$6="Yes",SUM($C$9:C82),SUM(B82:C82,-F82))) -> 618189.3545
A83: 2027-04-30 | B83: 618189.3545 | C83: 0 | D83: 16024.68023 | E83: 5280.367403 | F83: 10744.31282 | G83: =IF(ROUND(SUM(B83:C83,-F83),0)=0,0,IF($B$6="Yes",SUM($C$9:C83),SUM(B83:C83,-F83))) -> 607445.0417
A84: 2027-05-31 | B84: 607445.0417 | C84: 0 | D84: 16024.68023 | E84: 5188.593064 | F84: 10836.08716 | G84: =IF(ROUND(SUM(B84:C84,-F84),0)=0,0,IF($B$6="Yes",SUM($C$9:C84),SUM(B84:C84,-F84))) -> 596608.9545
A85: 2027-06-30 | B85: 596608.9545 | C85: 0 | D85: 16024.68023 | E85: 5096.03482 | F85: 10928.64541 | G85: =IF(ROUND(SUM(B85:C85,-F85),0)=0,0,IF($B$6="Yes",SUM($C$9:C85),SUM(B85:C85,-F85))) -> 585680.3091
A86: 2027-07-31 | B86: 585680.3091 | C86: 0 | D86: 16024.68023 | E86: 5002.685973 | F86: 11021.99425 | G86: =IF(ROUND(SUM(B86:C86,-F86),0)=0,0,IF($B$6="Yes",SUM($C$9:C86),SUM(B86:C86,-F86))) -> 574658.3148
A87: 2027-08-31 | B87: 574658.3148 | C87: 0 | D87: 16024.68023 | E87: 4908.539773 | F87: 11116.14045 | G87: =IF(ROUND(SUM(B87:C87,-F87),0)=0,0,IF($B$6="Yes",SUM($C$9:C87),SUM(B87:C87,-F87))) -> 563542.1744
A88: 2027-09-30 | B88: 563542.1744 | C88: 0 | D88: 16024.68023 | E88: 4813.589406 | F88: 11211.09082 | G88: =IF(ROUND(SUM(B88:C88,-F88),0)=0,0,IF($B$6="Yes",SUM($C$9:C88),SUM(B88:C88,-F88))) -> 552331.0836
A89: 2027-10-31 | B89: 552331.0836 | C89: 0 | D89: 16024.68023 | E89: 4717.828005 | F89: 11306.85222 | G89: =IF(ROUND(SUM(B89:C89,-F89),0)=0,0,IF($B$6="Yes",SUM($C$9:C89),SUM(B89:C89,-F89))) -> 541024.2313
A90: 2027-11-30 | B90: 541024.2313 | C90: 0 | D90: 16024.68023 | E90: 4621.248643 | F90: 11403.43158 | G90: =IF(ROUND(SUM(B90:C90,-F90),0)=0,0,IF($B$6="Yes",SUM($C$9:C90),SUM(B90:C90,-F90))) -> 529620.7998
A91: 2027-12-31 | B91: 529620.7998 | C91: 0 | D91: 16024.68023 | E91: 4523.844331 | F91: 11500.83589 | G91: =IF(ROUND(SUM(B91:C91,-F91),0)=0,0,IF($B$6="Yes",SUM($C$9:C91),SUM(B91:C91,-F91))) -> 518119.9639
A92: 2028-01-31 | B92: 518119.9639 | C92: 0 | D92: 16024.68023 | E92: 4425.608025 | F92: 11599.0722 | G92: =IF(ROUND(SUM(B92:C92,-F92),0)=0,0,IF($B$6="Yes",SUM($C$9:C92),SUM(B92:C92,-F92))) -> 506520.8917
A93: 2028-02-29 | B93: 506520.8917 | C93: 0 | D93: 16024.68023 | E93: 4326.532616 | F93: 11698.14761 | G93: =IF(ROUND(SUM(B93:C93,-F93),0)=0,0,IF($B$6="Yes",SUM($C$9:C93),SUM(B93:C93,-F93))) -> 494822.7441
A94: 2028-03-31 | B94: 494822.7441 | C94: 0 | D94: 16024.68023 | E94: 4226.610939 | F94: 11798.06929 | G94: =IF(ROUND(SUM(B94:C94,-F94),0)=0,0,IF($B$6="Yes",SUM($C$9:C94),SUM(B94:C94,-F94))) -> 483024.6748
A95: 2028-04-30 | B95: 483024.6748 | C95: 0 | D95: 16024.68023 | E95: 4125.835764 | F95: 11898.84446 | G95: =IF(ROUND(SUM(B95:C95,-F95),0)=0,0,IF($B$6="Yes",SUM($C$9:C95),SUM(B95:C95,-F95))) -> 471125.8303
A96: 2028-05-31 | B96: 471125.8303 | C96: 0 | D96: 16024.68023 | E96: 4024.199801 | F96: 12000.48042 | G96: =IF(ROUND(SUM(B96:C96,-F96),0)=0,0,IF($B$6="Yes",SUM($C$9:C96),SUM(B96:C96,-F96))) -> 459125.3499
A97: 2028-06-30 | B97: 459125.3499 | C97: 0 | D97: 16024.68023 | E97: 3921.695697 | F97: 12102.98453 | G97: =IF(ROUND(SUM(B97:C97,-F97),0)=0,0,IF($B$6="Yes",SUM($C$9:C97),SUM(B97:C97,-F97))) -> 447022.3654
A98: 2028-07-31 | B98: 447022.3654 | C98: 0 | D98: 16024.68023 | E98: 3818.316037 | F98: 12206.36419 | G98: =IF(ROUND(SUM(B98:C98,-F98),0)=0,0,IF($B$6="Yes",SUM($C$9:C98),SUM(B98:C98,-F98))) -> 434816.0012
A99: 2028-08-31 | B99: 434816.0012 | C99: 0 | D99: 16024.68023 | E99: 3714.053343 | F99: 12310.62688 | G99: =IF(ROUND(SUM(B99:C99,-F99),0)=0,0,IF($B$6="Yes",SUM($C$9:C99),SUM(B99:C99,-F99))) -> 422505.3743
A100: 2028-09-30 | B100: 422505.3743 | C100: 0 | D100: 16024.68023 | E100: 3608.900072 | F100: 12415.78015 | G100: =IF(ROUND(SUM(B100:C100,-F100),0)=0,0,IF($B$6="Yes",SUM($C$9:C100),SUM(B100:C100,-F100))) -> 410089.5941
A101: 2028-10-31 | B101: 410089.5941 | C101: 0 | D101: 16024.68023 | E101: 3502.848617 | F101: 12521.83161 | G101: =IF(ROUND(SUM(B101:C101,-F101),0)=0,0,IF($B$6="Yes",SUM($C$9:C101),SUM(B101:C101,-F101))) -> 397567.7625
A102: 2028-11-30 | B102: 397567.7625 | C102: 0 | D102: 16024.68023 | E102: 3395.891305 | F102: 12628.78892 | G102: =IF(ROUND(SUM(B102:C102,-F102),0)=0,0,IF($B$6="Yes",SUM($C$9:C102),SUM(B102:C102,-F102))) -> 384938.9736
A103: 2028-12-31 | B103: 384938.9736 | C103: 0 | D103: 16024.68023 | E103: 3288.0204 | F103: 12736.65983 | G103: =IF(ROUND(SUM(B103:C103,-F103),0)=0,0,IF($B$6="Yes",SUM($C$9:C103),SUM(B103:C103,-F103))) -> 372202.3138
A104: 2029-01-31 | B104: 372202.3138 | C104: 0 | D104: 16024.68023 | E104: 3179.228097 | F104: 12845.45213 | G104: =IF(ROUND(SUM(B104:C104,-F104),0)=0,0,IF($B$6="Yes",SUM($C$9:C104),SUM(B104:C104,-F104))) -> 359356.8616
A105: 2029-02-28 | B105: 359356.8616 | C105: 0 | D105: 16024.68023 | E105: 3069.506527 | F105: 12955.1737 | G105: =IF(ROUND(SUM(B105:C105,-F105),0)=0,0,IF($B$6="Yes",SUM($C$9:C105),SUM(B105:C105,-F105))) -> 346401.6879
A106: 2029-03-31 | B106: 346401.6879 | C106: 0 | D106: 16024.68023 | E106: 2958.847751 | F106: 13065.83247 | G106: =IF(ROUND(SUM(B106:C106,-F106),0)=0,0,IF($B$6="Yes",SUM($C$9:C106),SUM(B106:C106,-F106))) -> 333335.8555
A107: 2029-04-30 | B107: 333335.8555 | C107: 0 | D107: 16024.68023 | E107: 2847.243766 | F107: 13177.43646 | G107: =IF(ROUND(SUM(B107:C107,-F107),0)=0,0,IF($B$6="Yes",SUM($C$9:C107),SUM(B107:C107,-F107))) -> 320158.419
A108: 2029-05-31 | B108: 320158.419 | C108: 0 | D108: 16024.68023 | E108: 2734.686496 | F108: 13289.99373 | G108: =IF(ROUND(SUM(B108:C108,-F108),0)=0,0,IF($B$6="Yes",SUM($C$9:C108),SUM(B108:C108,-F108))) -> 306868.4253
A109: 2029-06-30 | B109: 306868.4253 | C109: 0 | D109: 16024.68023 | E109: 2621.167799 | F109: 13403.51243 | G109: =IF(ROUND(SUM(B109:C109,-F109),0)=0,0,IF($B$6="Yes",SUM($C$9:C109),SUM(B109:C109,-F109))) -> 293464.9129
A110: 2029-07-31 | B110: 293464.9129 | C110: 0 | D110: 16024.68023 | E110: 2506.679464 | F110: 13518.00076 | G110: =IF(ROUND(SUM(B110:C110,-F110),0)=0,0,IF($B$6="Yes",SUM($C$9:C110),SUM(B110:C110,-F110))) -> 279946.9121
A111: 2029-08-31 | B111: 279946.9121 | C111: 0 | D111: 16024.68023 | E111: 2391.213208 | F111: 13633.46702 | G111: =IF(ROUND(SUM(B111:C111,-F111),0)=0,0,IF($B$6="Yes",SUM($C$9:C111),SUM(B111:C111,-F111))) -> 266313.4451
A112: 2029-09-30 | B112: 266313.4451 | C112: 0 | D112: 16024.68023 | E112: 2274.760677 | F112: 13749.91955 | G112: =IF(ROUND(SUM(B112:C112,-F112),0)=0,0,IF($B$6="Yes",SUM($C$9:C112),SUM(B112:C112,-F112))) -> 252563.5255
A113: 2029-10-31 | B113: 252563.5255 | C113: 0 | D113: 16024.68023 | E113: 2157.313447 | F113: 13867.36678 | G113: =IF(ROUND(SUM(B113:C113,-F113),0)=0,0,IF($B$6="Yes",SUM($C$9:C113),SUM(B113:C113,-F113))) -> 238696.1588
A114: 2029-11-30 | B114: 238696.1588 | C114: 0 | D114: 16024.68023 | E114: 2038.863023 | F114: 13985.8172 | G114: =IF(ROUND(SUM(B114:C114,-F114),0)=0,0,IF($B$6="Yes",SUM($C$9:C114),SUM(B114:C114,-F114))) -> 224710.3416
A115: 2029-12-31 | B115: 224710.3416 | C115: 0 | D115: 16024.68023 | E115: 1919.400834 | F115: 14105.27939 | G115: =IF(ROUND(SUM(B115:C115,-F115),0)=0,0,IF($B$6="Yes",SUM($C$9:C115),SUM(B115:C115,-F115))) -> 210605.0622
A116: 2030-01-31 | B116: 210605.0622 | C116: 0 | D116: 16024.68023 | E116: 1798.918239 | F116: 14225.76199 | G116: =IF(ROUND(SUM(B116:C116,-F116),0)=0,0,IF($B$6="Yes",SUM($C$9:C116),SUM(B116:C116,-F116))) -> 196379.3002
A117: 2030-02-28 | B117: 196379.3002 | C117: 0 | D117: 16024.68023 | E117: 1677.406522 | F117: 14347.2737 | G117: =IF(ROUND(SUM(B117:C117,-F117),0)=0,0,IF($B$6="Yes",SUM($C$9:C117),SUM(B117:C117,-F117))) -> 182032.0265
A118: 2030-03-31 | B118: 182032.0265 | C118: 0 | D118: 16024.68023 | E118: 1554.856893 | F118: 14469.82333 | G118: =IF(ROUND(SUM(B118:C118,-F118),0)=0,0,IF($B$6="Yes",SUM($C$9:C118),SUM(B118:C118,-F118))) -> 167562.2031
A119: 2030-04-30 | B119: 167562.2031 | C119: 0 | D119: 16024.68023 | E119: 1431.260485 | F119: 14593.41974 | G119: =IF(ROUND(SUM(B119:C119,-F119),0)=0,0,IF($B$6="Yes",SUM($C$9:C119),SUM(B119:C119,-F119))) -> 152968.7834
A120: 2030-05-31 | B120: 152968.7834 | C120: 0 | D120: 16024.68023 | E120: 1306.608358 | F120: 14718.07187 | G120: =IF(ROUND(SUM(B120:C120,-F120),0)=0,0,IF($B$6="Yes",SUM($C$9:C120),SUM(B120:C120,-F120))) -> 138250.7115
A121: 2030-06-30 | B121: 138250.7115 | C121: 0 | D121: 16024.68023 | E121: 1180.891494 | F121: 14843.78873 | G121: =IF(ROUND(SUM(B121:C121,-F121),0)=0,0,IF($B$6="Yes",SUM($C$9:C121),SUM(B121:C121,-F121))) -> 123406.9228
A122: 2030-07-31 | B122: 123406.9228 | C122: 0 | D122: 16024.68023 | E122: 1054.100799 | F122: 14970.57943 | G122: =IF(ROUND(SUM(B122:C122,-F122),0)=0,0,IF($B$6="Yes",SUM($C$9:C122),SUM(B122:C122,-F122))) -> 108436.3434
A123: 2030-08-31 | B123: 108436.3434 | C123: 0 | D123: 16024.68023 | E123: 926.2270997 | F123: 15098.45313 | G123: =IF(ROUND(SUM(B123:C123,-F123),0)=0,0,IF($B$6="Yes",SUM($C$9:C123),SUM(B123:C123,-F123))) -> 93337.89025
A124: 2030-09-30 | B124: 93337.89025 | C124: 0 | D124: 16024.68023 | E124: 797.2611459 | F124: 15227.41908 | G124: =IF(ROUND(SUM(B124:C124,-F124),0)=0,0,IF($B$6="Yes",SUM($C$9:C124),SUM(B124:C124,-F124))) -> 78110.47117
A125: 2030-10-31 | B125: 78110.47117 | C125: 0 | D125: 16024.68023 | E125: 667.1936079 | F125: 15357.48662 | G125: =IF(ROUND(SUM(B125:C125,-F125),0)=0,0,IF($B$6="Yes",SUM($C$9:C125),SUM(B125:C125,-F125))) -> 62752.98455
A126: =DATE(YEAR(A125),MONTH(A125)+2,0) -> 2030-11-30 | B126: 62752.98455 | C126: 0 | D126: 16024.68023 | E126: 536.0150764 | F126: 15488.66515 | G126: =IF(ROUND(SUM(B126:C126,-F126),0)=0,0,IF($B$6="Yes",SUM($C$9:C126),SUM(B126:C126,-F126))) -> 47264.3194
A127: =DATE(YEAR(A126),MONTH(A126)+2,0) -> 2030-12-31 | B127: 47264.3194 | C127: 0 | D127: 16024.68023 | E127: 403.7160616 | F127: 15620.96416 | G127: =IF(ROUND(SUM(B127:C127,-F127),0)=0,0,IF($B$6="Yes",SUM($C$9:C127),SUM(B127:C127,-F127))) -> 31643.35524
A128: =DATE(YEAR(A127),MONTH(A127)+2,0) -> 2031-01-31 | B128: 31643.35524 | C128: 0 | D128: 16024.68023 | E128: 270.2869927 | F128: 15754.39323 | G128: =IF(ROUND(SUM(B128:C128,-F128),0)=0,0,IF($B$6="Yes",SUM($C$9:C128),SUM(B128:C128,-F128))) -> 15888.96201
A129: =DATE(YEAR(A128),MONTH(A128)+2,0) -> 2031-02-28 | B129: =G128 -> 15888.96201 | C129: 0 | D129: 16024.68023 | E129: 135.7182172 | F129: =IF($B$6="Yes",0,D129-E129) -> 15888.96201 | G129: =IF(ROUND(SUM(B129:C129,-F129),0)=0,0,IF($B$6="Yes",SUM($C$9:C129),SUM(B129:C129,-F129))) -> 0
A130: 2031-03-31 | B130: 0 | C130: 0 | D130: 0 | E130: 0 | F130: 0 | G130: =IF(ROUND(SUM(B130:C130,-F130),0)=0,0,IF($B$6="Yes",SUM($C$9:C130),SUM(B130:C130,-F130))) -> 0
A131: 2031-04-30 | B131: 0 | C131: 0 | D131: 0 | E131: 0 | F131: 0 | G131: =IF(ROUND(SUM(B131:C131,-F131),0)=0,0,IF($B$6="Yes",SUM($C$9:C131),SUM(B131:C131,-F131))) -> 0
A132: 2031-05-31 | B132: 0 | C132: 0 | D132: 0 | E132: 0 | F132: 0 | G132: =IF(ROUND(SUM(B132:C132,-F132),0)=0,0,IF($B$6="Yes",SUM($C$9:C132),SUM(B132:C132,-F132))) -> 0
A133: 2031-06-30 | B133: 0 | C133: 0 | D133: 0 | E133: 0 | F133: 0 | G133: =IF(ROUND(SUM(B133:C133,-F133),0)=0,0,IF($B$6="Yes",SUM($C$9:C133),SUM(B133:C133,-F133))) -> 0
A134: 2031-07-31 | B134: 0 | C134: 0 | D134: 0 | E134: 0 | F134: 0 | G134: =IF(ROUND(SUM(B134:C134,-F134),0)=0,0,IF($B$6="Yes",SUM($C$9:C134),SUM(B134:C134,-F134))) -> 0
A135: 2031-08-31 | B135: 0 | C135: 0 | D135: 0 | E135: 0 | F135: 0 | G135: =IF(ROUND(SUM(B135:C135,-F135),0)=0,0,IF($B$6="Yes",SUM($C$9:C135),SUM(B135:C135,-F135))) -> 0
A136: 2031-09-30 | B136: 0 | C136: 0 | D136: 0 | E136: 0 | F136: 0 | G136: =IF(ROUND(SUM(B136:C136,-F136),0)=0,0,IF($B$6="Yes",SUM($C$9:C136),SUM(B136:C136,-F136))) -> 0
A137: 2031-10-31 | B137: 0 | C137: 0 | D137: 0 | E137: 0 | F137: 0 | G137: =IF(ROUND(SUM(B137:C137,-F137),0)=0,0,IF($B$6="Yes",SUM($C$9:C137),SUM(B137:C137,-F137))) -> 0
A138: 2031-11-30 | B138: 0 | C138: 0 | D138: 0 | E138: 0 | F138: 0 | G138: =IF(ROUND(SUM(B138:C138,-F138),0)=0,0,IF($B$6="Yes",SUM($C$9:C138),SUM(B138:C138,-F138))) -> 0
A139: 2031-12-31 | B139: 0 | C139: 0 | D139: =IF($B$6="Yes",0,IF(ROW(C139)-ROW($C$9)>$B$5*12,-PMT($B$4/12,$B$5*12,SUM(OFFSET(C139,0,0,-$B$5*12,1)),0,0),-PMT($B$4/12,$B$5*12,SUM(OFFSET(C139,0,0,ROW($C$8)-ROW(C139),1)),0,0))) -> 0 | E139: =(G138+C139)*$B$4/12 -> 0 | F139: 0 | G139: =IF(ROUND(SUM(B139:C139,-F139),0)=0,0,IF($B$6="Yes",SUM($C$9:C139),SUM(B139:C139,-F139))) -> 0
A140: 2032-01-31 | B140: 0 | C140: 0 | D140: 0 | E140: 0 | F140: 0 | G140: =IF(ROUND(SUM(B140:C140,-F140),0)=0,0,IF($B$6="Yes",SUM($C$9:C140),SUM(B140:C140,-F140))) -> 0
A141: 2032-02-29 | B141: 0 | C141: 0 | D141: 0 | E141: 0 | F141: 0 | G141: =IF(ROUND(SUM(B141:C141,-F141),0)=0,0,IF($B$6="Yes",SUM($C$9:C141),SUM(B141:C141,-F141))) -> 0
A142: 2032-03-31 | B142: 0 | C142: 0 | D142: 0 | E142: 0 | F142: 0 | G142: =IF(ROUND(SUM(B142:C142,-F142),0)=0,0,IF($B$6="Yes",SUM($C$9:C142),SUM(B142:C142,-F142))) -> 0
A143: 2032-04-30 | B143: 0 | C143: 0 | D143: 0 | E143: 0 | F143: 0 | G143: =IF(ROUND(SUM(B143:C143,-F143),0)=0,0,IF($B$6="Yes",SUM($C$9:C143),SUM(B143:C143,-F143))) -> 0
A144: 2032-05-31 | B144: 0 | C144: 0 | D144: 0 | E144: 0 | F144: 0 | G144: =IF(ROUND(SUM(B144:C144,-F144),0)=0,0,IF($B$6="Yes",SUM($C$9:C144),SUM(B144:C144,-F144))) -> 0
A145: 2032-06-30 | B145: 0 | C145: 0 | D145: 0 | E145: 0 | F145: 0 | G145: =IF(ROUND(SUM(B145:C145,-F145),0)=0,0,IF($B$6="Yes",SUM($C$9:C145),SUM(B145:C145,-F145))) -> 0
A146: 2032-07-31 | B146: 0 | C146: 0 | D146: 0 | E146: 0 | F146: 0 | G146: =IF(ROUND(SUM(B146:C146,-F146),0)=0,0,IF($B$6="Yes",SUM($C$9:C146),SUM(B146:C146,-F146))) -> 0
A147: 2032-08-31 | B147: 0 | C147: 0 | D147: 0 | E147: 0 | F147: 0 | G147: =IF(ROUND(SUM(B147:C147,-F147),0)=0,0,IF($B$6="Yes",SUM($C$9:C147),SUM(B147:C147,-F147))) -> 0
A148: 2032-09-30 | B148: 0 | C148: 0 | D148: 0 | E148: 0 | F148: 0 | G148: =IF(ROUND(SUM(B148:C148,-F148),0)=0,0,IF($B$6="Yes",SUM($C$9:C148),SUM(B148:C148,-F148))) -> 0
A149: 2032-10-31 | B149: 0 | C149: 0 | D149: 0 | E149: 0 | F149: 0 | G149: =IF(ROUND(SUM(B149:C149,-F149),0)=0,0,IF($B$6="Yes",SUM($C$9:C149),SUM(B149:C149,-F149))) -> 0
A150: 2032-11-30 | B150: 0 | C150: 0 | D150: 0 | E150: 0 | F150: 0 | G150: =IF(ROUND(SUM(B150:C150,-F150),0)=0,0,IF($B$6="Yes",SUM($C$9:C150),SUM(B150:C150,-F150))) -> 0
A151: 2032-12-31 | B151: 0 | C151: 0 | D151: 0 | E151: 0 | F151: 0 | G151: =IF(ROUND(SUM(B151:C151,-F151),0)=0,0,IF($B$6="Yes",SUM($C$9:C151),SUM(B151:C151,-F151))) -> 0
A152: 2033-01-31 | B152: 0 | C152: 0 | D152: 0 | E152: 0 | F152: 0 | G152: =IF(ROUND(SUM(B152:C152,-F152),0)=0,0,IF($B$6="Yes",SUM($C$9:C152),SUM(B152:C152,-F152))) -> 0
A153: 2033-02-28 | B153: 0 | C153: 0 | D153: 0 | E153: 0 | F153: 0 | G153: =IF(ROUND(SUM(B153:C153,-F153),0)=0,0,IF($B$6="Yes",SUM($C$9:C153),SUM(B153:C153,-F153))) -> 0
A154: 2033-03-31 | B154: 0 | C154: 0 | D154: 0 | E154: 0 | F154: 0 | G154: =IF(ROUND(SUM(B154:C154,-F154),0)=0,0,IF($B$6="Yes",SUM($C$9:C154),SUM(B154:C154,-F154))) -> 0
A155: 2033-04-30 | B155: 0 | C155: 0 | D155: 0 | E155: 0 | F155: 0 | G155: =IF(ROUND(SUM(B155:C155,-F155),0)=0,0,IF($B$6="Yes",SUM($C$9:C155),SUM(B155:C155,-F155))) -> 0
A156: 2033-05-31 | B156: 0 | C156: 0 | D156: 0 | E156: 0 | F156: 0 | G156: =IF(ROUND(SUM(B156:C156,-F156),0)=0,0,IF($B$6="Yes",SUM($C$9:C156),SUM(B156:C156,-F156))) -> 0
A157: 2033-06-30 | B157: 0 | C157: 0 | D157: 0 | E157: 0 | F157: 0 | G157: =IF(ROUND(SUM(B157:C157,-F157),0)=0,0,IF($B$6="Yes",SUM($C$9:C157),SUM(B157:C157,-F157))) -> 0
A158: 2033-07-31 | B158: 0 | C158: 0 | D158: 0 | E158: 0 | F158: 0 | G158: =IF(ROUND(SUM(B158:C158,-F158),0)=0,0,IF($B$6="Yes",SUM($C$9:C158),SUM(B158:C158,-F158))) -> 0
A159: 2033-08-31 | B159: 0 | C159: 0 | D159: 0 | E159: 0 | F159: 0 | G159: =IF(ROUND(SUM(B159:C159,-F159),0)=0,0,IF($B$6="Yes",SUM($C$9:C159),SUM(B159:C159,-F159))) -> 0
A160: 2033-09-30 | B160: 0 | C160: 0 | D160: 0 | E160: 0 | F160: 0 | G160: =IF(ROUND(SUM(B160:C160,-F160),0)=0,0,IF($B$6="Yes",SUM($C$9:C160),SUM(B160:C160,-F160))) -> 0
A161: 2033-10-31 | B161: 0 | C161: 0 | D161: 0 | E161: 0 | F161: 0 | G161: =IF(ROUND(SUM(B161:C161,-F161),0)=0,0,IF($B$6="Yes",SUM($C$9:C161),SUM(B161:C161,-F161))) -> 0
A162: 2033-11-30 | B162: 0 | C162: 0 | D162: 0 | E162: 0 | F162: 0 | G162: =IF(ROUND(SUM(B162:C162,-F162),0)=0,0,IF($B$6="Yes",SUM($C$9:C162),SUM(B162:C162,-F162))) -> 0
A163: 2033-12-31 | B163: 0 | C163: 0 | D163: 0 | E163: 0 | F163: 0 | G163: =IF(ROUND(SUM(B163:C163,-F163),0)=0,0,IF($B$6="Yes",SUM($C$9:C163),SUM(B163:C163,-F163))) -> 0
A164: 2034-01-31 | B164: 0 | C164: 0 | D164: 0 | E164: 0 | F164: 0 | G164: =IF(ROUND(SUM(B164:C164,-F164),0)=0,0,IF($B$6="Yes",SUM($C$9:C164),SUM(B164:C164,-F164))) -> 0
A165: 2034-02-28 | B165: 0 | C165: 0 | D165: 0 | E165: 0 | F165: 0 | G165: =IF(ROUND(SUM(B165:C165,-F165),0)=0,0,IF($B$6="Yes",SUM($C$9:C165),SUM(B165:C165,-F165))) -> 0

Sheet Loans2 (hidden)
A1: =IF(ISBLANK(Assumptions!$C$4),"Example Limited",Assumptions!$C$4) -> Example (Pty) Limited
A2: Cash Flow Projections - Repayment Schedule - Loans 2
A4: Interest Rate | B4: =Assumptions!$D$72 -> 0.0925
A5: Repayment Term | B5: =Assumptions!$D$73 -> 8
A6: Interest Only | B6: =Assumptions!$D$74 -> No
A7: © www.excel-skills.com
A8: Month | B8: Opening Balance | C8: Additional Loans | D8: Loan Repayment | E8: Interest Charges | F8: Capital Repayment | G8: Closing Balance
A9: =IF(ISBLANK(Assumptions!$C$5)=TRUE,DATE(YEAR(TODAY()),MONTH(TODAY()),0),DATE(YEAR(Assumptions!$C$5),MONTH(Assumptions!$C$5),0)) -> 2021-02-28 | B9: 0 | C9: =-SUMIF(Assumptions!$A$76:$C$100,"LT2",Assumptions!$C$76:$C$100) -> 500000 | D9: 0 | E9: 0 | F9: =IF($B$6="Yes",0,D9-E9) -> 0 | G9: =IF(ROUND(SUM(B9:C9,-F9),0)=0,0,IF($B$6="Yes",SUM($C$9:C9),SUM(B9:C9,-F9))) -> 500000
A10: =DATE(YEAR(A9),MONTH(A9)+2,0) -> 2021-03-31 | B10: =G9 -> 500000 | C10: 0 | D10: =IF($B$6="Yes",0,IF(ROW(C10)-ROW($C$9)>$B$5*12,-PMT($B$4/12,$B$5*12,SUM(OFFSET(C10,0,0,-$B$5*12,1)),0,0),-PMT($B$4/12,$B$5*12,SUM(OFFSET(C10,0,0,ROW($C$8)-ROW(C10),1)),0,0))) -> 7390.11008 | E10: =(G9+C10)*$B$4/12 -> 3854.166667 | F10: =IF($B$6="Yes",0,D10-E10) -> 3535.943414 | G10: =IF(ROUND(SUM(B10:C10,-F10),0)=0,0,IF($B$6="Yes",SUM($C$9:C10),SUM(B10:C10,-F10))) -> 496464.0566
A11: =DATE(YEAR(A10),MONTH(A10)+2,0) -> 2021-04-30 | B11: =G10 -> 496464.0566 | C11: 0 | D11: =IF($B$6="Yes",0,IF(ROW(C11)-ROW($C$9)>$B$5*12,-PMT($B$4/12,$B$5*12,SUM(OFFSET(C11,0,0,-$B$5*12,1)),0,0),-PMT($B$4/12,$B$5*12,SUM(OFFSET(C11,0,0,ROW($C$8)-ROW(C11),1)),0,0))) -> 7390.11008 | E11: =(G10+C11)*$B$4/12 -> 3826.910436 | F11: 3563.199644 | G11: =IF(ROUND(SUM(B11:C11,-F11),0)=0,0,IF($B$6="Yes",SUM($C$9:C11),SUM(B11:C11,-F11))) -> 492900.8569
A12: 2021-05-31 | B12: 492900.8569 | C12: 0 | D12: 7390.11008 | E12: 3799.444106 | F12: 3590.665975 | G12: =IF(ROUND(SUM(B12:C12,-F12),0)=0,0,IF($B$6="Yes",SUM($C$9:C12),SUM(B12:C12,-F12))) -> 489310.191
A13: 2021-06-30 | B13: 489310.191 | C13: 0 | D13: 7390.11008 | E13: 3771.766055 | F13: 3618.344025 | G13: =IF(ROUND(SUM(B13:C13,-F13),0)=0,0,IF($B$6="Yes",SUM($C$9:C13),SUM(B13:C13,-F13))) -> 485691.8469
A14: 2021-07-31 | B14: 485691.8469 | C14: 0 | D14: 7390.11008 | E14: 3743.874654 | F14: 3646.235427 | G14: =IF(ROUND(SUM(B14:C14,-F14),0)=0,0,IF($B$6="Yes",SUM($C$9:C14),SUM(B14:C14,-F14))) -> 482045.6115
A15: 2021-08-31 | B15: 482045.6115 | C15: 100000 | D15: 8868.132096 | E15: 4486.601589 | F15: 4381.530507 | G15: =IF(ROUND(SUM(B15:C15,-F15),0)=0,0,IF($B$6="Yes",SUM($C$9:C15),SUM(B15:C15,-F15))) -> 577664.081
A16: 2021-09-30 | B16: 577664.081 | C16: 0 | D16: 8868.132096 | E16: 4452.827291 | F16: 4415.304805 | G16: =IF(ROUND(SUM(B16:C16,-F16),0)=0,0,IF($B$6="Yes",SUM($C$9:C16),SUM(B16:C16,-F16))) -> 573248.7762
A17: 2021-10-31 | B17: 573248.7762 | C17: 0 | D17: 8868.132096 | E17: 4418.79265 | F17: 4449.339446 | G17: =IF(ROUND(SUM(B17:C17,-F17),0)=0,0,IF($B$6="Yes",SUM($C$9:C17),SUM(B17:C17,-F17))) -> 568799.4368
A18: 2021-11-30 | B18: 568799.4368 | C18: 0 | D18: 8868.132096 | E18: 4384.495658 | F18: 4483.636438 | G18: =IF(ROUND(SUM(B18:C18,-F18),0)=0,0,IF($B$6="Yes",SUM($C$9:C18),SUM(B18:C18,-F18))) -> 564315.8003
A19: 2021-12-31 | B19: 564315.8003 | C19: 0 | D19: 8868.132096 | E19: 4349.934294 | F19: 4518.197802 | G19: =IF(ROUND(SUM(B19:C19,-F19),0)=0,0,IF($B$6="Yes",SUM($C$9:C19),SUM(B19:C19,-F19))) -> 559797.6025
A20: 2022-01-31 | B20: 559797.6025 | C20: 0 | D20: 8868.132096 | E20: 4315.106519 | F20: 4553.025577 | G20: =IF(ROUND(SUM(B20:C20,-F20),0)=0,0,IF($B$6="Yes",SUM($C$9:C20),SUM(B20:C20,-F20))) -> 555244.5769
A21: 2022-02-28 | B21: 555244.5769 | C21: 0 | D21: 8868.132096 | E21: 4280.010281 | F21: 4588.121816 | G21: =IF(ROUND(SUM(B21:C21,-F21),0)=0,0,IF($B$6="Yes",SUM($C$9:C21),SUM(B21:C21,-F21))) -> 550656.4551
A22: 2022-03-31 | B22: 550656.4551 | C22: 0 | D22: 8868.132096 | E22: 4244.643508 | F22: 4623.488588 | G22: =IF(ROUND(SUM(B22:C22,-F22),0)=0,0,IF($B$6="Yes",SUM($C$9:C22),SUM(B22:C22,-F22))) -> 546032.9665
A23: 2022-04-30 | B23: 546032.9665 | C23: 0 | D23: 8868.132096 | E23: 4209.004117 | F23: 4659.127979 | G23: =IF(ROUND(SUM(B23:C23,-F23),0)=0,0,IF($B$6="Yes",SUM($C$9:C23),SUM(B23:C23,-F23))) -> 541373.8386
A24: 2022-05-31 | B24: 541373.8386 | C24: 0 | D24: 8868.132096 | E24: 4173.090006 | F24: 4695.042091 | G24: =IF(ROUND(SUM(B24:C24,-F24),0)=0,0,IF($B$6="Yes",SUM($C$9:C24),SUM(B24:C24,-F24))) -> 536678.7965
A25: 2022-06-30 | B25: 536678.7965 | C25: 0 | D25: 8868.132096 | E25: 4136.899056 | F25: 4731.23304 | G25: =IF(ROUND(SUM(B25:C25,-F25),0)=0,0,IF($B$6="Yes",SUM($C$9:C25),SUM(B25:C25,-F25))) -> 531947.5634
A26: 2022-07-31 | B26: 531947.5634 | C26: 0 | D26: 8868.132096 | E26: 4100.429135 | F26: 4767.702962 | G26: =IF(ROUND(SUM(B26:C26,-F26),0)=0,0,IF($B$6="Yes",SUM($C$9:C26),SUM(B26:C26,-F26))) -> 527179.8605
A27: 2022-08-31 | B27: 527179.8605 | C27: 0 | D27: 8868.132096 | E27: 4063.678091 | F27: 4804.454005 | G27: =IF(ROUND(SUM(B27:C27,-F27),0)=0,0,IF($B$6="Yes",SUM($C$9:C27),SUM(B27:C27,-F27))) -> 522375.4065
A28: 2022-09-30 | B28: 522375.4065 | C28: 0 | D28: 8868.132096 | E28: 4026.643758 | F28: 4841.488338 | G28: =IF(ROUND(SUM(B28:C28,-F28),0)=0,0,IF($B$6="Yes",SUM($C$9:C28),SUM(B28:C28,-F28))) -> 517533.9181
A29: 2022-10-31 | B29: 517533.9181 | C29: 0 | D29: 8868.132096 | E29: 3989.323952 | F29: 4878.808144 | G29: =IF(ROUND(SUM(B29:C29,-F29),0)=0,0,IF($B$6="Yes",SUM($C$9:C29),SUM(B29:C29,-F29))) -> 512655.11
A30: 2022-11-30 | B30: 512655.11 | C30: 0 | D30: 8868.132096 | E30: 3951.716473 | F30: 4916.415624 | G30: =IF(ROUND(SUM(B30:C30,-F30),0)=0,0,IF($B$6="Yes",SUM($C$9:C30),SUM(B30:C30,-F30))) -> 507738.6944
A31: 2022-12-31 | B31: 507738.6944 | C31: 0 | D31: 8868.132096 | E31: 3913.819102 | F31: 4954.312994 | G31: =IF(ROUND(SUM(B31:C31,-F31),0)=0,0,IF($B$6="Yes",SUM($C$9:C31),SUM(B31:C31,-F31))) -> 502784.3814
A32: 2023-01-31 | B32: 502784.3814 | C32: 0 | D32: 8868.132096 | E32: 3875.629606 | F32: 4992.50249 | G32: =IF(ROUND(SUM(B32:C32,-F32),0)=0,0,IF($B$6="Yes",SUM($C$9:C32),SUM(B32:C32,-F32))) -> 497791.8789
A33: 2023-02-28 | B33: 497791.8789 | C33: 0 | D33: 8868.132096 | E33: 3837.145733 | F33: 5030.986363 | G33: =IF(ROUND(SUM(B33:C33,-F33),0)=0,0,IF($B$6="Yes",SUM($C$9:C33),SUM(B33:C33,-F33))) -> 492760.8925
A34: 2023-03-31 | B34: 492760.8925 | C34: 0 | D34: 8868.132096 | E34: 3798.365213 | F34: 5069.766883 | G34: =IF(ROUND(SUM(B34:C34,-F34),0)=0,0,IF($B$6="Yes",SUM($C$9:C34),SUM(B34:C34,-F34))) -> 487691.1256
A35: 2023-04-30 | B35: 487691.1256 | C35: 0 | D35: 8868.132096 | E35: 3759.28576 | F35: 5108.846336 | G35: =IF(ROUND(SUM(B35:C35,-F35),0)=0,0,IF($B$6="Yes",SUM($C$9:C35),SUM(B35:C35,-F35))) -> 482582.2793
A36: 2023-05-31 | B36: 482582.2793 | C36: 0 | D36: 8868.132096 | E36: 3719.90507 | F36: 5148.227027 | G36: =IF(ROUND(SUM(B36:C36,-F36),0)=0,0,IF($B$6="Yes",SUM($C$9:C36),SUM(B36:C36,-F36))) -> 477434.0523
A37: 2023-06-30 | B37: 477434.0523 | C37: 0 | D37: 8868.132096 | E37: 3680.22082 | F37: 5187.911277 | G37: =IF(ROUND(SUM(B37:C37,-F37),0)=0,0,IF($B$6="Yes",SUM($C$9:C37),SUM(B37:C37,-F37))) -> 472246.141
A38: 2023-07-31 | B38: 472246.141 | C38: 0 | D38: 8868.132096 | E38: 3640.23067 | F38: 5227.901426 | G38: =IF(ROUND(SUM(B38:C38,-F38),0)=0,0,IF($B$6="Yes",SUM($C$9:C38),SUM(B38:C38,-F38))) -> 467018.2396
A39: 2023-08-31 | B39: 467018.2396 | C39: 0 | D39: 8868.132096 | E39: 3599.932263 | F39: 5268.199833 | G39: =IF(ROUND(SUM(B39:C39,-F39),0)=0,0,IF($B$6="Yes",SUM($C$9:C39),SUM(B39:C39,-F39))) -> 461750.0397
A40: 2023-09-30 | B40: 461750.0397 | C40: 0 | D40: 8868.132096 | E40: 3559.323223 | F40: 5308.808873 | G40: =IF(ROUND(SUM(B40:C40,-F40),0)=0,0,IF($B$6="Yes",SUM($C$9:C40),SUM(B40:C40,-F40))) -> 456441.2309
A41: 2023-10-31 | B41: 456441.2309 | C41: 0 | D41: 8868.132096 | E41: 3518.401154 | F41: 5349.730942 | G41: =IF(ROUND(SUM(B41:C41,-F41),0)=0,0,IF($B$6="Yes",SUM($C$9:C41),SUM(B41:C41,-F41))) -> 451091.4999
A42: 2023-11-30 | B42: 451091.4999 | C42: 0 | D42: 8868.132096 | E42: 3477.163645 | F42: 5390.968451 | G42: =IF(ROUND(SUM(B42:C42,-F42),0)=0,0,IF($B$6="Yes",SUM($C$9:C42),SUM(B42:C42,-F42))) -> 445700.5315
A43: 2023-12-31 | B43: 445700.5315 | C43: 0 | D43: 8868.132096 | E43: 3435.608263 | F43: 5432.523833 | G43: =IF(ROUND(SUM(B43:C43,-F43),0)=0,0,IF($B$6="Yes",SUM($C$9:C43),SUM(B43:C43,-F43))) -> 440268.0076
A44: 2024-01-31 | B44: 440268.0076 | C44: 0 | D44: 8868.132096 | E44: 3393.732559 | F44: 5474.399537 | G44: =IF(ROUND(SUM(B44:C44,-F44),0)=0,0,IF($B$6="Yes",SUM($C$9:C44),SUM(B44:C44,-F44))) -> 434793.6081
A45: 2024-02-29 | B45: 434793.6081 | C45: 0 | D45: 8868.132096 | E45: 3351.534062 | F45: 5516.598034 | G45: =IF(ROUND(SUM(B45:C45,-F45),0)=0,0,IF($B$6="Yes",SUM($C$9:C45),SUM(B45:C45,-F45))) -> 429277.0101
A46: 2024-03-31 | B46: 429277.0101 | C46: 0 | D46: 8868.132096 | E46: 3309.010286 | F46: 5559.12181 | G46: =IF(ROUND(SUM(B46:C46,-F46),0)=0,0,IF($B$6="Yes",SUM($C$9:C46),SUM(B46:C46,-F46))) -> 423717.8882
A47: 2024-04-30 | B47: 423717.8882 | C47: 0 | D47: 8868.132096 | E47: 3266.158722 | F47: 5601.973374 | G47: =IF(ROUND(SUM(B47:C47,-F47),0)=0,0,IF($B$6="Yes",SUM($C$9:C47),SUM(B47:C47,-F47))) -> 418115.9149
A48: 2024-05-31 | B48: 418115.9149 | C48: 0 | D48: 8868.132096 | E48: 3222.976844 | F48: 5645.155252 | G48: =IF(ROUND(SUM(B48:C48,-F48),0)=0,0,IF($B$6="Yes",SUM($C$9:C48),SUM(B48:C48,-F48))) -> 412470.7596
A49: 2024-06-30 | B49: 412470.7596 | C49: 0 | D49: 8868.132096 | E49: 3179.462105 | F49: 5688.669991 | G49: =IF(ROUND(SUM(B49:C49,-F49),0)=0,0,IF($B$6="Yes",SUM($C$9:C49),SUM(B49:C49,-F49))) -> 406782.0896
A50: 2024-07-31 | B50: 406782.0896 | C50: 0 | D50: 8868.132096 | E50: 3135.611941 | F50: 5732.520155 | G50: =IF(ROUND(SUM(B50:C50,-F50),0)=0,0,IF($B$6="Yes",SUM($C$9:C50),SUM(B50:C50,-F50))) -> 401049.5695
A51: 2024-08-31 | B51: 401049.5695 | C51: 0 | D51: 8868.132096 | E51: 3091.423765 | F51: 5776.708332 | G51: =IF(ROUND(SUM(B51:C51,-F51),0)=0,0,IF($B$6="Yes",SUM($C$9:C51),SUM(B51:C51,-F51))) -> 395272.8611
A52: 2024-09-30 | B52: 395272.8611 | C52: 0 | D52: 8868.132096 | E52: 3046.894971 | F52: 5821.237125 | G52: =IF(ROUND(SUM(B52:C52,-F52),0)=0,0,IF($B$6="Yes",SUM($C$9:C52),SUM(B52:C52,-F52))) -> 389451.624
A53: 2024-10-31 | B53: 389451.624 | C53: 0 | D53: 8868.132096 | E53: 3002.022935 | F53: 5866.109161 | G53: =IF(ROUND(SUM(B53:C53,-F53),0)=0,0,IF($B$6="Yes",SUM($C$9:C53),SUM(B53:C53,-F53))) -> 383585.5149
A54: 2024-11-30 | B54: 383585.5149 | C54: 0 | D54: 8868.132096 | E54: 2956.80501 | F54: 5911.327086 | G54: =IF(ROUND(SUM(B54:C54,-F54),0)=0,0,IF($B$6="Yes",SUM($C$9:C54),SUM(B54:C54,-F54))) -> 377674.1878
A55: 2024-12-31 | B55: 377674.1878 | C55: 0 | D55: 8868.132096 | E55: 2911.238531 | F55: 5956.893566 | G55: =IF(ROUND(SUM(B55:C55,-F55),0)=0,0,IF($B$6="Yes",SUM($C$9:C55),SUM(B55:C55,-F55))) -> 371717.2942
A56: 2025-01-31 | B56: 371717.2942 | C56: 0 | D56: 8868.132096 | E56: 2865.320809 | F56: 6002.811287 | G56: =IF(ROUND(SUM(B56:C56,-F56),0)=0,0,IF($B$6="Yes",SUM($C$9:C56),SUM(B56:C56,-F56))) -> 365714.4829
A57: 2025-02-28 | B57: 365714.4829 | C57: 0 | D57: 8868.132096 | E57: 2819.049139 | F57: 6049.082957 | G57: =IF(ROUND(SUM(B57:C57,-F57),0)=0,0,IF($B$6="Yes",SUM($C$9:C57),SUM(B57:C57,-F57))) -> 359665.4
A58: 2025-03-31 | B58: 359665.4 | C58: 0 | D58: 8868.132096 | E58: 2772.420791 | F58: 6095.711305 | G58: =IF(ROUND(SUM(B58:C58,-F58),0)=0,0,IF($B$6="Yes",SUM($C$9:C58),SUM(B58:C58,-F58))) -> 353569.6887
A59: 2025-04-30 | B59: 353569.6887 | C59: 0 | D59: 8868.132096 | E59: 2725.433017 | F59: 6142.69908 | G59: =IF(ROUND(SUM(B59:C59,-F59),0)=0,0,IF($B$6="Yes",SUM($C$9:C59),SUM(B59:C59,-F59))) -> 347426.9896
A60: 2025-05-31 | B60: 347426.9896 | C60: 0 | D60: 8868.132096 | E60: 2678.083045 | F60: 6190.049052 | G60: =IF(ROUND(SUM(B60:C60,-F60),0)=0,0,IF($B$6="Yes",SUM($C$9:C60),SUM(B60:C60,-F60))) -> 341236.9405
A61: 2025-06-30 | B61: 341236.9405 | C61: 0 | D61: 8868.132096 | E61: 2630.368083 | F61: 6237.764013 | G61: =IF(ROUND(SUM(B61:C61,-F61),0)=0,0,IF($B$6="Yes",SUM($C$9:C61),SUM(B61:C61,-F61))) -> 334999.1765
A62: 2025-07-31 | B62: 334999.1765 | C62: 0 | D62: 8868.132096 | E62: 2582.285319 | F62: 6285.846777 | G62: =IF(ROUND(SUM(B62:C62,-F62),0)=0,0,IF($B$6="Yes",SUM($C$9:C62),SUM(B62:C62,-F62))) -> 328713.3297
A63: 2025-08-31 | B63: 328713.3297 | C63: 0 | D63: 8868.132096 | E63: 2533.831917 | F63: 6334.30018 | G63: =IF(ROUND(SUM(B63:C63,-F63),0)=0,0,IF($B$6="Yes",SUM($C$9:C63),SUM(B63:C63,-F63))) -> 322379.0296
A64: 2025-09-30 | B64: 322379.0296 | C64: 0 | D64: 8868.132096 | E64: 2485.005019 | F64: 6383.127077 | G64: =IF(ROUND(SUM(B64:C64,-F64),0)=0,0,IF($B$6="Yes",SUM($C$9:C64),SUM(B64:C64,-F64))) -> 315995.9025
A65: 2025-10-31 | B65: 315995.9025 | C65: 0 | D65: 8868.132096 | E65: 2435.801748 | F65: 6432.330348 | G65: =IF(ROUND(SUM(B65:C65,-F65),0)=0,0,IF($B$6="Yes",SUM($C$9:C65),SUM(B65:C65,-F65))) -> 309563.5721
A66: 2025-11-30 | B66: 309563.5721 | C66: 0 | D66: 8868.132096 | E66: 2386.219202 | F66: 6481.912894 | G66: =IF(ROUND(SUM(B66:C66,-F66),0)=0,0,IF($B$6="Yes",SUM($C$9:C66),SUM(B66:C66,-F66))) -> 303081.6592
A67: 2025-12-31 | B67: 303081.6592 | C67: 0 | D67: 8868.132096 | E67: 2336.254457 | F67: 6531.87764 | G67: =IF(ROUND(SUM(B67:C67,-F67),0)=0,0,IF($B$6="Yes",SUM($C$9:C67),SUM(B67:C67,-F67))) -> 296549.7816
A68: 2026-01-31 | B68: 296549.7816 | C68: 0 | D68: 8868.132096 | E68: 2285.904566 | F68: 6582.22753 | G68: =IF(ROUND(SUM(B68:C68,-F68),0)=0,0,IF($B$6="Yes",SUM($C$9:C68),SUM(B68:C68,-F68))) -> 289967.5541
A69: 2026-02-28 | B69: 289967.5541 | C69: 0 | D69: 8868.132096 | E69: 2235.166563 | F69: 6632.965534 | G69: =IF(ROUND(SUM(B69:C69,-F69),0)=0,0,IF($B$6="Yes",SUM($C$9:C69),SUM(B69:C69,-F69))) -> 283334.5885
A70: 2026-03-31 | B70: 283334.5885 | C70: 0 | D70: 8868.132096 | E70: 2184.037453 | F70: 6684.094643 | G70: =IF(ROUND(SUM(B70:C70,-F70),0)=0,0,IF($B$6="Yes",SUM($C$9:C70),SUM(B70:C70,-F70))) -> 276650.4939
A71: 2026-04-30 | B71: 276650.4939 | C71: 0 | D71: 8868.132096 | E71: 2132.514224 | F71: 6735.617873 | G71: =IF(ROUND(SUM(B71:C71,-F71),0)=0,0,IF($B$6="Yes",SUM($C$9:C71),SUM(B71:C71,-F71))) -> 269914.876
A72: 2026-05-31 | B72: 269914.876 | C72: 0 | D72: 8868.132096 | E72: 2080.593836 | F72: 6787.53826 | G72: =IF(ROUND(SUM(B72:C72,-F72),0)=0,0,IF($B$6="Yes",SUM($C$9:C72),SUM(B72:C72,-F72))) -> 263127.3378
A73: 2026-06-30 | B73: 263127.3378 | C73: 0 | D73: 8868.132096 | E73: 2028.273229 | F73: 6839.858868 | G73: =IF(ROUND(SUM(B73:C73,-F73),0)=0,0,IF($B$6="Yes",SUM($C$9:C73),SUM(B73:C73,-F73))) -> 256287.4789
A74: 2026-07-31 | B74: 256287.4789 | C74: 0 | D74: 8868.132096 | E74: 1975.549316 | F74: =IF($B$6="Yes",0,D74-E74) -> 6892.58278 | G74: =IF(ROUND(SUM(B74:C74,-F74),0)=0,0,IF($B$6="Yes",SUM($C$9:C74),SUM(B74:C74,-F74))) -> 249394.8961
A75: =DATE(YEAR(A74),MONTH(A74)+2,0) -> 2026-08-31 | B75: =G74 -> 249394.8961 | C75: 0 | D75: =IF($B$6="Yes",0,IF(ROW(C75)-ROW($C$9)>$B$5*12,-PMT($B$4/12,$B$5*12,SUM(OFFSET(C75,0,0,-$B$5*12,1)),0,0),-PMT($B$4/12,$B$5*12,SUM(OFFSET(C75,0,0,ROW($C$8)-ROW(C75),1)),0,0))) -> 8868.132096 | E75: =(G74+C75)*$B$4/12 -> 1922.418991 | F75: 6945.713105 | G75: =IF(ROUND(SUM(B75:C75,-F75),0)=0,0,IF($B$6="Yes",SUM($C$9:C75),SUM(B75:C75,-F75))) -> 242449.183
A76: 2026-09-30 | B76: 242449.183 | C76: 0 | D76: 8868.132096 | E76: 1868.879119 | F76: 6999.252977 | G76: =IF(ROUND(SUM(B76:C76,-F76),0)=0,0,IF($B$6="Yes",SUM($C$9:C76),SUM(B76:C76,-F76))) -> 235449.93
A77: 2026-10-31 | B77: 235449.93 | C77: 0 | D77: 8868.132096 | E77: 1814.926544 | F77: 7053.205552 | G77: =IF(ROUND(SUM(B77:C77,-F77),0)=0,0,IF($B$6="Yes",SUM($C$9:C77),SUM(B77:C77,-F77))) -> 228396.7245
A78: 2026-11-30 | B78: 228396.7245 | C78: 0 | D78: 8868.132096 | E78: 1760.558084 | F78: 7107.574012 | G78: =IF(ROUND(SUM(B78:C78,-F78),0)=0,0,IF($B$6="Yes",SUM($C$9:C78),SUM(B78:C78,-F78))) -> 221289.1505
A79: 2026-12-31 | B79: 221289.1505 | C79: 0 | D79: 8868.132096 | E79: 1705.770535 | F79: 7162.361561 | G79: =IF(ROUND(SUM(B79:C79,-F79),0)=0,0,IF($B$6="Yes",SUM($C$9:C79),SUM(B79:C79,-F79))) -> 214126.7889
A80: 2027-01-31 | B80: 214126.7889 | C80: 0 | D80: 8868.132096 | E80: 1650.560664 | F80: 7217.571432 | G80: =IF(ROUND(SUM(B80:C80,-F80),0)=0,0,IF($B$6="Yes",SUM($C$9:C80),SUM(B80:C80,-F80))) -> 206909.2175
A81: 2027-02-28 | B81: 206909.2175 | C81: 0 | D81: 8868.132096 | E81: 1594.925218 | F81: 7273.206878 | G81: =IF(ROUND(SUM(B81:C81,-F81),0)=0,0,IF($B$6="Yes",SUM($C$9:C81),SUM(B81:C81,-F81))) -> 199636.0106
A82: 2027-03-31 | B82: 199636.0106 | C82: 0 | D82: 8868.132096 | E82: 1538.860915 | F82: 7329.271181 | G82: =IF(ROUND(SUM(B82:C82,-F82),0)=0,0,IF($B$6="Yes",SUM($C$9:C82),SUM(B82:C82,-F82))) -> 192306.7394
A83: 2027-04-30 | B83: 192306.7394 | C83: 0 | D83: 8868.132096 | E83: 1482.36445 | F83: 7385.767647 | G83: =IF(ROUND(SUM(B83:C83,-F83),0)=0,0,IF($B$6="Yes",SUM($C$9:C83),SUM(B83:C83,-F83))) -> 184920.9718
A84: 2027-05-31 | B84: 184920.9718 | C84: 0 | D84: 8868.132096 | E84: 1425.432491 | F84: 7442.699606 | G84: =IF(ROUND(SUM(B84:C84,-F84),0)=0,0,IF($B$6="Yes",SUM($C$9:C84),SUM(B84:C84,-F84))) -> 177478.2722
A85: 2027-06-30 | B85: 177478.2722 | C85: 0 | D85: 8868.132096 | E85: 1368.061681 | F85: 7500.070415 | G85: =IF(ROUND(SUM(B85:C85,-F85),0)=0,0,IF($B$6="Yes",SUM($C$9:C85),SUM(B85:C85,-F85))) -> 169978.2017
A86: 2027-07-31 | B86: 169978.2017 | C86: 0 | D86: 8868.132096 | E86: 1310.248638 | F86: 7557.883458 | G86: =IF(ROUND(SUM(B86:C86,-F86),0)=0,0,IF($B$6="Yes",SUM($C$9:C86),SUM(B86:C86,-F86))) -> 162420.3183
A87: 2027-08-31 | B87: 162420.3183 | C87: 0 | D87: 8868.132096 | E87: 1251.989953 | F87: 7616.142143 | G87: =IF(ROUND(SUM(B87:C87,-F87),0)=0,0,IF($B$6="Yes",SUM($C$9:C87),SUM(B87:C87,-F87))) -> 154804.1761
A88: 2027-09-30 | B88: 154804.1761 | C88: 0 | D88: 8868.132096 | E88: 1193.282191 | F88: 7674.849905 | G88: =IF(ROUND(SUM(B88:C88,-F88),0)=0,0,IF($B$6="Yes",SUM($C$9:C88),SUM(B88:C88,-F88))) -> 147129.3262
A89: 2027-10-31 | B89: 147129.3262 | C89: 0 | D89: 8868.132096 | E89: 1134.12189 | F89: 7734.010207 | G89: =IF(ROUND(SUM(B89:C89,-F89),0)=0,0,IF($B$6="Yes",SUM($C$9:C89),SUM(B89:C89,-F89))) -> 139395.316
A90: 2027-11-30 | B90: 139395.316 | C90: 0 | D90: 8868.132096 | E90: 1074.505561 | F90: 7793.626535 | G90: =IF(ROUND(SUM(B90:C90,-F90),0)=0,0,IF($B$6="Yes",SUM($C$9:C90),SUM(B90:C90,-F90))) -> 131601.6895
A91: 2027-12-31 | B91: 131601.6895 | C91: 0 | D91: 8868.132096 | E91: 1014.42969 | F91: 7853.702406 | G91: =IF(ROUND(SUM(B91:C91,-F91),0)=0,0,IF($B$6="Yes",SUM($C$9:C91),SUM(B91:C91,-F91))) -> 123747.9871
A92: 2028-01-31 | B92: 123747.9871 | C92: 0 | D92: 8868.132096 | E92: 953.8907338 | F92: 7914.241362 | G92: =IF(ROUND(SUM(B92:C92,-F92),0)=0,0,IF($B$6="Yes",SUM($C$9:C92),SUM(B92:C92,-F92))) -> 115833.7457
A93: 2028-02-29 | B93: 115833.7457 | C93: 0 | D93: 8868.132096 | E93: 892.8851233 | F93: 7975.246973 | G93: =IF(ROUND(SUM(B93:C93,-F93),0)=0,0,IF($B$6="Yes",SUM($C$9:C93),SUM(B93:C93,-F93))) -> 107858.4987
A94: 2028-03-31 | B94: 107858.4987 | C94: 0 | D94: 8868.132096 | E94: 831.4092612 | F94: 8036.722835 | G94: =IF(ROUND(SUM(B94:C94,-F94),0)=0,0,IF($B$6="Yes",SUM($C$9:C94),SUM(B94:C94,-F94))) -> 99821.77591
A95: 2028-04-30 | B95: 99821.77591 | C95: 0 | D95: 8868.132096 | E95: 769.4595227 | F95: 8098.672574 | G95: =IF(ROUND(SUM(B95:C95,-F95),0)=0,0,IF($B$6="Yes",SUM($C$9:C95),SUM(B95:C95,-F95))) -> 91723.10334
A96: 2028-05-31 | B96: 91723.10334 | C96: 0 | D96: 8868.132096 | E96: 707.0322549 | F96: 8161.099841 | G96: =IF(ROUND(SUM(B96:C96,-F96),0)=0,0,IF($B$6="Yes",SUM($C$9:C96),SUM(B96:C96,-F96))) -> 83562.0035
A97: 2028-06-30 | B97: 83562.0035 | C97: 0 | D97: 8868.132096 | E97: 644.123777 | F97: 8224.008319 | G97: =IF(ROUND(SUM(B97:C97,-F97),0)=0,0,IF($B$6="Yes",SUM($C$9:C97),SUM(B97:C97,-F97))) -> 75337.99518
A98: 2028-07-31 | B98: 75337.99518 | C98: 0 | D98: 8868.132096 | E98: 580.7303795 | F98: 8287.401717 | G98: =IF(ROUND(SUM(B98:C98,-F98),0)=0,0,IF($B$6="Yes",SUM($C$9:C98),SUM(B98:C98,-F98))) -> 67050.59346
A99: 2028-08-31 | B99: 67050.59346 | C99: 0 | D99: 8868.132096 | E99: 516.8483246 | F99: 8351.283772 | G99: =IF(ROUND(SUM(B99:C99,-F99),0)=0,0,IF($B$6="Yes",SUM($C$9:C99),SUM(B99:C99,-F99))) -> 58699.30969
A100: 2028-09-30 | B100: 58699.30969 | C100: 0 | D100: 8868.132096 | E100: 452.4738455 | F100: 8415.658251 | G100: =IF(ROUND(SUM(B100:C100,-F100),0)=0,0,IF($B$6="Yes",SUM($C$9:C100),SUM(B100:C100,-F100))) -> 50283.65144
A101: 2028-10-31 | B101: 50283.65144 | C101: 0 | D101: 8868.132096 | E101: 387.6031465 | F101: 8480.52895 | G101: =IF(ROUND(SUM(B101:C101,-F101),0)=0,0,IF($B$6="Yes",SUM($C$9:C101),SUM(B101:C101,-F101))) -> 41803.12249
A102: 2028-11-30 | B102: 41803.12249 | C102: 0 | D102: 8868.132096 | E102: 322.2324025 | F102: 8545.899694 | G102: =IF(ROUND(SUM(B102:C102,-F102),0)=0,0,IF($B$6="Yes",SUM($C$9:C102),SUM(B102:C102,-F102))) -> 33257.2228
A103: 2028-12-31 | B103: 33257.2228 | C103: 0 | D103: 8868.132096 | E103: 256.3577591 | F103: 8611.774337 | G103: =IF(ROUND(SUM(B103:C103,-F103),0)=0,0,IF($B$6="Yes",SUM($C$9:C103),SUM(B103:C103,-F103))) -> 24645.44846
A104: 2029-01-31 | B104: 24645.44846 | C104: 0 | D104: 8868.132096 | E104: 189.9753319 | F104: 8678.156764 | G104: =IF(ROUND(SUM(B104:C104,-F104),0)=0,0,IF($B$6="Yes",SUM($C$9:C104),SUM(B104:C104,-F104))) -> 15967.2917
A105: 2029-02-28 | B105: 15967.2917 | C105: 0 | D105: 8868.132096 | E105: 123.0812068 | F105: 8745.050889 | G105: =IF(ROUND(SUM(B105:C105,-F105),0)=0,0,IF($B$6="Yes",SUM($C$9:C105),SUM(B105:C105,-F105))) -> 7222.240806
A106: 2029-03-31 | B106: 7222.240806 | C106: 0 | D106: 1478.022016 | E106: 55.67143955 | F106: 1422.350576 | G106: =IF(ROUND(SUM(B106:C106,-F106),0)=0,0,IF($B$6="Yes",SUM($C$9:C106),SUM(B106:C106,-F106))) -> 5799.89023
A107: 2029-04-30 | B107: 5799.89023 | C107: 0 | D107: 1478.022016 | E107: 44.70748719 | F107: 1433.314529 | G107: =IF(ROUND(SUM(B107:C107,-F107),0)=0,0,IF($B$6="Yes",SUM($C$9:C107),SUM(B107:C107,-F107))) -> 4366.575701
A108: 2029-05-31 | B108: 4366.575701 | C108: 0 | D108: 1478.022016 | E108: 33.65902103 | F108: 1444.362995 | G108: =IF(ROUND(SUM(B108:C108,-F108),0)=0,0,IF($B$6="Yes",SUM($C$9:C108),SUM(B108:C108,-F108))) -> 2922.212706
A109: 2029-06-30 | B109: 2922.212706 | C109: 0 | D109: 1478.022016 | E109: 22.52538961 | F109: 1455.496626 | G109: =IF(ROUND(SUM(B109:C109,-F109),0)=0,0,IF($B$6="Yes",SUM($C$9:C109),SUM(B109:C109,-F109))) -> 1466.71608
A110: 2029-07-31 | B110: 1466.71608 | C110: 0 | D110: 1478.022016 | E110: 11.30593645 | F110: 1466.71608 | G110: =IF(ROUND(SUM(B110:C110,-F110),0)=0,0,IF($B$6="Yes",SUM($C$9:C110),SUM(B110:C110,-F110))) -> 0
A111: 2029-08-31 | B111: 0 | C111: 0 | D111: 0 | E111: 0 | F111: 0 | G111: =IF(ROUND(SUM(B111:C111,-F111),0)=0,0,IF($B$6="Yes",SUM($C$9:C111),SUM(B111:C111,-F111))) -> 0
A112: 2029-09-30 | B112: 0 | C112: 0 | D112: 0 | E112: 0 | F112: 0 | G112: =IF(ROUND(SUM(B112:C112,-F112),0)=0,0,IF($B$6="Yes",SUM($C$9:C112),SUM(B112:C112,-F112))) -> 0
A113: 2029-10-31 | B113: 0 | C113: 0 | D113: 0 | E113: 0 | F113: 0 | G113: =IF(ROUND(SUM(B113:C113,-F113),0)=0,0,IF($B$6="Yes",SUM($C$9:C113),SUM(B113:C113,-F113))) -> 0
A114: 2029-11-30 | B114: 0 | C114: 0 | D114: 0 | E114: 0 | F114: 0 | G114: =IF(ROUND(SUM(B114:C114,-F114),0)=0,0,IF($B$6="Yes",SUM($C$9:C114),SUM(B114:C114,-F114))) -> 0
A115: 2029-12-31 | B115: 0 | C115: 0 | D115: 0 | E115: 0 | F115: 0 | G115: =IF(ROUND(SUM(B115:C115,-F115),0)=0,0,IF($B$6="Yes",SUM($C$9:C115),SUM(B115:C115,-F115))) -> 0
A116: 2030-01-31 | B116: 0 | C116: 0 | D116: 0 | E116: 0 | F116: 0 | G116: =IF(ROUND(SUM(B116:C116,-F116),0)=0,0,IF($B$6="Yes",SUM($C$9:C116),SUM(B116:C116,-F116))) -> 0
A117: 2030-02-28 | B117: 0 | C117: 0 | D117: 0 | E117: 0 | F117: 0 | G117: =IF(ROUND(SUM(B117:C117,-F117),0)=0,0,IF($B$6="Yes",SUM($C$9:C117),SUM(B117:C117,-F117))) -> 0
A118: 2030-03-31 | B118: 0 | C118: 0 | D118: 0 | E118: 0 | F118: 0 | G118: =IF(ROUND(SUM(B118:C118,-F118),0)=0,0,IF($B$6="Yes",SUM($C$9:C118),SUM(B118:C118,-F118))) -> 0
A119: 2030-04-30 | B119: 0 | C119: 0 | D119: 0 | E119: 0 | F119: 0 | G119: =IF(ROUND(SUM(B119:C119,-F119),0)=0,0,IF($B$6="Yes",SUM($C$9:C119),SUM(B119:C119,-F119))) -> 0
A120: 2030-05-31 | B120: 0 | C120: 0 | D120: 0 | E120: 0 | F120: 0 | G120: =IF(ROUND(SUM(B120:C120,-F120),0)=0,0,IF($B$6="Yes",SUM($C$9:C120),SUM(B120:C120,-F120))) -> 0
A121: 2030-06-30 | B121: 0 | C121: 0 | D121: 0 | E121: 0 | F121: 0 | G121: =IF(ROUND(SUM(B121:C121,-F121),0)=0,0,IF($B$6="Yes",SUM($C$9:C121),SUM(B121:C121,-F121))) -> 0
A122: 2030-07-31 | B122: 0 | C122: 0 | D122: 0 | E122: 0 | F122: 0 | G122: =IF(ROUND(SUM(B122:C122,-F122),0)=0,0,IF($B$6="Yes",SUM($C$9:C122),SUM(B122:C122,-F122))) -> 0
A123: 2030-08-31 | B123: 0 | C123: 0 | D123: 0 | E123: 0 | F123: 0 | G123: =IF(ROUND(SUM(B123:C123,-F123),0)=0,0,IF($B$6="Yes",SUM($C$9:C123),SUM(B123:C123,-F123))) -> 0
A124: 2030-09-30 | B124: 0 | C124: 0 | D124: 0 | E124: 0 | F124: 0 | G124: =IF(ROUND(SUM(B124:C124,-F124),0)=0,0,IF($B$6="Yes",SUM($C$9:C124),SUM(B124:C124,-F124))) -> 0
A125: 2030-10-31 | B125: 0 | C125: 0 | D125: 0 | E125: 0 | F125: 0 | G125: =IF(ROUND(SUM(B125:C125,-F125),0)=0,0,IF($B$6="Yes",SUM($C$9:C125),SUM(B125:C125,-F125))) -> 0
A126: =DATE(YEAR(A125),MONTH(A125)+2,0) -> 2030-11-30 | B126: 0 | C126: 0 | D126: 0 | E126: 0 | F126: 0 | G126: =IF(ROUND(SUM(B126:C126,-F126),0)=0,0,IF($B$6="Yes",SUM($C$9:C126),SUM(B126:C126,-F126))) -> 0
A127: =DATE(YEAR(A126),MONTH(A126)+2,0) -> 2030-12-31 | B127: 0 | C127: 0 | D127: 0 | E127: 0 | F127: 0 | G127: =IF(ROUND(SUM(B127:C127,-F127),0)=0,0,IF($B$6="Yes",SUM($C$9:C127),SUM(B127:C127,-F127))) -> 0
A128: =DATE(YEAR(A127),MONTH(A127)+2,0) -> 2031-01-31 | B128: 0 | C128: 0 | D128: 0 | E128: 0 | F128: 0 | G128: =IF(ROUND(SUM(B128:C128,-F128),0)=0,0,IF($B$6="Yes",SUM($C$9:C128),SUM(B128:C128,-F128))) -> 0
A129: =DATE(YEAR(A128),MONTH(A128)+2,0) -> 2031-02-28 | B129: 0 | C129: 0 | D129: 0 | E129: 0 | F129: 0 | G129: =IF(ROUND(SUM(B129:C129,-F129),0)=0,0,IF($B$6="Yes",SUM($C$9:C129),SUM(B129:C129,-F129))) -> 0
A130: 2031-03-31 | B130: 0 | C130: 0 | D130: 0 | E130: 0 | F130: 0 | G130: =IF(ROUND(SUM(B130:C130,-F130),0)=0,0,IF($B$6="Yes",SUM($C$9:C130),SUM(B130:C130,-F130))) -> 0
A131: 2031-04-30 | B131: 0 | C131: 0 | D131: 0 | E131: 0 | F131: 0 | G131: =IF(ROUND(SUM(B131:C131,-F131),0)=0,0,IF($B$6="Yes",SUM($C$9:C131),SUM(B131:C131,-F131))) -> 0
A132: 2031-05-31 | B132: 0 | C132: 0 | D132: 0 | E132: 0 | F132: 0 | G132: =IF(ROUND(SUM(B132:C132,-F132),0)=0,0,IF($B$6="Yes",SUM($C$9:C132),SUM(B132:C132,-F132))) -> 0
A133: 2031-06-30 | B133: 0 | C133: 0 | D133: 0 | E133: 0 | F133: 0 | G133: =IF(ROUND(SUM(B133:C133,-F133),0)=0,0,IF($B$6="Yes",SUM($C$9:C133),SUM(B133:C133,-F133))) -> 0
A134: 2031-07-31 | B134: 0 | C134: 0 | D134: 0 | E134: 0 | F134: 0 | G134: =IF(ROUND(SUM(B134:C134,-F134),0)=0,0,IF($B$6="Yes",SUM($C$9:C134),SUM(B134:C134,-F134))) -> 0
A135: 2031-08-31 | B135: 0 | C135: 0 | D135: 0 | E135: 0 | F135: 0 | G135: =IF(ROUND(SUM(B135:C135,-F135),0)=0,0,IF($B$6="Yes",SUM($C$9:C135),SUM(B135:C135,-F135))) -> 0
A136: 2031-09-30 | B136: 0 | C136: 0 | D136: 0 | E136: 0 | F136: 0 | G136: =IF(ROUND(SUM(B136:C136,-F136),0)=0,0,IF($B$6="Yes",SUM($C$9:C136),SUM(B136:C136,-F136))) -> 0
A137: 2031-10-31 | B137: 0 | C137: 0 | D137: 0 | E137: 0 | F137: 0 | G137: =IF(ROUND(SUM(B137:C137,-F137),0)=0,0,IF($B$6="Yes",SUM($C$9:C137),SUM(B137:C137,-F137))) -> 0
A138: 2031-11-30 | B138: 0 | C138: 0 | D138: 0 | E138: 0 | F138: =IF($B$6="Yes",0,D138-E138) -> 0 | G138: =IF(ROUND(SUM(B138:C138,-F138),0)=0,0,IF($B$6="Yes",SUM($C$9:C138),SUM(B138:C138,-F138))) -> 0
A139: 2031-12-31 | B139: =G138 -> 0 | C139: 0 | D139: =IF($B$6="Yes",0,IF(ROW(C139)-ROW($C$9)>$B$5*12,-PMT($B$4/12,$B$5*12,SUM(OFFSET(C139,0,0,-$B$5*12,1)),0,0),-PMT($B$4/12,$B$5*12,SUM(OFFSET(C139,0,0,ROW($C$8)-ROW(C139),1)),0,0))) -> 0 | E139: =(G138+C139)*$B$4/12 -> 0 | F139: 0 | G139: =IF(ROUND(SUM(B139:C139,-F139),0)=0,0,IF($B$6="Yes",SUM($C$9:C139),SUM(B139:C139,-F139))) -> 0
A140: 2032-01-31 | B140: 0 | C140: 0 | D140: 0 | E140: 0 | F140: 0 | G140: =IF(ROUND(SUM(B140:C140,-F140),0)=0,0,IF($B$6="Yes",SUM($C$9:C140),SUM(B140:C140,-F140))) -> 0
A141: 2032-02-29 | B141: 0 | C141: 0 | D141: 0 | E141: 0 | F141: 0 | G141: =IF(ROUND(SUM(B141:C141,-F141),0)=0,0,IF($B$6="Yes",SUM($C$9:C141),SUM(B141:C141,-F141))) -> 0
A142: 2032-03-31 | B142: 0 | C142: 0 | D142: 0 | E142: 0 | F142: 0 | G142: =IF(ROUND(SUM(B142:C142,-F142),0)=0,0,IF($B$6="Yes",SUM($C$9:C142),SUM(B142:C142,-F142))) -> 0
A143: 2032-04-30 | B143: 0 | C143: 0 | D143: 0 | E143: 0 | F143: 0 | G143: =IF(ROUND(SUM(B143:C143,-F143),0)=0,0,IF($B$6="Yes",SUM($C$9:C143),SUM(B143:C143,-F143))) -> 0
A144: 2032-05-31 | B144: 0 | C144: 0 | D144: 0 | E144: 0 | F144: 0 | G144: =IF(ROUND(SUM(B144:C144,-F144),0)=0,0,IF($B$6="Yes",SUM($C$9:C144),SUM(B144:C144,-F144))) -> 0
A145: 2032-06-30 | B145: 0 | C145: 0 | D145: 0 | E145: 0 | F145: 0 | G145: =IF(ROUND(SUM(B145:C145,-F145),0)=0,0,IF($B$6="Yes",SUM($C$9:C145),SUM(B145:C145,-F145))) -> 0
A146: 2032-07-31 | B146: 0 | C146: 0 | D146: 0 | E146: 0 | F146: 0 | G146: =IF(ROUND(SUM(B146:C146,-F146),0)=0,0,IF($B$6="Yes",SUM($C$9:C146),SUM(B146:C146,-F146))) -> 0
A147: 2032-08-31 | B147: 0 | C147: 0 | D147: 0 | E147: 0 | F147: 0 | G147: =IF(ROUND(SUM(B147:C147,-F147),0)=0,0,IF($B$6="Yes",SUM($C$9:C147),SUM(B147:C147,-F147))) -> 0
A148: 2032-09-30 | B148: 0 | C148: 0 | D148: 0 | E148: 0 | F148: 0 | G148: =IF(ROUND(SUM(B148:C148,-F148),0)=0,0,IF($B$6="Yes",SUM($C$9:C148),SUM(B148:C148,-F148))) -> 0
A149: 2032-10-31 | B149: 0 | C149: 0 | D149: 0 | E149: 0 | F149: 0 | G149: =IF(ROUND(SUM(B149:C149,-F149),0)=0,0,IF($B$6="Yes",SUM($C$9:C149),SUM(B149:C149,-F149))) -> 0
A150: 2032-11-30 | B150: 0 | C150: 0 | D150: 0 | E150: 0 | F150: 0 | G150: =IF(ROUND(SUM(B150:C150,-F150),0)=0,0,IF($B$6="Yes",SUM($C$9:C150),SUM(B150:C150,-F150))) -> 0
A151: 2032-12-31 | B151: 0 | C151: 0 | D151: 0 | E151: 0 | F151: 0 | G151: =IF(ROUND(SUM(B151:C151,-F151),0)=0,0,IF($B$6="Yes",SUM($C$9:C151),SUM(B151:C151,-F151))) -> 0
A152: 2033-01-31 | B152: 0 | C152: 0 | D152: 0 | E152: 0 | F152: 0 | G152: =IF(ROUND(SUM(B152:C152,-F152),0)=0,0,IF($B$6="Yes",SUM($C$9:C152),SUM(B152:C152,-F152))) -> 0
A153: 2033-02-28 | B153: 0 | C153: 0 | D153: 0 | E153: 0 | F153: 0 | G153: =IF(ROUND(SUM(B153:C153,-F153),0)=0,0,IF($B$6="Yes",SUM($C$9:C153),SUM(B153:C153,-F153))) -> 0
A154: 2033-03-31 | B154: 0 | C154: 0 | D154: 0 | E154: 0 | F154: 0 | G154: =IF(ROUND(SUM(B154:C154,-F154),0)=0,0,IF($B$6="Yes",SUM($C$9:C154),SUM(B154:C154,-F154))) -> 0
A155: 2033-04-30 | B155: 0 | C155: 0 | D155: 0 | E155: 0 | F155: 0 | G155: =IF(ROUND(SUM(B155:C155,-F155),0)=0,0,IF($B$6="Yes",SUM($C$9:C155),SUM(B155:C155,-F155))) -> 0
A156: 2033-05-31 | B156: 0 | C156: 0 | D156: 0 | E156: 0 | F156: 0 | G156: =IF(ROUND(SUM(B156:C156,-F156),0)=0,0,IF($B$6="Yes",SUM($C$9:C156),SUM(B156:C156,-F156))) -> 0
A157: 2033-06-30 | B157: 0 | C157: 0 | D157: 0 | E157: 0 | F157: 0 | G157: =IF(ROUND(SUM(B157:C157,-F157),0)=0,0,IF($B$6="Yes",SUM($C$9:C157),SUM(B157:C157,-F157))) -> 0
A158: 2033-07-31 | B158: 0 | C158: 0 | D158: 0 | E158: 0 | F158: 0 | G158: =IF(ROUND(SUM(B158:C158,-F158),0)=0,0,IF($B$6="Yes",SUM($C$9:C158),SUM(B158:C158,-F158))) -> 0
A159: 2033-08-31 | B159: 0 | C159: 0 | D159: 0 | E159: 0 | F159: 0 | G159: =IF(ROUND(SUM(B159:C159,-F159),0)=0,0,IF($B$6="Yes",SUM($C$9:C159),SUM(B159:C159,-F159))) -> 0
A160: 2033-09-30 | B160: 0 | C160: 0 | D160: 0 | E160: 0 | F160: 0 | G160: =IF(ROUND(SUM(B160:C160,-F160),0)=0,0,IF($B$6="Yes",SUM($C$9:C160),SUM(B160:C160,-F160))) -> 0
A161: 2033-10-31 | B161: 0 | C161: 0 | D161: 0 | E161: 0 | F161: 0 | G161: =IF(ROUND(SUM(B161:C161,-F161),0)=0,0,IF($B$6="Yes",SUM($C$9:C161),SUM(B161:C161,-F161))) -> 0
A162: 2033-11-30 | B162: 0 | C162: 0 | D162: 0 | E162: 0 | F162: 0 | G162: =IF(ROUND(SUM(B162:C162,-F162),0)=0,0,IF($B$6="Yes",SUM($C$9:C162),SUM(B162:C162,-F162))) -> 0
A163: 2033-12-31 | B163: 0 | C163: 0 | D163: 0 | E163: 0 | F163: 0 | G163: =IF(ROUND(SUM(B163:C163,-F163),0)=0,0,IF($B$6="Yes",SUM($C$9:C163),SUM(B163:C163,-F163))) -> 0
A164: 2034-01-31 | B164: 0 | C164: 0 | D164: 0 | E164: 0 | F164: 0 | G164: =IF(ROUND(SUM(B164:C164,-F164),0)=0,0,IF($B$6="Yes",SUM($C$9:C164),SUM(B164:C164,-F164))) -> 0
A165: 2034-02-28 | B165: 0 | C165: 0 | D165: 0 | E165: 0 | F165: 0 | G165: =IF(ROUND(SUM(B165:C165,-F165),0)=0,0,IF($B$6="Yes",SUM($C$9:C165),SUM(B165:C165,-F165))) -> 0

Sheet Loans3 (hidden)
A1: =IF(ISBLANK(Assumptions!$C$4),"Example Limited",Assumptions!$C$4) -> Example (Pty) Limited
A2: Cash Flow Projections - Repayment Schedule - Loans 3
A4: Interest Rate | B4: =Assumptions!$E$72 -> 0.125
A5: Repayment Term | B5: =Assumptions!$E$73 -> 5
A6: Interest Only | B6: =Assumptions!$E$74 -> No
A7: © www.excel-skills.com
A8: Month | B8: Opening Balance | C8: Additional Loans | D8: Loan Repayment | E8: Interest Charges | F8: Capital Repayment | G8: Closing Balance
A9: =IF(ISBLANK(Assumptions!$C$5)=TRUE,DATE(YEAR(TODAY()),MONTH(TODAY()),0),DATE(YEAR(Assumptions!$C$5),MONTH(Assumptions!$C$5),0)) -> 2021-02-28 | B9: 0 | C9: =-SUMIF(Assumptions!$A$76:$C$100,"LT3",Assumptions!$C$76:$C$100) -> 0 | D9: 0 | E9: 0 | F9: =IF($B$6="Yes",0,D9-E9) -> 0 | G9: =IF(ROUND(SUM(B9:C9,-F9),0)=0,0,IF($B$6="Yes",SUM($C$9:C9),SUM(B9:C9,-F9))) -> 0
A10: =DATE(YEAR(A9),MONTH(A9)+2,0) -> 2021-03-31 | B10: =G9 -> 0 | C10: 0 | D10: =IF($B$6="Yes",0,IF(ROW(C10)-ROW($C$9)>$B$5*12,-PMT($B$4/12,$B$5*12,SUM(OFFSET(C10,0,0,-$B$5*12,1)),0,0),-PMT($B$4/12,$B$5*12,SUM(OFFSET(C10,0,0,ROW($C$8)-ROW(C10),1)),0,0))) -> 0 | E10: =(G9+C10)*$B$4/12 -> 0 | F10: =IF($B$6="Yes",0,D10-E10) -> 0 | G10: =IF(ROUND(SUM(B10:C10,-F10),0)=0,0,IF($B$6="Yes",SUM($C$9:C10),SUM(B10:C10,-F10))) -> 0
A11: =DATE(YEAR(A10),MONTH(A10)+2,0) -> 2021-04-30 | B11: =G10 -> 0 | C11: 0 | D11: =IF($B$6="Yes",0,IF(ROW(C11)-ROW($C$9)>$B$5*12,-PMT($B$4/12,$B$5*12,SUM(OFFSET(C11,0,0,-$B$5*12,1)),0,0),-PMT($B$4/12,$B$5*12,SUM(OFFSET(C11,0,0,ROW($C$8)-ROW(C11),1)),0,0))) -> 0 | E11: =(G10+C11)*$B$4/12 -> 0 | F11: 0 | G11: =IF(ROUND(SUM(B11:C11,-F11),0)=0,0,IF($B$6="Yes",SUM($C$9:C11),SUM(B11:C11,-F11))) -> 0
A12: 2021-05-31 | B12: 0 | C12: 0 | D12: 0 | E12: 0 | F12: 0 | G12: =IF(ROUND(SUM(B12:C12,-F12),0)=0,0,IF($B$6="Yes",SUM($C$9:C12),SUM(B12:C12,-F12))) -> 0
A13: 2021-06-30 | B13: 0 | C13: 0 | D13: 0 | E13: 0 | F13: 0 | G13: =IF(ROUND(SUM(B13:C13,-F13),0)=0,0,IF($B$6="Yes",SUM($C$9:C13),SUM(B13:C13,-F13))) -> 0
A14: 2021-07-31 | B14: 0 | C14: 0 | D14: 0 | E14: 0 | F14: 0 | G14: =IF(ROUND(SUM(B14:C14,-F14),0)=0,0,IF($B$6="Yes",SUM($C$9:C14),SUM(B14:C14,-F14))) -> 0
A15: 2021-08-31 | B15: 0 | C15: 0 | D15: 0 | E15: 0 | F15: 0 | G15: =IF(ROUND(SUM(B15:C15,-F15),0)=0,0,IF($B$6="Yes",SUM($C$9:C15),SUM(B15:C15,-F15))) -> 0
A16: 2021-09-30 | B16: 0 | C16: 0 | D16: 0 | E16: 0 | F16: 0 | G16: =IF(ROUND(SUM(B16:C16,-F16),0)=0,0,IF($B$6="Yes",SUM($C$9:C16),SUM(B16:C16,-F16))) -> 0
A17: 2021-10-31 | B17: 0 | C17: 0 | D17: 0 | E17: 0 | F17: 0 | G17: =IF(ROUND(SUM(B17:C17,-F17),0)=0,0,IF($B$6="Yes",SUM($C$9:C17),SUM(B17:C17,-F17))) -> 0
A18: 2021-11-30 | B18: 0 | C18: 0 | D18: 0 | E18: 0 | F18: 0 | G18: =IF(ROUND(SUM(B18:C18,-F18),0)=0,0,IF($B$6="Yes",SUM($C$9:C18),SUM(B18:C18,-F18))) -> 0
A19: 2021-12-31 | B19: 0 | C19: 0 | D19: 0 | E19: 0 | F19: 0 | G19: =IF(ROUND(SUM(B19:C19,-F19),0)=0,0,IF($B$6="Yes",SUM($C$9:C19),SUM(B19:C19,-F19))) -> 0
A20: 2022-01-31 | B20: 0 | C20: 240000 | D20: 5399.505174 | E20: 2500 | F20: 2899.505174 | G20: =IF(ROUND(SUM(B20:C20,-F20),0)=0,0,IF($B$6="Yes",SUM($C$9:C20),SUM(B20:C20,-F20))) -> 237100.4948
A21: 2022-02-28 | B21: 237100.4948 | C21: 0 | D21: 5399.505174 | E21: 2469.796821 | F21: 2929.708353 | G21: =IF(ROUND(SUM(B21:C21,-F21),0)=0,0,IF($B$6="Yes",SUM($C$9:C21),SUM(B21:C21,-F21))) -> 234170.7865
A22: 2022-03-31 | B22: 234170.7865 | C22: 0 | D22: 5399.505174 | E22: 2439.279026 | F22: 2960.226148 | G22: =IF(ROUND(SUM(B22:C22,-F22),0)=0,0,IF($B$6="Yes",SUM($C$9:C22),SUM(B22:C22,-F22))) -> 231210.5603
A23: 2022-04-30 | B23: 231210.5603 | C23: 0 | D23: 5399.505174 | E23: 2408.443337 | F23: 2991.061837 | G23: =IF(ROUND(SUM(B23:C23,-F23),0)=0,0,IF($B$6="Yes",SUM($C$9:C23),SUM(B23:C23,-F23))) -> 228219.4985
A24: 2022-05-31 | B24: 228219.4985 | C24: 0 | D24: 5399.505174 | E24: 2377.286443 | F24: 3022.218732 | G24: =IF(ROUND(SUM(B24:C24,-F24),0)=0,0,IF($B$6="Yes",SUM($C$9:C24),SUM(B24:C24,-F24))) -> 225197.2798
A25: 2022-06-30 | B25: 225197.2798 | C25: 0 | D25: 5399.505174 | E25: 2345.804997 | F25: 3053.700177 | G25: =IF(ROUND(SUM(B25:C25,-F25),0)=0,0,IF($B$6="Yes",SUM($C$9:C25),SUM(B25:C25,-F25))) -> 222143.5796
A26: 2022-07-31 | B26: 222143.5796 | C26: 0 | D26: 5399.505174 | E26: 2313.995621 | F26: 3085.509553 | G26: =IF(ROUND(SUM(B26:C26,-F26),0)=0,0,IF($B$6="Yes",SUM($C$9:C26),SUM(B26:C26,-F26))) -> 219058.07
A27: 2022-08-31 | B27: 219058.07 | C27: 300000 | D27: 12148.88664 | E27: 5406.854896 | F27: 6742.031746 | G27: =IF(ROUND(SUM(B27:C27,-F27),0)=0,0,IF($B$6="Yes",SUM($C$9:C27),SUM(B27:C27,-F27))) -> 512316.0383
A28: 2022-09-30 | B28: 512316.0383 | C28: 0 | D28: 12148.88664 | E28: 5336.625399 | F28: 6812.261243 | G28: =IF(ROUND(SUM(B28:C28,-F28),0)=0,0,IF($B$6="Yes",SUM($C$9:C28),SUM(B28:C28,-F28))) -> 505503.777
A29: 2022-10-31 | B29: 505503.777 | C29: 0 | D29: 12148.88664 | E29: 5265.664344 | F29: 6883.222298 | G29: =IF(ROUND(SUM(B29:C29,-F29),0)=0,0,IF($B$6="Yes",SUM($C$9:C29),SUM(B29:C29,-F29))) -> 498620.5547
A30: 2022-11-30 | B30: 498620.5547 | C30: 0 | D30: 12148.88664 | E30: 5193.964112 | F30: 6954.92253 | G30: =IF(ROUND(SUM(B30:C30,-F30),0)=0,0,IF($B$6="Yes",SUM($C$9:C30),SUM(B30:C30,-F30))) -> 491665.6322
A31: 2022-12-31 | B31: 491665.6322 | C31: 0 | D31: 12148.88664 | E31: 5121.517002 | F31: 7027.36964 | G31: =IF(ROUND(SUM(B31:C31,-F31),0)=0,0,IF($B$6="Yes",SUM($C$9:C31),SUM(B31:C31,-F31))) -> 484638.2626
A32: 2023-01-31 | B32: 484638.2626 | C32: 0 | D32: 12148.88664 | E32: 5048.315235 | F32: 7100.571407 | G32: =IF(ROUND(SUM(B32:C32,-F32),0)=0,0,IF($B$6="Yes",SUM($C$9:C32),SUM(B32:C32,-F32))) -> 477537.6912
A33: 2023-02-28 | B33: 477537.6912 | C33: 0 | D33: 12148.88664 | E33: 4974.35095 | F33: 7174.535692 | G33: =IF(ROUND(SUM(B33:C33,-F33),0)=0,0,IF($B$6="Yes",SUM($C$9:C33),SUM(B33:C33,-F33))) -> 470363.1555
A34: 2023-03-31 | B34: 470363.1555 | C34: 0 | D34: 12148.88664 | E34: 4899.616203 | F34: 7249.270439 | G34: =IF(ROUND(SUM(B34:C34,-F34),0)=0,0,IF($B$6="Yes",SUM($C$9:C34),SUM(B34:C34,-F34))) -> 463113.885
A35: 2023-04-30 | B35: 463113.885 | C35: 180000 | D35: 16198.51552 | E35: 6699.102969 | F35: 9499.412553 | G35: =IF(ROUND(SUM(B35:C35,-F35),0)=0,0,IF($B$6="Yes",SUM($C$9:C35),SUM(B35:C35,-F35))) -> 633614.4725
A36: 2023-05-31 | B36: 633614.4725 | C36: 0 | D36: 16198.51552 | E36: 6600.150755 | F36: 9598.364767 | G36: =IF(ROUND(SUM(B36:C36,-F36),0)=0,0,IF($B$6="Yes",SUM($C$9:C36),SUM(B36:C36,-F36))) -> 624016.1077
A37: 2023-06-30 | B37: 624016.1077 | C37: 0 | D37: 16198.51552 | E37: 6500.167789 | F37: 9698.347734 | G37: =IF(ROUND(SUM(B37:C37,-F37),0)=0,0,IF($B$6="Yes",SUM($C$9:C37),SUM(B37:C37,-F37))) -> 614317.76
A38: 2023-07-31 | B38: 614317.76 | C38: 0 | D38: 16198.51552 | E38: 6399.143333 | F38: 9799.372189 | G38: =IF(ROUND(SUM(B38:C38,-F38),0)=0,0,IF($B$6="Yes",SUM($C$9:C38),SUM(B38:C38,-F38))) -> 604518.3878
A39: 2023-08-31 | B39: 604518.3878 | C39: 0 | D39: 16198.51552 | E39: 6297.066539 | F39: 9901.448983 | G39: =IF(ROUND(SUM(B39:C39,-F39),0)=0,0,IF($B$6="Yes",SUM($C$9:C39),SUM(B39:C39,-F39))) -> 594616.9388
A40: 2023-09-30 | B40: 594616.9388 | C40: 0 | D40: 16198.51552 | E40: 6193.926446 | F40: 10004.58908 | G40: =IF(ROUND(SUM(B40:C40,-F40),0)=0,0,IF($B$6="Yes",SUM($C$9:C40),SUM(B40:C40,-F40))) -> 584612.3497
A41: 2023-10-31 | B41: 584612.3497 | C41: 0 | D41: 16198.51552 | E41: 6089.711976 | F41: 10108.80355 | G41: =IF(ROUND(SUM(B41:C41,-F41),0)=0,0,IF($B$6="Yes",SUM($C$9:C41),SUM(B41:C41,-F41))) -> 574503.5462
A42: 2023-11-30 | B42: 574503.5462 | C42: 0 | D42: 16198.51552 | E42: 5984.411939 | F42: 10214.10358 | G42: =IF(ROUND(SUM(B42:C42,-F42),0)=0,0,IF($B$6="Yes",SUM($C$9:C42),SUM(B42:C42,-F42))) -> 564289.4426
A43: 2023-12-31 | B43: 564289.4426 | C43: 0 | D43: 16198.51552 | E43: 5878.015027 | F43: 10320.5005 | G43: =IF(ROUND(SUM(B43:C43,-F43),0)=0,0,IF($B$6="Yes",SUM($C$9:C43),SUM(B43:C43,-F43))) -> 553968.9421
A44: 2024-01-31 | B44: 553968.9421 | C44: 0 | D44: 16198.51552 | E44: 5770.509814 | F44: 10428.00571 | G44: =IF(ROUND(SUM(B44:C44,-F44),0)=0,0,IF($B$6="Yes",SUM($C$9:C44),SUM(B44:C44,-F44))) -> 543540.9364
A45: 2024-02-29 | B45: 543540.9364 | C45: 0 | D45: 16198.51552 | E45: 5661.884754 | F45: 10536.63077 | G45: =IF(ROUND(SUM(B45:C45,-F45),0)=0,0,IF($B$6="Yes",SUM($C$9:C45),SUM(B45:C45,-F45))) -> 533004.3056
A46: 2024-03-31 | B46: 533004.3056 | C46: 0 | D46: 16198.51552 | E46: 5552.128184 | F46: 10646.38734 | G46: =IF(ROUND(SUM(B46:C46,-F46),0)=0,0,IF($B$6="Yes",SUM($C$9:C46),SUM(B46:C46,-F46))) -> 522357.9183
A47: 2024-04-30 | B47: 522357.9183 | C47: 0 | D47: 16198.51552 | E47: 5441.228316 | F47: 10757.28721 | G47: =IF(ROUND(SUM(B47:C47,-F47),0)=0,0,IF($B$6="Yes",SUM($C$9:C47),SUM(B47:C47,-F47))) -> 511600.6311
A48: 2024-05-31 | B48: 511600.6311 | C48: 0 | D48: 16198.51552 | E48: 5329.17324 | F48: 10869.34228 | G48: =IF(ROUND(SUM(B48:C48,-F48),0)=0,0,IF($B$6="Yes",SUM($C$9:C48),SUM(B48:C48,-F48))) -> 500731.2888
A49: 2024-06-30 | B49: 500731.2888 | C49: 0 | D49: 16198.51552 | E49: 5215.950925 | F49: 10982.5646 | G49: =IF(ROUND(SUM(B49:C49,-F49),0)=0,0,IF($B$6="Yes",SUM($C$9:C49),SUM(B49:C49,-F49))) -> 489748.7242
A50: 2024-07-31 | B50: 489748.7242 | C50: 0 | D50: 16198.51552 | E50: 5101.54921 | F50: 11096.96631 | G50: =IF(ROUND(SUM(B50:C50,-F50),0)=0,0,IF($B$6="Yes",SUM($C$9:C50),SUM(B50:C50,-F50))) -> 478651.7579
A51: 2024-08-31 | B51: 478651.7579 | C51: 200000 | D51: 20698.10317 | E51: 7069.289145 | F51: 13628.81402 | G51: =IF(ROUND(SUM(B51:C51,-F51),0)=0,0,IF($B$6="Yes",SUM($C$9:C51),SUM(B51:C51,-F51))) -> 665022.9439
A52: 2024-09-30 | B52: 665022.9439 | C52: 0 | D52: 20698.10317 | E52: 6927.322332 | F52: 13770.78084 | G52: =IF(ROUND(SUM(B52:C52,-F52),0)=0,0,IF($B$6="Yes",SUM($C$9:C52),SUM(B52:C52,-F52))) -> 651252.163
A53: 2024-10-31 | B53: 651252.163 | C53: 0 | D53: 20698.10317 | E53: 6783.876698 | F53: 13914.22647 | G53: =IF(ROUND(SUM(B53:C53,-F53),0)=0,0,IF($B$6="Yes",SUM($C$9:C53),SUM(B53:C53,-F53))) -> 637337.9366
A54: 2024-11-30 | B54: 637337.9366 | C54: 0 | D54: 20698.10317 | E54: 6638.936839 | F54: 14059.16633 | G54: =IF(ROUND(SUM(B54:C54,-F54),0)=0,0,IF($B$6="Yes",SUM($C$9:C54),SUM(B54:C54,-F54))) -> 623278.7702
A55: 2024-12-31 | B55: 623278.7702 | C55: 0 | D55: 20698.10317 | E55: 6492.48719 | F55: 14205.61598 | G55: =IF(ROUND(SUM(B55:C55,-F55),0)=0,0,IF($B$6="Yes",SUM($C$9:C55),SUM(B55:C55,-F55))) -> 609073.1543
A56: 2025-01-31 | B56: 609073.1543 | C56: 0 | D56: 20698.10317 | E56: 6344.512024 | F56: 14353.59114 | G56: =IF(ROUND(SUM(B56:C56,-F56),0)=0,0,IF($B$6="Yes",SUM($C$9:C56),SUM(B56:C56,-F56))) -> 594719.5631
A57: 2025-02-28 | B57: 594719.5631 | C57: 0 | D57: 20698.10317 | E57: 6194.995449 | F57: 14503.10772 | G57: =IF(ROUND(SUM(B57:C57,-F57),0)=0,0,IF($B$6="Yes",SUM($C$9:C57),SUM(B57:C57,-F57))) -> 580216.4554
A58: 2025-03-31 | B58: 580216.4554 | C58: 0 | D58: 20698.10317 | E58: 6043.92141 | F58: 14654.18176 | G58: =IF(ROUND(SUM(B58:C58,-F58),0)=0,0,IF($B$6="Yes",SUM($C$9:C58),SUM(B58:C58,-F58))) -> 565562.2736
A59: 2025-04-30 | B59: 565562.2736 | C59: 0 | D59: 20698.10317 | E59: 5891.273684 | F59: 14806.82948 | G59: =IF(ROUND(SUM(B59:C59,-F59),0)=0,0,IF($B$6="Yes",SUM($C$9:C59),SUM(B59:C59,-F59))) -> 550755.4442
A60: 2025-05-31 | B60: 550755.4442 | C60: 0 | D60: 20698.10317 | E60: 5737.035877 | F60: 14961.06729 | G60: =IF(ROUND(SUM(B60:C60,-F60),0)=0,0,IF($B$6="Yes",SUM($C$9:C60),SUM(B60:C60,-F60))) -> 535794.3769
A61: 2025-06-30 | B61: 535794.3769 | C61: 0 | D61: 20698.10317 | E61: 5581.191426 | F61: 15116.91174 | G61: =IF(ROUND(SUM(B61:C61,-F61),0)=0,0,IF($B$6="Yes",SUM($C$9:C61),SUM(B61:C61,-F61))) -> 520677.4651
A62: 2025-07-31 | B62: 520677.4651 | C62: 0 | D62: 20698.10317 | E62: 5423.723595 | F62: 15274.37957 | G62: =IF(ROUND(SUM(B62:C62,-F62),0)=0,0,IF($B$6="Yes",SUM($C$9:C62),SUM(B62:C62,-F62))) -> 505403.0856
A63: 2025-08-31 | B63: 505403.0856 | C63: 0 | D63: 20698.10317 | E63: 5264.615475 | F63: 15433.48769 | G63: =IF(ROUND(SUM(B63:C63,-F63),0)=0,0,IF($B$6="Yes",SUM($C$9:C63),SUM(B63:C63,-F63))) -> 489969.5979
A64: 2025-09-30 | B64: 489969.5979 | C64: 350000 | D64: 28572.38155 | E64: 8749.683311 | F64: 19822.69824 | G64: =IF(ROUND(SUM(B64:C64,-F64),0)=0,0,IF($B$6="Yes",SUM($C$9:C64),SUM(B64:C64,-F64))) -> 820146.8996
A65: 2025-10-31 | B65: 820146.8996 | C65: 0 | D65: 28572.38155 | E65: 8543.196871 | F65: 20029.18468 | G65: =IF(ROUND(SUM(B65:C65,-F65),0)=0,0,IF($B$6="Yes",SUM($C$9:C65),SUM(B65:C65,-F65))) -> 800117.7149
A66: 2025-11-30 | B66: 800117.7149 | C66: 0 | D66: 28572.38155 | E66: 8334.559531 | F66: 20237.82202 | G66: =IF(ROUND(SUM(B66:C66,-F66),0)=0,0,IF($B$6="Yes",SUM($C$9:C66),SUM(B66:C66,-F66))) -> 779879.8929
A67: 2025-12-31 | B67: 779879.8929 | C67: 0 | D67: 28572.38155 | E67: 8123.748885 | F67: 20448.63266 | G67: =IF(ROUND(SUM(B67:C67,-F67),0)=0,0,IF($B$6="Yes",SUM($C$9:C67),SUM(B67:C67,-F67))) -> 759431.2603
A68: 2026-01-31 | B68: 759431.2603 | C68: 0 | D68: 28572.38155 | E68: 7910.742294 | F68: 20661.63925 | G68: =IF(ROUND(SUM(B68:C68,-F68),0)=0,0,IF($B$6="Yes",SUM($C$9:C68),SUM(B68:C68,-F68))) -> 738769.621
A69: 2026-02-28 | B69: 738769.621 | C69: 0 | D69: 28572.38155 | E69: 7695.516886 | F69: 20876.86466 | G69: =IF(ROUND(SUM(B69:C69,-F69),0)=0,0,IF($B$6="Yes",SUM($C$9:C69),SUM(B69:C69,-F69))) -> 717892.7564
A70: 2026-03-31 | B70: 717892.7564 | C70: 0 | D70: 28572.38155 | E70: 7478.049545 | F70: 21094.332 | G70: =IF(ROUND(SUM(B70:C70,-F70),0)=0,0,IF($B$6="Yes",SUM($C$9:C70),SUM(B70:C70,-F70))) -> 696798.4244
A71: 2026-04-30 | B71: 696798.4244 | C71: 0 | D71: 28572.38155 | E71: 7258.31692 | F71: 21314.06463 | G71: =IF(ROUND(SUM(B71:C71,-F71),0)=0,0,IF($B$6="Yes",SUM($C$9:C71),SUM(B71:C71,-F71))) -> 675484.3597
A72: 2026-05-31 | B72: 675484.3597 | C72: 0 | D72: 28572.38155 | E72: 7036.295414 | F72: 21536.08613 | G72: =IF(ROUND(SUM(B72:C72,-F72),0)=0,0,IF($B$6="Yes",SUM($C$9:C72),SUM(B72:C72,-F72))) -> 653948.2736
A73: 2026-06-30 | B73: 653948.2736 | C73: 0 | D73: 28572.38155 | E73: 6811.961183 | F73: 21760.42036 | G73: =IF(ROUND(SUM(B73:C73,-F73),0)=0,0,IF($B$6="Yes",SUM($C$9:C73),SUM(B73:C73,-F73))) -> 632187.8532
A74: 2026-07-31 | B74: 632187.8532 | C74: 0 | D74: 28572.38155 | E74: 6585.290138 | F74: =IF($B$6="Yes",0,D74-E74) -> 21987.09141 | G74: =IF(ROUND(SUM(B74:C74,-F74),0)=0,0,IF($B$6="Yes",SUM($C$9:C74),SUM(B74:C74,-F74))) -> 610200.7618
A75: =DATE(YEAR(A74),MONTH(A74)+2,0) -> 2026-08-31 | B75: =G74 -> 610200.7618 | C75: 0 | D75: =IF($B$6="Yes",0,IF(ROW(C75)-ROW($C$9)>$B$5*12,-PMT($B$4/12,$B$5*12,SUM(OFFSET(C75,0,0,-$B$5*12,1)),0,0),-PMT($B$4/12,$B$5*12,SUM(OFFSET(C75,0,0,ROW($C$8)-ROW(C75),1)),0,0))) -> 28572.38155 | E75: =(G74+C75)*$B$4/12 -> 6356.257936 | F75: 22216.12361 | G75: =IF(ROUND(SUM(B75:C75,-F75),0)=0,0,IF($B$6="Yes",SUM($C$9:C75),SUM(B75:C75,-F75))) -> 587984.6382
A76: 2026-09-30 | B76: 587984.6382 | C76: 0 | D76: 28572.38155 | E76: 6124.839981 | F76: 22447.54156 | G76: =IF(ROUND(SUM(B76:C76,-F76),0)=0,0,IF($B$6="Yes",SUM($C$9:C76),SUM(B76:C76,-F76))) -> 565537.0967
A77: 2026-10-31 | B77: 565537.0967 | C77: 0 | D77: 28572.38155 | E77: 5891.011423 | F77: 22681.37012 | G77: =IF(ROUND(SUM(B77:C77,-F77),0)=0,0,IF($B$6="Yes",SUM($C$9:C77),SUM(B77:C77,-F77))) -> 542855.7265
A78: 2026-11-30 | B78: 542855.7265 | C78: 0 | D78: 28572.38155 | E78: 5654.747151 | F78: 22917.63439 | G78: =IF(ROUND(SUM(B78:C78,-F78),0)=0,0,IF($B$6="Yes",SUM($C$9:C78),SUM(B78:C78,-F78))) -> 519938.0921
A79: 2026-12-31 | B79: 519938.0921 | C79: 0 | D79: 28572.38155 | E79: 5416.021793 | F79: 23156.35975 | G79: =IF(ROUND(SUM(B79:C79,-F79),0)=0,0,IF($B$6="Yes",SUM($C$9:C79),SUM(B79:C79,-F79))) -> 496781.7324
A80: 2027-01-31 | B80: 496781.7324 | C80: 0 | D80: 23172.87637 | E80: 5174.809712 | F80: 17998.06666 | G80: =IF(ROUND(SUM(B80:C80,-F80),0)=0,0,IF($B$6="Yes",SUM($C$9:C80),SUM(B80:C80,-F80))) -> 478783.6657
A81: 2027-02-28 | B81: 478783.6657 | C81: 0 | D81: 23172.87637 | E81: 4987.329851 | F81: 18185.54652 | G81: =IF(ROUND(SUM(B81:C81,-F81),0)=0,0,IF($B$6="Yes",SUM($C$9:C81),SUM(B81:C81,-F81))) -> 460598.1192
A82: 2027-03-31 | B82: 460598.1192 | C82: 0 | D82: 23172.87637 | E82: 4797.897075 | F82: 18374.9793 | G82: =IF(ROUND(SUM(B82:C82,-F82),0)=0,0,IF($B$6="Yes",SUM($C$9:C82),SUM(B82:C82,-F82))) -> 442223.1399
A83: 2027-04-30 | B83: 442223.1399 | C83: 0 | D83: 23172.87637 | E83: 4606.491041 | F83: 18566.38533 | G83: =IF(ROUND(SUM(B83:C83,-F83),0)=0,0,IF($B$6="Yes",SUM($C$9:C83),SUM(B83:C83,-F83))) -> 423656.7546
A84: 2027-05-31 | B84: 423656.7546 | C84: 0 | D84: 23172.87637 | E84: 4413.091193 | F84: 18759.78518 | G84: =IF(ROUND(SUM(B84:C84,-F84),0)=0,0,IF($B$6="Yes",SUM($C$9:C84),SUM(B84:C84,-F84))) -> 404896.9694
A85: 2027-06-30 | B85: 404896.9694 | C85: 0 | D85: 23172.87637 | E85: 4217.676765 | F85: 18955.19961 | G85: =IF(ROUND(SUM(B85:C85,-F85),0)=0,0,IF($B$6="Yes",SUM($C$9:C85),SUM(B85:C85,-F85))) -> 385941.7698
A86: 2027-07-31 | B86: 385941.7698 | C86: 0 | D86: 23172.87637 | E86: 4020.226769 | F86: 19152.6496 | G86: =IF(ROUND(SUM(B86:C86,-F86),0)=0,0,IF($B$6="Yes",SUM($C$9:C86),SUM(B86:C86,-F86))) -> 366789.1202
A87: 2027-08-31 | B87: 366789.1202 | C87: 0 | D87: 16423.4949 | E87: 3820.720002 | F87: 12602.7749 | G87: =IF(ROUND(SUM(B87:C87,-F87),0)=0,0,IF($B$6="Yes",SUM($C$9:C87),SUM(B87:C87,-F87))) -> 354186.3453
A88: 2027-09-30 | B88: 354186.3453 | C88: 0 | D88: 16423.4949 | E88: 3689.441097 | F88: 12734.05381 | G88: =IF(ROUND(SUM(B88:C88,-F88),0)=0,0,IF($B$6="Yes",SUM($C$9:C88),SUM(B88:C88,-F88))) -> 341452.2915
A89: 2027-10-31 | B89: 341452.2915 | C89: 0 | D89: 16423.4949 | E89: 3556.794703 | F89: 12866.7002 | G89: =IF(ROUND(SUM(B89:C89,-F89),0)=0,0,IF($B$6="Yes",SUM($C$9:C89),SUM(B89:C89,-F89))) -> 328585.5913
A90: 2027-11-30 | B90: 328585.5913 | C90: 0 | D90: 16423.4949 | E90: 3422.766576 | F90: 13000.72833 | G90: =IF(ROUND(SUM(B90:C90,-F90),0)=0,0,IF($B$6="Yes",SUM($C$9:C90),SUM(B90:C90,-F90))) -> 315584.8629
